Workbook

Sheet notes (hidden)
A1: FY25 Chapter 70 Prelim
A3: Tabs | B3: What happens on this sheet | C3: Data source (if any) | D3: Notes
A4: Parameters | B4: Allows the user to adjust all of the policy levers in Chapter 70, except for changes to foundation. Foundation budget scenarios can be changed, but they must 1st be run separately and dropped into localcont (all the way to the right). Up to 11 alternatives can be included.
A5: Index | B5: Controls the district being viewed for all reports except regional dist members | C5: Dropdown box reads LEAs
A6: Rates | B6: CY and PY foundation budget rates Used to calculate foundation budget report | C6: Copied in from found file | D6: Copied in FY25 rates
A7: Foundation Budget | B7: 1 district report showing build-up of foundation budget | C7: Rates, dist435
A8: Municipal Contribution | B8: 1 city/town report showing build-up of required local contribution (municipal level) | C8: townwide contributions
A9: Regional Allocation | B9: 1 city/town report showing allocation of total municipal required local contribution based on proportion of foundation budget at each district to which it belongs | C9: localcont
A10: Summary | B10: 1 district report summarizing C70 calculation and comparison to PY | C10: aid436, disthist
A11: Regional Dist Members | B11: 1 regional district report summarizing enrollment and local contribution for each member town Changed in FY18 to vlookup on localcont | C11: localcont, leas
A12: LocalCont | B12: Results from distfrac get copied into the far right (up to 11 versions of foundation budget can be entered). Toggle is on parameters sheet. Data is organized in 5 row format for each city/town (municipality and its districts, blanks are 998 and total is 999). Used to calculate each municipal-district combination's RLC. | C12: found file, distfrac (allocate sheet) | D12: Copied in FY23 foundation budget, %s, RLCs and enro. Starting in FY24, Warwick will no longer be part of Pioneer. Removed Warwick/Pioneer combination on this tab.
A14: Comparison to FY24 | B14: 2 year comparison for operating districts | C14: aid436, disthist, localcont | D14: Only includes districts operating in both years
A15: Townwide Contributions | B15: Calculates municipal required local contributions | C15: DOR (EQV, Income, MRGFs), PY file (RLCs), parameters | D15: Copied FY24 RLCs into PY RLC column; updated formulas in columns I, Q, and Y to return value = 0 if townwide foundation budget = 0
A16: Aid436 | B16: Calculates district Ch 70 aid | C16: disthist, localcont, frac, parameters Starting w/ LEA 406, in col J (target aid %), formula changes to pull from frac tab. | D16: min aid adjustment only applied to operating districts; adjusted base aid for Warwick and Pioneer Valley
A17: Frac | B17: Calculates target aid percentage for regional districts | D17: Copied from distfrac25prelim 1/5/2024, checked and updated ranges
A18: DistHist | B18: ***Don't forget to copy in target aid %s from PY Historical C70 data used in summary report, and other places | D18: Copied in FY24 FB, RLC and Aid Copied in target aid %s from FY24 12/14/2023
A19: Dist435 | B19: Data source for foundation budget report, shows detailed enrollment and budget columns | C19: found25prelim
A21: Data | B21: Source | C21: Year | D21: Notes
A22: Inflation | B22: BEA website | C22: updated 12/21/23 | D22: Table 1.1.9. Implicit Price Deflators for Gross Domestic Product
A23: Wage Adjustment Factor Inputs | B23: EOLWD | C23: 2022
A24: EQV | B24: DOR | C24: 2022
A25: Income | B25: DOR | C25: 2021 | D25: 2023-12-13
A26: Enrollment incl. Postgrads | B26: DESE | C26: 2023-10-01 | D26: found25prelim
A27: MRGFs | B27: DOR/ANF | C27: 2025 | D27: updated MRGFs 1/11/2024
A30: 12/7/22: Starting in FY24, Warwick will no longer be part of Pioneer.
A31: 12/13/2023: Copied in output from distfrac25draft into localcont
A32: 12/13/23 copied in income 2021
A33: 12/14/23 : updated frac, disthist, added in min aid adjustment figures into aid 436
A34: 2023-12-21
A35: 1/3/2024 updated distfrac and found, ran scenarios 1 and 2 again
A37: 1/5/2024 updated minaidadjustment #s in Aid436, no change otherwise
A39: 2/1/2024 updated localcont with found25prelim_hwm which had several corrections; removed py hold harmless for Lowell
A41: *base aid shift from Marshfield to SSVT 23,806 in Aid436, don't forget to make sure the formulas are reset in FY26
A43: 3/4/2024 updates to 2 towns' MRgfs
A60: 3/7/2024 Updated localcont for enrollment

Sheet Index
A1: Massachusetts Department of Elementary and Secondary Education
A2: =parameters!B1& " Chapter 70 and Net School Spending Formula Spreadsheet" -> FY25 Chapter 70 and Net School Spending Formula Spreadsheet
B3: Select or type full district name below | C3: LEA code
A4: =C4 -> 999 | B4: Select a district | C4: =VLOOKUP(B4,leas!$E$4:$F$445,2,FALSE) -> 999
B6: Use the drop-down menu to select a municipal or regional district and then go to any of the first four links below.
B7: Only municipal district selections will activate the Municipal Contribution Requirement and Regional Allocation reports.
B8: A list of LEAs by code begins on row 26 of this sheet.
B10: We recommend that you save this workbook to your computer before proceeding, then leave this browser, and open the workbook using Excel or My Computer.
B12: Summary
B13: Foundation Budget
B14: Municipal Contribution Requirement
B15: Regional Allocation
B17: Regional District Detail | D17: (go to this sheet to see any particular regional district's comparison of enrollment and minimum contributions to the prior year)
B19: There are also a number of "hidden" sheets which contain the underlying spreadsheet calculations.
B20: They can be accessed by right-clicking on any of the tabs below and choosing a sheet to unhide.
B22: Questions or comments about Chapter 70 may be directed to:
B24: Rob O'Donnell | D24: Robert.F.O'Donnell@mass.gov | G24: 781-338-6512
B25: Meghan Ryan | D25: Meghan.Ryan2@mass.gov | G25: 781-338-6507
B27: District | D27: LEA Number
B28: Abington | D28: 1
B29: Acton | D29: 2
B30: Acton Boxborough | D30: 600
B31: Acushnet | D31: 3
B32: Adams | D32: 4
B33: Agawam | D33: 5
B34: Alford | D34: 6
B35: Amesbury | D35: 7
B36: Amherst | D36: 8
B37: Amherst Pelham | D37: 605
B38: Andover | D38: 9
B39: Aquinnah | D39: 104
B40: Arlington | D40: 10
B41: Ashburnham | D41: 11
B42: Ashburnham Westminster | D42: 610
B43: Ashby | D43: 12
B44: Ashfield | D44: 13
B45: Ashland | D45: 14
B46: Assabet Valley | D46: 801
B47: Athol | D47: 15
B48: Athol Royalston | D48: 615
B49: Attleboro | D49: 16
B50: Auburn | D50: 17
B51: Avon | D51: 18
B52: Ayer | D52: 19
B53: Ayer Shirley | D53: 616
B54: Barnstable | D54: 20
B55: Barre | D55: 21
B56: Becket | D56: 22
B57: Bedford | D57: 23
B58: Belchertown | D58: 24
B59: Bellingham | D59: 25
B60: Belmont | D60: 26
B61: Berkley | D61: 27
B62: Berkshire Hills | D62: 618
B63: Berlin | D63: 28
B64: Berlin Boylston | D64: 620
B65: Bernardston | D65: 29
B66: Beverly | D66: 30
B67: Billerica | D67: 31
B68: Blackstone | D68: 32
B69: Blackstone Millville | D69: 622
B70: Blackstone Valley | D70: 805
B71: Blandford | D71: 33
B72: Blue Hills | D72: 806
B73: Bolton | D73: 34
B74: Boston | D74: 35
B75: Bourne | D75: 36
B76: Boxborough | D76: 37
B77: Boxford | D77: 38
B78: Boylston | D78: 39
B79: Braintree | D79: 40
B80: Brewster | D80: 41
B81: Bridgewater | D81: 42
B82: Bridgewater Raynham | D82: 625
B83: Brimfield | D83: 43
B84: Bristol County | D84: 910
B85: Bristol Plymouth | D85: 810
B86: Brockton | D86: 44
B87: Brookfield | D87: 45
B88: Brookline | D88: 46
B89: Buckland | D89: 47
B90: Burlington | D90: 48
B91: Cambridge | D91: 49
B92: Canton | D92: 50
B93: Cape Cod | D93: 815
B94: Carlisle | D94: 51
B95: Carver | D95: 52
B96: Central Berkshire | D96: 635
B97: Charlemont | D97: 53
B98: Charlton | D98: 54
B99: Chatham | D99: 55
B100: Chelmsford | D100: 56
B101: Chelsea | D101: 57
B102: Cheshire | D102: 58
B103: Chester | D103: 59
B104: Chesterfield | D104: 60
B105: Chesterfield Goshen | D105: 632
B106: Chicopee | D106: 61
B107: Chilmark | D107: 62
B108: Clarksburg | D108: 63
B109: Clinton | D109: 64
B110: Cohasset | D110: 65
B111: Colrain | D111: 66
B112: Concord | D112: 67
B113: Concord Carlisle | D113: 640
B114: Conway | D114: 68
B115: Cummington | D115: 69
B116: Dalton | D116: 70
B117: Danvers | D117: 71
B118: Dartmouth | D118: 72
B119: Dedham | D119: 73
B120: Deerfield | D120: 74
B121: Dennis | D121: 75
B122: Dennis Yarmouth | D122: 645
B123: Dighton | D123: 76
B124: Dighton Rehoboth | D124: 650
B125: Douglas | D125: 77
B126: Dover | D126: 78
B127: Dover Sherborn | D127: 655
B128: Dracut | D128: 79
B129: Dudley | D129: 80
B130: Dudley Charlton | D130: 658
B131: Dunstable | D131: 81
B132: Duxbury | D132: 82
B133: East Bridgewater | D133: 83
B134: East Brookfield | D134: 84
B135: East Longmeadow | D135: 87
B136: Eastham | D136: 85
B137: Easthampton | D137: 86
B138: Easton | D138: 88
B139: Edgartown | D139: 89
B140: Egremont | D140: 90
B141: Erving | D141: 91
B142: Essex | D142: 92
B143: Essex North Shore | D143: 817
B144: Everett | D144: 93
B145: Fairhaven | D145: 94
B146: Fall River | D146: 95
B147: Falmouth | D147: 96
B148: Farmington River | D148: 662
B149: Fitchburg | D149: 97
B150: Florida | D150: 98
B151: Foxborough | D151: 99
B152: Framingham | D152: 100
B153: Franklin | D153: 101
B154: Franklin County | D154: 818
B155: Freetown | D155: 102
B156: Freetown Lakeville | D156: 665
B157: Frontier | D157: 670
B158: Gardner | D158: 103
B159: Gateway | D159: 672
B160: Georgetown | D160: 105
B161: Gill | D161: 106
B162: Gill Montague | D162: 674
B163: Gloucester | D163: 107
B164: Goshen | D164: 108
B165: Gosnold | D165: 109
B166: Grafton | D166: 110
B167: Granby | D167: 111
B168: Granville | D168: 112
B169: Great Barrington | D169: 113
B170: Greater Fall River | D170: 821
B171: Greater Lawrence | D171: 823
B172: Greater Lowell | D172: 828
B173: Greater New Bedford | D173: 825
B174: Greenfield | D174: 114
B175: Groton | D175: 115
B176: Groton Dunstable | D176: 673
B177: Groveland | D177: 116
B178: Hadley | D178: 117
B179: Halifax | D179: 118
B180: Hamilton | D180: 119
B181: Hamilton Wenham | D181: 675
B182: Hampden | D182: 120
B183: Hampden Wilbraham | D183: 680
B184: Hampshire | D184: 683
B185: Hancock | D185: 121
B186: Hanover | D186: 122
B187: Hanson | D187: 123
B188: Hardwick | D188: 124
B189: Harvard | D189: 125
B190: Harwich | D190: 126
B191: Hatfield | D191: 127
B192: Haverhill | D192: 128
B193: Hawlemont | D193: 685
B194: Hawley | D194: 129
B195: Heath | D195: 130
B196: Hingham | D196: 131
B197: Hinsdale | D197: 132
B198: Holbrook | D198: 133
B199: Holden | D199: 134
B200: Holland | D200: 135
B201: Holliston | D201: 136
B202: Holyoke | D202: 137
B203: Hoosac Valley | D203: 603
B204: Hopedale | D204: 138
B205: Hopkinton | D205: 139
B206: Hubbardston | D206: 140
B207: Hudson | D207: 141
B208: Hull | D208: 142
... 257 more rows

Sheet localcont (hidden)
I1: c70fy24 | J1: c70fy24 | O1: c70fy24 | R1: c70fy24 | CM1: Lookup table for foundation budget scenarios | CN1: 1 | CO1: 2
CN2: 2 | CO2: 8
D3: 1 | E3: 2 | F3: 3 | G3: 4 | H3: 5 | I3: 6 | J3: 7 | K3: 8 | L3: 9 | M3: 10 | N3: 11 | O3: 12 | P3: 13 | Q3: 14 | R3: 15 | S3: 16 | T3: 17 | U3: 18 | V3: 19 | W3: 20 | X3: 21 | Y3: 1 | BD3: 32 | BE3: 33 | BF3: 34 | BG3: 35 | BH3: 36 | BI3: 37 | BJ3: 38 | BK3: 39 | BL3: 40 | BM3: 41 | BN3: 42 | BO3: 43 | BP3: 44 | BQ3: 45 | BR3: 46 | BS3: 47 | BT3: 48 | BU3: 49 | BV3: 50 | BW3: 51 | BX3: 52 | BY3: 53 | BZ3: 54 | CA3: 55 | CB3: 56 | CC3: 57 | CD3: 58 | CE3: 59 | CF3: 60 | CG3: 61 | CH3: 62 | CI3: 63 | CJ3: 64 | CK3: 65 | CL3: 66 | CN3: 3 | CO3: 14
G4: lea1755 | K4: found1755 | N4: prelcont1755 | O4: pynetmin | R4: pyenro | W4: enro1755 | CN4: 4 | CO4: 20
Z5: 1 | AF5: 2 | BD5: 6 | BJ5: 7 | BP5: 8 | BV5: 9 | CB5: 10 | CH5: 11 | CN5: 5 | CO5: 26
T6: =parameters!$C$6 -> 1 | Z6: found25 | CN6: 6 | CO6: 32
I7: =PYr -> FY24 | J7: =PYr -> FY24 | K7: =CYr -> FY25 | L7: =CYr -> FY25 | M7: =CYr -> FY25 | N7: =CYr -> FY25 | O7: =PYr -> FY24 | CN7: 7 | CO7: 38
I8: Foundation | J8: Share of Total | K8: Foundation | L8: Share of Total | M8: Townwide | N8: Net Minimum | O8: Net Minimum | P8: =PYr&" to "&CYr -> FY24 to FY25 | Q8: Percent | R8: =PYr -> FY24 | S8: =CYr -> FY25 | W8: final | X8: foundation | BG8: final | BH8: foundation | BM8: final | BN8: foundation | BS8: final | BT8: foundation | BY8: final | BZ8: foundation | CE8: final | CF8: foundation | CK8: final | CL8: foundation | CN8: 8 | CO8: 44
A9: TownLEA | B9: Town | C9: LEA | D9: Order | E9: Town | F9: City or Town | G9: LEA | H9: School District | I9: Budget24 | J9: Foundation24 | K9: Budget25 | L9: Foundation25 | M9: Contribution25 | N9: Contribution25 | O9: Contribution24 | P9: Change | Q9: Change | R9: Enrollment24 | S9: Enrollment25 | T9: Town | U9: LEA | V9: Order | W9: enrollment | X9: budget | BD9: Town | BE9: LEA | BF9: Order | BG9: enrollment | BH9: budget | BJ9: Town | BK9: LEA | BL9: Order | BM9: enrollment | BN9: budget | BP9: Town | BQ9: LEA | BR9: Order | BS9: enrollment | BT9: budget | BV9: Town | BW9: LEA | BX9: Order | BY9: enrollment | BZ9: budget | CB9: Town | CC9: LEA | CD9: Order | CE9: enrollment | CF9: budget | CH9: Town | CI9: LEA | CJ9: Order | CK9: enrollment | CL9: budget | CN9: 9 | CO9: 50
A10: =B10&C10 -> 00010001 | B10: 0001 | C10: 0001 | D10: 1 | E10: 1 | F10: Abington | G10: 1 | H10: Abington | I10: 31287579.08 | J10: 0.9358639524 | K10: =X10 -> 32236384.53 | L10: =IF(K14>0, K10/K14, 0) -> 0.9312713637 | N10: =ROUND(M14*L10,0) -> 17754107 | O10: 17104459 | P10: =N10-O10 -> 649648 | Q10: =IF(O10>0,P10*100/O10,IF(P10>0,100,0)) -> 3.798120712 | R10: 2206 | S10: =W10 -> 2202 | T10: =VLOOKUP($D10, foundoptions, VLOOKUP($T$6, foundoptcell, 2, FALSE), FALSE) -> 1 | U10: =VLOOKUP($D10, foundoptions, VLOOKUP($T$6, foundoptcell, 2, FALSE)+1, FALSE) -> 1 | V10: =VLOOKUP($D10, foundoptions, VLOOKUP($T$6, foundoptcell, 2, FALSE)+2, FALSE) -> 1 | W10: =VLOOKUP($D10, foundoptions, VLOOKUP($T$6, foundoptcell, 2, FALSE)+3, FALSE) -> 2202 | X10: =VLOOKUP($D10, foundoptions, VLOOKUP($T$6, foundoptcell, 2, FALSE)+4, FALSE) -> 32236384.53 | Y10: =D10 -> 1 | Z10: 1 | AA10: 1 | AB10: 1 | AC10: 2202 | AD10: 32236384.53 | CN10: 10 | CO10: 56
A11: 00010873 | B11: 0001 | C11: 0873 | D11: 2 | E11: 1 | F11: Abington | G11: 873 | H11: South Shore | I11: 2144180.951 | J11: 0.06413604755 | K11: =X11 -> 2379073.204 | L11: =IF(K14>0, K11/K14, 0) -> 0.06872863627 | N11: =ROUND(M14*L11,0) -> 1310268 | O11: 1172192 | P11: =N11-O11 -> 138076 | Q11: 11.77929895 | R11: 103 | S11: =W11 -> 114 | T11: 1 | U11: 873 | V11: 2 | W11: 114 | X11: 2379073.204 | Y11: =D11 -> 2 | Z11: 1 | AA11: 873 | AB11: 2 | AC11: 114 | AD11: 2379073.204 | CN11: 11 | CO11: 62
A12: 00010998 | B12: 0001 | C12: 0998 | D12: 3 | E12: 1 | G12: 998 | I12: 0 | J12: 0 | K12: =X12 -> 0 | L12: =IF(K14>0, K12/K14, 0) -> 0 | N12: =ROUND(M14*L12,0) -> 0 | O12: 0 | P12: =N12-O12 -> 0 | Q12: 0 | R12: 0 | S12: 0 | T12: 1 | U12: 998 | V12: 3 | W12: 0 | X12: 0 | Y12: 3 | Z12: 1 | AA12: 998 | AB12: 3 | AC12: 0 | AD12: 0
A13: 00010998 | B13: 0001 | C13: 0998 | D13: 4 | E13: 1 | G13: 998 | I13: 0 | J13: 0 | K13: =X13 -> 0 | L13: =IF(K14>0, K13/K14, 0) -> 0 | N13: =ROUND(M14*L13,0) -> 0 | O13: 0 | P13: =N13-O13 -> 0 | Q13: 0 | R13: 0 | S13: 0 | T13: 1 | U13: 998 | V13: 4 | W13: 0 | X13: 0 | Y13: 4 | Z13: 1 | AA13: 998 | AB13: 4 | AC13: 0 | AD13: 0
A14: 00010999 | B14: 0001 | C14: 0999 | D14: 5 | E14: 1 | F14: Abington | G14: 999 | H14: Total | I14: 33431760.03 | J14: 1 | K14: =SUM(K10:K13) -> 34615457.74 | L14: =SUM(L10:L13) -> 1 | M14: =VLOOKUP(E14,town351,24) -> 19064375 | N14: =SUM(N10:N13) -> 19064375 | O14: 18276651 | P14: =SUM(P10:P13) -> 787724 | Q14: 4.310001871 | R14: 2309 | S14: 2316 | T14: 1 | U14: 999 | V14: 5 | W14: 2316 | X14: 34615457.74 | Y14: 5 | Z14: 1 | AA14: 999 | AB14: 5 | AC14: 2316 | AD14: 34615457.74
A15: 00020002 | B15: 0002 | C15: 0002 | D15: 6 | E15: 2 | F15: Acton | G15: 2 | H15: Acton | I15: 0 | J15: 0 | K15: =X15 -> 0 | L15: =IF(K19>0, K15/K19, 0) -> 0 | N15: =ROUND(M19*L15,0) -> 0 | O15: 0 | P15: =N15-O15 -> 0 | Q15: 0 | R15: 0 | S15: 0 | T15: 2 | U15: 2 | V15: 6 | W15: 0 | X15: 0 | Y15: 6 | Z15: 2 | AA15: 2 | AB15: 6 | AC15: 0 | AD15: 0
A16: 00020600 | B16: 0002 | C16: 0600 | D16: 7 | E16: 2 | F16: Acton | G16: 600 | H16: Acton Boxborough | I16: 53374954.46 | J16: 0.9667451215 | K16: 54000661.22 | L16: =IF(K19>0, K16/K19, 0) -> 0.9638426603 | N16: =ROUND(M19*L16,0) -> 43461158 | O16: 41971918 | P16: =N16-O16 -> 1489240 | Q16: 3.548181906 | R16: 4160.188346 | S16: 4082.280285 | T16: 2 | U16: 600 | V16: 7 | W16: 4082.280285 | X16: 54000661.22 | Y16: 7 | Z16: 2 | AA16: 600 | AB16: 7 | AC16: 4082.280285 | AD16: 54000661.22
A17: 00020830 | B17: 0002 | C17: 0830 | D17: 8 | E17: 2 | F17: Acton | G17: 830 | H17: Minuteman | I17: 1836034.738 | J17: 0.0332548785 | K17: 2025766.58 | L17: =IF(K19>0, K17/K19, 0) -> 0.03615733966 | N17: =ROUND(M19*L17,0) -> 1630390 | O17: 1443784 | P17: =N17-O17 -> 186606 | Q17: 12.92478653 | R17: 88 | S17: 97 | T17: 2 | U17: 830 | V17: 8 | W17: 97 | X17: 2025766.58 | Y17: 8 | Z17: 2 | AA17: 830 | AB17: 8 | AC17: 97 | AD17: 2025766.58
A18: 00020998 | B18: 0002 | C18: 0998 | D18: 9 | E18: 2 | G18: 998 | I18: 0 | J18: 0 | K18: 0 | L18: =IF(K19>0, K18/K19, 0) -> 0 | N18: =ROUND(M19*L18,0) -> 0 | O18: 0 | P18: =N18-O18 -> 0 | Q18: 0 | R18: 0 | S18: 0 | T18: 2 | U18: 998 | V18: 9 | W18: 0 | X18: 0 | Y18: 9 | Z18: 2 | AA18: 998 | AB18: 9 | AC18: 0 | AD18: 0
A19: 00020999 | B19: 0002 | C19: 0999 | D19: 10 | E19: 2 | F19: Acton | G19: 999 | H19: Total | I19: 55210989.2 | J19: 1 | K19: =SUM(K15:K18) -> 56026427.8 | L19: =SUM(L15:L18) -> 1 | M19: =VLOOKUP(E19,town351,24) -> 45091548 | N19: =SUM(N15:N18) -> 45091548 | O19: 43415702 | P19: =SUM(P15:P18) -> 1675846 | Q19: =IF(O19>0,P19*100/O19,IF(P19>0,100,0)) -> 3.859999776 | R19: 4248.188346 | S19: 4179.280285 | T19: 2 | U19: 999 | V19: 10 | W19: 4179.280285 | X19: 56026427.8 | Y19: 10 | Z19: 2 | AA19: 999 | AB19: 10 | AC19: 4179.280285 | AD19: 56026427.8
A20: 00030003 | B20: 0003 | C20: 0003 | D20: 11 | E20: 3 | F20: Acushnet | G20: 3 | H20: Acushnet | I20: 15911255.39 | J20: 0.8184652571 | K20: =X20 -> 15622821.81 | L20: =IF(K24>0, K20/K24, 0) -> 0.7903763915 | N20: =ROUND(M24*L20,0) -> 8852864 | O20: 8740925 | P20: =N20-O20 -> 111939 | Q20: 1.280631054 | R20: 1221 | S20: 1173 | T20: 3 | U20: 3 | V20: 11 | W20: 1173 | X20: 15622821.81 | Y20: 11 | Z20: 3 | AA20: 3 | AB20: 11 | AC20: 1173 | AD20: 15622821.81
A21: 00030855 | B21: 0003 | C21: 0855 | D21: 12 | E21: 3 | F21: Acushnet | G21: 855 | H21: Old Colony | I21: 3264388.454 | J21: 0.1679181478 | K21: 3747380.496 | L21: =IF(K24>0, K21/K24, 0) -> 0.1895842576 | N21: =ROUND(M24*L21,0) -> 2123499 | O21: 1793308 | P21: =N21-O21 -> 330191 | Q21: 18.41239765 | R21: 168 | S21: 190 | T21: 3 | U21: 855 | V21: 12 | W21: 190 | X21: 3747380.496 | Y21: 12 | Z21: 3 | AA21: 855 | AB21: 12 | AC21: 190 | AD21: 3747380.496
A22: 00030910 | B22: 0003 | C22: 0910 | D22: 13 | E22: 3 | F22: Acushnet | G22: 910 | H22: Bristol County | I22: 264711.4466 | J22: 0.0136165951 | K22: 396103.9475 | L22: =IF(K24>0, K22/K24, 0) -> 0.02003935093 | N22: =ROUND(M24*L22,0) -> 224457 | O22: 145421 | P22: =N22-O22 -> 79036 | Q22: 54.34978442 | R22: 13 | S22: 19 | T22: 3 | U22: 910 | V22: 13 | W22: 19 | X22: 396103.9475 | Y22: 13 | Z22: 3 | AA22: 910 | AB22: 13 | AC22: 19 | AD22: 396103.9475
A23: 00030998 | B23: 0003 | C23: 0998 | D23: 14 | E23: 3 | G23: 998 | I23: 0 | J23: 0 | K23: 0 | L23: =IF(K24>0, K23/K24, 0) -> 0 | N23: =ROUND(M24*L23,0) -> 0 | O23: 0 | P23: =N23-O23 -> 0 | Q23: 0 | R23: 0 | S23: 0 | T23: 3 | U23: 998 | V23: 14 | W23: 0 | X23: 0 | Y23: 14 | Z23: 3 | AA23: 998 | AB23: 14 | AC23: 0 | AD23: 0
A24: 00030999 | B24: 0003 | C24: 0999 | D24: 15 | E24: 3 | F24: Acushnet | G24: 999 | H24: Total | I24: 19440355.29 | J24: 1 | K24: =SUM(K20:K23) -> 19766306.25 | L24: =SUM(L20:L23) -> 1 | M24: =VLOOKUP(E24,town351,24) -> 11200821 | N24: =SUM(N20:N23) -> 11200820 | O24: 10679654 | P24: =SUM(P20:P23) -> 521166 | Q24: 4.879989558 | R24: 1402 | S24: 1382 | T24: 3 | U24: 999 | V24: 15 | W24: 1382 | X24: 19766306.25 | Y24: 15 | Z24: 3 | AA24: 999 | AB24: 15 | AC24: 1382 | AD24: 19766306.25
A25: 00040004 | B25: 0004 | C25: 0004 | D25: 16 | E25: 4 | F25: Adams | G25: 4 | H25: Adams | I25: 0 | J25: 0 | K25: =X25 -> 0 | L25: =IF(K29>0, K25/K29, 0) -> 0 | N25: =ROUND(M29*L25,0) -> 0 | O25: 0 | P25: =N25-O25 -> 0 | Q25: 0 | R25: 0 | S25: 0 | T25: 4 | U25: 4 | V25: 16 | W25: 0 | X25: 0 | Y25: 16 | Z25: 4 | AA25: 4 | AB25: 16 | AC25: 0 | AD25: 0
A26: 00040603 | B26: 0004 | C26: 0603 | D26: 17 | E26: 4 | F26: Adams | G26: 603 | H26: Hoosac Valley | I26: 12998538.14 | J26: 0.815497705 | K26: 13561431.97 | L26: =IF(K29>0, K26/K29, 0) -> 0.8122285492 | N26: =ROUND(M29*L26,0) -> 4059948 | O26: 3947597 | P26: =N26-O26 -> 112351 | Q26: 2.846060527 | R26: 856.0834753 | S26: 860.1831224 | T26: 4 | U26: 603 | V26: 17 | W26: 860.1831224 | X26: 13561431.97 | Y26: 17 | Z26: 4 | AA26: 603 | AB26: 17 | AC26: 860.1831224 | AD26: 13561431.97
A27: 00040851 | B27: 0004 | C27: 0851 | D27: 18 | E27: 4 | F27: Adams | G27: 851 | H27: Northern Berkshire | I27: 2940854.529 | J27: 0.184502295 | K27: 3135139.437 | L27: =IF(K29>0, K27/K29, 0) -> 0.1877714508 | N27: =ROUND(M29*L27,0) -> 938581 | O27: 893124 | P27: =N27-O27 -> 45457 | Q27: 5.089662802 | R27: 139 | S27: 143 | T27: 4 | U27: 851 | V27: 18 | W27: 143 | X27: 3135139.437 | Y27: 18 | Z27: 4 | AA27: 851 | AB27: 18 | AC27: 143 | AD27: 3135139.437
A28: 00040998 | B28: 0004 | C28: 0998 | D28: 19 | E28: 4 | G28: 998 | I28: 0 | J28: 0 | K28: 0 | L28: =IF(K29>0, K28/K29, 0) -> 0 | N28: =ROUND(M29*L28,0) -> 0 | O28: 0 | P28: =N28-O28 -> 0 | Q28: 0 | R28: 0 | S28: 0 | T28: 4 | U28: 998 | V28: 19 | W28: 0 | X28: 0 | Y28: 19 | Z28: 4 | AA28: 998 | AB28: 19 | AC28: 0 | AD28: 0
A29: 00040999 | B29: 0004 | C29: 0999 | D29: 20 | E29: 4 | F29: Adams | G29: 999 | H29: Total | I29: 15939392.67 | J29: 1 | K29: =SUM(K25:K28) -> 16696571.41 | L29: =SUM(L25:L28) -> 1 | M29: =VLOOKUP(E29,town351,24) -> 4998529 | N29: =SUM(N25:N28) -> 4998529 | O29: 4840721 | P29: =SUM(P25:P28) -> 157808 | Q29: 3.260010234 | R29: 995.0834753 | S29: 1003.183122 | T29: 4 | U29: 999 | V29: 20 | W29: 1003.183122 | X29: 16696571.41 | Y29: 20 | Z29: 4 | AA29: 999 | AB29: 20 | AC29: 1003.183122 | AD29: 16696571.41
A30: 00050005 | B30: 0005 | C30: 0005 | D30: 21 | E30: 5 | F30: Agawam | G30: 5 | H30: Agawam | I30: 50397491.3 | J30: 1 | K30: =X30 -> 52988778.25 | L30: =IF(K34>0, K30/K34, 0) -> 1 | N30: =ROUND(M34*L30,0) -> 26903037 | O30: 25373043 | P30: =N30-O30 -> 1529994 | Q30: 6.029998057 | R30: 3421 | S30: 3486 | T30: 5 | U30: 5 | V30: 21 | W30: 3486 | X30: 52988778.25 | Y30: 21 | Z30: 5 | AA30: 5 | AB30: 21 | AC30: 3486 | AD30: 52988778.25
A31: 00050998 | B31: 0005 | C31: 0998 | D31: 22 | E31: 5 | G31: 998 | I31: 0 | J31: 0 | K31: 0 | L31: =IF(K34>0, K31/K34, 0) -> 0 | N31: =ROUND(M34*L31,0) -> 0 | O31: 0 | P31: =N31-O31 -> 0 | Q31: 0 | R31: 0 | S31: 0 | T31: 5 | U31: 998 | V31: 22 | W31: 0 | X31: 0 | Y31: 22 | Z31: 5 | AA31: 998 | AB31: 22 | AC31: 0 | AD31: 0
A32: 00050998 | B32: 0005 | C32: 0998 | D32: 23 | E32: 5 | G32: 998 | I32: 0 | J32: 0 | K32: 0 | L32: =IF(K34>0, K32/K34, 0) -> 0 | N32: =ROUND(M34*L32,0) -> 0 | O32: 0 | P32: =N32-O32 -> 0 | Q32: 0 | R32: 0 | S32: 0 | T32: 5 | U32: 998 | V32: 23 | W32: 0 | X32: 0 | Y32: 23 | Z32: 5 | AA32: 998 | AB32: 23 | AC32: 0 | AD32: 0
A33: 00050998 | B33: 0005 | C33: 0998 | D33: 24 | E33: 5 | G33: 998 | I33: 0 | J33: 0 | K33: 0 | L33: =IF(K34>0, K33/K34, 0) -> 0 | N33: =ROUND(M34*L33,0) -> 0 | O33: 0 | P33: =N33-O33 -> 0 | Q33: 0 | R33: 0 | S33: 0 | T33: 5 | U33: 998 | V33: 24 | W33: 0 | X33: 0 | Y33: 24 | Z33: 5 | AA33: 998 | AB33: 24 | AC33: 0 | AD33: 0
A34: 00050999 | B34: 0005 | C34: 0999 | D34: 25 | E34: 5 | F34: Agawam | G34: 999 | H34: Total | I34: 50397491.3 | J34: 1 | K34: =SUM(K30:K33) -> 52988778.25 | L34: =SUM(L30:L33) -> 1 | M34: =VLOOKUP(E34,town351,24) -> 26903037 | N34: =SUM(N30:N33) -> 26903037 | O34: 25373043 | P34: =SUM(P30:P33) -> 1529994 | Q34: 6.029998057 | R34: 3421 | S34: 3486 | T34: 5 | U34: 999 | V34: 25 | W34: 3486 | X34: 52988778.25 | Y34: 25 | Z34: 5 | AA34: 999 | AB34: 25 | AC34: 3486 | AD34: 52988778.25
A35: 00060006 | B35: 0006 | C35: 0006 | D35: 26 | E35: 6 | F35: Alford | G35: 6 | H35: Alford | I35: 0 | J35: 0 | K35: =X35 -> 0 | L35: =IF(K39>0, K35/K39, 0) -> 0 | N35: =ROUND(M39*L35,0) -> 0 | O35: 0 | P35: =N35-O35 -> 0 | Q35: 0 | R35: 0 | S35: 0 | T35: 6 | U35: 6 | V35: 26 | W35: 0 | X35: 0 | Y35: 26 | Z35: 6 | AA35: 6 | AB35: 26 | AC35: 0 | AD35: 0
A36: 00060765 | B36: 0006 | C36: 0765 | D36: 27 | E36: 6 | F36: Alford | G36: 765 | H36: Southern Berkshire | I36: 278259.7125 | J36: 1 | K36: 279039.0652 | L36: =IF(K39>0, K36/K39, 0) -> 1 | N36: =ROUND(M39*L36,0) -> 230207 | O36: 229564 | P36: =N36-O36 -> 643 | Q36: 0.2800961823 | R36: 19.39849624 | S36: 19.17304747 | T36: 6 | U36: 765 | V36: 27 | W36: 19.17304747 | X36: 279039.0652 | Y36: 27 | Z36: 6 | AA36: 765 | AB36: 27 | AC36: 19.17304747 | AD36: 279039.0652
A37: 00060998 | B37: 0006 | C37: 0998 | D37: 28 | E37: 6 | G37: 998 | I37: 0 | J37: 0 | K37: 0 | L37: =IF(K39>0, K37/K39, 0) -> 0 | N37: =ROUND(M39*L37,0) -> 0 | O37: 0 | P37: =N37-O37 -> 0 | Q37: 0 | R37: 0 | S37: 0 | T37: 6 | U37: 998 | V37: 28 | W37: 0 | X37: 0 | Y37: 28 | Z37: 6 | AA37: 998 | AB37: 28 | AC37: 0 | AD37: 0
A38: 00060998 | B38: 0006 | C38: 0998 | D38: 29 | E38: 6 | G38: 998 | I38: 0 | J38: 0 | K38: 0 | L38: =IF(K39>0, K38/K39, 0) -> 0 | N38: =ROUND(M39*L38,0) -> 0 | O38: 0 | P38: =N38-O38 -> 0 | Q38: 0 | R38: 0 | S38: 0 | T38: 6 | U38: 998 | V38: 29 | W38: 0 | X38: 0 | Y38: 29 | Z38: 6 | AA38: 998 | AB38: 29 | AC38: 0 | AD38: 0
A39: 00060999 | B39: 0006 | C39: 0999 | D39: 30 | E39: 6 | F39: Alford | G39: 999 | H39: Total | I39: 278259.7125 | J39: 1 | K39: =SUM(K35:K38) -> 279039.0652 | L39: =SUM(L35:L38) -> 1 | M39: =VLOOKUP(E39,town351,24) -> 230207 | N39: =SUM(N35:N38) -> 230207 | O39: 229564 | P39: =SUM(P35:P38) -> 643 | Q39: 0.2800961823 | R39: 19.39849624 | S39: 19.17304747 | T39: 6 | U39: 999 | V39: 30 | W39: 19.17304747 | X39: 279039.0652 | Y39: 30 | Z39: 6 | AA39: 999 | AB39: 30 | AC39: 19.17304747 | AD39: 279039.0652
A40: 00070007 | B40: 0007 | C40: 0007 | D40: 31 | E40: 7 | F40: Amesbury | G40: 7 | H40: Amesbury | I40: 24965747.03 | J40: 0.9111821997 | K40: =X40 -> 26495878.26 | L40: =IF(K44>0, K40/K44, 0) -> 0.9098416439 | N40: =ROUND(M44*L40,0) -> 19160041 | O40: 18234602 | P40: =N40-O40 -> 925439 | Q40: 5.075180692 | R40: 1847 | S40: 1898 | T40: 7 | U40: 7 | V40: 31 | W40: 1898 | X40: 26495878.26 | Y40: 31 | Z40: 7 | AA40: 7 | AB40: 31 | AC40: 1898 | AD40: 26495878.26
A41: 00070885 | B41: 0007 | C41: 0885 | D41: 32 | E41: 7 | F41: Amesbury | G41: 885 | H41: Whittier | I41: 2433544.833 | J41: 0.08881780029 | K41: 2625539.118 | L41: =IF(K44>0, K41/K44, 0) -> 0.09015835611 | N41: =ROUND(M44*L41,0) -> 1898614 | O41: 1777424 | P41: =N41-O41 -> 121190 | Q41: 6.818294341 | R41: 117 | S41: 123.2896389 | T41: 7 | U41: 885 | V41: 32 | W41: 123.2896389 | X41: 2625539.118 | Y41: 32 | Z41: 7 | AA41: 885 | AB41: 32 | AC41: 123.2896389 | AD41: 2625539.118
A42: 00070998 | B42: 0007 | C42: 0998 | D42: 33 | E42: 7 | G42: 998 | I42: 0 | J42: 0 | K42: 0 | L42: =IF(K44>0, K42/K44, 0) -> 0 | N42: =ROUND(M44*L42,0) -> 0 | O42: 0 | P42: =N42-O42 -> 0 | Q42: 0 | R42: 0 | S42: 0 | T42: 7 | U42: 998 | V42: 33 | W42: 0 | X42: 0 | Y42: 33 | Z42: 7 | AA42: 998 | AB42: 33 | AC42: 0 | AD42: 0
A43: 00070998 | B43: 0007 | C43: 0998 | D43: 34 | E43: 7 | G43: 998 | I43: 0 | J43: 0 | K43: 0 | L43: =IF(K44>0, K43/K44, 0) -> 0 | N43: =ROUND(M44*L43,0) -> 0 | O43: 0 | P43: =N43-O43 -> 0 | Q43: 0 | R43: 0 | S43: 0 | T43: 7 | U43: 998 | V43: 34 | W43: 0 | X43: 0 | Y43: 34 | Z43: 7 | AA43: 998 | AB43: 34 | AC43: 0 | AD43: 0
A44: 00070999 | B44: 0007 | C44: 0999 | D44: 35 | E44: 7 | F44: Amesbury | G44: 999 | H44: Total | I44: 27399291.86 | J44: 1 | K44: =SUM(K40:K43) -> 29121417.38 | L44: =SUM(L40:L43) -> 1 | M44: =VLOOKUP(E44,town351,24) -> 21058655 | N44: =SUM(N40:N43) -> 21058655 | O44: 20012026 | P44: =SUM(P40:P43) -> 1046629 | Q44: 5.230000201 | R44: 1964 | S44: 2021.289639 | T44: 7 | U44: 999 | V44: 35 | W44: 2021.289639 | X44: 29121417.38 | Y44: 35 | Z44: 7 | AA44: 999 | AB44: 35 | AC44: 2021.289639 | AD44: 29121417.38
A45: 00080008 | B45: 0008 | C45: 0008 | D45: 36 | E45: 8 | F45: Amherst | G45: 8 | H45: Amherst | I45: 14207190.94 | J45: 0.501047366 | K45: =X45 -> 13476149.79 | L45: =IF(K49>0, K45/K49, 0) -> 0.4916392939 | N45: =ROUND(M49*L45,0) -> 11117824 | O45: 11168148 | P45: =N45-O45 -> -50324 | Q45: -0.4506029111 | R45: 1055 | S45: 984 | T45: 8 | U45: 8 | V45: 36 | W45: 984 | X45: 13476149.79 | Y45: 36 | Z45: 8 | AA45: 8 | AB45: 36 | AC45: 984 | AD45: 13476149.79
A46: 00080605 | B46: 0008 | C46: 0605 | D46: 37 | E46: 8 | F46: Amherst | G46: 605 | H46: Amherst Pelham | I46: 14147794.84 | J46: 0.498952634 | K46: 13934494.47 | L46: =IF(K49>0, K46/K49, 0) -> 0.5083607061 | N46: =ROUND(M49*L46,0) -> 11495958 | O46: 11121458 | P46: =N46-O46 -> 374500 | Q46: 3.367364243 | R46: 997 | S46: 964 | T46: 8 | U46: 605 | V46: 37 | W46: 964 | X46: 13934494.47 | Y46: 37 | Z46: 8 | AA46: 605 | AB46: 37 | AC46: 964 | AD46: 13934494.47
A47: 00080998 | B47: 0008 | C47: 0998 | D47: 38 | E47: 8 | G47: 998 | I47: 0 | J47: 0 | K47: 0 | L47: =IF(K49>0, K47/K49, 0) -> 0 | N47: =ROUND(M49*L47,0) -> 0 | O47: 0 | P47: =N47-O47 -> 0 | Q47: 0 | R47: 0 | S47: 0 | T47: 8 | U47: 998 | V47: 38 | W47: 0 | X47: 0 | Y47: 38 | Z47: 8 | AA47: 998 | AB47: 38 | AC47: 0 | AD47: 0
A48: 00080998 | B48: 0008 | C48: 0998 | D48: 39 | E48: 8 | G48: 998 | I48: 0 | J48: 0 | K48: 0 | L48: =IF(K49>0, K48/K49, 0) -> 0 | N48: =ROUND(M49*L48,0) -> 0 | O48: 0 | P48: =N48-O48 -> 0 | Q48: 0 | R48: 0 | S48: 0 | T48: 8 | U48: 998 | V48: 39 | W48: 0 | X48: 0 | Y48: 39 | Z48: 8 | AA48: 998 | AB48: 39 | AC48: 0 | AD48: 0
A49: 00080999 | B49: 0008 | C49: 0999 | D49: 40 | E49: 8 | F49: Amherst | G49: 999 | H49: Total | I49: 28354985.78 | J49: 1 | K49: =SUM(K45:K48) -> 27410644.26 | L49: =SUM(L45:L48) -> 1 | M49: =VLOOKUP(E49,town351,24) -> 22613782 | N49: =SUM(N45:N48) -> 22613782 | O49: 22289606 | P49: =SUM(P45:P48) -> 324176 | Q49: 1.454381921 | R49: 2052 | S49: 1948 | T49: 8 | U49: 999 | V49: 40 | W49: 1948 | X49: 27410644.26 | Y49: 40 | Z49: 8 | AA49: 999 | AB49: 40 | AC49: 1948 | AD49: 27410644.26
A50: 00090009 | B50: 0009 | C50: 0009 | D50: 41 | E50: 9 | F50: Andover | G50: 9 | H50: Andover | I50: 72244408.49 | J50: 0.9820397139 | K50: =X50 -> 72595075.47 | L50: =IF(K54>0, K50/K54, 0) -> 0.9827547764 | N50: =ROUND(M54*L50,0) -> 59890937 | O50: 58293608 | P50: =N50-O50 -> 1597329 | Q50: 2.74014434 | R50: 5554 | S50: 5465 | T50: 9 | U50: 9 | V50: 41 | W50: 5465 | X50: 72595075.47 | Y50: 41 | Z50: 9 | AA50: 9 | AB50: 41 | AC50: 5465 | AD50: 72595075.47
A51: 00090823 | B51: 0009 | C51: 0823 | D51: 42 | E51: 9 | F51: Andover | G51: 823 | H51: Greater Lawrence | I51: 1321260.461 | J51: 0.0179602861 | K51: 1273886.768 | L51: =IF(K54>0, K51/K54, 0) -> 0.01724522356 | N51: =ROUND(M54*L51,0) -> 1050957 | O51: 1066118 | P51: =N51-O51 -> -15161 | Q51: -1.42207523 | R51: 52.00000001 | S51: 49 | T51: 9 | U51: 823 | V51: 42 | W51: 49 | X51: 1273886.768 | Y51: 42 | Z51: 9 | AA51: 823 | AB51: 42 | AC51: 49 | AD51: 1273886.768
A52: 00090998 | B52: 0009 | C52: 0998 | D52: 43 | E52: 9 | G52: 998 | I52: 0 | J52: 0 | K52: 0 | L52: =IF(K54>0, K52/K54, 0) -> 0 | N52: =ROUND(M54*L52,0) -> 0 | O52: 0 | P52: =N52-O52 -> 0 | Q52: 0 | R52: 0 | S52: 0 | T52: 9 | U52: 998 | V52: 43 | W52: 0 | X52: 0 | Y52: 43 | Z52: 9 | AA52: 998 | AB52: 43 | AC52: 0 | AD52: 0
A53: 00090998 | B53: 0009 | C53: 0998 | D53: 44 | E53: 9 | G53: 998 | I53: 0 | J53: 0 | K53: 0 | L53: =IF(K54>0, K53/K54, 0) -> 0 | N53: =ROUND(M54*L53,0) -> 0 | O53: 0 | P53: =N53-O53 -> 0 | Q53: 0 | R53: 0 | S53: 0 | T53: 9 | U53: 998 | V53: 44 | W53: 0 | X53: 0 | Y53: 44 | Z53: 9 | AA53: 998 | AB53: 44 | AC53: 0 | AD53: 0
A54: 00090999 | B54: 0009 | C54: 0999 | D54: 45 | E54: 9 | F54: Andover | G54: 999 | H54: Total | I54: 73565668.95 | J54: 1 | K54: =SUM(K50:K53) -> 73868962.24 | L54: =SUM(L50:L53) -> 1 | M54: =VLOOKUP(E54,town351,24) -> 60941894 | N54: =SUM(N50:N53) -> 60941894 | O54: 59359726 | P54: =SUM(P50:P53) -> 1582168 | Q54: 2.665389662 | R54: 5606 | S54: 5514 | T54: 9 | U54: 999 | V54: 45 | W54: 5514 | X54: 73868962.24 | Y54: 45 | Z54: 9 | AA54: 999 | AB54: 45 | AC54: 5514 | AD54: 73868962.24
A55: 00100010 | B55: 0010 | C55: 0010 | D55: 46 | E55: 10 | F55: Arlington | G55: 10 | H55: Arlington | I55: 74896748.64 | J55: 0.9427484092 | K55: =X55 -> 77449420.44 | L55: =IF(K59>0, K55/K59, 0) -> 0.9449614075 | N55: =ROUND(M59*L55,0) -> 58893679 | O55: 56193340 | P55: =N55-O55 -> 2700339 | Q55: 4.805443136 | R55: 6002 | S55: 6021 | T55: 10 | U55: 10 | V55: 46 | W55: 6021 | X55: 77449420.44 | Y55: 46 | Z55: 10 | AA55: 10 | AB55: 46 | AC55: 6021 | AD55: 77449420.44
A56: 00100830 | B56: 0010 | C56: 0830 | D56: 47 | E56: 10 | F56: Arlington | G56: 830 | H56: Minuteman | I56: 4548358.782 | J56: 0.05725159081 | K56: 4510985.374 | L56: =IF(K59>0, K56/K59, 0) -> 0.05503859247 | N56: =ROUND(M59*L56,0) -> 3430220 | O56: 3412531 | P56: =N56-O56 -> 17689 | Q56: 0.5183542655 | R56: 218 | S56: 216 | T56: 10 | U56: 830 | V56: 47 | W56: 216 | X56: 4510985.374 | Y56: 47 | Z56: 10 | AA56: 830 | AB56: 47 | AC56: 216 | AD56: 4510985.374
A57: 00100998 | B57: 0010 | C57: 0998 | D57: 48 | E57: 10 | G57: 998 | I57: 0 | J57: 0 | K57: 0 | L57: =IF(K59>0, K57/K59, 0) -> 0 | N57: =ROUND(M59*L57,0) -> 0 | O57: 0 | P57: =N57-O57 -> 0 | Q57: 0 | R57: 0 | S57: 0 | T57: 10 | U57: 998 | V57: 48 | W57: 0 | X57: 0 | Y57: 48 | Z57: 10 | AA57: 998 | AB57: 48 | AC57: 0 | AD57: 0
A58: 00100998 | B58: 0010 | C58: 0998 | D58: 49 | E58: 10 | G58: 998 | I58: 0 | J58: 0 | K58: 0 | L58: =IF(K59>0, K58/K59, 0) -> 0 | N58: =ROUND(M59*L58,0) -> 0 | O58: 0 | P58: =N58-O58 -> 0 | Q58: 0 | R58: 0 | S58: 0 | T58: 10 | U58: 998 | V58: 49 | W58: 0 | X58: 0 | Y58: 49 | Z58: 10 | AA58: 998 | AB58: 49 | AC58: 0 | AD58: 0
A59: 00100999 | B59: 0010 | C59: 0999 | D59: 50 | E59: 10 | F59: Arlington | G59: 999 | H59: Total | I59: 79445107.42 | J59: 1 | K59: =SUM(K55:K58) -> 81960405.82 | L59: =SUM(L55:L58) -> 1 | M59: =VLOOKUP(E59,town351,24) -> 62323899 | N59: =SUM(N55:N58) -> 62323899 | O59: 59605871 | P59: =SUM(P55:P58) -> 2718028 | Q59: 4.560000474 | R59: 6220 | S59: 6237 | T59: 10 | U59: 999 | V59: 50 | W59: 6237 | X59: 81960405.82 | Y59: 50 | Z59: 10 | AA59: 999 | AB59: 50 | AC59: 6237 | AD59: 81960405.82
A60: 00110011 | B60: 0011 | C60: 0011 | D60: 51 | E60: 11 | F60: Ashburnham | G60: 11 | H60: Ashburnham | I60: 0 | J60: 0 | K60: =X60 -> 0 | L60: =IF(K64>0, K60/K64, 0) -> 0 | N60: =ROUND(M64*L60,0) -> 0 | O60: 0 | P60: =N60-O60 -> 0 | Q60: 0 | R60: 0 | S60: 0 | T60: 11 | U60: 11 | V60: 51 | W60: 0 | X60: 0 | Y60: 51 | Z60: 11 | AA60: 11 | AB60: 51 | AC60: 0 | AD60: 0
A61: 00110610 | B61: 0011 | C61: 0610 | D61: 52 | E61: 11 | F61: Ashburnham | G61: 610 | H61: Ashburnham Westminster | I61: 13603235.59 | J61: 0.9036077589 | K61: 13011229.3 | L61: =IF(K64>0, K61/K64, 0) -> 0.9093704068 | N61: =ROUND(M64*L61,0) -> 5969244 | O61: 5653276 | P61: =N61-O61 -> 315968 | Q61: 5.589113286 | R61: 1047.104696 | S61: 982.8947368 | T61: 11 | U61: 610 | V61: 52 | W61: 982.8947368 | X61: 13011229.3 | Y61: 52 | Z61: 11 | AA61: 610 | AB61: 52 | AC61: 982.8947368 | AD61: 13011229.3
A62: 00110832 | B62: 0011 | C62: 0832 | D62: 53 | E62: 11 | F62: Ashburnham | G62: 832 | H62: Montachusett | I62: 1451123.403 | J62: 0.09639224114 | K62: 1296723.986 | L62: =IF(K64>0, K62/K64, 0) -> 0.09062959319 | N62: =ROUND(M64*L62,0) -> 594906 | O62: 603063 | P62: =N62-O62 -> -8157 | Q62: -1.352595003 | R62: 72.09842789 | S62: 63.99999999 | T62: 11 | U62: 832 | V62: 53 | W62: 63.99999999 | X62: 1296723.986 | Y62: 53 | Z62: 11 | AA62: 832 | AB62: 53 | AC62: 63.99999999 | AD62: 1296723.986
A63: 00110998 | B63: 0011 | C63: 0998 | D63: 54 | E63: 11 | G63: 998 | I63: 0 | J63: 0 | K63: 0 | L63: =IF(K64>0, K63/K64, 0) -> 0 | N63: =ROUND(M64*L63,0) -> 0 | O63: 0 | P63: =N63-O63 -> 0 | Q63: 0 | R63: 0 | S63: 0 | T63: 11 | U63: 998 | V63: 54 | W63: 0 | X63: 0 | Y63: 54 | Z63: 11 | AA63: 998 | AB63: 54 | AC63: 0 | AD63: 0
A64: 00110999 | B64: 0011 | C64: 0999 | D64: 55 | E64: 11 | F64: Ashburnham | G64: 999 | H64: Total | I64: 15054359 | J64: 1 | K64: =SUM(K60:K63) -> 14307953.29 | L64: =SUM(L60:L63) -> 1 | M64: =VLOOKUP(E64,town351,24) -> 6564150 | N64: =SUM(N60:N63) -> 6564150 | O64: 6256339 | P64: =SUM(P60:P63) -> 307811 | Q64: 4.919985953 | R64: 1119.203124 | S64: 1046.894737 | T64: 11 | U64: 999 | V64: 55 | W64: 1046.894737 | X64: 14307953.29 | Y64: 55 | Z64: 11 | AA64: 999 | AB64: 55 | AC64: 1046.894737 | AD64: 14307953.29
A65: 00120012 | B65: 0012 | C65: 0012 | D65: 56 | E65: 12 | F65: Ashby | G65: 12 | H65: Ashby | I65: 0 | J65: 0 | K65: =X65 -> 0 | L65: =IF(K69>0, K65/K69, 0) -> 0 | N65: =ROUND(M69*L65,0) -> 0 | O65: 0 | P65: =N65-O65 -> 0 | Q65: 0 | R65: 0 | S65: 0 | T65: 12 | U65: 12 | V65: 56 | W65: 0 | X65: 0 | Y65: 56 | Z65: 12 | AA65: 12 | AB65: 56 | AC65: 0 | AD65: 0
A66: 00120735 | B66: 0012 | C66: 0735 | D66: 57 | E66: 12 | F66: Ashby | G66: 735 | H66: North Middlesex | I66: 5218991.298 | J66: 0.8749785813 | K66: 5451782.324 | L66: =IF(K69>0, K66/K69, 0) -> 0.896691979 | N66: =ROUND(M69*L66,0) -> 2832572 | O66: 2618646 | P66: =N66-O66 -> 213926 | Q66: 8.169336367 | R66: 398.4657534 | S66: 405.9739269 | T66: 12 | U66: 735 | V66: 57 | W66: 405.9739269 | X66: 5451782.324 | Y66: 57 | Z66: 12 | AA66: 735 | AB66: 57 | AC66: 405.9739269 | AD66: 5451782.324
A67: 00120832 | B67: 0012 | C67: 0832 | D67: 58 | E67: 12 | F67: Ashby | G67: 832 | H67: Montachusett | I67: 745716.1928 | J67: 0.1250214187 | K67: 628100.6809 | L67: =IF(K69>0, K67/K69, 0) -> 0.103308021 | N67: =ROUND(M69*L67,0) -> 326341 | O67: 374166 | P67: =N67-O67 -> -47825 | Q67: -12.78175997 | R67: 37.05058099 | S67: 31 | T67: 12 | U67: 832 | V67: 58 | W67: 31 | X67: 628100.6809 | Y67: 58 | Z67: 12 | AA67: 832 | AB67: 58 | AC67: 31 | AD67: 628100.6809
A68: 00120998 | B68: 0012 | C68: 0998 | D68: 59 | E68: 12 | G68: 998 | I68: 0 | J68: 0 | K68: 0 | L68: =IF(K69>0, K68/K69, 0) -> 0 | N68: =ROUND(M69*L68,0) -> 0 | O68: 0 | P68: =N68-O68 -> 0 | Q68: 0 | R68: 0 | S68: 0 | T68: 12 | U68: 998 | V68: 59 | W68: 0 | X68: 0 | Y68: 59 | Z68: 12 | AA68: 998 | AB68: 59 | AC68: 0 | AD68: 0
A69: 00120999 | B69: 0012 | C69: 0999 | D69: 60 | E69: 12 | F69: Ashby | G69: 999 | H69: Total | I69: 5964707.491 | J69: 1 | K69: =SUM(K65:K68) -> 6079883.004 | L69: =SUM(L65:L68) -> 1 | M69: =VLOOKUP(E69,town351,24) -> 3158913 | N69: =SUM(N65:N68) -> 3158913 | O69: 2992812 | P69: =SUM(P65:P68) -> 166101 | Q69: 5.549997795 | R69: 435.5163344 | S69: 436.9739269 | T69: 12 | U69: 999 | V69: 60 | W69: 436.9739269 | X69: 6079883.004 | Y69: 60 | Z69: 12 | AA69: 999 | AB69: 60 | AC69: 436.9739269 | AD69: 6079883.004
A70: 00130013 | B70: 0013 | C70: 0013 | D70: 61 | E70: 13 | F70: Ashfield | G70: 13 | H70: Ashfield | I70: 245151 | J70: 0.1113203452 | K70: =X70 -> 216797.25 | L70: =IF(K74>0, K70/K74, 0) -> 0.09216245857 | N70: =ROUND(M74*L70,0) -> 158626 | O70: 179015 | P70: =N70-O70 -> -20389 | Q70: -11.38954836 | R70: 13 | S70: 11 | T70: 13 | U70: 13 | V70: 61 | W70: 11 | X70: 216797.25 | Y70: 61 | Z70: 13 | AA70: 13 | AB70: 61 | AC70: 11 | AD70: 216797.25
A71: 00130717 | B71: 0013 | C71: 0717 | D71: 62 | E71: 13 | F71: Ashfield | G71: 717 | H71: Mohawk Trail | I71: 1957060.999 | J71: 0.8886796548 | K71: 2135540.713 | L71: =IF(K74>0, K71/K74, 0) -> 0.9078375414 | N71: =ROUND(M74*L71,0) -> 1562527 | O71: 1429088 | P71: =N71-O71 -> 133439 | Q71: 9.337353613 | R71: 136.0134146 | S71: 141.641791 | T71: 13 | U71: 717 | V71: 62 | W71: 141.641791 | X71: 2135540.713 | Y71: 62 | Z71: 13 | AA71: 717 | AB71: 62 | AC71: 141.641791 | AD71: 2135540.713
A72: 00130998 | B72: 0013 | C72: 0998 | D72: 63 | E72: 13 | G72: 998 | I72: 0 | J72: 0 | K72: 0 | L72: =IF(K74>0, K72/K74, 0) -> 0 | N72: =ROUND(M74*L72,0) -> 0 | O72: 0 | P72: =N72-O72 -> 0 | Q72: 0 | R72: 0 | S72: 0 | T72: 13 | U72: 998 | V72: 63 | W72: 0 | X72: 0 | Y72: 63 | Z72: 13 | AA72: 998 | AB72: 63 | AC72: 0 | AD72: 0
A73: 00130998 | B73: 0013 | C73: 0998 | D73: 64 | E73: 13 | G73: 998 | I73: 0 | J73: 0 | K73: 0 | L73: =IF(K74>0, K73/K74, 0) -> 0 | N73: =ROUND(M74*L73,0) -> 0 | O73: 0 | P73: =N73-O73 -> 0 | Q73: 0 | R73: 0 | S73: 0 | T73: 13 | U73: 998 | V73: 64 | W73: 0 | X73: 0 | Y73: 64 | Z73: 13 | AA73: 998 | AB73: 64 | AC73: 0 | AD73: 0
A74: =B74&C74 -> 00130999 | B74: 0013 | C74: 0999 | D74: 65 | E74: 13 | F74: Ashfield | G74: 999 | H74: Total | I74: 2202211.999 | J74: 1 | K74: =SUM(K70:K73) -> 2352337.963 | L74: =SUM(L70:L73) -> 1 | M74: =VLOOKUP(E74,town351,24) -> 1721153 | N74: =SUM(N70:N73) -> 1721153 | O74: 1608103 | P74: =SUM(P70:P73) -> 113050 | Q74: 7.030022331 | R74: 149.0134146 | S74: 152.641791 | T74: =VLOOKUP($D74, foundoptions, VLOOKUP($T$6, foundoptcell, 2, FALSE), FALSE) -> 13 | U74: =VLOOKUP($D74, foundoptions, VLOOKUP($T$6, foundoptcell, 2, FALSE)+1, FALSE) -> 999 | V74: =VLOOKUP($D74, foundoptions, VLOOKUP($T$6, foundoptcell, 2, FALSE)+2, FALSE) -> 65 | W74: =VLOOKUP($D74, foundoptions, VLOOKUP($T$6, foundoptcell, 2, FALSE)+3, FALSE) -> 152.641791 | X74: =VLOOKUP($D74, foundoptions, VLOOKUP($T$6, foundoptcell, 2, FALSE)+4, FALSE) -> 2352337.963 | Y74: 65 | Z74: 13 | AA74: 999 | AB74: 65 | AC74: 152.641791 | AD74: 2352337.963
A75: 00140014 | B75: 0014 | C75: 0014 | D75: 66 | E75: 14 | F75: Ashland | G75: 14 | H75: Ashland | I75: 36758230.61 | J75: 0.9645188383 | K75: =X75 -> 37765344.57 | L75: =IF(K79>0, K75/K79, 0) -> 0.9627456276 | N75: =ROUND(M79*L75,0) -> 26791174 | O75: 25484731 | P75: =N75-O75 -> 1306443 | Q75: 5.126375476 | R75: 2839 | S75: =W75 -> 2857 | T75: 14 | U75: 14 | V75: 66 | W75: 2857 | X75: 37765344.57 | Y75: =D75 -> 66 | Z75: 14 | AA75: 14 | AB75: 66 | AC75: 2857 | AD75: 37765344.57
A76: 00140829 | B76: 0014 | C76: 0829 | D76: 67 | E76: 14 | F76: Ashland | G76: 829 | H76: South Middlesex | I76: 1352202.437 | J76: 0.03548116169 | K76: 1461366.501 | L76: =IF(K79>0, K76/K79, 0) -> 0.03725437236 | N76: =ROUND(M79*L76,0) -> 1036710 | O76: 937491 | P76: =N76-O76 -> 99219 | Q76: 10.5834616 | R76: 59.21121718 | S76: 62.2147806 | T76: 14 | U76: 829 | V76: 67 | W76: 62.2147806 | X76: 1461366.501 | Y76: 67 | Z76: 14 | AA76: 829 | AB76: 67 | AC76: 62.2147806 | AD76: 1461366.501
A77: 00140998 | B77: 0014 | C77: 0998 | D77: 68 | E77: 14 | G77: 998 | I77: 0 | J77: 0 | K77: 0 | L77: =IF(K79>0, K77/K79, 0) -> 0 | N77: =ROUND(M79*L77,0) -> 0 | O77: 0 | P77: =N77-O77 -> 0 | Q77: 0 | R77: 0 | S77: 0 | T77: 14 | U77: 998 | V77: 68 | W77: 0 | X77: 0 | Y77: 68 | Z77: 14 | AA77: 998 | AB77: 68 | AC77: 0 | AD77: 0
A78: 00140998 | B78: 0014 | C78: 0998 | D78: 69 | E78: 14 | G78: 998 | I78: 0 | J78: 0 | K78: 0 | L78: =IF(K79>0, K78/K79, 0) -> 0 | N78: =ROUND(M79*L78,0) -> 0 | O78: 0 | P78: =N78-O78 -> 0 | Q78: 0 | R78: 0 | S78: 0 | T78: 14 | U78: 998 | V78: 69 | W78: 0 | X78: 0 | Y78: 69 | Z78: 14 | AA78: 998 | AB78: 69 | AC78: 0 | AD78: 0
A79: 00140999 | B79: 0014 | C79: 0999 | D79: 70 | E79: 14 | F79: Ashland | G79: 999 | H79: Total | I79: 38110433.05 | J79: 1 | K79: =SUM(K75:K78) -> 39226711.07 | L79: =SUM(L75:L78) -> 1 | M79: =VLOOKUP(E79,town351,24) -> 27827884 | N79: =SUM(N75:N78) -> 27827884 | O79: 26422222 | P79: =SUM(P75:P78) -> 1405662 | Q79: 5.319999204 | R79: 2898.211217 | S79: 2919.214781 | T79: 14 | U79: 999 | V79: 70 | W79: 2919.214781 | X79: 39226711.07 | Y79: 70 | Z79: 14 | AA79: 999 | AB79: 70 | AC79: 2919.214781 | AD79: 39226711.07
A80: 00150015 | B80: 0015 | C80: 0015 | D80: 71 | E80: 15 | F80: Athol | G80: 15 | H80: Athol | I80: 0 | J80: 0 | K80: =X80 -> 0 | L80: =IF(K84>0, K80/K84, 0) -> 0 | N80: =ROUND(M84*L80,0) -> 0 | O80: 0 | P80: =N80-O80 -> 0 | Q80: =IF(O80>0,P80*100/O80,IF(P80>0,100,0)) -> 0 | R80: 0 | S80: 0 | T80: 15 | U80: 15 | V80: 71 | W80: 0 | X80: 0 | Y80: 71 | Z80: 15 | AA80: 15 | AB80: 71 | AC80: 0 | AD80: 0
A81: 00150615 | B81: 0015 | C81: 0615 | D81: 72 | E81: 15 | F81: Athol | G81: 615 | H81: Athol Royalston | I81: 25947947.7 | J81: 0.9206265412 | K81: 26801046.44 | L81: =IF(K84>0, K81/K84, 0) -> 0.9271080591 | N81: =ROUND(M84*L81,0) -> 4034378 | O81: 3730491 | P81: =N81-O81 -> 303887 | Q81: =IF(O81>0,P81*100/O81,IF(P81>0,100,0)) -> 8.146032252 | R81: 1632.087739 | S81: 1656.30365 | T81: 15 | U81: 615 | V81: 72 | W81: 1656.30365 | X81: 26801046.44 | Y81: 72 | Z81: 15 | AA81: 615 | AB81: 72 | AC81: 1656.30365 | AD81: 26801046.44
A82: 00150832 | B82: 0015 | C82: 0832 | D82: 73 | E82: 15 | F82: Athol | G82: 832 | H82: Montachusett | I82: 2237148.579 | J82: 0.07937345883 | K82: 2107176.478 | L82: =IF(K84>0, K82/K84, 0) -> 0.07289194093 | N82: =ROUND(M84*L82,0) -> 317195 | O82: 321631 | P82: =N82-O82 -> -4436 | Q82: =IF(O82>0,P82*100/O82,IF(P82>0,100,0)) -> -1.379220287 | R82: 111.151743 | S82: 104 | T82: 15 | U82: 832 | V82: 73 | W82: 104 | X82: 2107176.478 | Y82: 73 | Z82: 15 | AA82: 832 | AB82: 73 | AC82: 104 | AD82: 2107176.478
A83: 00150998 | B83: 0015 | C83: 0998 | D83: 74 | E83: 15 | G83: 998 | I83: 0 | J83: 0 | K83: 0 | L83: =IF(K84>0, K83/K84, 0) -> 0 | N83: =ROUND(M84*L83,0) -> 0 | O83: 0 | P83: =N83-O83 -> 0 | Q83: =IF(O83>0,P83*100/O83,IF(P83>0,100,0)) -> 0 | R83: 0 | S83: 0 | T83: 15 | U83: 998 | V83: 74 | W83: 0 | X83: 0 | Y83: 74 | Z83: 15 | AA83: 998 | AB83: 74 | AC83: 0 | AD83: 0
A84: 00150999 | B84: 0015 | C84: 0999 | D84: 75 | E84: 15 | F84: Athol | G84: 999 | H84: Total | I84: 28185096.27 | J84: 1 | K84: =SUM(K80:K83) -> 28908222.92 | L84: =SUM(L80:L83) -> 1 | M84: =VLOOKUP(E84,town351,24) -> 4351573 | N84: =SUM(N80:N83) -> 4351573 | O84: 4052122 | P84: =SUM(P80:P83) -> 299451 | Q84: =IF(O84>0,P84*100/O84,IF(P84>0,100,0)) -> 7.389979867 | R84: 1743.239482 | S84: 1760.30365 | T84: 15 | U84: 999 | V84: 75 | W84: 1760.30365 | X84: 28908222.92 | Y84: 75 | Z84: 15 | AA84: 999 | AB84: 75 | AC84: 1760.30365 | AD84: 28908222.92
A85: 00160016 | B85: 0016 | C85: 0016 | D85: 76 | E85: 16 | F85: Attleboro | G85: 16 | H85: Attleboro | I85: 97105120.72 | J85: 0.9960316135 | K85: =X85 -> 102004503.3 | L85: =IF(K89>0, K85/K89, 0) -> 0.9957263836 | N85: =ROUND(M89*L85,0) -> 46028760 | O85: 43712969 | P85: =N85-O85 -> 2315791 | Q85: 5.297720683 | R85: 6238 | S85: 6313 | T85: 16 | U85: 16 | V85: 76 | W85: 6313 | X85: 102004503.3 | Y85: 76 | Z85: 16 | AA85: 16 | AB85: 76 | AC85: 6313 | AD85: 102004503.3
A86: 00160910 | B86: 0016 | C86: 0910 | D86: 77 | E86: 16 | F86: Attleboro | G86: 910 | H86: Bristol County | I86: 386885.9605 | J86: 0.003968386473 | K86: 437799.0999 | L86: =IF(K89>0, K86/K89, 0) -> 0.004273616362 | N86: =ROUND(M89*L86,0) -> 197554 | O86: 174161 | P86: =N86-O86 -> 23393 | Q86: 13.43182458 | R86: 19 | S86: 21 | T86: 16 | U86: 910 | V86: 77 | W86: 21 | X86: 437799.0999 | Y86: 77 | Z86: 16 | AA86: 910 | AB86: 77 | AC86: 21 | AD86: 437799.0999
A87: 00160998 | B87: 0016 | C87: 0998 | D87: 78 | E87: 16 | G87: 998 | I87: 0 | J87: 0 | K87: 0 | L87: =IF(K89>0, K87/K89, 0) -> 0 | N87: =ROUND(M89*L87,0) -> 0 | O87: 0 | P87: =N87-O87 -> 0 | Q87: 0 | R87: 0 | S87: 0 | T87: 16 | U87: 998 | V87: 78 | W87: 0 | X87: 0 | Y87: 78 | Z87: 16 | AA87: 998 | AB87: 78 | AC87: 0 | AD87: 0
A88: 00160998 | B88: 0016 | C88: 0998 | D88: 79 | E88: 16 | G88: 998 | I88: 0 | J88: 0 | K88: 0 | L88: =IF(K89>0, K88/K89, 0) -> 0 | N88: =ROUND(M89*L88,0) -> 0 | O88: 0 | P88: =N88-O88 -> 0 | Q88: 0 | R88: 0 | S88: 0 | T88: 16 | U88: 998 | V88: 79 | W88: 0 | X88: 0 | Y88: 79 | Z88: 16 | AA88: 998 | AB88: 79 | AC88: 0 | AD88: 0
A89: 00160999 | B89: 0016 | C89: 0999 | D89: 80 | E89: 16 | F89: Attleboro | G89: 999 | H89: Total | I89: 97492006.68 | J89: 1 | K89: =SUM(K85:K88) -> 102442302.4 | L89: =SUM(L85:L88) -> 1 | M89: =VLOOKUP(E89,town351,24) -> 46226314 | N89: =SUM(N85:N88) -> 46226314 | O89: 43887130 | P89: =SUM(P85:P88) -> 2339184 | Q89: 5.329999934 | R89: 6257 | S89: 6334 | T89: 16 | U89: 999 | V89: 80 | W89: 6334 | X89: 102442302.4 | Y89: 80 | Z89: 16 | AA89: 999 | AB89: 80 | AC89: 6334 | AD89: 102442302.4
A90: 00170017 | B90: 0017 | C90: 0017 | D90: 81 | E90: 17 | F90: Auburn | G90: 17 | H90: Auburn | I90: 32176028.36 | J90: 0.9315018494 | K90: =X90 -> 32470504.22 | L90: =IF(K94>0, K90/K94, 0) -> 0.9230643155 | N90: =ROUND(M94*L90,0) -> 17758731 | O90: 17041707 | P90: =N90-O90 -> 717024 | Q90: 4.207465837 | R90: 2422 | S90: 2367 | T90: 17 | U90: 17 | V90: 81 | W90: 2367 | X90: 32470504.22 | Y90: 81 | Z90: 17 | AA90: 17 | AB90: 81 | AC90: 2367 | AD90: 32470504.22
A91: 00170876 | B91: 0017 | C91: 0876 | D91: 82 | E91: 17 | F91: Auburn | G91: 876 | H91: Southern Worcester | I91: 2366069.846 | J91: 0.06849815063 | K91: 2706355.806 | L91: =IF(K94>0, K91/K94, 0) -> 0.07693568454 | N91: =ROUND(M94*L91,0) -> 1480157 | O91: 1253165 | P91: =N91-O91 -> 226992 | Q91: 18.11349663 | R91: 117 | S91: 131 | T91: 17 | U91: 876 | V91: 82 | W91: 131 | X91: 2706355.806 | Y91: 82 | Z91: 17 | AA91: 876 | AB91: 82 | AC91: 131 | AD91: 2706355.806
A92: 00170998 | B92: 0017 | C92: 0998 | D92: 83 | E92: 17 | G92: 998 | I92: 0 | J92: 0 | K92: 0 | L92: =IF(K94>0, K92/K94, 0) -> 0 | N92: =ROUND(M94*L92,0) -> 0 | O92: 0 | P92: =N92-O92 -> 0 | Q92: 0 | R92: 0 | S92: 0 | T92: 17 | U92: 998 | V92: 83 | W92: 0 | X92: 0 | Y92: 83 | Z92: 17 | AA92: 998 | AB92: 83 | AC92: 0 | AD92: 0
A93: 00170998 | B93: 0017 | C93: 0998 | D93: 84 | E93: 17 | G93: 998 | I93: 0 | J93: 0 | K93: 0 | L93: =IF(K94>0, K93/K94, 0) -> 0 | N93: =ROUND(M94*L93,0) -> 0 | O93: 0 | P93: =N93-O93 -> 0 | Q93: 0 | R93: 0 | S93: 0 | T93: 17 | U93: 998 | V93: 84 | W93: 0 | X93: 0 | Y93: 84 | Z93: 17 | AA93: 998 | AB93: 84 | AC93: 0 | AD93: 0
A94: 00170999 | B94: 0017 | C94: 0999 | D94: 85 | E94: 17 | F94: Auburn | G94: 999 | H94: Total | I94: 34542098.21 | J94: 1 | K94: =SUM(K90:K93) -> 35176860.03 | L94: =SUM(L90:L93) -> 1 | M94: =VLOOKUP(E94,town351,24) -> 19238888 | N94: =SUM(N90:N93) -> 19238888 | O94: 18294872 | P94: =SUM(P90:P93) -> 944016 | Q94: 5.160003306 | R94: 2539 | S94: 2498 | T94: 17 | U94: 999 | V94: 85 | W94: 2498 | X94: 35176860.03 | Y94: 85 | Z94: 17 | AA94: 999 | AB94: 85 | AC94: 2498 | AD94: 35176860.03
A95: 00180018 | B95: 0018 | C95: 0018 | D95: 86 | E95: 18 | F95: Avon | G95: 18 | H95: Avon | I95: 9536788.92 | J95: 0.8955437459 | K95: =X95 -> 9514711.52 | L95: =IF(K99>0, K95/K99, 0) -> 0.8991302458 | N95: =ROUND(M99*L95,0) -> 5674808 | O95: 5390722 | P95: =N95-O95 -> 284086 | Q95: 5.269906332 | R95: 586 | S95: 572 | T95: 18 | U95: 18 | V95: 86 | W95: 572 | X95: 9514711.52 | Y95: 86 | Z95: 18 | AA95: 18 | AB95: 86 | AC95: 572 | AD95: 9514711.52
A96: 00180806 | B96: 0018 | C96: 0806 | D96: 87 | E96: 18 | F96: Avon | G96: 806 | H96: Blue Hills | I96: 1090844.713 | J96: 0.10243481 | K96: 1045392.697 | L96: =IF(K99>0, K96/K99, 0) -> 0.09878851197 | N96: =ROUND(M99*L96,0) -> 623498 | O96: 616606 | P96: =N96-O96 -> 6892 | Q96: 1.117731582 | R96: 50 | S96: 47 | T96: 18 | U96: 806 | V96: 87 | W96: 47 | X96: 1045392.697 | Y96: 87 | Z96: 18 | AA96: 806 | AB96: 87 | AC96: 47 | AD96: 1045392.697
A97: 00180915 | B97: 0018 | C97: 0915 | D97: 88 | E97: 18 | F97: Avon | G97: 915 | H97: Norfolk County | I97: 21526.68295 | J97: 0.002021444162 | K97: 22023.97186 | L97: =IF(K99>0, K97/K99, 0) -> 0.00208124221 | N97: =ROUND(M99*L97,0) -> 13136 | O97: 12168 | P97: =N97-O97 -> 968 | Q97: 7.955292571 | R97: 1 | S97: 0.9999999989 | T97: 18 | U97: 915 | V97: 88 | W97: 0.9999999989 | X97: 22023.97186 | Y97: 88 | Z97: 18 | AA97: 915 | AB97: 88 | AC97: 0.9999999989 | AD97: 22023.97186
A98: 00180998 | B98: 0018 | C98: 0998 | D98: 89 | E98: 18 | G98: 998 | I98: 0 | J98: 0 | K98: 0 | L98: =IF(K99>0, K98/K99, 0) -> 0 | N98: =ROUND(M99*L98,0) -> 0 | O98: 0 | P98: =N98-O98 -> 0 | Q98: 0 | R98: 0 | S98: 0 | T98: 18 | U98: 998 | V98: 89 | W98: 0 | X98: 0 | Y98: 89 | Z98: 18 | AA98: 998 | AB98: 89 | AC98: 0 | AD98: 0
A99: 00180999 | B99: 0018 | C99: 0999 | D99: 90 | E99: 18 | F99: Avon | G99: 999 | H99: Total | I99: 10649160.32 | J99: 1 | K99: =SUM(K95:K98) -> 10582128.19 | L99: =SUM(L95:L98) -> 1 | M99: =VLOOKUP(E99,town351,24) -> 6311442 | N99: =SUM(N95:N98) -> 6311442 | O99: 6019496 | P99: =SUM(P95:P98) -> 291946 | Q99: 4.850007376 | R99: 637 | S99: 620 | T99: 18 | U99: 999 | V99: 90 | W99: 620 | X99: 10582128.19 | Y99: 90 | Z99: 18 | AA99: 999 | AB99: 90 | AC99: 620 | AD99: 10582128.19
A100: 00190019 | B100: 0019 | C100: 0019 | D100: 91 | E100: 19 | F100: Ayer | G100: 19 | H100: Ayer | I100: 0 | J100: 0 | K100: =X100 -> 0 | L100: =IF(K104>0, K100/K104, 0) -> 0 | N100: =ROUND(M104*L100,0) -> 0 | O100: 0 | P100: =N100-O100 -> 0 | Q100: 0 | R100: 0 | S100: 0 | T100: 19 | U100: 19 | V100: 91 | W100: 0 | X100: 0 | Y100: 91 | Z100: 19 | AA100: 19 | AB100: 91 | AC100: 0 | AD100: 0
A101: 00190616 | B101: 0019 | C101: 0616 | D101: 92 | E101: 19 | F101: Ayer | G101: 616 | H101: Ayer Shirley | I101: 13108566.87 | J101: 0.903259836 | K101: 13652034.55 | L101: =IF(K104>0, K101/K104, 0) -> 0.9131570085 | N101: =ROUND(M104*L101,0) -> 9736178 | O101: 9087237 | P101: =N101-O101 -> 648941 | Q101: 7.141235559 | R101: 970.6912018 | S101: 971.8488577 | T101: 19 | U101: 616 | V101: 92 | W101: 971.8488577 | X101: 13652034.55 | Y101: 92 | Z101: 19 | AA101: 616 | AB101: 92 | AC101: 971.8488577 | AD101: 13652034.55
A102: 00190852 | B102: 0019 | C102: 0852 | D102: 93 | E102: 19 | F102: Ayer | G102: 852 | H102: Nashoba Valley | I102: 1403942.541 | J102: 0.09674016403 | K102: 1298334.797 | L102: =IF(K104>0, K102/K104, 0) -> 0.08684299145 | N102: =ROUND(M104*L102,0) -> 925929 | O102: 973253 | P102: =N102-O102 -> -47324 | Q102: -4.862456114 | R102: 69 | S102: 63 | T102: 19 | U102: 852 | V102: 93 | W102: 63 | X102: 1298334.797 | Y102: 93 | Z102: 19 | AA102: 852 | AB102: 93 | AC102: 63 | AD102: 1298334.797
A103: 00190998 | B103: 0019 | C103: 0998 | D103: 94 | E103: 19 | G103: 998 | I103: 0 | J103: 0 | K103: 0 | L103: =IF(K104>0, K103/K104, 0) -> 0 | N103: =ROUND(M104*L103,0) -> 0 | O103: 0 | P103: =N103-O103 -> 0 | Q103: 0 | R103: 0 | S103: 0 | T103: 19 | U103: 998 | V103: 94 | W103: 0 | X103: 0 | Y103: 94 | Z103: 19 | AA103: 998 | AB103: 94 | AC103: 0 | AD103: 0
A104: 00190999 | B104: 0019 | C104: 0999 | D104: 95 | E104: 19 | F104: Ayer | G104: 999 | H104: Total | I104: 14512509.41 | J104: 1 | K104: =SUM(K100:K103) -> 14950369.34 | L104: =SUM(L100:L103) -> 1 | M104: =VLOOKUP(E104,town351,24) -> 10662107 | N104: =SUM(N100:N103) -> 10662107 | O104: 10060490 | P104: =SUM(P100:P103) -> 601617 | Q104: 5.979996998 | R104: 1039.691202 | S104: 1034.848858 | T104: 19 | U104: 999 | V104: 95 | W104: 1034.848858 | X104: 14950369.34 | Y104: 95 | Z104: 19 | AA104: 999 | AB104: 95 | AC104: 1034.848858 | AD104: 14950369.34
A105: 00200020 | B105: 0020 | C105: 0020 | D105: 96 | E105: 20 | F105: Barnstable | G105: 20 | H105: Barnstable | I105: 84542110.14 | J105: 0.9524161119 | K105: =X105 -> 88879328.45 | L105: =IF(K109>0, K105/K109, 0) -> 0.9574442705 | N105: =ROUND(M109*L105,0) -> 63910403 | O105: 59790057 | P105: =N105-O105 -> 4120346 | Q105: 6.891356534 | R105: 5302 | S105: 5306 | T105: 20 | U105: 20 | V105: 96 | W105: 5306 | X105: 88879328.45 | Y105: 96 | Z105: 20 | AA105: 20 | AB105: 96 | AC105: 5306 | AD105: 88879328.45
A106: 00200815 | B106: 0020 | C106: 0815 | D106: 97 | E106: 20 | F106: Barnstable | G106: 815 | H106: Cape Cod | I106: 4223828.492 | J106: 0.04758388811 | K106: 3950438.454 | L106: =IF(K109>0, K106/K109, 0) -> 0.04255572954 | N106: =ROUND(M109*L106,0) -> 2840639 | O106: 2987185 | P106: =N106-O106 -> -146546 | Q106: -4.905822706 | R106: 194.5817091 | S106: 181.2717718 | T106: 20 | U106: 815 | V106: 97 | W106: 181.2717718 | X106: 3950438.454 | Y106: 97 | Z106: 20 | AA106: 815 | AB106: 97 | AC106: 181.2717718 | AD106: 3950438.454
A107: 00200998 | B107: 0020 | C107: 0998 | D107: 98 | E107: 20 | G107: 998 | I107: 0 | J107: 0 | K107: 0 | L107: =IF(K109>0, K107/K109, 0) -> 0 | N107: =ROUND(M109*L107,0) -> 0 | O107: 0 | P107: =N107-O107 -> 0 | Q107: 0 | R107: 0 | S107: 0 | T107: 20 | U107: 998 | V107: 98 | W107: 0 | X107: 0 | Y107: 98 | Z107: 20 | AA107: 998 | AB107: 98 | AC107: 0 | AD107: 0
A108: 00200998 | B108: 0020 | C108: 0998 | D108: 99 | E108: 20 | G108: 998 | I108: 0 | J108: 0 | K108: 0 | L108: =IF(K109>0, K108/K109, 0) -> 0 | N108: =ROUND(M109*L108,0) -> 0 | O108: 0 | P108: =N108-O108 -> 0 | Q108: 0 | R108: 0 | S108: 0 | T108: 20 | U108: 998 | V108: 99 | W108: 0 | X108: 0 | Y108: 99 | Z108: 20 | AA108: 998 | AB108: 99 | AC108: 0 | AD108: 0
A109: 00200999 | B109: 0020 | C109: 0999 | D109: 100 | E109: 20 | F109: Barnstable | G109: 999 | H109: Total | I109: 88765938.63 | J109: 1 | K109: =SUM(K105:K108) -> 92829766.9 | L109: =SUM(L105:L108) -> 1 | M109: =VLOOKUP(E109,town351,24) -> 66751042 | N109: =SUM(N105:N108) -> 66751042 | O109: 62777242 | P109: =SUM(P105:P108) -> 3973800 | Q109: 6.330000926 | R109: 5496.581709 | S109: 5487.271772 | T109: 20 | U109: 999 | V109: 100 | W109: 5487.271772 | X109: 92829766.9 | Y109: 100 | Z109: 20 | AA109: 999 | AB109: 100 | AC109: 5487.271772 | AD109: 92829766.9
A110: 00210021 | B110: 0021 | C110: 0021 | D110: 101 | E110: 21 | F110: Barre | G110: 21 | H110: Barre | I110: 0 | J110: 0 | K110: =X110 -> 0 | L110: =IF(K114>0, K110/K114, 0) -> 0 | N110: =ROUND(M114*L110,0) -> 0 | O110: 0 | P110: =N110-O110 -> 0 | Q110: 0 | R110: 0 | S110: 0 | T110: 21 | U110: 21 | V110: 101 | W110: 0 | X110: 0 | Y110: 101 | Z110: 21 | AA110: 21 | AB110: 101 | AC110: 0 | AD110: 0
A111: 00210753 | B111: 0021 | C111: 0753 | D111: 102 | E111: 21 | F111: Barre | G111: 753 | H111: Quabbin | I111: 10294721.16 | J111: 0.9240218373 | K111: 10417949.31 | L111: =IF(K114>0, K111/K114, 0) -> 0.9195249318 | N111: =ROUND(M114*L111,0) -> 3988915 | O111: 3851659 | P111: =N111-O111 -> 137256 | Q111: 3.563555341 | R111: 742.776342 | S111: 726.1880342 | T111: 21 | U111: 753 | V111: 102 | W111: 726.1880342 | X111: 10417949.31 | Y111: 102 | Z111: 21 | AA111: 753 | AB111: 102 | AC111: 726.1880342 | AD111: 10417949.31
A112: 00210832 | B112: 0021 | C112: 0832 | D112: 103 | E112: 21 | F112: Barre | G112: 832 | H112: Montachusett | I112: 846488.6514 | J112: 0.07597816266 | K112: 911759.0528 | L112: =IF(K114>0, K112/K114, 0) -> 0.08047506817 | N112: =ROUND(M114*L112,0) -> 349102 | O112: 316705 | P112: =N112-O112 -> 32397 | Q112: 10.22939328 | R112: 42.05741627 | S112: 45 | T112: 21 | U112: 832 | V112: 103 | W112: 45 | X112: 911759.0528 | Y112: 103 | Z112: 21 | AA112: 832 | AB112: 103 | AC112: 45 | AD112: 911759.0528
A113: 00210998 | B113: 0021 | C113: 0998 | D113: 104 | E113: 21 | G113: 998 | I113: 0 | J113: 0 | K113: 0 | L113: =IF(K114>0, K113/K114, 0) -> 0 | N113: =ROUND(M114*L113,0) -> 0 | O113: 0 | P113: =N113-O113 -> 0 | Q113: 0 | R113: 0 | S113: 0 | T113: 21 | U113: 998 | V113: 104 | W113: 0 | X113: 0 | Y113: 104 | Z113: 21 | AA113: 998 | AB113: 104 | AC113: 0 | AD113: 0
A114: 00210999 | B114: 0021 | C114: 0999 | D114: 105 | E114: 21 | F114: Barre | G114: 999 | H114: Total | I114: 11141209.81 | J114: 1 | K114: =SUM(K110:K113) -> 11329708.36 | L114: =SUM(L110:L113) -> 1 | M114: =VLOOKUP(E114,town351,24) -> 4338017 | N114: =SUM(N110:N113) -> 4338017 | O114: 4168364 | P114: =SUM(P110:P113) -> 169653 | Q114: 4.070014039 | R114: 784.8337582 | S114: 771.1880342 | T114: 21 | U114: 999 | V114: 105 | W114: 771.1880342 | X114: 11329708.36 | Y114: 105 | Z114: 21 | AA114: 999 | AB114: 105 | AC114: 771.1880342 | AD114: 11329708.36
A115: 00220022 | B115: 0022 | C115: 0022 | D115: 106 | E115: 22 | F115: Becket | G115: 22 | H115: Becket | I115: 261641.76 | J115: 0.08391660674 | K115: =X115 -> 250517.91 | L115: =IF(K119>0, K115/K119, 0) -> 0.08463946763 | N115: =ROUND(M119*L115,0) -> 198708 | O115: 189361 | P115: =N115-O115 -> 9347 | Q115: 4.936074482 | R115: 14 | S115: 13 | T115: 22 | U115: 22 | V115: 106 | W115: 13 | X115: 250517.91 | Y115: 106 | Z115: 22 | AA115: 22 | AB115: 106 | AC115: 13 | AD115: 250517.91
A116: 00220635 | B116: 0022 | C116: 0635 | D116: 107 | E116: 22 | F116: Becket | G116: 635 | H116: Central Berkshire | I116: 2856236.455 | J116: 0.9160833933 | K116: 2709305.881 | L116: =IF(K119>0, K116/K119, 0) -> 0.9153605324 | N116: =ROUND(M119*L116,0) -> 2148988 | O116: 2067171 | P116: =N116-O116 -> 81817 | Q116: 3.957921236 | R116: 199.706684 | S116: 184.1082474 | T116: 22 | U116: 635 | V116: 107 | W116: 184.1082474 | X116: 2709305.881 | Y116: 107 | Z116: 22 | AA116: 635 | AB116: 107 | AC116: 184.1082474 | AD116: 2709305.881
A117: 00220998 | B117: 0022 | C117: 0998 | D117: 108 | E117: 22 | G117: 998 | I117: 0 | J117: 0 | K117: 0 | L117: =IF(K119>0, K117/K119, 0) -> 0 | N117: =ROUND(M119*L117,0) -> 0 | O117: 0 | P117: =N117-O117 -> 0 | Q117: 0 | R117: 0 | S117: 0 | T117: 22 | U117: 998 | V117: 108 | W117: 0 | X117: 0 | Y117: 108 | Z117: 22 | AA117: 998 | AB117: 108 | AC117: 0 | AD117: 0
A118: 00220998 | B118: 0022 | C118: 0998 | D118: 109 | E118: 22 | G118: 998 | I118: 0 | J118: 0 | K118: 0 | L118: =IF(K119>0, K118/K119, 0) -> 0 | N118: =ROUND(M119*L118,0) -> 0 | O118: 0 | P118: =N118-O118 -> 0 | Q118: 0 | R118: 0 | S118: 0 | T118: 22 | U118: 998 | V118: 109 | W118: 0 | X118: 0 | Y118: 109 | Z118: 22 | AA118: 998 | AB118: 109 | AC118: 0 | AD118: 0
A119: 00220999 | B119: 0022 | C119: 0999 | D119: 110 | E119: 22 | F119: Becket | G119: 999 | H119: Total | I119: 3117878.215 | J119: 1 | K119: =SUM(K115:K118) -> 2959823.791 | L119: =SUM(L115:L118) -> 1 | M119: =VLOOKUP(E119,town351,24) -> 2347696 | N119: =SUM(N115:N118) -> 2347696 | O119: 2256532 | P119: =SUM(P115:P118) -> 91164 | Q119: 4.040004751 | R119: 213.706684 | S119: 197.1082474 | T119: 22 | U119: 999 | V119: 110 | W119: 197.1082474 | X119: 2959823.791 | Y119: 110 | Z119: 22 | AA119: 999 | AB119: 110 | AC119: 197.1082474 | AD119: 2959823.791
A120: 00230023 | B120: 0023 | C120: 0023 | D120: 111 | E120: 23 | F120: Bedford | G120: 23 | H120: Bedford | I120: 33265363.04 | J120: 0.978446434 | K120: =X120 -> 34828204.55 | L120: =IF(K124>0, K120/K124, 0) -> 0.9783529687 | N120: =ROUND(M124*L120,0) -> 28733269 | O120: 27443924 | P120: =N120-O120 -> 1289345 | Q120: 4.698107311 | R120: 2549 | S120: 2579 | T120: 23 | U120: 23 | V120: 111 | W120: 2579 | X120: 34828204.55 | Y120: 111 | Z120: 23 | AA120: 23 | AB120: 111 | AC120: 2579 | AD120: 34828204.55
A121: 00230871 | B121: 0023 | C121: 0871 | D121: 112 | E121: 23 | F121: Bedford | G121: 871 | H121: Shawsheen Valley | I121: 732781.2478 | J121: 0.02155356603 | K121: 770608.6223 | L121: =IF(K124>0, K121/K124, 0) -> 0.02164703128 | N121: =ROUND(M124*L121,0) -> 635752 | O121: 604545 | P121: =N121-O121 -> 31207 | Q121: 5.162064032 | R121: 38 | S121: 39 | T121: 23 | U121: 871 | V121: 112 | W121: 39 | X121: 770608.6223 | Y121: 112 | Z121: 23 | AA121: 871 | AB121: 112 | AC121: 39 | AD121: 770608.6223
A122: 00230998 | B122: 0023 | C122: 0998 | D122: 113 | E122: 23 | G122: 998 | I122: 0 | J122: 0 | K122: 0 | L122: =IF(K124>0, K122/K124, 0) -> 0 | N122: =ROUND(M124*L122,0) -> 0 | O122: 0 | P122: =N122-O122 -> 0 | Q122: 0 | R122: 0 | S122: 0 | T122: 23 | U122: 998 | V122: 113 | W122: 0 | X122: 0 | Y122: 113 | Z122: 23 | AA122: 998 | AB122: 113 | AC122: 0 | AD122: 0
A123: 00230998 | B123: 0023 | C123: 0998 | D123: 114 | E123: 23 | G123: 998 | I123: 0 | J123: 0 | K123: 0 | L123: =IF(K124>0, K123/K124, 0) -> 0 | N123: =ROUND(M124*L123,0) -> 0 | O123: 0 | P123: =N123-O123 -> 0 | Q123: 0 | R123: 0 | S123: 0 | T123: 23 | U123: 998 | V123: 114 | W123: 0 | X123: 0 | Y123: 114 | Z123: 23 | AA123: 998 | AB123: 114 | AC123: 0 | AD123: 0
A124: 00230999 | B124: 0023 | C124: 0999 | D124: 115 | E124: 23 | F124: Bedford | G124: 999 | H124: Total | I124: 33998144.29 | J124: 1 | K124: =SUM(K120:K123) -> 35598813.17 | L124: =SUM(L120:L123) -> 1 | M124: =VLOOKUP(E124,town351,24) -> 29369021 | N124: =SUM(N120:N123) -> 29369021 | O124: 28048469 | P124: =SUM(P120:P123) -> 1320552 | Q124: 4.708107241 | R124: 2587 | S124: 2618 | T124: 23 | U124: 999 | V124: 115 | W124: 2618 | X124: 35598813.17 | Y124: 115 | Z124: 23 | AA124: 999 | AB124: 115 | AC124: 2618 | AD124: 35598813.17
A125: 00240024 | B125: 0024 | C125: 0024 | D125: 116 | E125: 24 | F125: Belchertown | G125: 24 | H125: Belchertown | I125: 27713334.38 | J125: 0.9248359154 | K125: =X125 -> 27898291.62 | L125: =IF(K129>0, K125/K129, 0) -> 0.9169260378 | N125: =ROUND(M129*L125,0) -> 14251380 | O125: 13763232 | P125: =N125-O125 -> 488148 | Q125: 3.546754134 | R125: 2152 | S125: 2106 | T125: 24 | U125: 24 | V125: 116 | W125: 2106 | X125: 27898291.62 | Y125: 116 | Z125: 24 | AA125: 24 | AB125: 116 | AC125: 2106 | AD125: 27898291.62
A126: 00240860 | B126: 0024 | C126: 0860 | D126: 117 | E126: 24 | F126: Belchertown | G126: 860 | H126: Pathfinder | I126: 2252342.687 | J126: 0.07516408462 | K126: 2527599.313 | L126: =IF(K129>0, K126/K129, 0) -> 0.08307396218 | N126: =ROUND(M129*L126,0) -> 1291182 | O126: 1118578 | P126: =N126-O126 -> 172604 | Q126: 15.43066286 | R126: 106 | S126: 116 | T126: 24 | U126: 860 | V126: 117 | W126: 116 | X126: 2527599.313 | Y126: 117 | Z126: 24 | AA126: 860 | AB126: 117 | AC126: 116 | AD126: 2527599.313
A127: 00240998 | B127: 0024 | C127: 0998 | D127: 118 | E127: 24 | G127: 998 | I127: 0 | J127: 0 | K127: 0 | L127: =IF(K129>0, K127/K129, 0) -> 0 | N127: =ROUND(M129*L127,0) -> 0 | O127: 0 | P127: =N127-O127 -> 0 | Q127: 0 | R127: 0 | S127: 0 | T127: 24 | U127: 998 | V127: 118 | W127: 0 | X127: 0 | Y127: 118 | Z127: 24 | AA127: 998 | AB127: 118 | AC127: 0 | AD127: 0
A128: 00240998 | B128: 0024 | C128: 0998 | D128: 119 | E128: 24 | G128: 998 | I128: 0 | J128: 0 | K128: 0 | L128: =IF(K129>0, K128/K129, 0) -> 0 | N128: =ROUND(M129*L128,0) -> 0 | O128: 0 | P128: =N128-O128 -> 0 | Q128: 0 | R128: 0 | S128: 0 | T128: 24 | U128: 998 | V128: 119 | W128: 0 | X128: 0 | Y128: 119 | Z128: 24 | AA128: 998 | AB128: 119 | AC128: 0 | AD128: 0
A129: 00240999 | B129: 0024 | C129: 0999 | D129: 120 | E129: 24 | F129: Belchertown | G129: 999 | H129: Total | I129: 29965677.07 | J129: 1 | K129: =SUM(K125:K128) -> 30425890.93 | L129: =SUM(L125:L128) -> 1 | M129: =VLOOKUP(E129,town351,24) -> 15542562 | N129: =SUM(N125:N128) -> 15542562 | O129: 14881810 | P129: =SUM(P125:P128) -> 660752 | Q129: 4.439997554 | R129: 2258 | S129: 2222 | T129: 24 | U129: 999 | V129: 120 | W129: 2222 | X129: 30425890.93 | Y129: 120 | Z129: 24 | AA129: 999 | AB129: 120 | AC129: 2222 | AD129: 30425890.93
A130: 00250025 | B130: 0025 | C130: 0025 | D130: 121 | E130: 25 | F130: Bellingham | G130: 25 | H130: Bellingham | I130: 29660512.23 | J130: 0.9433210962 | K130: =X130 -> 30088447.59 | L130: =IF(K134>0, K130/K134, 0) -> 0.944129411 | N130: =ROUND(M134*L130,0) -> 20822076 | O130: 19686080 | P130: =N130-O130 -> 1135996 | Q130: 5.770554625 | R130: 2175 | S130: 2175 | T130: 25 | U130: 25 | V130: 121 | W130: 2175 | X130: 30088447.59 | Y130: 121 | Z130: 25 | AA130: 25 | AB130: 121 | AC130: 2175 | AD130: 30088447.59
A131: 00250805 | B131: 0025 | C131: 0805 | D131: 122 | E131: 25 | F131: Bellingham | G131: 805 | H131: Blackstone Valley | I131: 1416181.153 | J131: 0.04504013778 | K131: 1472203.447 | L131: =IF(K134>0, K131/K134, 0) -> 0.04619548978 | N131: =ROUND(M134*L131,0) -> 1018807 | O131: 939938 | P131: =N131-O131 -> 78869 | Q131: 8.390872589 | R131: 75 | S131: 76 | T131: 25 | U131: 805 | V131: 122 | W131: 76 | X131: 1472203.447 | Y131: 122 | Z131: 25 | AA131: 805 | AB131: 122 | AC131: 76 | AD131: 1472203.447
A132: 00250915 | B132: 0025 | C132: 0915 | D132: 123 | E132: 25 | F132: Bellingham | G132: 915 | H132: Norfolk County | I132: 365953.6102 | J132: 0.01163876598 | K132: 308335.6063 | L132: =IF(K134>0, K132/K134, 0) -> 0.009675099173 | N132: =ROUND(M134*L132,0) -> 213377 | O132: 242888 | P132: =N132-O132 -> -29511 | Q132: -12.15004446 | R132: 17 | S132: 14 | T132: 25 | U132: 915 | V132: 123 | W132: 14 | X132: 308335.6063 | Y132: 123 | Z132: 25 | AA132: 915 | AB132: 123 | AC132: 14 | AD132: 308335.6063
A133: 00250998 | B133: 0025 | C133: 0998 | D133: 124 | E133: 25 | G133: 998 | I133: 0 | J133: 0 | K133: 0 | L133: =IF(K134>0, K133/K134, 0) -> 0 | N133: =ROUND(M134*L133,0) -> 0 | O133: 0 | P133: =N133-O133 -> 0 | Q133: 0 | R133: 0 | S133: 0 | T133: 25 | U133: 998 | V133: 124 | W133: 0 | X133: 0 | Y133: 124 | Z133: 25 | AA133: 998 | AB133: 124 | AC133: 0 | AD133: 0
A134: 00250999 | B134: 0025 | C134: 0999 | D134: 125 | E134: 25 | F134: Bellingham | G134: 999 | H134: Total | I134: 31442646.99 | J134: 1 | K134: =SUM(K130:K133) -> 31868986.64 | L134: =SUM(L130:L133) -> 1 | M134: =VLOOKUP(E134,town351,24) -> 22054261 | N134: =SUM(N130:N133) -> 22054260 | O134: 20868906 | P134: =SUM(P130:P133) -> 1185354 | Q134: 5.680000667 | R134: 2267 | S134: 2265 | T134: 25 | U134: 999 | V134: 125 | W134: 2265 | X134: 31868986.64 | Y134: 125 | Z134: 25 | AA134: 999 | AB134: 125 | AC134: 2265 | AD134: 31868986.64
A135: 00260026 | B135: 0026 | C135: 0026 | D135: 126 | E135: 26 | F135: Belmont | G135: 26 | H135: Belmont | I135: 57423975.88 | J135: 1 | K135: =X135 -> 59533725.07 | L135: =IF(K139>0, K135/K139, 0) -> 1 | N135: =ROUND(M139*L135,0) -> 47889465 | O135: 45639441 | P135: =N135-O135 -> 2250024 | Q135: 4.929999033 | R135: 4505 | S135: 4521 | T135: 26 | U135: 26 | V135: 126 | W135: 4521 | X135: 59533725.07 | Y135: 126 | Z135: 26 | AA135: 26 | AB135: 126 | AC135: 4521 | AD135: 59533725.07
A136: 00260830 | B136: 0026 | C136: 0830 | D136: 127 | E136: 26 | G136: 998 | I136: 0 | J136: 0 | K136: 0 | L136: =IF(K139>0, K136/K139, 0) -> 0 | N136: =ROUND(M139*L136,0) -> 0 | O136: 0 | P136: =N136-O136 -> 0 | Q136: 0 | R136: 0 | S136: 0 | T136: 26 | U136: 830 | V136: 127 | W136: 0 | X136: 0 | Y136: 127 | Z136: 26 | AA136: 830 | AB136: 127 | AC136: 0 | AD136: 0
A137: 00260998 | B137: 0026 | C137: 0998 | D137: 128 | E137: 26 | G137: 998 | I137: 0 | J137: 0 | K137: 0 | L137: =IF(K139>0, K137/K139, 0) -> 0 | N137: =ROUND(M139*L137,0) -> 0 | O137: 0 | P137: =N137-O137 -> 0 | Q137: 0 | R137: 0 | S137: 0 | T137: 26 | U137: 998 | V137: 128 | W137: 0 | X137: 0 | Y137: 128 | Z137: 26 | AA137: 998 | AB137: 128 | AC137: 0 | AD137: 0
A138: =B138&C138 -> 00260998 | B138: 0026 | C138: 0998 | D138: 129 | E138: 26 | G138: 998 | I138: 0 | J138: 0 | K138: 0 | L138: =IF(K139>0, K138/K139, 0) -> 0 | N138: =ROUND(M139*L138,0) -> 0 | O138: 0 | P138: =N138-O138 -> 0 | Q138: 0 | R138: 0 | S138: 0 | T138: =VLOOKUP($D138, foundoptions, VLOOKUP($T$6, foundoptcell, 2, FALSE), FALSE) -> 26 | U138: =VLOOKUP($D138, foundoptions, VLOOKUP($T$6, foundoptcell, 2, FALSE)+1, FALSE) -> 998 | V138: =VLOOKUP($D138, foundoptions, VLOOKUP($T$6, foundoptcell, 2, FALSE)+2, FALSE) -> 129 | W138: =VLOOKUP($D138, foundoptions, VLOOKUP($T$6, foundoptcell, 2, FALSE)+3, FALSE) -> 0 | X138: =VLOOKUP($D138, foundoptions, VLOOKUP($T$6, foundoptcell, 2, FALSE)+4, FALSE) -> 0 | Y138: 129 | Z138: 26 | AA138: 998 | AB138: 129 | AC138: 0 | AD138: 0
A139: 00260999 | B139: 0026 | C139: 0999 | D139: 130 | E139: 26 | F139: Belmont | G139: 999 | H139: Total | I139: 57423975.88 | J139: 1 | K139: =SUM(K135:K138) -> 59533725.07 | L139: =SUM(L135:L138) -> 1 | M139: =VLOOKUP(E139,town351,24) -> 47889465 | N139: =SUM(N135:N138) -> 47889465 | O139: 45639441 | P139: =SUM(P135:P138) -> 2250024 | Q139: 4.929999033 | R139: 4505 | S139: =W139 -> 4521 | T139: 26 | U139: 999 | V139: 130 | W139: 4521 | X139: 59533725.07 | Y139: =D139 -> 130 | Z139: 26 | AA139: 999 | AB139: 130 | AC139: 4521 | AD139: 59533725.07
A140: 00270027 | B140: 0027 | C140: 0027 | D140: 131 | E140: 27 | F140: Berkley | G140: 27 | H140: Berkley | I140: 8929788.14 | J140: 0.6046882925 | K140: =X140 -> 8895289.57 | L140: =IF(K144>0, K140/K144, 0) -> 0.5978388754 | N140: =ROUND(M144*L140,0) -> 5017565 | O140: 4777868 | P140: =N140-O140 -> 239697 | Q140: 5.016819217 | R140: 698 | S140: 682 | T140: 27 | U140: 27 | V140: 131 | W140: 682 | X140: 8895289.57 | Y140: 131 | Z140: 27 | AA140: 27 | AB140: 131 | AC140: 682 | AD140: 8895289.57
A141: 00270763 | B141: 0027 | C141: 0763 | D141: 132 | E141: 27 | F141: Berkley | G141: 763 | H141: Somerset Berkley | I141: 3647366.851 | J141: 0.2469845867 | K141: 3436437.904 | L141: =IF(K144>0, K141/K144, 0) -> 0.2309577621 | N141: =ROUND(M144*L141,0) -> 1938391 | O141: 1951517 | P141: =N141-O141 -> -13126 | Q141: -0.672604953 | R141: 257.5160643 | S141: 232 | T141: 27 | U141: 763 | V141: 132 | W141: 232 | X141: 3436437.904 | Y141: 132 | Z141: 27 | AA141: 763 | AB141: 132 | AC141: 232 | AD141: 3436437.904
A142: 00270810 | B142: 0027 | C142: 0810 | D142: 133 | E142: 27 | F142: Berkley | G142: 810 | H142: Bristol Plymouth | I142: 1864635.245 | J142: 0.1262653811 | K142: 2255481.634 | L142: =IF(K144>0, K142/K144, 0) -> 0.1515874883 | N142: =ROUND(M144*L142,0) -> 1272249 | O142: 997670 | P142: =N142-O142 -> 274579 | Q142: 27.52202632 | R142: 92.49047982 | S142: 111.3269514 | T142: 27 | U142: 810 | V142: 133 | W142: 111.3269514 | X142: 2255481.634 | Y142: 133 | Z142: 27 | AA142: 810 | AB142: 133 | AC142: 111.3269514 | AD142: 2255481.634
A143: 00270910 | B143: 0027 | C143: 0910 | D143: 134 | E143: 27 | F143: Berkley | G143: 910 | H143: Bristol County | I143: 325798.7036 | J143: 0.02206173973 | K143: 291866.0665 | L143: =IF(K144>0, K143/K144, 0) -> 0.01961587418 | N143: =ROUND(M144*L143,0) -> 164633 | O143: 174318 | P143: =N143-O143 -> -9685 | Q143: -5.555937998 | R143: 16 | S143: 14 | T143: 27 | U143: 910 | V143: 134 | W143: 14 | X143: 291866.0665 | Y143: 134 | Z143: 27 | AA143: 910 | AB143: 134 | AC143: 14 | AD143: 291866.0665
A144: 00270999 | B144: 0027 | C144: 0999 | D144: 135 | E144: 27 | F144: Berkley | G144: 999 | H144: Total | I144: 14767588.94 | J144: 1 | K144: =SUM(K140:K143) -> 14879075.17 | L144: =SUM(L140:L143) -> 1 | M144: =VLOOKUP(E144,town351,24) -> 8392839 | N144: =SUM(N140:N143) -> 8392838 | O144: 7901373 | P144: =SUM(P140:P143) -> 491465 | Q144: =IF(O144>0,P144*100/O144,IF(P144>0,100,0)) -> 6.21999493 | R144: 1064.006544 | S144: 1039.326951 | T144: 27 | U144: 999 | V144: 135 | W144: 1039.326951 | X144: 14879075.17 | Y144: 135 | Z144: 27 | AA144: 999 | AB144: 135 | AC144: 1039.326951 | AD144: 14879075.17
A145: 00280028 | B145: 0028 | C145: 0028 | D145: 136 | E145: 28 | F145: Berlin | G145: 28 | H145: Berlin | I145: 0 | J145: 0 | K145: =X145 -> 0 | L145: =IF(K149>0, K145/K149, 0) -> 0 | N145: =ROUND(M149*L145,0) -> 0 | O145: 0 | P145: =N145-O145 -> 0 | Q145: 0 | R145: 0 | S145: 0 | T145: 28 | U145: 28 | V145: 136 | W145: 0 | X145: 0 | Y145: 136 | Z145: 28 | AA145: 28 | AB145: 136 | AC145: 0 | AD145: 0
A146: 00280620 | B146: 0028 | C146: 0620 | D146: 137 | E146: 28 | F146: Berlin | G146: 620 | H146: Berlin Boylston | I146: 4843565.867 | J146: 0.8329821868 | K146: 5315826.474 | L146: =IF(K149>0, K146/K149, 0) -> 0.8625110516 | N146: =ROUND(M149*L146,0) -> 3750867 | O146: 3383257 | P146: =N146-O146 -> 367610 | Q146: 10.86556534 | R146: 389.6712871 | S146: 415.631728 | T146: 28 | U146: 620 | V146: 137 | W146: 415.631728 | X146: 5315826.474 | Y146: 137 | Z146: 28 | AA146: 620 | AB146: 137 | AC146: 415.631728 | AD146: 5315826.474
A147: 00280801 | B147: 0028 | C147: 0801 | D147: 138 | E147: 28 | F147: Berlin | G147: 801 | H147: Assabet Valley | I147: 971163.3599 | J147: 0.1670178132 | K147: 847371.6257 | L147: =IF(K149>0, K147/K149, 0) -> 0.1374889484 | N147: =ROUND(M149*L147,0) -> 597909 | O147: 678363 | P147: =N147-O147 -> -80454 | Q147: -11.86002185 | R147: 44 | S147: 37 | T147: 28 | U147: 801 | V147: 138 | W147: 37 | X147: 847371.6257 | Y147: 138 | Z147: 28 | AA147: 801 | AB147: 138 | AC147: 37 | AD147: 847371.6257
A148: 00280998 | B148: 0028 | C148: 0998 | D148: 139 | E148: 28 | G148: 998 | I148: 0 | J148: 0 | K148: 0 | L148: =IF(K149>0, K148/K149, 0) -> 0 | N148: =ROUND(M149*L148,0) -> 0 | O148: 0 | P148: =N148-O148 -> 0 | Q148: 0 | R148: 0 | S148: 0 | T148: 28 | U148: 998 | V148: 139 | W148: 0 | X148: 0 | Y148: 139 | Z148: 28 | AA148: 998 | AB148: 139 | AC148: 0 | AD148: 0
A149: 00280999 | B149: 0028 | C149: 0999 | D149: 140 | E149: 28 | F149: Berlin | G149: 999 | H149: Total | I149: 5814729.227 | J149: 1 | K149: =SUM(K145:K148) -> 6163198.1 | L149: =SUM(L145:L148) -> 1 | M149: =VLOOKUP(E149,town351,24) -> 4348776 | N149: =SUM(N145:N148) -> 4348776 | O149: 4061620 | P149: =SUM(P145:P148) -> 287156 | Q149: 7.069986853 | R149: 433.6712871 | S149: 452.6317281 | T149: 28 | U149: 999 | V149: 140 | W149: 452.6317281 | X149: 6163198.1 | Y149: 140 | Z149: 28 | AA149: 999 | AB149: 140 | AC149: 452.6317281 | AD149: 6163198.1
A150: 00290029 | B150: 0029 | C150: 0029 | D150: 141 | E150: 29 | F150: Bernardston | G150: 29 | H150: Bernardston | I150: 0 | J150: 0 | K150: =X150 -> 0 | L150: =IF(K154>0, K150/K154, 0) -> 0 | N150: =ROUND(M154*L150,0) -> 0 | O150: 0 | P150: =N150-O150 -> 0 | Q150: 0 | R150: 0 | S150: 0 | T150: 29 | U150: 29 | V150: 141 | W150: 0 | X150: 0 | Y150: 141 | Z150: 29 | AA150: 29 | AB150: 141 | AC150: 0 | AD150: 0
A151: 00290750 | B151: 0029 | C151: 0750 | D151: 142 | E151: 29 | F151: Bernardston | G151: 750 | H151: Pioneer | I151: 3105454.882 | J151: 0.8532825645 | K151: 3076751.257 | L151: =IF(K154>0, K151/K154, 0) -> 0.8243228084 | N151: =ROUND(M154*L151,0) -> 1656501 | O151: 1622998 | P151: =N151-O151 -> 33503 | Q151: 2.064266253 | R151: 224.862543 | S151: 219.2066421 | T151: 29 | U151: 750 | V151: 142 | W151: 219.2066421 | X151: 3076751.257 | Y151: 142 | Z151: 29 | AA151: 750 | AB151: 142 | AC151: 219.2066421 | AD151: 3076751.257
A152: 00290818 | B152: 0029 | C152: 0818 | D152: 143 | E152: 29 | F152: Bernardston | G152: 818 | H152: Franklin County | I152: 533966.5843 | J152: 0.1467174355 | K152: 655707.9514 | L152: =IF(K154>0, K152/K154, 0) -> 0.1756771916 | N152: =ROUND(M154*L152,0) -> 353029 | O152: 279066 | P152: =N152-O152 -> 73963 | Q152: 26.50376613 | R152: 25 | S152: 30 | T152: 29 | U152: 818 | V152: 143 | W152: 30 | X152: 655707.9514 | Y152: 143 | Z152: 29 | AA152: 818 | AB152: 143 | AC152: 30 | AD152: 655707.9514
A153: 00290998 | B153: 0029 | C153: 0998 | D153: 144 | E153: 29 | G153: 998 | I153: 0 | J153: 0 | K153: 0 | L153: =IF(K154>0, K153/K154, 0) -> 0 | N153: =ROUND(M154*L153,0) -> 0 | O153: 0 | P153: =N153-O153 -> 0 | Q153: 0 | R153: 0 | S153: 0 | T153: 29 | U153: 998 | V153: 144 | W153: 0 | X153: 0 | Y153: 144 | Z153: 29 | AA153: 998 | AB153: 144 | AC153: 0 | AD153: 0
A154: 00290999 | B154: 0029 | C154: 0999 | D154: 145 | E154: 29 | F154: Bernardston | G154: 999 | H154: Total | I154: 3639421.467 | J154: 1 | K154: =SUM(K150:K153) -> 3732459.209 | L154: =SUM(L150:L153) -> 1 | M154: =VLOOKUP(E154,town351,24) -> 2009530 | N154: =SUM(N150:N153) -> 2009530 | O154: 1902064 | P154: =SUM(P150:P153) -> 107466 | Q154: 5.649967614 | R154: 249.862543 | S154: 249.2066421 | T154: 29 | U154: 999 | V154: 145 | W154: 249.2066421 | X154: 3732459.209 | Y154: 145 | Z154: 29 | AA154: 999 | AB154: 145 | AC154: 249.2066421 | AD154: 3732459.209
A155: 00300030 | B155: 0030 | C155: 0030 | D155: 146 | E155: 30 | F155: Beverly | G155: 30 | H155: Beverly | I155: 61798815.26 | J155: 0.9479709501 | K155: =X155 -> 62707090.12 | L155: =IF(K159>0, K155/K159, 0) -> 0.9401081578 | N155: =ROUND(M159*L155,0) -> 49168020 | O155: 47254334 | P155: =N155-O155 -> 1913686 | Q155: 4.049757637 | R155: 4541 | S155: 4466 | T155: 30 | U155: 30 | V155: 146 | W155: 4466 | X155: 62707090.12 | Y155: 146 | Z155: 30 | AA155: 30 | AB155: 146 | AC155: 4466 | AD155: 62707090.12
A156: 00300817 | B156: 0030 | C156: 0817 | D156: 147 | E156: 30 | F156: Beverly | G156: 817 | H156: Essex North Shore | I156: 3391806.093 | J156: 0.05202904993 | K156: 3994905.392 | L156: =IF(K159>0, K156/K159, 0) -> 0.05989184224 | N156: =ROUND(M159*L156,0) -> 3132367 | O156: 2593537 | P156: =N156-O156 -> 538830 | Q156: 20.7758748 | R156: 172 | S156: 198 | T156: 30 | U156: 817 | V156: 147 | W156: 198 | X156: 3994905.392 | Y156: 147 | Z156: 30 | AA156: 817 | AB156: 147 | AC156: 198 | AD156: 3994905.392
A157: 00300998 | B157: 0030 | C157: 0998 | D157: 148 | E157: 30 | G157: 998 | I157: 0 | J157: 0 | K157: 0 | L157: =IF(K159>0, K157/K159, 0) -> 0 | N157: =ROUND(M159*L157,0) -> 0 | O157: 0 | P157: =N157-O157 -> 0 | Q157: 0 | R157: 0 | S157: 0 | T157: 30 | U157: 998 | V157: 148 | W157: 0 | X157: 0 | Y157: 148 | Z157: 30 | AA157: 998 | AB157: 148 | AC157: 0 | AD157: 0
A158: 00300998 | B158: 0030 | C158: 0998 | D158: 149 | E158: 30 | G158: 998 | I158: 0 | J158: 0 | K158: 0 | L158: =IF(K159>0, K158/K159, 0) -> 0 | N158: =ROUND(M159*L158,0) -> 0 | O158: 0 | P158: =N158-O158 -> 0 | Q158: 0 | R158: 0 | S158: 0 | T158: 30 | U158: 998 | V158: 149 | W158: 0 | X158: 0 | Y158: 149 | Z158: 30 | AA158: 998 | AB158: 149 | AC158: 0 | AD158: 0
A159: 00300999 | B159: 0030 | C159: 0999 | D159: 150 | E159: 30 | F159: Beverly | G159: 999 | H159: Total | I159: 65190621.35 | J159: 1 | K159: =SUM(K155:K158) -> 66701995.51 | L159: =SUM(L155:L158) -> 1 | M159: =VLOOKUP(E159,town351,24) -> 52300387 | N159: =SUM(N155:N158) -> 52300387 | O159: 49847871 | P159: =SUM(P155:P158) -> 2452516 | Q159: 4.920001498 | R159: 4713 | S159: 4664 | T159: 30 | U159: 999 | V159: 150 | W159: 4664 | X159: 66701995.51 | Y159: 150 | Z159: 30 | AA159: 999 | AB159: 150 | AC159: 4664 | AD159: 66701995.51
A160: 00310031 | B160: 0031 | C160: 0031 | D160: 151 | E160: 31 | F160: Billerica | G160: 31 | H160: Billerica | I160: 63590856.68 | J160: 0.8761838651 | K160: =X160 -> 65232366.11 | L160: =IF(K164>0, K160/K164, 0) -> 0.8753767706 | N160: =ROUND(M164*L160,0) -> 52490595 | O160: 49635324 | P160: =N160-O160 -> 2855271 | Q160: 5.752497959 | R160: 4879 | S160: 4925 | T160: 31 | U160: 31 | V160: 151 | W160: 4925 | X160: 65232366.11 | Y160: 151 | Z160: 31 | AA160: 31 | AB160: 151 | AC160: 4925 | AD160: 65232366.11
A161: 00310871 | B161: 0031 | C161: 0871 | D161: 152 | E161: 31 | F161: Billerica | G161: 871 | H161: Shawsheen Valley | I161: 8986212.146 | J161: 0.1238161349 | K161: 9286821.859 | L161: =IF(K164>0, K161/K164, 0) -> 0.1246232294 | N161: =ROUND(M164*L161,0) -> 7472836 | O161: 7014115 | P161: =N161-O161 -> 458721 | Q161: 6.539969761 | R161: 466 | S161: 470 | T161: 31 | U161: 871 | V161: 152 | W161: 470 | X161: 9286821.859 | Y161: 152 | Z161: 31 | AA161: 871 | AB161: 152 | AC161: 470 | AD161: 9286821.859
A162: 00310998 | B162: 0031 | C162: 0998 | D162: 153 | E162: 31 | G162: 998 | I162: 0 | J162: 0 | K162: 0 | L162: =IF(K164>0, K162/K164, 0) -> 0 | N162: =ROUND(M164*L162,0) -> 0 | O162: 0 | P162: =N162-O162 -> 0 | Q162: 0 | R162: 0 | S162: 0 | T162: 31 | U162: 998 | V162: 153 | W162: 0 | X162: 0 | Y162: 153 | Z162: 31 | AA162: 998 | AB162: 153 | AC162: 0 | AD162: 0
A163: 00310998 | B163: 0031 | C163: 0998 | D163: 154 | E163: 31 | G163: 998 | I163: 0 | J163: 0 | K163: 0 | L163: =IF(K164>0, K163/K164, 0) -> 0 | N163: =ROUND(M164*L163,0) -> 0 | O163: 0 | P163: =N163-O163 -> 0 | Q163: 0 | R163: 0 | S163: 0 | T163: 31 | U163: 998 | V163: 154 | W163: 0 | X163: 0 | Y163: 154 | Z163: 31 | AA163: 998 | AB163: 154 | AC163: 0 | AD163: 0
A164: 00310999 | B164: 0031 | C164: 0999 | D164: 155 | E164: 31 | F164: Billerica | G164: 999 | H164: Total | I164: 72577068.83 | J164: 1 | K164: =SUM(K160:K163) -> 74519187.97 | L164: =SUM(L160:L163) -> 1 | M164: =VLOOKUP(E164,town351,24) -> 59963431 | N164: =SUM(N160:N163) -> 59963431 | O164: 56649439 | P164: =SUM(P160:P163) -> 3313992 | Q164: 5.84999968 | R164: 5345 | S164: 5395 | T164: 31 | U164: 999 | V164: 155 | W164: 5395 | X164: 74519187.97 | Y164: 155 | Z164: 31 | AA164: 999 | AB164: 155 | AC164: 5395 | AD164: 74519187.97
A165: 00320032 | B165: 0032 | C165: 0032 | D165: 156 | E165: 32 | F165: Blackstone | G165: 32 | H165: Blackstone | I165: 393567.84 | J165: 0.02264964295 | K165: =X165 -> 317959.23 | L165: =IF(K169>0, K165/K169, 0) -> 0.01769945289 | N165: =ROUND(M169*L165,0) -> 163461 | O165: 197879 | P165: =N165-O165 -> -34418 | Q165: -17.39345762 | R165: 22 | S165: 17 | T165: 32 | U165: 32 | V165: 156 | W165: 17 | X165: 317959.23 | Y165: 156 | Z165: 32 | AA165: 32 | AB165: 156 | AC165: 17 | AD165: 317959.23
A166: 00320622 | B166: 0032 | C166: 0622 | D166: 157 | E166: 32 | F166: Blackstone | G166: 622 | H166: Blackstone Millville | I166: 15849824.73 | J166: 0.9121499129 | K166: 16561612.87 | L166: =IF(K169>0, K166/K169, 0) -> 0.9219153247 | N166: =ROUND(M169*L166,0) -> 8514234 | O166: 7969016 | P166: =N166-O166 -> 545218 | Q166: 6.841722993 | R166: 1179.646695 | S166: 1194.073665 | T166: 32 | U166: 622 | V166: 157 | W166: 1194.073665 | X166: 16561612.87 | Y166: 157 | Z166: 32 | AA166: 622 | AB166: 157 | AC166: 1194.073665 | AD166: 16561612.87
A167: 00320805 | B167: 0032 | C167: 0805 | D167: 158 | E167: 32 | F167: Blackstone | G167: 805 | H167: Blackstone Valley | I167: 1132944.922 | J167: 0.06520044414 | K167: 1084781.487 | L167: =IF(K169>0, K167/K169, 0) -> 0.06038522243 | N167: =ROUND(M169*L167,0) -> 557680 | O167: 569625 | P167: =N167-O167 -> -11945 | Q167: -2.096993636 | R167: 59.99999999 | S167: 56 | T167: 32 | U167: 805 | V167: 158 | W167: 56 | X167: 1084781.487 | Y167: 158 | Z167: 32 | AA167: 805 | AB167: 158 | AC167: 56 | AD167: 1084781.487
A168: 00320998 | B168: 0032 | C168: 0998 | D168: 159 | E168: 32 | G168: 998 | I168: 0 | J168: 0 | K168: 0 | L168: =IF(K169>0, K168/K169, 0) -> 0 | N168: =ROUND(M169*L168,0) -> 0 | O168: 0 | P168: =N168-O168 -> 0 | Q168: 0 | R168: 0 | S168: 0 | T168: 32 | U168: 998 | V168: 159 | W168: 0 | X168: 0 | Y168: 159 | Z168: 32 | AA168: 998 | AB168: 159 | AC168: 0 | AD168: 0
A169: 00320999 | B169: 0032 | C169: 0999 | D169: 160 | E169: 32 | F169: Blackstone | G169: 999 | H169: Total | I169: 17376337.49 | J169: 1 | K169: =SUM(K165:K168) -> 17964353.59 | L169: =SUM(L165:L168) -> 1 | M169: =VLOOKUP(E169,town351,24) -> 9235375 | N169: =SUM(N165:N168) -> 9235375 | O169: 8736520 | P169: =SUM(P165:P168) -> 498855 | Q169: 5.709996658 | R169: 1261.646695 | S169: 1267.073665 | T169: 32 | U169: 999 | V169: 160 | W169: 1267.073665 | X169: 17964353.59 | Y169: 160 | Z169: 32 | AA169: 999 | AB169: 160 | AC169: 1267.073665 | AD169: 17964353.59
A170: 00330033 | B170: 0033 | C170: 0033 | D170: 161 | E170: 33 | F170: Blandford | G170: 33 | H170: Blandford | I170: 245151 | J170: 0.1633145869 | K170: =X170 -> 250517.91 | L170: =IF(K174>0, K170/K174, 0) -> 0.1464015553 | N170: =ROUND(M174*L170,0) -> 172932 | O170: 186549 | P170: =N170-O170 -> -13617 | Q170: -7.299422672 | R170: 13 | S170: 13 | T170: 33 | U170: 33 | V170: 161 | W170: 13 | X170: 250517.91 | Y170: 161 | Z170: 33 | AA170: 33 | AB170: 161 | AC170: 13 | AD170: 250517.91
A171: 00330672 | B171: 0033 | C171: 0672 | D171: 162 | E171: 33 | F171: Blandford | G171: 672 | H171: Gateway | I171: 1255945.777 | J171: 0.8366854131 | K171: 1460651.821 | L171: =IF(K174>0, K171/K174, 0) -> 0.8535984447 | N171: =ROUND(M174*L171,0) -> 1008285 | O171: 955717 | P171: =N171-O171 -> 52568 | Q171: 5.500373018 | R171: 85.3097561 | S171: 93.38509317 | T171: 33 | U171: 672 | V171: 162 | W171: 93.38509317 | X171: 1460651.821 | Y171: 162 | Z171: 33 | AA171: 672 | AB171: 162 | AC171: 93.38509317 | AD171: 1460651.821
A172: 00330998 | B172: 0033 | C172: 0998 | D172: 163 | E172: 33 | G172: 998 | I172: 0 | J172: 0 | K172: 0 | L172: =IF(K174>0, K172/K174, 0) -> 0 | N172: =ROUND(M174*L172,0) -> 0 | O172: 0 | P172: =N172-O172 -> 0 | Q172: 0 | R172: 0 | S172: 0 | T172: 33 | U172: 998 | V172: 163 | W172: 0 | X172: 0 | Y172: 163 | Z172: 33 | AA172: 998 | AB172: 163 | AC172: 0 | AD172: 0
A173: 00330998 | B173: 0033 | C173: 0998 | D173: 164 | E173: 33 | G173: 998 | I173: 0 | J173: 0 | K173: 0 | L173: =IF(K174>0, K173/K174, 0) -> 0 | N173: =ROUND(M174*L173,0) -> 0 | O173: 0 | P173: =N173-O173 -> 0 | Q173: 0 | R173: 0 | S173: 0 | T173: 33 | U173: 998 | V173: 164 | W173: 0 | X173: 0 | Y173: 164 | Z173: 33 | AA173: 998 | AB173: 164 | AC173: 0 | AD173: 0
A174: 00330999 | B174: 0033 | C174: 0999 | D174: 165 | E174: 33 | F174: Blandford | G174: 999 | H174: Total | I174: 1501096.777 | J174: 1 | K174: =SUM(K170:K173) -> 1711169.731 | L174: =SUM(L170:L173) -> 1 | M174: =VLOOKUP(E174,town351,24) -> 1181217 | N174: =SUM(N170:N173) -> 1181217 | O174: 1142266 | P174: =SUM(P170:P173) -> 38951 | Q174: 3.40997631 | R174: 98.3097561 | S174: 106.3850932 | T174: 33 | U174: 999 | V174: 165 | W174: 106.3850932 | X174: 1711169.731 | Y174: 165 | Z174: 33 | AA174: 999 | AB174: 165 | AC174: 106.3850932 | AD174: 1711169.731
A175: 00340034 | B175: 0034 | C175: 0034 | D175: 166 | E175: 34 | F175: Bolton | G175: 34 | H175: Bolton | I175: 0 | J175: 0 | K175: =X175 -> 0 | L175: =IF(K179>0, K175/K179, 0) -> 0 | N175: =ROUND(M179*L175,0) -> 0 | O175: 0 | P175: =N175-O175 -> 0 | Q175: 0 | R175: 0 | S175: 0 | T175: 34 | U175: 34 | V175: 166 | W175: 0 | X175: 0 | Y175: 166 | Z175: 34 | AA175: 34 | AB175: 166 | AC175: 0 | AD175: 0
A176: 00340725 | B176: 0034 | C176: 0725 | D176: 167 | E176: 34 | F176: Bolton | G176: 725 | H176: Nashoba | I176: 12637109.94 | J176: 0.9483316443 | K176: 12919235.34 | L176: =IF(K179>0, K176/K179, 0) -> 0.945005687 | N176: =ROUND(M179*L176,0) -> 10432433 | O176: 10037536 | P176: =N176-O176 -> 394897 | Q176: 3.934202577 | R176: 1010.615532 | S176: 1006.288184 | T176: 34 | U176: 725 | V176: 167 | W176: 1006.288184 | X176: 12919235.34 | Y176: 167 | Z176: 34 | AA176: 725 | AB176: 167 | AC176: 1006.288184 | AD176: 12919235.34
A177: 00340830 | B177: 0034 | C177: 0830 | D177: 168 | E177: 34 | F177: Bolton | G177: 830 | H177: Minuteman | I177: 688513.0266 | J177: 0.05166835565 | K177: 751830.8957 | L177: =IF(K179>0, K177/K179, 0) -> 0.05499431299 | N177: =ROUND(M179*L177,0) -> 607112 | O177: 546879 | P177: =N177-O177 -> 60233 | Q177: 11.01395373 | R177: 33 | S177: 36 | T177: 34 | U177: 830 | V177: 168 | W177: 36 | X177: 751830.8957 | Y177: 168 | Z177: 34 | AA177: 830 | AB177: 168 | AC177: 36 | AD177: 751830.8957
A178: 00340998 | B178: 0034 | C178: 0998 | D178: 169 | E178: 34 | G178: 998 | I178: 0 | J178: 0 | K178: 0 | L178: =IF(K179>0, K178/K179, 0) -> 0 | N178: =ROUND(M179*L178,0) -> 0 | O178: 0 | P178: =N178-O178 -> 0 | Q178: 0 | R178: 0 | S178: 0 | T178: 34 | U178: 998 | V178: 169 | W178: 0 | X178: 0 | Y178: 169 | Z178: 34 | AA178: 998 | AB178: 169 | AC178: 0 | AD178: 0
A179: 00340999 | B179: 0034 | C179: 0999 | D179: 170 | E179: 34 | F179: Bolton | G179: 999 | H179: Total | I179: 13325622.96 | J179: 1 | K179: =SUM(K175:K178) -> 13671066.24 | L179: =SUM(L175:L178) -> 1 | M179: =VLOOKUP(E179,town351,24) -> 11039545 | N179: =SUM(N175:N178) -> 11039545 | O179: 10584415 | P179: =SUM(P175:P178) -> 455130 | Q179: 4.300001464 | R179: 1043.615532 | S179: 1042.288184 | T179: 34 | U179: 999 | V179: 170 | W179: 1042.288184 | X179: 13671066.24 | Y179: 170 | Z179: 34 | AA179: 999 | AB179: 170 | AC179: 1042.288184 | AD179: 13671066.24
A180: 00350035 | B180: 0035 | C180: 0035 | D180: 171 | E180: 35 | F180: Boston | G180: 35 | H180: Boston | I180: 1095713386 | J180: 1 | K180: =X180 -> 1145949554 | L180: =IF(K184>0, K180/K184, 0) -> 1 | N180: =ROUND(M184*L180,0) -> 945408382 | O180: 880485066 | P180: =N180-O180 -> 64923316 | Q180: 7.373585142 | R180: 57738 | S180: 57369 | T180: 35 | U180: 35 | V180: 171 | W180: 57369 | X180: 1145949554 | Y180: 171 | Z180: 35 | AA180: 35 | AB180: 171 | AC180: 57369 | AD180: 1145949554
A181: 00350998 | B181: 0035 | C181: 0998 | D181: 172 | E181: 35 | G181: 998 | I181: 0 | J181: 0 | K181: 0 | L181: =IF(K184>0, K181/K184, 0) -> 0 | N181: =ROUND(M184*L181,0) -> 0 | O181: 0 | P181: =N181-O181 -> 0 | Q181: 0 | R181: 0 | S181: 0 | T181: 35 | U181: 998 | V181: 172 | W181: 0 | X181: 0 | Y181: 172 | Z181: 35 | AA181: 998 | AB181: 172 | AC181: 0 | AD181: 0
A182: 00350998 | B182: 0035 | C182: 0998 | D182: 173 | E182: 35 | G182: 998 | I182: 0 | J182: 0 | K182: 0 | L182: =IF(K184>0, K182/K184, 0) -> 0 | N182: =ROUND(M184*L182,0) -> 0 | O182: 0 | P182: =N182-O182 -> 0 | Q182: 0 | R182: 0 | S182: 0 | T182: 35 | U182: 998 | V182: 173 | W182: 0 | X182: 0 | Y182: 173 | Z182: 35 | AA182: 998 | AB182: 173 | AC182: 0 | AD182: 0
A183: 00350998 | B183: 0035 | C183: 0998 | D183: 174 | E183: 35 | G183: 998 | I183: 0 | J183: 0 | K183: 0 | L183: =IF(K184>0, K183/K184, 0) -> 0 | N183: =ROUND(M184*L183,0) -> 0 | O183: 0 | P183: =N183-O183 -> 0 | Q183: 0 | R183: 0 | S183: 0 | T183: 35 | U183: 998 | V183: 174 | W183: 0 | X183: 0 | Y183: 174 | Z183: 35 | AA183: 998 | AB183: 174 | AC183: 0 | AD183: 0
A184: 00350999 | B184: 0035 | C184: 0999 | D184: 175 | E184: 35 | F184: Boston | G184: 999 | H184: Total | I184: 1095713386 | J184: 1 | K184: =SUM(K180:K183) -> 1145949554 | L184: =SUM(L180:L183) -> 1 | M184: =VLOOKUP(E184,town351,24) -> 945408382 | N184: =SUM(N180:N183) -> 945408382 | O184: 880485066 | P184: =SUM(P180:P183) -> 64923316 | Q184: 7.373585142 | R184: 57738 | S184: 57369 | T184: 35 | U184: 999 | V184: 175 | W184: 57369 | X184: 1145949554 | Y184: 175 | Z184: 35 | AA184: 999 | AB184: 175 | AC184: 57369 | AD184: 1145949554
A185: 00360036 | B185: 0036 | C185: 0036 | D185: 176 | E185: 36 | F185: Bourne | G185: 36 | H185: Bourne | I185: 22858350.51 | J185: 0.8498075635 | K185: =X185 -> 24109451.63 | L185: =IF(K189>0, K185/K189, 0) -> 0.8507444537 | N185: =ROUND(M189*L185,0) -> 19319804 | O185: 18409357 | P185: =N185-O185 -> 910447 | Q185: 4.94556654 | R185: 1678 | S185: 1698 | T185: 36 | U185: 36 | V185: 176 | W185: 1698 | X185: 24109451.63 | Y185: 176 | Z185: 36 | AA185: 36 | AB185: 176 | AC185: 1698 | AD185: 24109451.63
A186: 00360879 | B186: 0036 | C186: 0879 | D186: 177 | E186: 36 | F186: Bourne | G186: 879 | H186: Upper Cape Cod | I186: 4039916.218 | J186: 0.1501924365 | K186: 4229788.813 | L186: =IF(K189>0, K186/K189, 0) -> 0.1492555463 | N186: =ROUND(M189*L186,0) -> 3389488 | O186: 3253614 | P186: =N186-O186 -> 135874 | Q186: 4.176094644 | R186: 192.973384 | S186: 199.6998828 | T186: 36 | U186: 879 | V186: 177 | W186: 199.6998828 | X186: 4229788.813 | Y186: 177 | Z186: 36 | AA186: 879 | AB186: 177 | AC186: 199.6998828 | AD186: 4229788.813
A187: 00360998 | B187: 0036 | C187: 0998 | D187: 178 | E187: 36 | G187: 998 | I187: 0 | J187: 0 | K187: 0 | L187: =IF(K189>0, K187/K189, 0) -> 0 | N187: =ROUND(M189*L187,0) -> 0 | O187: 0 | P187: =N187-O187 -> 0 | Q187: 0 | R187: 0 | S187: 0 | T187: 36 | U187: 998 | V187: 178 | W187: 0 | X187: 0 | Y187: 178 | Z187: 36 | AA187: 998 | AB187: 178 | AC187: 0 | AD187: 0
A188: 00360998 | B188: 0036 | C188: 0998 | D188: 179 | E188: 36 | G188: 998 | I188: 0 | J188: 0 | K188: 0 | L188: =IF(K189>0, K188/K189, 0) -> 0 | N188: =ROUND(M189*L188,0) -> 0 | O188: 0 | P188: =N188-O188 -> 0 | Q188: 0 | R188: 0 | S188: 0 | T188: 36 | U188: 998 | V188: 179 | W188: 0 | X188: 0 | Y188: 179 | Z188: 36 | AA188: 998 | AB188: 179 | AC188: 0 | AD188: 0
A189: 00360999 | B189: 0036 | C189: 0999 | D189: 180 | E189: 36 | F189: Bourne | G189: 999 | H189: Total | I189: 26898266.73 | J189: 1 | K189: =SUM(K185:K188) -> 28339240.44 | L189: =SUM(L185:L188) -> 1 | M189: =VLOOKUP(E189,town351,24) -> 22709292 | N189: =SUM(N185:N188) -> 22709292 | O189: 21662971 | P189: =SUM(P185:P188) -> 1046321 | Q189: 4.829997695 | R189: 1870.973384 | S189: 1897.699883 | T189: 36 | U189: 999 | V189: 180 | W189: 1897.699883 | X189: 28339240.44 | Y189: 180 | Z189: 36 | AA189: 999 | AB189: 180 | AC189: 1897.699883 | AD189: 28339240.44
A190: 00370037 | B190: 0037 | C190: 0037 | D190: 181 | E190: 37 | F190: Boxborough | G190: 37 | H190: Boxborough | I190: 107478.8431 | J190: 0.009649043336 | K190: =X190 -> 90908.90505 | L190: =IF(K194>0, K190/K194, 0) -> 0.007769035243 | N190: =ROUND(M194*L190,0) -> 69316 | O190: 82107 | P190: =N190-O190 -> -12791 | Q190: -15.57845251 | R190: 6 | S190: 5 | T190: 37 | U190: 37 | V190: 181 | W190: 5 | X190: 90908.90505 | Y190: 181 | Z190: 37 | AA190: 37 | AB190: 181 | AC190: 5 | AD190: 90908.90505
A191: 00370600 | B191: 0037 | C191: 0600 | D191: 182 | E191: 37 | F191: Boxborough | G191: 600 | H191: Acton Boxborough | I191: 11031329.37 | J191: 0.9903509567 | K191: 11610531.78 | L191: =IF(K194>0, K191/K194, 0) -> 0.9922309648 | N191: =ROUND(M194*L191,0) -> 8852771 | O191: 8427275 | P191: =N191-O191 -> 425496 | Q191: 5.049034237 | R191: 859.8116539 | S191: 877.719715 | T191: 37 | U191: 600 | V191: 182 | W191: 877.719715 | X191: 11610531.78 | Y191: 182 | Z191: 37 | AA191: 600 | AB191: 182 | AC191: 877.719715 | AD191: 11610531.78
A192: 00370830 | B192: 0037 | C192: 0830 | D192: 183 | E192: 37 | G192: 998 | I192: 0 | J192: 0 | K192: 0 | L192: =IF(K194>0, K192/K194, 0) -> 0 | N192: =ROUND(M194*L192,0) -> 0 | O192: 0 | P192: =N192-O192 -> 0 | Q192: 0 | R192: 0 | S192: 0 | T192: 37 | U192: 998 | V192: 183 | W192: 0 | X192: 0 | Y192: 183 | Z192: 37 | AA192: 998 | AB192: 183 | AC192: 0 | AD192: 0
A193: 00370998 | B193: 0037 | C193: 0998 | D193: 184 | E193: 37 | G193: 998 | I193: 0 | J193: 0 | K193: 0 | L193: =IF(K194>0, K193/K194, 0) -> 0 | N193: =ROUND(M194*L193,0) -> 0 | O193: 0 | P193: =N193-O193 -> 0 | Q193: 0 | R193: 0 | S193: 0 | T193: 37 | U193: 998 | V193: 184 | W193: 0 | X193: 0 | Y193: 184 | Z193: 37 | AA193: 998 | AB193: 184 | AC193: 0 | AD193: 0
A194: 00370999 | B194: 0037 | C194: 0999 | D194: 185 | E194: 37 | F194: Boxborough | G194: 999 | H194: Total | I194: 11138808.21 | J194: 1 | K194: =SUM(K190:K193) -> 11701440.68 | L194: =SUM(L190:L193) -> 1 | M194: =VLOOKUP(E194,town351,24) -> 8922087 | N194: =SUM(N190:N193) -> 8922087 | O194: 8509382 | P194: =SUM(P190:P193) -> 412705 | Q194: 4.849999683 | R194: 865.8116539 | S194: 882.719715 | T194: 37 | U194: 999 | V194: 185 | W194: 882.719715 | X194: 11701440.68 | Y194: 185 | Z194: 37 | AA194: 999 | AB194: 185 | AC194: 882.719715 | AD194: 11701440.68
A195: 00380038 | B195: 0038 | C195: 0038 | D195: 186 | E195: 38 | F195: Boxford | G195: 38 | H195: Boxford | I195: 8528050.268 | J195: 0.508431322 | K195: =X195 -> 9024222.11 | L195: =IF(K199>0, K195/K199, 0) -> 0.5170025979 | N195: =ROUND(M199*L195,0) -> 7139841 | O195: 6718468 | P195: =N195-O195 -> 421373 | Q195: 6.271861383 | R195: 721 | S195: 745 | T195: 38 | U195: 38 | V195: 186 | W195: 745 | X195: 9024222.11 | Y195: 186 | Z195: 38 | AA195: 38 | AB195: 186 | AC195: 745 | AD195: 9024222.11
A196: 00380705 | B196: 0038 | C196: 0705 | D196: 187 | E196: 38 | F196: Boxford | G196: 705 | H196: Masconomet | I196: 7811373.11 | J196: 0.4657039572 | K196: 7926258.002 | L196: =IF(K199>0, K196/K199, 0) -> 0.4540996364 | N196: =ROUND(M199*L196,0) -> 6271147 | O196: 6153864 | P196: =N196-O196 -> 117283 | Q196: 1.905843223 | R196: 605.7510863 | S196: 594.1309599 | T196: 38 | U196: 705 | V196: 187 | W196: 594.1309599 | X196: 7926258.002 | Y196: 187 | Z196: 38 | AA196: 705 | AB196: 187 | AC196: 594.1309599 | AD196: 7926258.002
A197: 00380817 | B197: 0038 | C197: 0817 | D197: 188 | E197: 38 | F197: Boxford | G197: 817 | H197: Essex North Shore | I197: 433835.6629 | J197: 0.02586472086 | K197: 504407.2465 | L197: =IF(K199>0, K197/K199, 0) -> 0.02889776577 | N197: =ROUND(M199*L197,0) -> 399080 | O197: 341779 | P197: =N197-O197 -> 57301 | Q197: 16.76551222 | R197: 21.99999999 | S197: 25 | T197: 38 | U197: 817 | V197: 188 | W197: 25 | X197: 504407.2465 | Y197: 188 | Z197: 38 | AA197: 817 | AB197: 188 | AC197: 25 | AD197: 504407.2465
A198: 00380998 | B198: 0038 | C198: 0998 | D198: 189 | E198: 38 | G198: 998 | I198: 0 | J198: 0 | K198: 0 | L198: =IF(K199>0, K198/K199, 0) -> 0 | N198: =ROUND(M199*L198,0) -> 0 | O198: 0 | P198: =N198-O198 -> 0 | Q198: 0 | R198: 0 | S198: 0 | T198: 38 | U198: 998 | V198: 189 | W198: 0 | X198: 0 | Y198: 189 | Z198: 38 | AA198: 998 | AB198: 189 | AC198: 0 | AD198: 0
A199: 00380999 | B199: 0038 | C199: 0999 | D199: 190 | E199: 38 | F199: Boxford | G199: 999 | H199: Total | I199: 16773259.04 | J199: 1 | K199: =SUM(K195:K198) -> 17454887.36 | L199: =SUM(L195:L198) -> 1 | M199: =VLOOKUP(E199,town351,24) -> 13810068 | N199: =SUM(N195:N198) -> 13810068 | O199: 13214111 | P199: =SUM(P195:P198) -> 595957 | Q199: 4.510004494 | R199: 1348.751086 | S199: 1364.13096 | T199: 38 | U199: 999 | V199: 190 | W199: 1364.13096 | X199: 17454887.36 | Y199: 190 | Z199: 38 | AA199: 999 | AB199: 190 | AC199: 1364.13096 | AD199: 17454887.36
A200: 00390039 | B200: 0039 | C200: 0039 | D200: 191 | E200: 39 | F200: Boylston | G200: 39 | H200: Boylston | I200: 377077.08 | J200: 0.04705753745 | K200: =X200 -> 267378.24 | L200: =IF(K204>0, K200/K204, 0) -> 0.03175830373 | N200: =ROUND(M204*L200,0) -> 220587 | O200: 311089 | P200: =N200-O200 -> -90502 | Q200: -29.09199618 | R200: 21 | S200: 14 | T200: 39 | U200: 39 | V200: 191 | W200: 14 | X200: 267378.24 | Y200: 191 | Z200: 39 | AA200: 39 | AB200: 191 | AC200: 14 | AD200: 267378.24
... 1565 more rows

Sheet MoreAboutData
B1: =CYr&" Chapter 70 and Net School Spending Formula" -> FY25 Chapter 70 and Net School Spending Formula | C1: FY18 Chapter 70 and Net School Spending Formula Spreadsheet | D1: FY18 Chapter 70 and Net School Spending Formula Spreadsheet | E1: FY18 Chapter 70 and Net School Spending Formula Spreadsheet | F1: FY18 Chapter 70 and Net School Spending Formula Spreadsheet | G1: Return to Index
B2: More about the data
A3: TABLE OF CONTENTS
A4: Index | E4: Back to the top
A5: Select the district you're interested in from the dropdown list on this sheet.
A6: Foundation Budget | E6: Back to the top
A7: This report displays the foundation enrollment and foundation budget for a single district. A district’s foundation budget is updated each year and it is derived by multiplying the number of pupils in thirteen enrollment categories by cost rates in eleven functional areas.
A9: Key Terms
A10: Foundation Enrollment: A count of the students for whom a school district is financially responsible on October 1st of any given year. Inflation: Foundation budget rates are adjusted each year by a statutorily defined inflationary factor. It affects all districts in the same way. Wage Adjustment Factor (WAF): Gives a district credit for having higher school costs if it is located in a geographic area where average wages are higher than in other areas of the state. Calculated using the latest available average wage data supplied by the state’s Executive Office of Labor and Workforce Development (EOLWD). Low-Income Group: Determined based on the relative concentration of low-income students served in the district. Corresponds to a foundation budget rate for low-income students.
A11: Municipal Contribution | E11: Back to the top
A12: This report displays the required local contribution for a single municipality. Each municipality has a target local share of its foundation budget, based on local ability to pay. The required local contribution for each municipality is based on the previous year's required contribution, and includes some transition factors so that the shift toward the target levels occurs over a period of several years.
A14: Key Terms
A15: Equalized Valuation (EQV): Calculated by DOR every two years. Full and fair cash value of all taxable property for each municipality. Income: Derived annually by DOR from state income tax returns. Includes all forms of wage, pension, interest, business, investment, and capital gains income. Combined Effort Yield (CEY): Sum of property and income effort. Based on DESE-calculated property and income percentages, which, when applied to all municipalities in the Commonwealth, yields 59% of statewide foundation coming from local revenue. Target Local Contribution/Share: Calculated for each municipality as an equitable share of its foundation budget based on property wealth and income. Municipal Revenue Growth Factor (MRGF): Calculated each year by DOR and quantifies the most recent annual percentage change in each community's local revenues (such as the annual increase in the Proposition 2½ levy limit) that should be available for schools.
A16: Regional Allocation | E16: Back to the top
A17: This report displays the allocation of a municipality's required local contribution across the districts to which it belongs. The municipality's required contribution is allocated in direct proportion to the district's share of the municipality's foundation budget.
A18: Summary | E18: Back to the top
A19: This report displays the Chapter 70 aid calculation for a single district. The aid calculation begins with each district's prior year Chapter 70 amount. The difference between each district's foundation budget and its required contribution equals foundation aid. On the right-hand side, there is a comparison to the prior year.
A20: Key Terms
A21: Foundation Aid: The amount of aid needed by a district to reach its foundation budget, after factoring in this year's required local contribution. Foundation budget - Required Local Contribution = Foundation Aid Minimum Aid: A guaranteed per pupil aid increase over the prior year. Required Net School Spending (NSS): The sum of this year's required local contribution and Chapter 70 aid. A district must spend this amount to be in compliance.
A22: Regional District Members | E22: Back to the top
A23: This report displays relevant data for municipal members of a single regional district.
A24: Key Terms
A25: Foundation Enrollment: Foundation enrollment for the selected district, in total and by member. Required Minimum Contribution: Total required minimum contribution for the selected district, in total and by member.
A26: ="Comparison to "&PYr -> Comparison to FY24 | E26: Back to the top
A27: This report displays prior year and current year foundation enrollment, foundation budget, required local contribution and Chapter 70 aid for all operating districts.
A29: Rates | E29: Back to the top
A30: ="This sheet displays the "&CYr&" foundation budget rates." -> This sheet displays the FY25 foundation budget rates.
A31: Townwide Contributions | E31: Back to the top
A32: ="This sheet calculates the "&CYr&" required local contribution for each municipality" -> This sheet calculates the FY25 required local contribution for each municipality
A33: Aid436 | E33: Back to the top
A34: ="This sheet calculates the "&CYr&" Chapter 70 aid for each district." -> This sheet calculates the FY25 Chapter 70 aid for each district.

Sheet Foundation Budget
A1: Return to Index | U1: More about the data
A2: Massachusetts Department of Elementary and Secondary Education
A3: Office of School Finance
A4: =parameters!B1&" Chapter 70 Foundation Budget" -> FY25 Chapter 70 Foundation Budget
A5: =lea -> 999 | B5: =IF(lea=999,"State total cannot be computed on this page; Please enter an lea code on the index sheet",VLOOKUP(A5,dist915,2)) -> State total cannot be computed on this page; Please enter an lea code on the index sheet | H5: 6 | I5: 8 | K5: 9 | L5: 10 | M5: 11 | N5: 12 | O5: 13 | P5: 14
C6: Base Foundation Components | K6: Incremental Costs Above the Base
C7: 1 | D7: 2 | E7: 3 | F7: 4 | G7: 5 | H7: 6 | I7: 7 | K7: 8 | L7: 9 | M7: 10 | N7: 11 | O7: 12 | P7: 13 | Q7: 14
D8: ------ Kindergarten ------ | G8: Junior/ | H8: High | K8: Special Ed | L8: Special Ed | M8: English learners | N8: English learners | O8: English learners
C9: Pre-school | D9: Half-Day | E9: Full-Day | F9: Elementary | G9: Middle | H9: School | I9: Vocational | K9: In-District | L9: Tuitioned-Out | M9: PK-5 | N9: 6-8 | O9: High School/Voc | P9: Low income | Q9: TOTAL
B10: Foundation Enrollment | C10: =IF($A$5<>999,VLOOKUP(lea,dist915,VALUE(C$7)+2),0) -> 0 | D10: 0 | E10: 0 | F10: 0 | G10: 0 | H10: 0 | I10: =IF($A$5<>999,VLOOKUP(lea,dist915,VALUE(I$7)+2),0) -> 0 | K10: =IF($A$5<>999,VLOOKUP(lea,dist915,VALUE(K$7)+2),0) -> 0 | L10: 0 | M10: 0 | N10: 0 | O10: 0 | P10: 0 | Q10: 0
A12: 1 | B12: Administration | C12: =(VLOOKUP(VALUE(C$7),newrates,$A12+2)*C$10*waf) -> 0 | D12: 0 | E12: 0 | F12: 0 | G12: 0 | H12: 0 | I12: 0 | K12: =(VLOOKUP(VALUE(K$7),newrates,$A12+2)*K$10*waf) -> 0 | L12: 0 | M12: 0 | N12: 0 | O12: 0 | P12: =IF(C29=0,0,(VLOOKUP(VALUE(P$7)+$C$29-1, newrates, $A12+2, FALSE))*P$10*waf) -> 0 | Q12: =SUM(C12:P12) -> 0
A13: 2 | B13: Instructional Leadership | C13: 0 | D13: 0 | E13: 0 | F13: 0 | G13: 0 | H13: 0 | I13: 0 | K13: 0 | L13: 0 | M13: 0 | N13: 0 | O13: 0 | P13: =IF(C29=0,0,(VLOOKUP(VALUE(P$7)+$C$29-1, newrates, $A13+2, FALSE))*P$10*waf) -> 0 | Q13: 0
A14: 3 | B14: Classroom & Specialist Teachers | C14: 0 | D14: 0 | E14: 0 | F14: 0 | G14: 0 | H14: 0 | I14: 0 | K14: 0 | L14: 0 | M14: 0 | N14: 0 | O14: 0 | P14: =IF(C29=0,0,(VLOOKUP(VALUE(P$7)+$C$29-1, newrates, $A14+2, FALSE))*P$10*waf) -> 0 | Q14: 0
A15: 4 | B15: Other Teaching Services | C15: 0 | D15: 0 | E15: 0 | F15: 0 | G15: 0 | H15: 0 | I15: 0 | K15: 0 | L15: 0 | M15: 0 | N15: 0 | O15: 0 | P15: =IF(C29=0,0,(VLOOKUP(VALUE(P$7)+$C$29-1, newrates, $A15+2, FALSE))*P$10*waf) -> 0 | Q15: 0
A16: 5 | B16: Professional Development | C16: 0 | D16: 0 | E16: 0 | F16: 0 | G16: 0 | H16: 0 | I16: 0 | K16: 0 | L16: 0 | M16: 0 | N16: 0 | O16: 0 | P16: =IF(C29=0,0,(VLOOKUP(VALUE(P$7)+$C$29-1, newrates, $A16+2, FALSE))*P$10*waf) -> 0 | Q16: 0
A17: 6 | B17: Instructional Materials, Equipment & Technology* | C17: =(VLOOKUP(VALUE(C$7),newrates,$A17+2)*C$10) -> 0 | D17: 0 | E17: 0 | F17: 0 | G17: 0 | H17: 0 | I17: 0 | K17: =(VLOOKUP(VALUE(K$7),newrates,$A17+2)*K$10) -> 0 | L17: =(VLOOKUP(VALUE(L$7),newrates,$A17+2)*L$10) -> 0 | M17: =(VLOOKUP(VALUE(M$7),newrates,$A17+2)*M$10) -> 0 | N17: =(VLOOKUP(VALUE(N$7),newrates,$A17+2)*N$10) -> 0 | O17: =(VLOOKUP(VALUE(O$7),newrates,$A17+2)*O$10) -> 0 | P17: =IF(C29=0,0,(VLOOKUP(VALUE(P$7)+$C$29-1, newrates, $A17+2, FALSE))*P$10) -> 0 | Q17: 0
A18: 7 | B18: Guidance & Psychological Services | C18: =(VLOOKUP(VALUE(C$7),newrates,$A18+2)*C$10*waf) -> 0 | D18: 0 | E18: 0 | F18: 0 | G18: 0 | H18: 0 | I18: 0 | K18: =(VLOOKUP(VALUE(K$7),newrates,$A18+2)*K$10*waf) -> 0 | L18: 0 | M18: 0 | N18: 0 | O18: 0 | P18: =IF(C29=0,0,(VLOOKUP(VALUE(P$7)+$C$29-1, newrates, $A18+2, FALSE))*P$10*waf) -> 0 | Q18: 0
A19: 8 | B19: Pupil Services | C19: 0 | D19: 0 | E19: 0 | F19: 0 | G19: 0 | H19: 0 | I19: 0 | K19: 0 | L19: 0 | M19: 0 | N19: 0 | O19: 0 | P19: =IF(C29=0,0,(VLOOKUP(VALUE(P$7)+$C$29-1, newrates, $A19+2, FALSE))*P$10*waf) -> 0 | Q19: 0
A20: 9 | B20: Operations & Maintenance | C20: 0 | D20: 0 | E20: 0 | F20: 0 | G20: 0 | H20: 0 | I20: 0 | K20: 0 | L20: 0 | M20: 0 | N20: 0 | O20: 0 | P20: =IF(C29=0,0,(VLOOKUP(VALUE(P$7)+$C$29-1, newrates, $A20+2, FALSE))*P$10*waf) -> 0 | Q20: 0
A21: 10 | B21: Employee Benefits/Fixed Charges* | C21: =(VLOOKUP(VALUE(C$7),newrates,$A21+2)*C$10) -> 0 | D21: 0 | E21: 0 | F21: 0 | G21: 0 | H21: 0 | I21: 0 | K21: =(VLOOKUP(VALUE(K$7),newrates,$A21+2)*K$10) -> 0 | L21: =(VLOOKUP(VALUE(L$7),newrates,$A21+2)*L$10) -> 0 | M21: =(VLOOKUP(VALUE(M$7),newrates,$A21+2)*M$10) -> 0 | N21: =(VLOOKUP(VALUE(N$7),newrates,$A21+2)*N$10) -> 0 | O21: =(VLOOKUP(VALUE(O$7),newrates,$A21+2)*O$10) -> 0 | P21: =IF(C29=0,0,(VLOOKUP(VALUE(P$7)+$C$29-1, newrates, $A21+2, FALSE))*P$10) -> 0 | Q21: 0
A22: 11 | B22: Special Education Tuition* | C22: 0 | D22: 0 | E22: 0 | F22: 0 | G22: 0 | H22: 0 | I22: 0 | K22: =(VLOOKUP(VALUE(K$7)-2,newrates,$A22+2)*K$10) -> 0 | L22: =(VLOOKUP(VALUE(L$7),newrates,$A22+2)*L$10) -> 0 | M22: =(VLOOKUP(VALUE(M$7),newrates,$A22+2)*M$10) -> 0 | N22: =(VLOOKUP(VALUE(N$7),newrates,$A22+2)*N$10) -> 0 | O22: =(VLOOKUP(VALUE(O$7)-2,newrates,$A22+2)*O$10) -> 0 | P22: =IF(C29=0,0,(VLOOKUP(VALUE(P$7)+$C$29-1, newrates, $A22+2, FALSE))*P$10) -> 0 | Q22: 0
A24: 12 | B24: Total | C24: =SUM(C12:C22) -> 0 | D24: =SUM(D12:D22) -> 0 | E24: =SUM(E12:E22) -> 0 | F24: 0 | G24: 0 | H24: 0 | I24: =SUM(I12:I22) -> 0 | K24: 0 | L24: 0 | M24: 0 | N24: 0 | O24: 0 | P24: 0 | Q24: =SUM(Q12:Q23) -> 0
A26: 13 | B26: Wage Adjustment Factor | C26: =VLOOKUP(lea,dist915,17) -> 1 | N26: Foundation Budget per Pupil | Q26: =IFERROR(IF(A5<>999,Q24/Q10," "),"") -> 
B27: *The wage adjustment factor is applied to underlying rates in all functions except instructional equipment, benefits and special education tuition.
A28: 14 | B28: Low-income percentage | C28: =VLOOKUP(lea,dist915,19) -> 0 | L28: English learner foundation budget as % total foundation budget | Q28: =IFERROR(IF(A5=999,"",SUM(M24:O24)/Q24),"") -> 
A29: 15 | B29: Low-income group | C29: =VLOOKUP(lea,dist915,18) -> 0 | L29: Low-income foundation budget as % total foundation budget | Q29: =IFERROR(IF(A5=999,"",P24/Q24),"") -> 
B32: Total foundation enrollment (column 14) does not include incremental costs above the base. The pupils are already counted in columns 1 to 7. | K32: Low-income group | L32: Low-income %
B33: Total foundation enrollment assigns pupils in pre-kindergarten and half-time kindergarten an enrollment count of .5. | K33: Group 1 | L33: 0-5.99%
B34: Special education in-district enrollment is an assumed percentage, representing 3.93 percent of K-12 non-vocational enrollment and | K34: Group 2 | L34: 6-11.99%
B35: 4.93 percent of vocational enrollment. | K35: Group 3 | L35: 12-17.99%
B36: Special education tuitioned-out enrollment is also an assumed percentage, representing 1 percent of non-vocational K-12 enrollment. | K36: Group 4 | L36: 18-23.99%
B37: Low-income enrollment is based on: (1) participation in Supplemental Nutrition Assistance Program (SNAP), | K37: Group 5 | L37: 24-29.99%
B38: the Transitional Assistance for Families with Dependent Children (TAFDC), MassHealth (Medicaid), or foster care; | K38: Group 6 | L38: 30-35.99%
B39: (2) homeless designation through the McKinney-Vento Homeless Education Assistance program; | K39: Group 7 | L39: 36-41.99%
B40: or (3) verification as low income through a supplemental data collection process. | K40: Group 8 | L40: 42-47.99%
B41: Low-income and English learner foundation budget increments are based on the number of students attending school in the district | K41: Group 9 | L41: 48-53.99%
B42: or district residents who attend charter schools. | K42: Group 10 | L42: 54-69.99%
B43: The low-income percentage is the ratio of the low-income enrollment to: | K43: Group 11 | L43: 70-79.99%
B44: the total students attending school in the district and the total resident students attending charter schools. | K44: Group 12 | L44: 80%+
B46: Each component of the foundation budget represents the enrollment in row 10 multiplied by the appropriate statewide foundation allotment.
B47: The foundation budget shown on this page may differ from the final number used in the formula, due to rounding error.
B50: Return to Index

Sheet Municipal Contribution
M1: =IF(VLOOKUP(A6,town351,18)>0,"lo","hi") -> hi
A2: Return to Index | G2: More about the data
A3: Massachusetts Department of Elementary and Secondary Education
A4: Office of School Finance
A5: =parameters!B1&" Chapter 70 Determination of City and Town Total Required Contribution" -> FY25 Chapter 70 Determination of City and Town Total Required Contribution
A6: =lea -> 999 | B6: =IF(lea>351, "This lea code does not refer to a city or a town - this table shows municipal data only",VLOOKUP(A6,aidcalc,2)) -> This lea code does not refer to a city or a town - this table shows municipal data only
A8: Effort Goal | E8: =parameters!B1&" Increments Toward Goal" -> FY25 Increments Toward Goal
A10: 1) | B10: 2022 equalized valuation | C10: =IF(A6<352,VLOOKUP($A$6,town351,3)," ") ->  | E10: 13) | F10: =PYr&" required local contribution" -> FY24 required local contribution | G10: =IF(A6<352,VLOOKUP($A$6,town351,14)," ") -> 
A11: 2) | B11: Uniform property percentage | C11: =IF(A6<352,'Townwide Contributions'!D5," ") ->  | E11: 14) | F11: Municipal revenue growth factor (DOR) | G11: =IF(A$6<352,VLOOKUP($A$6,town351,15)," ") -> 
A12: 3) | B12: Local effort from property wealth | C12: =IF(A6<352,VLOOKUP($A$6,town351,4)," ") ->  | E12: 15) | F12: =parameters!B1&" preliminary contribution (13 raised by 14)" -> FY25 preliminary contribution (13 raised by 14) | G12: =IF(A$6<352,VLOOKUP($A$6,town351,16)," ") -> 
E13: 16) | F13: Preliminary contribution pct of foundation (15 / 8) | G13: =IF(A$6<352,VLOOKUP($A$6,town351,17)/100," ") -> 
A14: 4) | B14: 2021 income | C14: =IF(A6<352,VLOOKUP($A$6,town351,5)," ") -> 
A15: 5) | B15: Uniform income percentage | C15: =IF(A6<352,'Townwide Contributions'!F5," ") ->  | E15: If preliminary contribution is above the target share:
A16: 6) | B16: Local effort from income | C16: =IF(A6<352,VLOOKUP($A$6,town351,6)," ") ->  | E16: 17) | F16: Excess local effort (15 - 10) | G16: =IF(AND(A$6<352,M$1="hi"),VLOOKUP($A$6,town351,21)," ") -> 
E17: 18) | F17: =parameters!$C$50&" reduction toward target (17 x "&parameters!$C$50&")" -> 100% reduction toward target (17 x 100%) | G17: =IF(AND(A$6<352,M$1="hi"),VLOOKUP($A$6,town351,22)," ") -> 
A18: 7) | B18: Combined effort yield (3 + 6) | C18: =IF(A6<352,VLOOKUP($A$6,town351,7)," ") ->  | E18: 19) | F18: =parameters!B1&" required local contribution (15 - 18), capped at 90% of foundation" -> FY25 required local contribution (15 - 18), capped at 90% of foundation | G18: =IF(AND(A$6<352,M$1="hi"),VLOOKUP($A$6,town351,24)," ") -> 
E19: 20) | F19: Contribution as percentage of foundation (19 / 8) | G19: =IF(AND(A$6<352,M$1="hi"),VLOOKUP($A$6,town351,25)/100," ") -> 
A20: 8) | B20: =parameters!B1&" Foundation budget" -> FY25 Foundation budget | C20: =IF(A6<352,VLOOKUP($A$6,town351,8)," ") -> 
A21: 9) | B21: Maximum local contribution (82.5% * 8) | C21: =IF(A6<352,VLOOKUP($A$6,town351,10)," ") ->  | E21: If preliminary contribution is below the target share:
E22: 21) | F22: Shortfall from target local share (10 - 15) | G22: =IF(AND(A$6<352,M1="lo"),-1*VLOOKUP($A$6,town351,27)," ") -> 
A23: 10) | B23: Target local contribution (lesser of 7 or 9) | C23: =IF(A6<352,VLOOKUP($A$6,town351,11)," ") ->  | E23: 22) | F23: Shortfall percentage (11 - 16) | G23: =IF(AND(A$6<352,M1="lo"),VLOOKUP($A$6,town351,18)/100," ") -> 
E24: 23) | F24: Added increment toward target (13 x 1% or 2%)* | G24: =IF(AND(A$6<352,M1="lo"),VLOOKUP($A$6,town351,20)," ") -> 
A25: 11) | B25: Target local share (10 as % of 8) | C25: =IF(A6<352,VLOOKUP(lea,town351,12)/100," ") ->  | F25: *1% if shortfall is between 2.5% and 7.5%; 2% if shortfall > 7.5%
A26: 12) | B26: Target aid share (100% minus 11) | C26: =IF(A6<352,VLOOKUP(lea,aidcalc,13)/100," ") ->  | E26: 24) | F26: Special increment toward 82.5% target** | G26: =IF(AND(A$6<352,M1="lo"),VLOOKUP($A$6,town351,23)," ") -> 
F27: **if combined effort yield > 175% foundation
F28: Combined effort yield as % of foundation | G28: =IF(AND(A$6<352,M1="lo"),IF(VLOOKUP($A$6,town351,9)>175%,VLOOKUP($A$6,town351,9)," "),"") -> 
B29: See a listing of all 351 communities | E29: 25) | F29: Shortfall from target after adding increments (10 - 15 - 23 - 24) | G29: =IF(AND(A$6<352,M1="lo"),-1*VLOOKUP($A$6,town351,28)," ") -> 
E30: 26) | F30: =parameters!B1&" required local contribution (15 + 23 + 24)" -> FY25 required local contribution (15 + 23 + 24) | G30: =IF(AND(A$6<352,M1="lo"),VLOOKUP($A$6,town351,24)," ") -> 
E31: 27) | F31: Contribution as percentage of foundation (26 / 8) | G31: =IF(AND(A$6<352,M1="lo"),VLOOKUP($A$6,town351,25)/100," ") -> 

Sheet Regional Allocation
J1: More about the data
D2: Return to Index
D3: Massachusetts Department of Elementary and Secondary Education
D4: Office of School Finance
D5: =CYr& " Chapter 70 Apportionment of Local Contribution Across School Districts" -> FY25 Chapter 70 Apportionment of Local Contribution Across School Districts
E7: 4 | F7: 4 | G7: 3 | H7: 2 | I7: 1
A9: 5 | D9: =lea -> 999 | E9: =IF($D$9>351, "", IF(AND($D$9>0, VLOOKUP($D$9*5-E$7, order1755, $A9)<>0), VLOOKUP($D$9*5-E$7, order1755, $A9), "")) ->  | F9: =IF(OR($D$9="", $D$9>351), "", IF(AND($D$9>0, VLOOKUP($D$9*5-F$7, order1755, $A9)<>0), VLOOKUP($D$9*5-F$7, order1755, $A9), "")) ->  | G9: =IF(OR($D$9="", $D$9>351), "", IF(AND($D$9>0, VLOOKUP($D$9*5-G$7, order1755, $A9)<>0), VLOOKUP($D$9*5-G$7, order1755, $A9), "")) ->  | H9: =IF(OR($D$9="", $D$9>351), "", IF(AND($D$9>0, VLOOKUP($D$9*5-H$7, order1755, $A9)<>0), VLOOKUP($D$9*5-H$7, order1755, $A9), "")) ->  | I9: =IF(OR($D$9="", $D$9>351), "", IF(AND($D$9>0, VLOOKUP($D$9*5-I$7, order1755, $A9)<>0), VLOOKUP($D$9*5-I$7, order1755, $A9), "")) ->  | J9: Combined Total for All Districts
A10: 6
E11: Prior Year Data (for comparison purposes)
A13: 15 | D13: 1 | E13: =parameters!B2&" foundation enrollment" -> FY24 foundation enrollment | F13: =IF(OR($D$9="", $D$9>351), "", IF(AND($D$9>0, VLOOKUP($D$9*5-F$7, order1755, $A13)<>0), VLOOKUP($D$9*5-F$7, order1755, $A13), "")) ->  | J13: =IF(OR($D$9="", $D$9>351), "", VLOOKUP($D$9*5, order1755, $A13)) -> 
A14: 6 | D14: 2 | E14: =parameters!B2&" foundation budget" -> FY24 foundation budget | J14: =IF(OR($D$9="", $D$9>351), "", VLOOKUP($D$9*5, order1755, $A14)) -> 
A15: 7 | D15: 3 | E15: ="Each district's share of municipality's combined "& parameters!B2&" foundation" -> Each district's share of municipality's combined FY24 foundation | J15: =IF(OR($D$9="", $D$9>351), "", VLOOKUP($D$9*5, order1755, $A15)) -> 
A16: 12 | D16: 4 | E16: =parameters!B2&" required contribution" -> FY24 required contribution | J16: =IF(OR($D$9="", $D$9>351), "", VLOOKUP($D$9*5, order1755, $A16)) -> 
E17: =parameters!B1& " apportionment of contribution among community's districts" -> FY25 apportionment of contribution among community's districts
D18: 5 | E18: =parameters!B1&" total unapportioned required contribution ('municipal contribution' tab row 19 or 25)" -> FY25 total unapportioned required contribution ('municipal contribution' tab row 19 or 25) | J18: =IF(OR($D$9="", $D$9>351), "", VLOOKUP($D$9,town351,24)) -> 
A19: 20 | D19: 6 | E19: =parameters!B1&" foundation enrollment" -> FY25 foundation enrollment | F19: =IF(OR($D$9="", $D$9>351), "", IF(AND($D$9>0, VLOOKUP($D$9*5-F$7, order1755, $A19)<>0), VLOOKUP($D$9*5-F$7, order1755, $A19), "")) ->  | J19: =IF(OR($D$9="", $D$9>351), "", VLOOKUP($D$9*5, order1755, $A19)) -> 
A20: 8 | D20: 7 | E20: =parameters!B1&" foundation budget" -> FY25 foundation budget | J20: =IF(OR($D$9="", $D$9>351), "", VLOOKUP($D$9*5, order1755, $A20)) -> 
A21: 9 | D21: 8 | E21: ="Each district's share of municipality's total "& parameters!B1&" foundation " -> Each district's share of municipality's total FY25 foundation | J21: =IF(OR($D$9="", $D$9>351), "", VLOOKUP($D$9*5, order1755, $A21)) -> 
A22: 11 | D22: 9 | E22: =parameters!B1&" Required Contribution" -> FY25 Required Contribution | J22: =VLOOKUP($D$9*5, order1755, $A22) -> 7972055321
A24: 13 | D24: 10 | E24: ="Change "&parameters!B1&" to "&parameters!B2& " (9 - 4)" -> Change FY25 to FY24 (9 - 4) | F24: =IF(OR($D$9="", $D$9>351), "", IF(AND($D$9>0, VLOOKUP($D$9*5-F$7, order1755, $A24)<>0), VLOOKUP($D$9*5-F$7, order1755, $A24), "")) ->  | G24: =IF(OR($D$9="", $D$9>351), "", IF(AND($D$9>0, VLOOKUP($D$9*5-G$7, order1755, $A24)<>0), VLOOKUP($D$9*5-G$7, order1755, $A24), "")) ->  | H24: =IF(OR($D$9="", $D$9>351), "", IF(AND($D$9>0, VLOOKUP($D$9*5-H$7, order1755, $A24)<>0), VLOOKUP($D$9*5-H$7, order1755, $A24), "")) ->  | I24: =IF(OR($D$9="", $D$9>351), "", IF(AND($D$9>0, VLOOKUP($D$9*5-I$7, order1755, $A24)<>0), VLOOKUP($D$9*5-I$7, order1755, $A24), "")) ->  | J24: =IF(OR($D$9="", $D$9>351), "", VLOOKUP($D$9*5, order1755, $A24)) -> 
E26: The combined totals on lines 5 and 9 may differ due to rounding.

Sheet Summary
B1: Return to Index | K1: More about the data
B3: Massachusetts Department of Elementary and Secondary Education
B4: =parameters!B1&" Chapter 70 Summary" -> FY25 Chapter 70 Summary
B6: =lea -> 999 | C6: =PROPER(VLOOKUP(B6,dist915,2)) -> State Total
B8: ="Aid Calculation "&CYr -> Aid Calculation FY25 | F8: ="Comparison to "&PYr -> Comparison to FY24
G10: =PYr -> FY24 | H10: =CYr -> FY25 | I10: Change | J10: Pct Chg | V10: FY06 | W10: FY07 | X10: FY08 | Y10: FY09 | Z10: FY10 | AA10: FY11 | AB10: FY12 | AC10: FY13 | AD10: FY14 | AE10: FY15 | AF10: FY16 | AG10: FY17 | AH10: FY18 | AI10: FY19 | AJ10: FY20 | AK10: FY21 | AL10: FY22 | AM10: FY23 | AN10: FY24 | AO10: FY25
B11: Prior Year Aid | F11: Enrollment | G11: =VLOOKUP(B6,aidcalc,14) -> 905106 | H11: =VLOOKUP(B6,aidcalc,15) -> 905572 | I11: =H11-G11 -> 466.0000001 | J11: =IF(G11>0, I11/G11, 0) -> 0.0005148568236 | U11: Required District Contribution | V11: =VLOOKUP($B$6,disthist,5) -> 4743946672 | W11: =VLOOKUP($B$6,disthist,8) -> 4876428772 | X11: =VLOOKUP($B$6,disthist,11) -> 4997705374 | Y11: =VLOOKUP($B$6,disthist,14) -> 5110365426 | Z11: =VLOOKUP($B$6,disthist,18) -> 5250106061 | AA11: =VLOOKUP($B$6,disthist,22) -> 5302200670 | AB11: =VLOOKUP($B$6,disthist,27) -> 5413602268 | AC11: =VLOOKUP($B$6,disthist,30) -> 5582113529 | AD11: =VLOOKUP($B$6,disthist, 33) -> 5748475145 | AE11: =VLOOKUP($B$6,disthist, 36) -> 5817618237 | AF11: =VLOOKUP($B$6,disthist, 39) -> 5943909029 | AG11: =VLOOKUP($B$6,disthist, 42) -> 5926185567 | AH11: =VLOOKUP($B$6,disthist, 45) -> 6046916786 | AI11: =VLOOKUP($B$6,disthist, 48) -> 6246842886 | AJ11: =VLOOKUP($B$6,disthist, 51) -> 6513607368 | AK11: =VLOOKUP($B$6,disthist, 54) -> 6705321561 | AL11: =VLOOKUP($B$6,disthist, 57) -> 6827673657 | AM11: =VLOOKUP($B$6,disthist, 60) -> 7166744291 | AN11: =VLOOKUP($B$6,disthist, 63) -> 7566302116 | AO11: =VLOOKUP($B$6,aidcalc,10 ) -> 7972055321
B12: 1 | C12: ="Chapter 70 "&PYr -> Chapter 70 FY24 | D12: =VLOOKUP(B6,aidcalc,6) -> 6592314528 | F12: Foundation budget | G12: =VLOOKUP(B6,disthist,62) -> 1.396338987e+10 | H12: =VLOOKUP(B6,aidcalc,9) -> 1.45351034e+10 | I12: =H12-G12 -> 571713527.4 | J12: =IF(G12>0, I12/G12, 0) -> 0.04094374881 | U12: C70 Aid | V12: =VLOOKUP($B$6,disthist,6) -> 3288603062 | W12: =VLOOKUP($B$6,disthist,9) -> 3505192039 | X12: =VLOOKUP($B$6,disthist,12) -> 3725343327 | Y12: =VLOOKUP($B$6,disthist,15)+VLOOKUP($B$6,disthist,16) -> 3948496062 | Z12: =VLOOKUP($B$6,disthist,19)+VLOOKUP($B$6,disthist,20) -> 4043156700 | AA12: =VLOOKUP($B$6,disthist,23)+VLOOKUP($B$6,disthist,24)+VLOOKUP($B$6,disthist,25) -> 4072032853 | AB12: =VLOOKUP($B$6,disthist,28) -> 3990504093 | AC12: =VLOOKUP($B$6,disthist,31) -> 4173223954 | AD12: =VLOOKUP($B$6,disthist,34) -> 4300854366 | AE12: =VLOOKUP($B$6,disthist,37) -> 4400335962 | AF12: =VLOOKUP($B$6,disthist,40) -> 4511521974 | AG12: =VLOOKUP($B$6,disthist,43) -> 4627705061 | AH12: =VLOOKUP($B$6,disthist,46) -> 4745645156 | AI12: =VLOOKUP($B$6,disthist,49) -> 4906614766 | AJ12: =VLOOKUP($B$6,disthist,52) -> 5175694094 | AK12: =VLOOKUP($B$6,disthist,55) -> 5283343073 | AL12: =VLOOKUP($B$6,disthist,58) -> 5502959667 | AM12: =VLOOKUP($B$6,disthist,61) -> 5997901329 | AN12: =VLOOKUP($B$6,disthist,64) -> 6592314528 | AO12: =VLOOKUP($B$6,aidcalc,25) -> 6901610127
F13: Required district contribution | G13: =VLOOKUP(B6,disthist,63) -> 7566302116 | H13: =VLOOKUP($B$6, aidcalc, 10) -> 7972055321 | I13: =H13-G13 -> 405753205 | J13: =IF(G13>0, I13/G13, 0) -> 0.05362635522 | U13: Foundation Budget | V13: =VLOOKUP($B$6,disthist,4) -> 7551933454 | W13: =VLOOKUP($B$6,disthist,7) -> 8014672861 | X13: =VLOOKUP($B$6,disthist,10) -> 8406096436 | Y13: =VLOOKUP($B$6,disthist,13) -> 8811314229 | Z13: =VLOOKUP($B$6,disthist,17) -> 9088557473 | AA13: =VLOOKUP($B$6,disthist,21) -> 8921047970 | AB13: =VLOOKUP($B$6,disthist,26) -> 9119340580 | AC13: =VLOOKUP($B$6,disthist,29) -> 9467117141 | AD13: =VLOOKUP($B$6,disthist, 32) -> 9711217585 | AE13: =VLOOKUP($B$6,disthist, 35) -> 9866011313 | AF13: =VLOOKUP($B$6,disthist, 38) -> 1.009017727e+10 | AG13: =VLOOKUP($B$6,disthist, 41) -> 1.012823838e+10 | AH13: =VLOOKUP($B$6,disthist, 44) -> 1.037917384e+10 | AI13: =VLOOKUP($B$6,disthist, 47) -> 1.077758855e+10 | AJ13: =VLOOKUP($B$6,disthist, 50) -> 1.135904851e+10 | AK13: =VLOOKUP($B$6,disthist, 53) -> 1.16265311e+10 | AL13: =VLOOKUP($B$6,disthist, 56) -> 1.192622579e+10 | AM13: =VLOOKUP($B$6,disthist, 59) -> 1.289033588e+10 | AN13: =VLOOKUP($B$6,disthist, 62) -> 1.396338987e+10 | AO13: =VLOOKUP($B$6,aidcalc,9 ) -> 1.45351034e+10
B14: Foundation Aid | F14: Chapter 70 aid | G14: =IF(B6=999,VLOOKUP(B6,disthist,64,0)+308558,VLOOKUP(B6,disthist,64,0)) -> 6592623086 | H14: =IF(B6=999,VLOOKUP($B$6,aidcalc,25,0)+308558,VLOOKUP($B$6,aidcalc,25,0)) -> 6901918685 | I14: =H14-G14 -> 309295599.7 | J14: =IF(G14>0, I14/G14, 0) -> 0.04691540767
B15: 2 | C15: ="Foundation budget "&CYr -> Foundation budget FY25 | D15: =VLOOKUP($B$6, aidcalc, 9) -> 1.45351034e+10 | F15: Required net school spending (NSS) | G15: =G13+G14 -> 1.41589252e+10 | H15: =H13+H14 -> 1.487397401e+10 | I15: =H15-G15 -> 715048804.7 | J15: =IF(G15>0, I15/G15, 0) -> 0.05050163021
B16: 3 | C16: ="Required district contribution "& CYr -> Required district contribution FY25 | D16: =VLOOKUP($B$6, aidcalc, 10) -> 7972055321
B17: 4 | C17: Foundation aid (2 -3) | D17: =VLOOKUP($B$6, aidcalc, 11) -> 6563048071 | F17: Target aid share | G17: =VLOOKUP(B$6,disthist,3)/100 -> 0.41 | H17: =VLOOKUP(B6,aidcalc,13)/100 -> 0.41
B18: 5 | C18: ="Increase over " & PYr&" (4 - 1)" -> Increase over FY24 (4 - 1) | D18: =VLOOKUP($B$6, aidcalc, 12) -> 258239391 | F18: C70 % of foundation | G18: =IF(G12>0,G14/G12,IF(G14>0,1,0)) -> 0.4721362897 | H18: =IF(H12>0,H14/H12,IF(H14>0,1,0)) -> 0.4748448288
B20: Minimum Aid | F20: Required NSS % of foundation | G20: =IF(G12>0,G15/G12,IF(G15>0,1,0)) -> 1.014003428 | H20: =IF(H12>0,H15/H12,IF(H15>0,1,0)) -> 1.023313945
B21: 6 | C21: Minimum $104 per pupil increase | D21: =IF(B6=999,"",VLOOKUP($B$6,aidcalc,17,0)) -> 
B22: 7 | C22: Minimum aid amount
C23: (if line 6 - line 5 > 0, then line 6 - line 5, otherwise 0) | D23: =VLOOKUP($B$6, aidcalc, 18,0) -> 50672684
B25: Subtotal
B26: 8 | C26: Sum of 1,5,7 | D26: =D12+D18+D23 -> 6901226603
B28: Minimum Aid Adjustment
B29: 9 | C29: Minimum aid adjustment | D29: =IF(B6=999,"",VLOOKUP($B$6, aidcalc, 20)) -> 
B30: 10 | C30: Aid adjustment increment
C31: (if line 9 - line 8 > 0, then line 9 - line 8, otherwise 0) | D31: =VLOOKUP($B$6, aidcalc, 21, FALSE) -> 0
B33: Non-Operating District Reduction to Foundation
B34: 11 | C34: Reduction to foundation | D34: =VLOOKUP($B$6, aidcalc, 23) -> 340396.34
B36: Hold Harmless Aid
B37: 12 | C37: Hold harmless aid | D37: =VLOOKUP($B$6, aidcalc, 24) -> 723921
B39: =CYr&" Chapter 70 Aid" -> FY25 Chapter 70 Aid
B40: 13 | C40: Sum of 1,5,7,10, 12 minus 11 | D40: =VLOOKUP($B$6, aidcalc, 25) -> 6901610127
C41: =IF(B6=999,"with Devens aid","") -> with Devens aid | D41: =IF(B6=999,D40+308558,"") -> 6901918685
B43: Note on Minimum Aid Adjustment on lines 9 and 10:
B44: The minimum aid adjustment is the sum of (a) the greater of foundation aid or base aid determined based on the FY21 base and incremental rates, inflated to FY25, and (b) foundation enrollment multiplied by $104. The aid adjustment increment (line 10) is the line 9 amount less the line 8 amount if the difference is positive. Otherwise, the increment is zero.

Sheet parameters
A1: Cyr | B1: FY25 | C1: 25
A2: Pyr | B2: FY24 | C2: 24
A3: As of | B3: 2023-12-14
A5: Parameters | D5: Base | K5: Analysis of Aggregate Wealth Model Implementation
B6: Which version of foundation budget? | C6: 1 | D6: 1 | G6: FY24 C70 including Devens | H6: 6592623086
B7: Effort reduction | C7: 1 | D7: 0 | K7: Progress Towards Target Local Share
B8: Pct downpayment on target aid share | C8: 0 | D8: 0 | G8: FY25 foundation aid increase | H8: ='Aid436'!L448 -> 258239391
D9: 0 | L9: FY07 | M9: FY08 | N9: FY09 | O9: FY10 | P9: FY11 | Q9: FY12 | R9: FY13 | S9: FY14 | T9: FY15 | U9: FY16 | V9: FY17 | W9: FY18 | X9: FY19 | Y9: FY20 | Z9: FY21 | AA9: FY22 | AB9: FY23 | AC9: =CYr -> FY25
G10: Minimum per pupil aid increase | H10: ='Aid436'!R448 -> 50672684 | K10: excess effort before effort reduction | L10: 621.084157 | M10: 494.058912 | N10: 372.382091 | O10: 228.110232 | P10: 366 | Q10: 293.3 | R10: 229.8 | S10: 234.5 | T10: 307.903014 | U10: 235.358789 | V10: 299.86437 | W10: 151.670894 | X10: 68.664221 | Y10: 21.435137 | Z10: 104.649236 | AA10: 93.814687 | AB10: 3.87058 | AC10: ='Townwide Contributions'!V361/1000000 -> 35.208638
G11: Min aid adjustment increase | H11: ='Aid436'!U448 -> 0 | K11: effort reduction | L11: 124.2168314 | M11: 123.514728 | N11: 122.88609 | O11: 34.216535 | P11: 109.8 | Q11: 58.7 | R11: 34.5 | S11: 35.2 | T11: 153.951507 | U11: 117.6793945 | V11: 254.8847145 | W11: 128.9202599 | X11: 68.664221 | Y11: 21.435137 | Z11: 104.649236 | AA11: 93.814687 | AB11: 3.87058 | AC11: ='Townwide Contributions'!V361/1000000 -> 35.208638
G12: Non-op reduction | H12: ='Aid436'!W448 -> 340396.34 | K12: net excess after effort reduction | L12: 496.8673256 | M12: 370.544184 | N12: 249.496001 | O12: 193.893697 | P12: 256.2 | Q12: =Q10-Q11 -> 234.6 | R12: =R10-R11 -> 195.3 | S12: 199.3 | T12: 152.0806983 | U12: 117.4829132 | V12: 44.97879348 | W12: 22.74921402 | X12: 0 | Y12: 0 | Z12: 0 | AA12: 0 | AB12: 0 | AC12: ='Townwide Contributions'!AC361/1000000 -> 0
G13: FY24 Chapter 70 | H13: ='Aid436'!Y448 -> 6901610127 | K13: shortfall below target before increment | L13: -321.452322 | M13: -352.174875 | N13: -359.193563 | O13: -427.2 | P13: -228 | Q13: -211 | R13: -200 | S13: -180.2 | T13: -162.972215 | U13: -132.627218 | V13: -96.928091 | W13: -103.17317 | X13: -117.254713 | Y13: -207.485209 | Z13: -163.71 | AA13: -228.999327 | AB13: -494.818496 | AC13: ='Townwide Contributions'!AA361/1000000 -> -662.497802
B14: Per pupil guaranteed increase | C14: 30 | D14: 0 | G14: Devens | H14: =308558 -> 308558 | K14: additional increments toward target | L14: 0 | M14: -19.739149 | N14: -21.387588 | O14: -121.2 | P14: -10.6 | Q14: -10 | R14: -4.2 | S14: -3.9 | T14: -7.563093 | U14: -5.848739 | V14: -2.474215 | W14: -3.628178 | X14: -5.320349 | Y14: -19.253945 | Z14: -9.378217 | AA14: -20.199768 | AB14: -56.264627 | AC14: =('Townwide Contributions'!T361/1000000*-1)+('Townwide Contributions'!W361/1000000*-1) -> -58.842122
B15: Which version of mrgf? | C15: 1 | D15: 1 | K15: net shortfall below target after increment | L15: -321.452322 | M15: -332.435726 | N15: -337.805975 | O15: -306 | P15: -217.4 | Q15: -200.9 | R15: -195.7 | S15: -176.3 | T15: -155.409122 | U15: -126.778479 | V15: -94.453876 | W15: -99.544992 | X15: -111.934364 | Y15: -188.231264 | Z15: -154.331783 | AA15: -208.799559 | AB15: -438.553869 | AC15: ='Townwide Contributions'!AB361/1000000 -> -603.65568
B16: Below effort threshold 1 | C16: 2.5 | D16: 2.5 | G16: Change in C70 Appropriation | H16: =H13+H14-H6 -> 309295599.7 | K16: n of municipalities with effort too high | L16: 232 | M16: 218 | N16: 214 | O16: 193 | P16: 282 | Q16: 257 | R16: 249 | S16: 255 | T16: 279 | U16: 278 | V16: 303 | W16: 291 | X16: 0 | Y16: 0 | Z16: 0 | AA16: 0 | AB16: 0 | AC16: ='Townwide Contributions'!AC364 -> 0
B17: Below effort threshold 2 | C17: 7.5 | D17: 7.5 | G17: Percent Change | H17: =H16/H6 -> 0.04691540767
B18: Below effort contribution increment, 5-10% under | C18: 0.01 | D18: 0.01
B19: Below effort contribution increment, >10% under | C19: 0.02 | D19: 0.02 | G19: N of Foundation Aid Districts | H19: ='Aid436'!P448 -> 120
B20: Maximum local contribution pct of foundation | C20: 0.825 | D20: 0.825 | G20: N of Operating Districts with an Aid Increase | H20: ='Comparison to FY24'!N332 -> 319
B21: Statewide target for local contribution % of foundation | C21: 0.59 | D21: 0.59 | G21: Total C70 Including Devens | H21: =H13+H14 -> 6901918685
B22: Cap contributions at fixed percentage of foundation | C22: 0.9 | D22: 0.9
D23: 0
A24: Eqv/income percentages
B26: Target effort | C26: =C21*localcont!K1765 -> 8575711006
B27: Effort based upon following percentages | C27: ='Townwide Contributions'!K361 -> 8575711006
B28: Difference from target | C28: =IF(ABS(C27-C26)<10,0,C27-C26) -> 0
B29: Percentage of EQV | C29: 0.003905608104
B30: Percentage of INCOME | C30: =C29*1/C34 -> 0.01431190052
B32: Total EQV | C32: ='Townwide Contributions'!C361 -> 1583183946900
B33: Total Income | C33: ='Townwide Contributions'!E361 -> 4.320387808e+11
B34: State Average % of EQV | C34: =C33/C32 -> 0.2728923456
A37: See Progress Towards Targets
K42: Progress Towards Target Aid Share
L44: FY07 | M44: FY08 | N44: FY09 | O44: FY10 | P44: FY11 | Q44: FY12 | R44: FY13 | S44: FY14 | T44: FY15 | U44: FY16 | V44: FY17 | W44: FY18 | X44: FY19 | Y44: FY20 | Z44: FY21 | AA44: FY22 | AB44: FY23 | AC44: =CYr -> FY25
K45: aid above target | L45: 394.9 | M45: 421 | N45: 440.4 | O45: 413.5991456 | P45: 489.2905867 | Q45: 360.5802896 | R45: 372.9139726 | S45: 385.3 | T45: 404.6539336 | U45: 419.0730779 | V45: 488.1362137 | W45: 497.4038449 | X45: 487.8069694 | Y45: 518.4487954 | Z45: 516.4943275 | AA45: 613.17696 | AB45: 712.8031016 | AC45: ='Aid436'!AE449/1000000 -> 942.2234328
K46: aid below target | L46: -176.3 | M46: -143 | N46: -105.5 | O46: -97.82363262 | P46: -75.73073977 | Q46: -110.4290612 | R46: -84.70629692 | S46: -66.9 | T46: -49.39921427 | U46: -44.48798888 | V46: -13.01302676 | W46: -7.202688836 | X46: -0.01809683687 | Y46: -0.001189981026 | Z46: -0.01283887927 | AA46: -0.001771922842 | AB46: -1.962882748e-06 | AC46: ='Aid436'!AE450/1000000 -> -1.045870017e-07
C50: =TEXT(effortred,"0%") -> 100%

Sheet Regional District Members
E2: Return to Index
F3: Select or type full regional district name below
E4: =VLOOKUP(reg_order, regdistricts, 3, FALSE) -> 829 | F4: South Middlesex | G4: =VLOOKUP(F4,leas!$E$450:$H$536,4,FALSE) -> 73
E6: Massachusetts Department of Elementary and Secondary Education
E7: Office of School Finance
E8: =CYr&" Chapter 70" -> FY25 Chapter 70
E9: Regional District Enrollment and Contributions by Member City or Town
E10: The table below presents the minimum required local contribution for each member to the selected regional district.
E11: Note: A city or town might belong to more than one regional district (e.g., a regional district and a vocational district) and therefore be required to contribute to multiple districts. See the regional allocation tab for a full list of minimum required contributions for each city or town. Foundation enrollments are presented as whole numbers. The change column reflects differences prior to rounding.
B12: =VLOOKUP(E4, leas!D6:G445, 4, FALSE) -> 0829 | D12: 2 | E12: =VLOOKUP(reg_order, regdistricts, 2, FALSE) -> 829 South Middlesex
G14: Foundation Enrollment in Regional District | J14: Required Minimum Contribution to Regional District
B16: =VLOOKUP($E$4, regcount, 2, FALSE) -> 5 | E16: LEA | F16: Member | G16: =PYr -> FY24 | H16: =CYr -> FY25 | I16: Change | J16: =PYr -> FY24 | K16: =CYr -> FY25 | L16: Change
F18: Total | G18: =SUM(G20:G67) -> 841 | H18: =SUM(H20:H67) -> 869 | I18: =SUM(I20:I67) -> 28.00000002 | J18: =SUM(J20:J67) -> 10232414 | K18: =SUM(K20:K67) -> 11298529 | L18: =SUM(L20:L62) -> 1066115
A20: =IF($C20<=$B$16,VLOOKUP(E20,leas!D6:G445,4,FALSE),"") -> 0014 | B20: =$E$4*100+C20 -> 82901 | C20: 1 | E20: =IF($C20<=$B$16, VLOOKUP($B20, regdetail, 5), " ") -> 14 | F20: =IF($C20<=$B$16, VLOOKUP($B20, regdetail, 6), " ") -> Ashland | G20: =IF($C20<=$B$16,VLOOKUP(A20&$B$12, localcont!A10:X1764, 18, FALSE), "") -> 59.21121718 | H20: =IF($C20<=$B$16,VLOOKUP(A20&$B$12, localcont!$A$10:$X$1764, 23, FALSE), "") -> 62.2147806 | I20: =IF($C20<=$B$16, H20-G20, " ") -> 3.003563422 | J20: =IF($C20<=$B$16,VLOOKUP(A20&$B$12, localcont!$A$10:$X$1764, 15, FALSE), "") -> 937491 | K20: =IF($C20<=$B$16,VLOOKUP(A20&$B$12, localcont!$A$10:$X$1764, 14, FALSE),"") -> 1036710 | L20: =IF($C20<=$B$16, K20-J20, " ") -> 99219
A21: =IF($C21<=$B$16,VLOOKUP(E21,leas!D7:G446,4,FALSE),"") -> 0100 | B21: =$E$4*100+C21 -> 82902 | C21: 2 | E21: 100 | F21: Framingham | G21: =IF($C21<=$B$16,VLOOKUP(A21&$B$12, localcont!A11:X1765, 18, FALSE), "") -> 640.2840095 | H21: =IF($C21<=$B$16,VLOOKUP(A21&$B$12, localcont!$A$10:$X$1764, 23, FALSE), "") -> 636.1963049 | I21: =IF($C21<=$B$16, H21-G21, " ") -> -4.087704692 | J21: =IF($C21<=$B$16,VLOOKUP(A21&$B$12, localcont!$A$10:$X$1764, 15, FALSE), "") -> 6822846 | K21: =IF($C21<=$B$16,VLOOKUP(A21&$B$12, localcont!$A$10:$X$1764, 14, FALSE),"") -> 7106696 | L21: =IF($C21<=$B$16, K21-J21, " ") -> 283850
A22: =IF($C22<=$B$16,VLOOKUP(E22,leas!D8:G447,4,FALSE),"") -> 0136 | B22: 82903 | C22: 3 | E22: 136 | F22: Holliston | G22: =IF($C22<=$B$16,VLOOKUP(A22&$B$12, localcont!A12:X1766, 18, FALSE), "") -> 71.25417661 | H22: =IF($C22<=$B$16,VLOOKUP(A22&$B$12, localcont!$A$10:$X$1764, 23, FALSE), "") -> 83.28752887 | I22: 12.03335226 | J22: =IF($C22<=$B$16,VLOOKUP(A22&$B$12, localcont!$A$10:$X$1764, 15, FALSE), "") -> 1186508 | K22: =IF($C22<=$B$16,VLOOKUP(A22&$B$12, localcont!$A$10:$X$1764, 14, FALSE),"") -> 1489115 | L22: 302607
A23: =IF($C23<=$B$16,VLOOKUP(E23,leas!D9:G448,4,FALSE),"") -> 0139 | B23: 82904 | C23: 4 | E23: 139 | F23: Hopkinton | G23: =IF($C23<=$B$16,VLOOKUP(A23&$B$12, localcont!A13:X1767, 18, FALSE), "") -> 24.08591886 | H23: =IF($C23<=$B$16,VLOOKUP(A23&$B$12, localcont!$A$10:$X$1764, 23, FALSE), "") -> 26.09006929 | I23: 2.00415043 | J23: =IF($C23<=$B$16,VLOOKUP(A23&$B$12, localcont!$A$10:$X$1764, 15, FALSE), "") -> 444093 | K23: =IF($C23<=$B$16,VLOOKUP(A23&$B$12, localcont!$A$10:$X$1764, 14, FALSE),"") -> 505586 | L23: 61493
A24: =IF($C24<=$B$16,VLOOKUP(E24,leas!D10:G449,4,FALSE),"") -> 0198 | B24: 82905 | C24: 5 | E24: 198 | F24: Natick | G24: =IF($C24<=$B$16,VLOOKUP(A24&$B$12, localcont!A14:X1768, 18, FALSE), "") -> 46.1646778 | H24: =IF($C24<=$B$16,VLOOKUP(A24&$B$12, localcont!$A$10:$X$1764, 23, FALSE), "") -> 61.2113164 | I24: 15.0466386 | J24: =IF($C24<=$B$16,VLOOKUP(A24&$B$12, localcont!$A$10:$X$1764, 15, FALSE), "") -> 841476 | K24: =IF($C24<=$B$16,VLOOKUP(A24&$B$12, localcont!$A$10:$X$1764, 14, FALSE),"") -> 1160422 | L24: 318946
A25: =IF($C25<=$B$16,VLOOKUP(E25,leas!D11:G450,4,FALSE),"") ->  | B25: 82906 | C25: 6 | G25: =IF($C25<=$B$16,VLOOKUP(A25&$B$12, localcont!A15:X1769, 18, FALSE), "") ->  | H25: =IF($C25<=$B$16,VLOOKUP(A25&$B$12, localcont!$A$10:$X$1764, 23, FALSE), "") ->  | J25: =IF($C25<=$B$16,VLOOKUP(A25&$B$12, localcont!$A$10:$X$1764, 15, FALSE), "") ->  | K25: =IF($C25<=$B$16,VLOOKUP(A25&$B$12, localcont!$A$10:$X$1764, 14, FALSE),"") -> 
A26: =IF($C26<=$B$16,VLOOKUP(E26,leas!D12:G451,4,FALSE),"") ->  | B26: 82907 | C26: 7 | G26: =IF($C26<=$B$16,VLOOKUP(A26&$B$12, localcont!A16:X1770, 18, FALSE), "") ->  | H26: =IF($C26<=$B$16,VLOOKUP(A26&$B$12, localcont!$A$10:$X$1764, 23, FALSE), "") ->  | J26: =IF($C26<=$B$16,VLOOKUP(A26&$B$12, localcont!$A$10:$X$1764, 15, FALSE), "") ->  | K26: =IF($C26<=$B$16,VLOOKUP(A26&$B$12, localcont!$A$10:$X$1764, 14, FALSE),"") -> 
A27: =IF($C27<=$B$16,VLOOKUP(E27,leas!D13:G452,4,FALSE),"") ->  | B27: 82908 | C27: 8 | G27: =IF($C27<=$B$16,VLOOKUP(A27&$B$12, localcont!A17:X1771, 18, FALSE), "") ->  | H27: =IF($C27<=$B$16,VLOOKUP(A27&$B$12, localcont!$A$10:$X$1764, 23, FALSE), "") ->  | J27: =IF($C27<=$B$16,VLOOKUP(A27&$B$12, localcont!$A$10:$X$1764, 15, FALSE), "") ->  | K27: =IF($C27<=$B$16,VLOOKUP(A27&$B$12, localcont!$A$10:$X$1764, 14, FALSE),"") -> 
A28: =IF($C28<=$B$16,VLOOKUP(E28,leas!D14:G453,4,FALSE),"") ->  | B28: 82909 | C28: 9 | G28: =IF($C28<=$B$16,VLOOKUP(A28&$B$12, localcont!A18:X1772, 18, FALSE), "") ->  | H28: =IF($C28<=$B$16,VLOOKUP(A28&$B$12, localcont!$A$10:$X$1764, 23, FALSE), "") ->  | J28: =IF($C28<=$B$16,VLOOKUP(A28&$B$12, localcont!$A$10:$X$1764, 15, FALSE), "") ->  | K28: =IF($C28<=$B$16,VLOOKUP(A28&$B$12, localcont!$A$10:$X$1764, 14, FALSE),"") -> 
A29: =IF($C29<=$B$16,VLOOKUP(E29,leas!D15:G454,4,FALSE),"") ->  | B29: 82910 | C29: 10 | G29: =IF($C29<=$B$16,VLOOKUP(A29&$B$12, localcont!A19:X1773, 18, FALSE), "") ->  | H29: =IF($C29<=$B$16,VLOOKUP(A29&$B$12, localcont!$A$10:$X$1764, 23, FALSE), "") ->  | J29: =IF($C29<=$B$16,VLOOKUP(A29&$B$12, localcont!$A$10:$X$1764, 15, FALSE), "") ->  | K29: =IF($C29<=$B$16,VLOOKUP(A29&$B$12, localcont!$A$10:$X$1764, 14, FALSE),"") -> 
A30: =IF($C30<=$B$16,VLOOKUP(E30,leas!D16:G455,4,FALSE),"") ->  | B30: 82911 | C30: 11 | G30: =IF($C30<=$B$16,VLOOKUP(A30&$B$12, localcont!A20:X1774, 18, FALSE), "") ->  | H30: =IF($C30<=$B$16,VLOOKUP(A30&$B$12, localcont!$A$10:$X$1764, 23, FALSE), "") ->  | J30: =IF($C30<=$B$16,VLOOKUP(A30&$B$12, localcont!$A$10:$X$1764, 15, FALSE), "") ->  | K30: =IF($C30<=$B$16,VLOOKUP(A30&$B$12, localcont!$A$10:$X$1764, 14, FALSE),"") -> 
A31: =IF($C31<=$B$16,VLOOKUP(E31,leas!D17:G456,4,FALSE),"") ->  | B31: 82912 | C31: 12 | G31: =IF($C31<=$B$16,VLOOKUP(A31&$B$12, localcont!A21:X1775, 18, FALSE), "") ->  | H31: =IF($C31<=$B$16,VLOOKUP(A31&$B$12, localcont!$A$10:$X$1764, 23, FALSE), "") ->  | J31: =IF($C31<=$B$16,VLOOKUP(A31&$B$12, localcont!$A$10:$X$1764, 15, FALSE), "") ->  | K31: =IF($C31<=$B$16,VLOOKUP(A31&$B$12, localcont!$A$10:$X$1764, 14, FALSE),"") -> 
A32: =IF($C32<=$B$16,VLOOKUP(E32,leas!D18:G457,4,FALSE),"") ->  | B32: 82913 | C32: 13 | G32: =IF($C32<=$B$16,VLOOKUP(A32&$B$12, localcont!A22:X1776, 18, FALSE), "") ->  | H32: =IF($C32<=$B$16,VLOOKUP(A32&$B$12, localcont!$A$10:$X$1764, 23, FALSE), "") ->  | J32: =IF($C32<=$B$16,VLOOKUP(A32&$B$12, localcont!$A$10:$X$1764, 15, FALSE), "") ->  | K32: =IF($C32<=$B$16,VLOOKUP(A32&$B$12, localcont!$A$10:$X$1764, 14, FALSE),"") -> 
A33: =IF($C33<=$B$16,VLOOKUP(E33,leas!D19:G458,4,FALSE),"") ->  | B33: 82914 | C33: 14 | G33: =IF($C33<=$B$16,VLOOKUP(A33&$B$12, localcont!A23:X1777, 18, FALSE), "") ->  | H33: =IF($C33<=$B$16,VLOOKUP(A33&$B$12, localcont!$A$10:$X$1764, 23, FALSE), "") ->  | J33: =IF($C33<=$B$16,VLOOKUP(A33&$B$12, localcont!$A$10:$X$1764, 15, FALSE), "") ->  | K33: =IF($C33<=$B$16,VLOOKUP(A33&$B$12, localcont!$A$10:$X$1764, 14, FALSE),"") -> 
A34: =IF($C34<=$B$16,VLOOKUP(E34,leas!D20:G459,4,FALSE),"") ->  | B34: 82915 | C34: 15 | G34: =IF($C34<=$B$16,VLOOKUP(A34&$B$12, localcont!A24:X1778, 18, FALSE), "") ->  | H34: =IF($C34<=$B$16,VLOOKUP(A34&$B$12, localcont!$A$10:$X$1764, 23, FALSE), "") ->  | J34: =IF($C34<=$B$16,VLOOKUP(A34&$B$12, localcont!$A$10:$X$1764, 15, FALSE), "") ->  | K34: =IF($C34<=$B$16,VLOOKUP(A34&$B$12, localcont!$A$10:$X$1764, 14, FALSE),"") -> 
A35: =IF($C35<=$B$16,VLOOKUP(E35,leas!D21:G460,4,FALSE),"") ->  | B35: 82916 | C35: 16 | G35: =IF($C35<=$B$16,VLOOKUP(A35&$B$12, localcont!A25:X1779, 18, FALSE), "") ->  | H35: =IF($C35<=$B$16,VLOOKUP(A35&$B$12, localcont!$A$10:$X$1764, 23, FALSE), "") ->  | J35: =IF($C35<=$B$16,VLOOKUP(A35&$B$12, localcont!$A$10:$X$1764, 15, FALSE), "") ->  | K35: =IF($C35<=$B$16,VLOOKUP(A35&$B$12, localcont!$A$10:$X$1764, 14, FALSE),"") -> 
A36: =IF($C36<=$B$16,VLOOKUP(E36,leas!D22:G461,4,FALSE),"") ->  | B36: 82917 | C36: 17 | G36: =IF($C36<=$B$16,VLOOKUP(A36&$B$12, localcont!A26:X1780, 18, FALSE), "") ->  | H36: =IF($C36<=$B$16,VLOOKUP(A36&$B$12, localcont!$A$10:$X$1764, 23, FALSE), "") ->  | J36: =IF($C36<=$B$16,VLOOKUP(A36&$B$12, localcont!$A$10:$X$1764, 15, FALSE), "") ->  | K36: =IF($C36<=$B$16,VLOOKUP(A36&$B$12, localcont!$A$10:$X$1764, 14, FALSE),"") -> 
A37: =IF($C37<=$B$16,VLOOKUP(E37,leas!D23:G462,4,FALSE),"") ->  | B37: 82918 | C37: 18 | G37: =IF($C37<=$B$16,VLOOKUP(A37&$B$12, localcont!A27:X1781, 18, FALSE), "") ->  | H37: =IF($C37<=$B$16,VLOOKUP(A37&$B$12, localcont!$A$10:$X$1764, 23, FALSE), "") ->  | J37: =IF($C37<=$B$16,VLOOKUP(A37&$B$12, localcont!$A$10:$X$1764, 15, FALSE), "") ->  | K37: =IF($C37<=$B$16,VLOOKUP(A37&$B$12, localcont!$A$10:$X$1764, 14, FALSE),"") -> 
A38: =IF($C38<=$B$16,VLOOKUP(E38,leas!D24:G463,4,FALSE),"") ->  | B38: 82919 | C38: 19 | G38: =IF($C38<=$B$16,VLOOKUP(A38&$B$12, localcont!A28:X1782, 18, FALSE), "") ->  | H38: =IF($C38<=$B$16,VLOOKUP(A38&$B$12, localcont!$A$10:$X$1764, 23, FALSE), "") ->  | J38: =IF($C38<=$B$16,VLOOKUP(A38&$B$12, localcont!$A$10:$X$1764, 15, FALSE), "") ->  | K38: =IF($C38<=$B$16,VLOOKUP(A38&$B$12, localcont!$A$10:$X$1764, 14, FALSE),"") -> 
A39: =IF($C39<=$B$16,VLOOKUP(E39,leas!D25:G464,4,FALSE),"") ->  | B39: 82920 | C39: 20 | G39: =IF($C39<=$B$16,VLOOKUP(A39&$B$12, localcont!A29:X1783, 18, FALSE), "") ->  | H39: =IF($C39<=$B$16,VLOOKUP(A39&$B$12, localcont!$A$10:$X$1764, 23, FALSE), "") ->  | J39: =IF($C39<=$B$16,VLOOKUP(A39&$B$12, localcont!$A$10:$X$1764, 15, FALSE), "") ->  | K39: =IF($C39<=$B$16,VLOOKUP(A39&$B$12, localcont!$A$10:$X$1764, 14, FALSE),"") -> 
A40: =IF($C40<=$B$16,VLOOKUP(E40,leas!D26:G465,4,FALSE),"") ->  | B40: 82921 | C40: 21 | G40: =IF($C40<=$B$16,VLOOKUP(A40&$B$12, localcont!A30:X1784, 18, FALSE), "") ->  | H40: =IF($C40<=$B$16,VLOOKUP(A40&$B$12, localcont!$A$10:$X$1764, 23, FALSE), "") ->  | J40: =IF($C40<=$B$16,VLOOKUP(A40&$B$12, localcont!$A$10:$X$1764, 15, FALSE), "") ->  | K40: =IF($C40<=$B$16,VLOOKUP(A40&$B$12, localcont!$A$10:$X$1764, 14, FALSE),"") -> 
A41: =IF($C41<=$B$16,VLOOKUP(E41,leas!D27:G466,4,FALSE),"") ->  | B41: 82922 | C41: 22 | G41: =IF($C41<=$B$16,VLOOKUP(A41&$B$12, localcont!A31:X1785, 18, FALSE), "") ->  | H41: =IF($C41<=$B$16,VLOOKUP(A41&$B$12, localcont!$A$10:$X$1764, 23, FALSE), "") ->  | J41: =IF($C41<=$B$16,VLOOKUP(A41&$B$12, localcont!$A$10:$X$1764, 15, FALSE), "") ->  | K41: =IF($C41<=$B$16,VLOOKUP(A41&$B$12, localcont!$A$10:$X$1764, 14, FALSE),"") -> 
A42: =IF($C42<=$B$16,VLOOKUP(E42,leas!D28:G467,4,FALSE),"") ->  | B42: 82923 | C42: 23 | G42: =IF($C42<=$B$16,VLOOKUP(A42&$B$12, localcont!A32:X1786, 18, FALSE), "") ->  | H42: =IF($C42<=$B$16,VLOOKUP(A42&$B$12, localcont!$A$10:$X$1764, 23, FALSE), "") ->  | J42: =IF($C42<=$B$16,VLOOKUP(A42&$B$12, localcont!$A$10:$X$1764, 15, FALSE), "") ->  | K42: =IF($C42<=$B$16,VLOOKUP(A42&$B$12, localcont!$A$10:$X$1764, 14, FALSE),"") -> 
A43: =IF($C43<=$B$16,VLOOKUP(E43,leas!D29:G468,4,FALSE),"") ->  | B43: 82924 | C43: 24 | G43: =IF($C43<=$B$16,VLOOKUP(A43&$B$12, localcont!A33:X1787, 18, FALSE), "") ->  | H43: =IF($C43<=$B$16,VLOOKUP(A43&$B$12, localcont!$A$10:$X$1764, 23, FALSE), "") ->  | J43: =IF($C43<=$B$16,VLOOKUP(A43&$B$12, localcont!$A$10:$X$1764, 15, FALSE), "") ->  | K43: =IF($C43<=$B$16,VLOOKUP(A43&$B$12, localcont!$A$10:$X$1764, 14, FALSE),"") -> 
A44: =IF($C44<=$B$16,VLOOKUP(E44,leas!D30:G469,4,FALSE),"") ->  | B44: 82925 | C44: 25 | G44: =IF($C44<=$B$16,VLOOKUP(A44&$B$12, localcont!A34:X1788, 18, FALSE), "") ->  | H44: =IF($C44<=$B$16,VLOOKUP(A44&$B$12, localcont!$A$10:$X$1764, 23, FALSE), "") ->  | J44: =IF($C44<=$B$16,VLOOKUP(A44&$B$12, localcont!$A$10:$X$1764, 15, FALSE), "") ->  | K44: =IF($C44<=$B$16,VLOOKUP(A44&$B$12, localcont!$A$10:$X$1764, 14, FALSE),"") -> 
A45: =IF($C45<=$B$16,VLOOKUP(E45,leas!D31:G470,4,FALSE),"") ->  | B45: 82926 | C45: 26 | G45: =IF($C45<=$B$16,VLOOKUP(A45&$B$12, localcont!A35:X1789, 18, FALSE), "") ->  | H45: =IF($C45<=$B$16,VLOOKUP(A45&$B$12, localcont!$A$10:$X$1764, 23, FALSE), "") ->  | J45: =IF($C45<=$B$16,VLOOKUP(A45&$B$12, localcont!$A$10:$X$1764, 15, FALSE), "") ->  | K45: =IF($C45<=$B$16,VLOOKUP(A45&$B$12, localcont!$A$10:$X$1764, 14, FALSE),"") -> 
A46: =IF($C46<=$B$16,VLOOKUP(E46,leas!D32:G471,4,FALSE),"") ->  | B46: 82927 | C46: 27 | G46: =IF($C46<=$B$16,VLOOKUP(A46&$B$12, localcont!A36:X1790, 18, FALSE), "") ->  | H46: =IF($C46<=$B$16,VLOOKUP(A46&$B$12, localcont!$A$10:$X$1764, 23, FALSE), "") ->  | J46: =IF($C46<=$B$16,VLOOKUP(A46&$B$12, localcont!$A$10:$X$1764, 15, FALSE), "") ->  | K46: =IF($C46<=$B$16,VLOOKUP(A46&$B$12, localcont!$A$10:$X$1764, 14, FALSE),"") -> 
A47: =IF($C47<=$B$16,VLOOKUP(E47,leas!D33:G472,4,FALSE),"") ->  | B47: 82928 | C47: 28 | G47: =IF($C47<=$B$16,VLOOKUP(A47&$B$12, localcont!A37:X1791, 18, FALSE), "") ->  | H47: =IF($C47<=$B$16,VLOOKUP(A47&$B$12, localcont!$A$10:$X$1764, 23, FALSE), "") ->  | J47: =IF($C47<=$B$16,VLOOKUP(A47&$B$12, localcont!$A$10:$X$1764, 15, FALSE), "") ->  | K47: =IF($C47<=$B$16,VLOOKUP(A47&$B$12, localcont!$A$10:$X$1764, 14, FALSE),"") -> 
A48: =IF($C48<=$B$16,VLOOKUP(E48,leas!D34:G473,4,FALSE),"") ->  | B48: 82929 | C48: 29 | G48: =IF($C48<=$B$16,VLOOKUP(A48&$B$12, localcont!A38:X1792, 18, FALSE), "") ->  | H48: =IF($C48<=$B$16,VLOOKUP(A48&$B$12, localcont!$A$10:$X$1764, 23, FALSE), "") ->  | J48: =IF($C48<=$B$16,VLOOKUP(A48&$B$12, localcont!$A$10:$X$1764, 15, FALSE), "") ->  | K48: =IF($C48<=$B$16,VLOOKUP(A48&$B$12, localcont!$A$10:$X$1764, 14, FALSE),"") -> 
A49: =IF($C49<=$B$16,VLOOKUP(E49,leas!D35:G474,4,FALSE),"") ->  | B49: 82930 | C49: 30 | G49: =IF($C49<=$B$16,VLOOKUP(A49&$B$12, localcont!A39:X1793, 18, FALSE), "") ->  | H49: =IF($C49<=$B$16,VLOOKUP(A49&$B$12, localcont!$A$10:$X$1764, 23, FALSE), "") ->  | J49: =IF($C49<=$B$16,VLOOKUP(A49&$B$12, localcont!$A$10:$X$1764, 15, FALSE), "") ->  | K49: =IF($C49<=$B$16,VLOOKUP(A49&$B$12, localcont!$A$10:$X$1764, 14, FALSE),"") -> 
A50: =IF($C50<=$B$16,VLOOKUP(E50,leas!D36:G475,4,FALSE),"") ->  | B50: 82931 | C50: 31 | G50: =IF($C50<=$B$16,VLOOKUP(A50&$B$12, localcont!A40:X1794, 18, FALSE), "") ->  | H50: =IF($C50<=$B$16,VLOOKUP(A50&$B$12, localcont!$A$10:$X$1764, 23, FALSE), "") ->  | J50: =IF($C50<=$B$16,VLOOKUP(A50&$B$12, localcont!$A$10:$X$1764, 15, FALSE), "") ->  | K50: =IF($C50<=$B$16,VLOOKUP(A50&$B$12, localcont!$A$10:$X$1764, 14, FALSE),"") -> 
A51: =IF($C51<=$B$16,VLOOKUP(E51,leas!D37:G476,4,FALSE),"") ->  | B51: 82932 | C51: 32 | G51: =IF($C51<=$B$16,VLOOKUP(A51&$B$12, localcont!A41:X1795, 18, FALSE), "") ->  | H51: =IF($C51<=$B$16,VLOOKUP(A51&$B$12, localcont!$A$10:$X$1764, 23, FALSE), "") ->  | J51: =IF($C51<=$B$16,VLOOKUP(A51&$B$12, localcont!$A$10:$X$1764, 15, FALSE), "") ->  | K51: =IF($C51<=$B$16,VLOOKUP(A51&$B$12, localcont!$A$10:$X$1764, 14, FALSE),"") -> 
A52: =IF($C52<=$B$16,VLOOKUP(E52,leas!D38:G477,4,FALSE),"") ->  | B52: 82933 | C52: 33 | F52: =IF($C52<=$B$16, VLOOKUP($B52, regdetail, 6), " ") ->  | G52: =IF($C52<=$B$16,VLOOKUP(A52&$B$12, localcont!A42:X1796, 18, FALSE), "") ->  | H52: =IF($C52<=$B$16,VLOOKUP(A52&$B$12, localcont!$A$10:$X$1764, 23, FALSE), "") ->  | J52: =IF($C52<=$B$16,VLOOKUP(A52&$B$12, localcont!$A$10:$X$1764, 15, FALSE), "") ->  | K52: =IF($C52<=$B$16,VLOOKUP(A52&$B$12, localcont!$A$10:$X$1764, 14, FALSE),"") -> 
A53: =IF($C53<=$B$16,VLOOKUP(E53,leas!D39:G478,4,FALSE),"") ->  | B53: 82934 | C53: 34 | G53: =IF($C53<=$B$16,VLOOKUP(A53&$B$12, localcont!A43:X1797, 18, FALSE), "") ->  | H53: =IF($C53<=$B$16,VLOOKUP(A53&$B$12, localcont!$A$10:$X$1764, 23, FALSE), "") ->  | J53: =IF($C53<=$B$16,VLOOKUP(A53&$B$12, localcont!$A$10:$X$1764, 15, FALSE), "") ->  | K53: =IF($C53<=$B$16,VLOOKUP(A53&$B$12, localcont!$A$10:$X$1764, 14, FALSE),"") -> 
A54: =IF($C54<=$B$16,VLOOKUP(E54,leas!D40:G479,4,FALSE),"") ->  | B54: 82935 | C54: 35 | G54: =IF($C54<=$B$16,VLOOKUP(A54&$B$12, localcont!A44:X1798, 18, FALSE), "") ->  | H54: =IF($C54<=$B$16,VLOOKUP(A54&$B$12, localcont!$A$10:$X$1764, 23, FALSE), "") ->  | J54: =IF($C54<=$B$16,VLOOKUP(A54&$B$12, localcont!$A$10:$X$1764, 15, FALSE), "") ->  | K54: =IF($C54<=$B$16,VLOOKUP(A54&$B$12, localcont!$A$10:$X$1764, 14, FALSE),"") -> 
A55: =IF($C55<=$B$16,VLOOKUP(E55,leas!D41:G480,4,FALSE),"") ->  | B55: 82936 | C55: 36 | G55: =IF($C55<=$B$16,VLOOKUP(A55&$B$12, localcont!A45:X1799, 18, FALSE), "") ->  | H55: =IF($C55<=$B$16,VLOOKUP(A55&$B$12, localcont!$A$10:$X$1764, 23, FALSE), "") ->  | J55: =IF($C55<=$B$16,VLOOKUP(A55&$B$12, localcont!$A$10:$X$1764, 15, FALSE), "") ->  | K55: =IF($C55<=$B$16,VLOOKUP(A55&$B$12, localcont!$A$10:$X$1764, 14, FALSE),"") -> 
A56: =IF($C56<=$B$16,VLOOKUP(E56,leas!D42:G481,4,FALSE),"") ->  | B56: 82937 | C56: 37 | G56: =IF($C56<=$B$16,VLOOKUP(A56&$B$12, localcont!A46:X1800, 18, FALSE), "") ->  | H56: =IF($C56<=$B$16,VLOOKUP(A56&$B$12, localcont!$A$10:$X$1764, 23, FALSE), "") ->  | J56: =IF($C56<=$B$16,VLOOKUP(A56&$B$12, localcont!$A$10:$X$1764, 15, FALSE), "") ->  | K56: =IF($C56<=$B$16,VLOOKUP(A56&$B$12, localcont!$A$10:$X$1764, 14, FALSE),"") -> 
A57: =IF($C57<=$B$16,VLOOKUP(E57,leas!D43:G482,4,FALSE),"") ->  | B57: 82938 | C57: 38 | G57: =IF($C57<=$B$16,VLOOKUP(A57&$B$12, localcont!A47:X1801, 18, FALSE), "") ->  | H57: =IF($C57<=$B$16,VLOOKUP(A57&$B$12, localcont!$A$10:$X$1764, 23, FALSE), "") ->  | J57: =IF($C57<=$B$16,VLOOKUP(A57&$B$12, localcont!$A$10:$X$1764, 15, FALSE), "") ->  | K57: =IF($C57<=$B$16,VLOOKUP(A57&$B$12, localcont!$A$10:$X$1764, 14, FALSE),"") -> 
A58: =IF($C58<=$B$16,VLOOKUP(E58,leas!D44:G483,4,FALSE),"") ->  | B58: 82939 | C58: 39 | G58: =IF($C58<=$B$16,VLOOKUP(A58&$B$12, localcont!A48:X1802, 18, FALSE), "") ->  | H58: =IF($C58<=$B$16,VLOOKUP(A58&$B$12, localcont!$A$10:$X$1764, 23, FALSE), "") ->  | J58: =IF($C58<=$B$16,VLOOKUP(A58&$B$12, localcont!$A$10:$X$1764, 15, FALSE), "") ->  | K58: =IF($C58<=$B$16,VLOOKUP(A58&$B$12, localcont!$A$10:$X$1764, 14, FALSE),"") -> 
A59: =IF($C59<=$B$16,VLOOKUP(E59,leas!D45:G484,4,FALSE),"") ->  | B59: 82940 | C59: 40 | G59: =IF($C59<=$B$16,VLOOKUP(A59&$B$12, localcont!A49:X1803, 18, FALSE), "") ->  | H59: =IF($C59<=$B$16,VLOOKUP(A59&$B$12, localcont!$A$10:$X$1764, 23, FALSE), "") ->  | J59: =IF($C59<=$B$16,VLOOKUP(A59&$B$12, localcont!$A$10:$X$1764, 15, FALSE), "") ->  | K59: =IF($C59<=$B$16,VLOOKUP(A59&$B$12, localcont!$A$10:$X$1764, 14, FALSE),"") -> 
A60: =IF($C60<=$B$16,VLOOKUP(E60,leas!D46:G485,4,FALSE),"") ->  | B60: 82941 | C60: 41 | G60: =IF($C60<=$B$16,VLOOKUP(A60&$B$12, localcont!A50:X1804, 18, FALSE), "") ->  | H60: =IF($C60<=$B$16,VLOOKUP(A60&$B$12, localcont!$A$10:$X$1764, 23, FALSE), "") ->  | J60: =IF($C60<=$B$16,VLOOKUP(A60&$B$12, localcont!$A$10:$X$1764, 15, FALSE), "") ->  | K60: =IF($C60<=$B$16,VLOOKUP(A60&$B$12, localcont!$A$10:$X$1764, 14, FALSE),"") -> 
A61: =IF($C61<=$B$16,VLOOKUP(E61,leas!D47:G486,4,FALSE),"") ->  | B61: 82942 | C61: 42 | G61: =IF($C61<=$B$16,VLOOKUP(A61&$B$12, localcont!A51:X1805, 18, FALSE), "") ->  | H61: =IF($C61<=$B$16,VLOOKUP(A61&$B$12, localcont!$A$10:$X$1764, 23, FALSE), "") ->  | J61: =IF($C61<=$B$16,VLOOKUP(A61&$B$12, localcont!$A$10:$X$1764, 15, FALSE), "") ->  | K61: =IF($C61<=$B$16,VLOOKUP(A61&$B$12, localcont!$A$10:$X$1764, 14, FALSE),"") -> 
A62: =IF($C62<=$B$16,VLOOKUP(E62,leas!D48:G487,4,FALSE),"") ->  | B62: 82943 | C62: 43 | G62: =IF($C62<=$B$16,VLOOKUP(A62&$B$12, localcont!A52:X1806, 18, FALSE), "") ->  | H62: =IF($C62<=$B$16,VLOOKUP(A62&$B$12, localcont!$A$10:$X$1764, 23, FALSE), "") ->  | J62: =IF($C62<=$B$16,VLOOKUP(A62&$B$12, localcont!$A$10:$X$1764, 15, FALSE), "") ->  | K62: =IF($C62<=$B$16,VLOOKUP(A62&$B$12, localcont!$A$10:$X$1764, 14, FALSE),"") -> 
A63: =IF($C63<=$B$16,VLOOKUP(E63,leas!D49:G488,4,FALSE),"") ->  | B63: 82944 | C63: 44 | G63: =IF($C63<=$B$16,VLOOKUP(A63&$B$12, localcont!A53:X1807, 18, FALSE), "") ->  | H63: =IF($C63<=$B$16,VLOOKUP(A63&$B$12, localcont!$A$10:$X$1764, 23, FALSE), "") ->  | J63: =IF($C63<=$B$16,VLOOKUP(A63&$B$12, localcont!$A$10:$X$1764, 15, FALSE), "") ->  | K63: =IF($C63<=$B$16,VLOOKUP(A63&$B$12, localcont!$A$10:$X$1764, 14, FALSE),"") ->  | P63: =IF($C63>$B$16,"",O63*$P$13) -> 
A64: =IF($C64<=$B$16,VLOOKUP(E64,leas!D50:G489,4,FALSE),"") ->  | B64: 82945 | C64: 45 | G64: =IF($C64<=$B$16,VLOOKUP(A64&$B$12, localcont!A54:X1808, 18, FALSE), "") ->  | H64: =IF($C64<=$B$16,VLOOKUP(A64&$B$12, localcont!$A$10:$X$1764, 23, FALSE), "") ->  | J64: =IF($C64<=$B$16,VLOOKUP(A64&$B$12, localcont!$A$10:$X$1764, 15, FALSE), "") ->  | K64: =IF($C64<=$B$16,VLOOKUP(A64&$B$12, localcont!$A$10:$X$1764, 14, FALSE),"") -> 
A65: =IF($C65<=$B$16,VLOOKUP(E65,leas!D51:G490,4,FALSE),"") ->  | B65: 82946 | C65: 46 | G65: =IF($C65<=$B$16,VLOOKUP(A65&$B$12, localcont!A55:X1809, 18, FALSE), "") ->  | H65: =IF($C65<=$B$16,VLOOKUP(A65&$B$12, localcont!$A$10:$X$1764, 23, FALSE), "") ->  | J65: =IF($C65<=$B$16,VLOOKUP(A65&$B$12, localcont!$A$10:$X$1764, 15, FALSE), "") ->  | K65: =IF($C65<=$B$16,VLOOKUP(A65&$B$12, localcont!$A$10:$X$1764, 14, FALSE),"") -> 
A66: =IF($C66<=$B$16,VLOOKUP(E66,leas!D52:G491,4,FALSE),"") ->  | B66: 82947 | C66: 47 | G66: =IF($C66<=$B$16,VLOOKUP(A66&$B$12, localcont!A56:X1810, 18, FALSE), "") ->  | H66: =IF($C66<=$B$16,VLOOKUP(A66&$B$12, localcont!$A$10:$X$1764, 23, FALSE), "") ->  | J66: =IF($C66<=$B$16,VLOOKUP(A66&$B$12, localcont!$A$10:$X$1764, 15, FALSE), "") ->  | K66: =IF($C66<=$B$16,VLOOKUP(A66&$B$12, localcont!$A$10:$X$1764, 14, FALSE),"") -> 
A67: =IF($C67<=$B$16,VLOOKUP(E67,leas!D53:G492,4,FALSE),"") ->  | B67: 82948 | C67: 48 | G67: =IF($C67<=$B$16,VLOOKUP(A67&$B$12, localcont!A57:X1811, 18, FALSE), "") ->  | H67: =IF($C67<=$B$16,VLOOKUP(A67&$B$12, localcont!$A$10:$X$1764, 23, FALSE), "") ->  | J67: =IF($C67<=$B$16,VLOOKUP(A67&$B$12, localcont!$A$10:$X$1764, 15, FALSE), "") ->  | K67: =IF($C67<=$B$16,VLOOKUP(A67&$B$12, localcont!$A$10:$X$1764, 14, FALSE),"") -> 
A68: =IF($C68<=$B$16,VLOOKUP(E68,leas!D54:G493,4,FALSE),"") ->  | B68: 82949 | C68: 49 | G68: =IF($C68<=$B$16,VLOOKUP(A68&$B$12, localcont!A58:X1812, 18, FALSE), "") ->  | H68: =IF($C68<=$B$16,VLOOKUP(A68&$B$12, localcont!$A$10:$X$1764, 23, FALSE), "") ->  | J68: =IF($C68<=$B$16,VLOOKUP(A68&$B$12, localcont!$A$10:$X$1764, 15, FALSE), "") ->  | K68: =IF($C68<=$B$16,VLOOKUP(A68&$B$12, localcont!$A$10:$X$1764, 14, FALSE),"") -> 

Sheet Comparison to FY24
B1: Return to Index | P1: More about the data
A2: Massachusetts Department of Elementary and Secondary Education
A3: =CYr&" Chapter 70 Comparison to "&PYr -> FY25 Chapter 70 Comparison to FY24
C7: =PYr -> FY24 | D7: =CYr -> FY25 | F7: =PYr -> FY24 | G7: =CYr -> FY25 | I7: =PYr -> FY24 | J7: =CYr -> FY25 | L7: =PYr -> FY24 | M7: =CYr -> FY25
B8: Operating | C8: Foundation | D8: Foundation | F8: Foundation | G8: Foundation | I8: Minimum | J8: Minimum | L8: Chapter 70 | M8: Chapter 70
A9: LEA | B9: District name | C9: Enrollment | D9: Enrollment | E9: change | F9: Budget | G9: Budget | H9: change per pupil | I9: Contribution | J9: Contribution | K9: change per pupil | L9: aid | M9: aid | N9: change in aid | O9: change in aid per pupil | P9: % change in aid
A10: 1 | B10: Abington | C10: =VLOOKUP(A10,aidcalc,14,FALSE) -> 2206 | D10: =VLOOKUP(A10,aidcalc,15,FALSE) -> 2202 | E10: =D10-C10 -> -4 | F10: =VLOOKUP(A10,aidcalc,4,FALSE) -> 31287579.08 | G10: =VLOOKUP(A10,aidcalc,9,FALSE) -> 32236384.53 | H10: =(G10-F10)/$D10 -> 430.8834937 | I10: =VLOOKUP(A10,aidcalc,5,FALSE) -> 17104459 | J10: =VLOOKUP(A10,aidcalc,10,FALSE) -> 17754107 | K10: =(J10-I10)/$D10 -> 295.0263397 | L10: =VLOOKUP(A10,aidcalc,6,FALSE) -> 14183120 | M10: =VLOOKUP(A10,aidcalc,25,FALSE) -> 14482278 | N10: =M10-L10 -> 299158 | O10: =(M10-L10)/$D10 -> 135.8574024 | P10: =ROUND(IF(F10>0,(M10-L10)/L10,100),2) -> 0.02
A11: 3 | B11: Acushnet | C11: 1221 | D11: 1173 | E11: -48 | F11: 15911255.39 | G11: 15622821.81 | H11: -245.8939301 | I11: 8740925 | J11: 8852864 | K11: 95.42966752 | L11: 7170330 | M11: 7292322 | N11: 121992 | O11: 104 | P11: 0.02
A12: 5 | B12: Agawam | C12: 3421 | D12: 3486 | E12: 65 | F12: 50397491.3 | G12: 52988778.25 | H12: 743.3410643 | I12: 25373043 | J12: 26903037 | K12: 438.8967298 | L12: 25024448 | M12: 26085741 | N12: 1061293 | O12: 304.4443488 | P12: 0.04
A13: 7 | B13: Amesbury | C13: 1847 | D13: 1898 | E13: 51 | F13: 24965747.03 | G13: 26495878.26 | H13: 806.1808377 | I13: 18234602 | J13: 19160041 | K13: 487.5864067 | L13: 9472287 | M13: 9669679 | N13: 197392 | O13: 104 | P13: 0.02
A14: 8 | B14: Amherst | C14: 1055 | D14: 984 | E14: -71 | F14: 14207190.94 | G14: 13476149.79 | H14: -742.927998 | I14: 11168148 | J14: 11117824 | K14: -51.14227642 | L14: 6280773 | M14: 6383109 | N14: 102336 | O14: 104 | P14: 0.02
A15: 9 | B15: Andover | C15: 5554 | D15: 5465 | E15: -89 | F15: 72244408.49 | G15: 72595075.47 | H15: 64.16596164 | I15: 58293608 | J15: 59890937 | K15: 292.2834401 | L15: 13950800 | M15: 14519160 | N15: 568360 | O15: 104 | P15: 0.04
A16: 10 | B16: Arlington | C16: 6002 | D16: 6021 | E16: 19 | F16: 74896748.64 | G16: 77449420.44 | H16: 423.9614361 | I16: 56193340 | J16: 58893679 | K16: 448.4867962 | L16: 18703409 | M16: 19329593 | N16: 626184 | O16: 104 | P16: 0.03
A17: 14 | B17: Ashland | C17: 2839 | D17: 2857 | E17: 18 | F17: 36758230.61 | G17: 37765344.57 | H17: 352.5075114 | I17: 25484731 | J17: 26791174 | K17: 457.2779139 | L17: 11273500 | M17: 11570628 | N17: 297128 | O17: 104 | P17: 0.03
A18: 16 | B18: Attleboro | C18: 6238 | D18: 6313 | E18: 75 | F18: 97105120.72 | G18: 102004503.3 | H18: 776.0783479 | I18: 43712969 | J18: 46028760 | K18: 366.8289244 | L18: 53392152 | M18: 55975743 | N18: 2583591 | O18: 409.2493268 | P18: 0.05
A19: 17 | B19: Auburn | C19: 2422 | D19: 2367 | E19: -55 | F19: 32176028.36 | G19: 32470504.22 | H19: 124.4088973 | I19: 17041707 | J19: 17758731 | K19: 302.9252218 | L19: 15134321 | M19: 15380489 | N19: 246168 | O19: 104 | P19: 0.02
A20: 18 | B20: Avon | C20: 586 | D20: 572 | E20: -14 | F20: 9536788.92 | G20: 9514711.52 | H20: -38.59685315 | I20: 5390722 | J20: 5674808 | K20: 496.6538462 | L20: 4146067 | M20: 4205555 | N20: 59488 | O20: 104 | P20: 0.01
A21: 20 | B21: Barnstable | C21: 5302 | D21: 5306 | E21: 4 | F21: 84542110.14 | G21: 88879328.45 | H21: 817.4176988 | I21: 59790057 | J21: 63910403 | K21: 776.5446664 | L21: 24752053 | M21: 25303877 | N21: 551824 | O21: 104 | P21: 0.02
A22: 23 | B22: Bedford | C22: 2549 | D22: 2579 | E22: 30 | F22: 33265363.04 | G22: 34828204.55 | H22: 605.9873992 | I22: 27443924 | J22: 28733269 | K22: 499.9398992 | L22: 6020493 | M22: 6288709 | N22: 268216 | O22: 104 | P22: 0.04
A23: 24 | B23: Belchertown | C23: 2152 | D23: 2106 | E23: -46 | F23: 27713334.38 | G23: 27898291.62 | H23: 87.82395062 | I23: 13763232 | J23: 14251380 | K23: 231.7891738 | L23: 14210006 | M23: 14429030 | N23: 219024 | O23: 104 | P23: 0.02
A24: 25 | B24: Bellingham | C24: 2175 | D24: 2175 | E24: 0 | F24: 29660512.23 | G24: 30088447.59 | H24: 196.7518897 | I24: 19686080 | J24: 20822076 | K24: 522.2970115 | L24: 9974432 | M24: 10200632 | N24: 226200 | O24: 104 | P24: 0.02
A25: 26 | B25: Belmont | C25: 4505 | D25: 4521 | E25: 16 | F25: 57423975.88 | G25: 59533725.07 | H25: 466.6554281 | I25: 45639441 | J25: 47889465 | K25: 497.6828135 | L25: 11784535 | M25: 12254719 | N25: 470184 | O25: 104 | P25: 0.04
A26: 27 | B26: Berkley | C26: 698 | D26: 682 | E26: -16 | F26: 8929788.14 | G26: 8895289.57 | H26: -50.58441349 | I26: 4777868 | J26: 5017565 | K26: 351.4618768 | L26: 4151920 | M26: 4222848 | N26: 70928 | O26: 104 | P26: 0.02
A27: 30 | B27: Beverly | C27: 4541 | D27: 4466 | E27: -75 | F27: 61798815.26 | G27: 62707090.12 | H27: 203.3754725 | I27: 47254334 | J27: 49168020 | K27: 428.5011196 | L27: 14544481 | M27: 15008945 | N27: 464464 | O27: 104 | P27: 0.03
A28: 31 | B28: Billerica | C28: 4879 | D28: 4925 | E28: 46 | F28: 63590856.68 | G28: 65232366.11 | H28: 333.3014071 | I28: 49635324 | J28: 52490595 | K28: 579.7504569 | L28: 20069934 | M28: 20582134 | N28: 512200 | O28: 104 | P28: 0.03
A29: 35 | B29: Boston | C29: 57738 | D29: 57369 | E29: -369 | F29: 1095713386 | G29: 1145949554 | H29: 875.667487 | I29: 880485066 | J29: 945408382 | K29: 1131.679409 | L29: 230700785 | M29: 236667161 | N29: 5966376 | O29: 104 | P29: 0.03
A30: 36 | B30: Bourne | C30: 1678 | D30: 1698 | E30: 20 | F30: 22858350.51 | G30: 24109451.63 | H30: 736.808669 | I30: 18409357 | J30: 19319804 | K30: 536.1878681 | L30: 5472583 | M30: 5649175 | N30: 176592 | O30: 104 | P30: 0.03
A31: 38 | B31: Boxford | C31: 721 | D31: 745 | E31: 24 | F31: 8528050.268 | G31: 9024222.11 | H31: 666.002473 | I31: 6718468 | J31: 7139841 | K31: 565.6013423 | L31: 1855093 | M31: 1932573 | N31: 77480 | O31: 104 | P31: 0.04
A32: 40 | B32: Braintree | C32: 5244 | D32: 5181 | E32: -63 | F32: 72501248.64 | G32: 73532608.81 | H32: 199.0658497 | I32: 51848673 | J32: 55176708 | K32: 642.3537927 | L32: 20652576 | M32: 21191400 | N32: 538824 | O32: 104 | P32: 0.03
A33: 41 | B33: Brewster | C33: 418 | D33: 421 | E33: 3 | F33: 5743102.11 | G33: 5984373.99 | H33: 573.0923515 | I33: 4394765 | J33: 4937108 | K33: 1288.225653 | L33: 1377451 | M33: 1421235 | N33: 43784 | O33: 104 | P33: 0.03
A34: 43 | B34: Brimfield | C34: 264 | D34: 270 | E34: 6 | F34: 3511281.75 | G34: 3675840.46 | H34: 609.4767037 | I34: 1913482 | J34: 1922423 | K34: 33.11481481 | L34: 1597800 | M34: 1753417 | N34: 155617 | O34: 576.3592593 | P34: 0.1
A35: 44 | B35: Brockton | C35: 16619 | D35: 16775 | E35: 156 | F35: 295646847.7 | G35: 314919037.4 | H35: 1148.863769 | I35: 54579267 | J35: 58428285 | K35: 229.4496572 | L35: 241067581 | M35: 256490752 | N35: 15423171 | O35: 919.4140686 | P35: 0.06
A36: 45 | B36: Brookfield | C36: 223 | D36: 225 | E36: 2 | F36: 3240938.55 | G36: 3232462.2 | H36: -37.67266667 | I36: 1329203 | J36: 1406803 | K36: 344.8888889 | L36: 1911736 | M36: 1935136 | N36: 23400 | O36: 104 | P36: 0.01
A37: 46 | B37: Brookline | C37: 6913 | D37: 6899 | E37: -14 | F37: 89394640.06 | G37: 91993751.56 | H37: 376.7374249 | I37: 73750578 | J37: 75894845 | K37: 310.808378 | L37: 16035247 | M37: 16752743 | N37: 717496 | O37: 104 | P37: 0.04
A38: 48 | B38: Burlington | C38: 3424 | D38: 3523 | E38: 99 | F38: 46103747.99 | G38: 49033422.45 | H38: 831.5851427 | I38: 36818680 | J38: 39058316 | K38: 635.7184218 | L38: 9355284 | M38: 9975106 | N38: 619822 | O38: 175.9358501 | P38: 0.07
A39: 49 | B39: Cambridge | C39: 7030 | D39: 7297 | E39: 267 | F39: 112732473.5 | G39: 118963463.1 | H39: 853.9111466 | I39: 93004291 | J39: 98144857 | K39: 704.4766342 | L39: 19728183 | M39: 20818606 | N39: 1090423 | O39: 149.4344251 | P39: 0.06
A40: 50 | B40: Canton | C40: 3260 | D40: 3291 | E40: 31 | F40: 43350134.77 | G40: 44999693.3 | H40: 501.2332219 | I40: 34684949 | J40: 36588682 | K40: 578.4664236 | L40: 8665186 | M40: 9007450 | N40: 342264 | O40: 104 | P40: 0.04
A41: 51 | B41: Carlisle | C41: 567 | D41: 571 | E41: 4 | F41: 6639945.163 | G41: 6853478.081 | H41: 373.9630787 | I41: 5477955 | J41: 5654120 | K41: 308.5201401 | L41: 1387990 | M41: 1447374 | N41: 59384 | O41: 104 | P41: 0.04
A42: 52 | B42: Carver | C42: 1535 | D42: 1501 | E42: -34 | F42: 21283331.5 | G42: 20958681.78 | H42: -216.2889559 | I42: 10820042 | J42: 11414545 | K42: 396.0712858 | L42: 10463289 | M42: 10619393 | N42: 156104 | O42: 104 | P42: 0.01
A43: 56 | B43: Chelmsford | C43: 5108 | D43: 5181 | E43: 73 | F43: 63812307.76 | G43: 66887500.86 | H43: 593.5520363 | I43: 49670508 | J43: 52463272 | K43: 539.0395677 | L43: 14141800 | M43: 14680624 | N43: 538824 | O43: 104 | P43: 0.04
A44: 57 | B44: Chelsea | C44: 7110 | D44: 7095 | E44: -15 | F44: 138863180.5 | G44: 146924932.9 | H44: 1136.258268 | I44: 22081668 | J44: 23727035 | K44: 231.9051445 | L44: 116781512 | M44: 123197898 | N44: 6416386 | O44: 904.3532065 | P44: 0.05
A45: 61 | B45: Chicopee | C45: 7166 | D45: 7202 | E45: 36 | F45: 122693363.2 | G45: 129158251.1 | H45: 897.6517523 | I45: 33865812 | J45: 35132393 | K45: 175.8651763 | L45: 88827551 | M45: 94025858 | N45: 5198307 | O45: 721.7865871 | P45: 0.06
A46: 63 | B46: Clarksburg | C46: 171 | D46: 204 | E46: 33 | F46: 2395286.75 | G46: 2889718.21 | H46: 2423.683627 | I46: 736864 | J46: 806811 | K46: 342.877451 | L46: 1827355 | M46: 2082907 | N46: 255552 | O46: 1252.705882 | P46: 0.14
A47: 64 | B47: Clinton | C47: 2062 | D47: 2095 | E47: 33 | F47: 32534279.41 | G47: 34438020.57 | H47: 908.7069976 | I47: 13217258 | J47: 14024833 | K47: 385.477327 | L47: 19317021 | M47: 20413188 | N47: 1096167 | O47: 523.2300716 | P47: 0.06
A48: 65 | B48: Cohasset | C48: 1367 | D48: 1433 | E48: 66 | F48: 16687439.72 | G48: 17839057.45 | H48: 803.6411266 | I48: 13767138 | J48: 14717222 | K48: 663.0034892 | L48: 2955742 | M48: 3121835 | N48: 166093 | O48: 115.905792 | P48: 0.06
A49: 67 | B49: Concord | C49: 1925 | D49: 1943 | E49: 18 | F49: 23075622.33 | G49: 24161392.54 | H49: 558.8112236 | I49: 19037389 | J49: 19933149 | K49: 461.0190427 | L49: 4038233 | M49: 4240305 | N49: 202072 | O49: 104 | P49: 0.05
A50: 68 | B50: Conway | C50: 66 | D50: 68 | E50: 2 | F50: 941811.15 | G50: 969244.92 | H50: 403.4377941 | I50: 776994 | J50: 799627 | K50: 332.8382353 | L50: 637444 | M50: 644516 | N50: 7072 | O50: 104 | P50: 0.01
A51: 71 | B51: Danvers | C51: 3315 | D51: 3349 | E51: 34 | F51: 42331707.48 | G51: 44328380.18 | H51: 596.1996715 | I51: 33039603 | J51: 34918958 | K51: 561.1690057 | L51: 9292104 | M51: 9640400 | N51: 348296 | O51: 104 | P51: 0.04
A52: 72 | B52: Dartmouth | C52: 3303 | D52: 3284 | E52: -19 | F52: 43916766.76 | G52: 44678547.48 | H52: 231.9673325 | I52: 34831363 | J52: 36166183 | K52: 406.4616322 | L52: 10449331 | M52: 10790867 | N52: 341536 | O52: 104 | P52: 0.03
A53: 73 | B53: Dedham | C53: 2529 | D53: 2748 | E53: 219 | F53: 34648058.13 | G53: 39060888.15 | H53: 1605.83334 | I53: 27655361 | J53: 29321375 | K53: 606.2641921 | L53: 6992697 | M53: 9739513 | N53: 2746816 | O53: 999.5691412 | P53: 0.39
A54: 74 | B54: Deerfield | C54: 281 | D54: 279 | E54: -2 | F54: 3505682.31 | G54: 3547455.86 | H54: 149.7259857 | I54: 2863682 | J54: 2926651 | K54: 225.6953405 | L54: 1157053 | M54: 1186069 | N54: 29016 | O54: 104 | P54: 0.03
A55: 77 | B55: Douglas | C55: 1132 | D55: 1072 | E55: -60 | F55: 14574247.94 | G55: 14237865.39 | H55: -313.7896922 | I55: 8454786 | J55: 8850986 | K55: 369.5895522 | L55: 8927525 | M55: 9039013 | N55: 111488 | O55: 104 | P55: 0.01
A56: 78 | B56: Dover | C56: 500 | D56: 491 | E56: -9 | F56: 5901407.924 | G56: 5959421.474 | H56: 118.1538687 | I56: 4868661 | J56: 4916523 | K56: 97.47861507 | L56: 1032747 | M56: 1083811 | N56: 51064 | O56: 104 | P56: 0.05
A57: 79 | B57: Dracut | C57: 3900 | D57: 3837 | E57: -63 | F57: 54539267.46 | G57: 54583406.89 | H57: 11.50363044 | I57: 27369124 | J57: 27974680 | K57: 157.820172 | L57: 27170143 | M57: 27570439 | N57: 400296 | O57: 104.3252541 | P57: 0.01
A58: 82 | B58: Duxbury | C58: 2729 | D58: 2658 | E58: -71 | F58: 33659011.2 | G58: 33652713.46 | H58: -2.369353898 | I58: 26987503 | J58: 27763489 | K58: 291.9435666 | L58: 6671508 | M58: 6947940 | N58: 276432 | O58: 104 | P58: 0.04
A59: 83 | B59: East Bridgewater | C59: 2022 | D59: 1963 | E59: -59 | F59: 26867274.06 | G59: 26713492.3 | H59: -78.3401732 | I59: 13993957 | J59: 14744525 | K59: 382.3576159 | L59: 12873317 | M59: 13077469 | N59: 204152 | O59: 104 | P59: 0.02
A60: 85 | B60: Eastham | C60: 197 | D60: 198 | E60: 1 | F60: 2896212.01 | G60: 2893667.62 | H60: -12.85045455 | I60: 2389375 | J60: 2387276 | K60: -10.6010101 | L60: 506837 | M60: 527429 | N60: 20592 | O60: 104 | P60: 0.04
A61: 86 | B61: Easthampton | C61: 1591 | D61: 1580 | E61: -11 | F61: 22559015.46 | G61: 23097746.73 | H61: 340.9691582 | I61: 13894543 | J61: 14936633 | K61: 659.5506329 | L61: 8664472 | M61: 8828792 | N61: 164320 | O61: 104 | P61: 0.02
A62: 87 | B62: East Longmeadow | C62: 2552 | D62: 2522 | E62: -30 | F62: 33881345.88 | G62: 34416160.82 | H62: 212.0598493 | I62: 18843898 | J62: 19663608 | K62: 325.0237906 | L62: 15037448 | M62: 15299736 | N62: 262288 | O62: 104 | P62: 0.02
A63: 88 | B63: Easton | C63: 3418 | D63: 3404 | E63: -14 | F63: 43192301.49 | G63: 44308894.52 | H63: 328.0238043 | I63: 33376275 | J63: 34692019 | K63: 386.5287897 | L63: 10655421 | M63: 11009437 | N63: 354016 | O63: 104 | P63: 0.03
A64: 89 | B64: Edgartown | C64: 438 | D64: 434 | E64: -4 | F64: 6660865.34 | G64: 6714943.73 | H64: 124.6045853 | I64: 5495214 | J64: 5539828 | K64: 102.797235 | L64: 1165651 | M64: 1210787 | N64: 45136 | O64: 104 | P64: 0.04
A65: 91 | B65: Erving | C65: 203 | D65: 204 | E65: 1 | F65: 2671388.78 | G65: 2756151.77 | H65: 415.5048529 | I65: 2115389 | J65: 2220663 | K65: 516.0490196 | L65: 556000 | M65: 577216 | N65: 21216 | O65: 104 | P65: 0.04
A66: 93 | B66: Everett | C66: 7937 | D66: 8020 | E66: 83 | F66: 152643280.5 | G66: 161811104.9 | H66: 1143.120246 | I66: 40961068 | J66: 43738229 | K66: 346.2794264 | L66: 111682212 | M66: 118072876 | N66: 6390664 | O66: 796.8408978 | P66: 0.06
A67: 94 | B67: Fairhaven | C67: 1659 | D67: 1595 | E67: -64 | F67: 23768492.65 | G67: 23598054.43 | H67: -106.8578182 | I67: 14136790 | J67: 14889430 | K67: 471.8746082 | L67: 9631703 | M67: 9797583 | N67: 165880 | O67: 104 | P67: 0.02
A68: 95 | B68: Fall River | C68: 12238 | D68: 12433 | E68: 195 | F68: 226544925.6 | G68: 243053149.8 | H68: 1327.774806 | I68: 38520449 | J68: 40721548 | K68: 177.0368374 | L68: 188024477 | M68: 202331602 | N68: 14307125 | O68: 1150.737955 | P68: 0.08
A69: 96 | B69: Falmouth | C69: 2959 | D69: 2870 | E69: -89 | F69: 42847018.86 | G69: 43218462.88 | H69: 129.4230035 | I69: 33524110 | J69: 35655232 | K69: 742.5512195 | L69: 9322909 | M69: 9621389 | N69: 298480 | O69: 104 | P69: 0.03
A70: 97 | B70: Fitchburg | C70: 5661 | D70: 5623 | E70: -38 | F70: 96678430.43 | G70: 101071841.4 | H70: 781.3286431 | I70: 21950317 | J70: 23118748 | K70: 207.7949493 | L70: 74728113 | M70: 77953093 | N70: 3224980 | O70: 573.5337009 | P70: 0.04
A71: 98 | B71: Florida | C71: 57 | D71: 55 | E71: -2 | F71: 917915.93 | G71: 865066.34 | H71: -960.9016364 | I71: 425391 | J71: 439942 | K71: 264.5636364 | L71: 559717 | M71: 565437 | N71: 5720 | O71: 104 | P71: 0.01
A72: 99 | B72: Foxborough | C72: 2537 | D72: 2573 | E72: 36 | F72: 34005786 | G72: 35604499.84 | H72: 621.3423379 | I72: 27296530 | J72: 28583943 | K72: 500.3548387 | L72: 9428040 | M72: 9695632 | N72: 267592 | O72: 104 | P72: 0.03
A73: 100 | B73: Framingham | C73: 9759 | D73: 9521 | E73: -238 | F73: 159351946.8 | G73: 164084535.7 | H73: 497.0684665 | I73: 74355413 | J73: 78033062 | K73: 386.2670938 | L73: 84996534 | M73: 85986718 | N73: 990184 | O73: 104 | P73: 0.01
A74: 101 | B74: Franklin | C74: =VLOOKUP(A74,aidcalc,14,FALSE) -> 5104 | D74: =VLOOKUP(A74,aidcalc,15,FALSE) -> 5058 | E74: =D74-C74 -> -46 | F74: =VLOOKUP(A74,aidcalc,4,FALSE) -> 65275976.23 | G74: =VLOOKUP(A74,aidcalc,9,FALSE) -> 66584573.91 | H74: =(G74-F74)/$D74 -> 258.7184015 | I74: =VLOOKUP(A74,aidcalc,5,FALSE) -> 47235495 | J74: =VLOOKUP(A74,aidcalc,10,FALSE) -> 49904466 | K74: =(J74-I74)/$D74 -> 527.673191 | L74: =VLOOKUP(A74,aidcalc,6,FALSE) -> 29191961 | M74: =VLOOKUP(A74,aidcalc,25,FALSE) -> 29717993 | N74: =M74-L74 -> 526032 | O74: =(M74-L74)/$D74 -> 104 | P74: =ROUND(IF(F74>0,(M74-L74)/L74,100),2) -> 0.02
A75: 103 | B75: Gardner | C75: 2397 | D75: 2453 | E75: 56 | F75: 38690363.83 | G75: 41586508.2 | H75: 1180.654044 | I75: 11262118 | J75: 11909298 | K75: 263.8320424 | L75: 27428246 | M75: 29677210 | N75: 2248964 | O75: 916.8218508 | P75: 0.08
A76: 105 | B76: Georgetown | C76: 1229 | D76: 1196 | E76: -33 | F76: 15011687.49 | G76: 15097839.61 | H76: 72.03354515 | I76: 11377637 | J76: 11942079 | K76: 471.9414716 | L76: 5713498 | M76: 5837882 | N76: 124384 | O76: 104 | P76: 0.02
A77: 107 | B77: Gloucester | C77: 3035 | D77: 3064 | E77: 29 | F77: 47045109.89 | G77: 49375946.82 | H77: 760.7170144 | I77: 35714197 | J77: 37665556 | K77: 636.8665144 | L77: 11330913 | M77: 11710391 | N77: 379478 | O77: 123.8505222 | P77: 0.03
A78: 110 | B78: Grafton | C78: 2950 | D78: 2902 | E78: -48 | F78: 36858149.16 | G78: 37107723.81 | H78: 86.00091316 | I78: 24436656 | J78: 25816666 | K78: 475.5375603 | L78: 12794520 | M78: 13096328 | N78: 301808 | O78: 104 | P78: 0.02
A79: 111 | B79: Granby | C79: 672 | D79: 655 | E79: -17 | F79: 9588488.89 | G79: 9658208.78 | H79: 106.4425802 | I79: 5667319 | J79: 5916543 | K79: 380.4946565 | L79: 4765430 | M79: 4833550 | N79: 68120 | O79: 104 | P79: 0.01
A80: 114 | B80: Greenfield | C80: 1791 | D80: 1759 | E80: -32 | F80: 27294290.69 | G80: 27960950.6 | H80: 378.9993803 | I80: 11091044 | J80: 11465787 | K80: 213.0432064 | L80: 16203247 | M80: 16495164 | N80: 291917 | O80: 165.9562251 | P80: 0.02
A81: 117 | B81: Hadley | C81: 456 | D81: 449 | E81: -7 | F81: 6277106.59 | G81: 6210751.32 | H81: -147.7845657 | I81: 5178613 | J81: 5123870 | K81: -121.922049 | L81: 1350100 | M81: 1396796 | N81: 46696 | O81: 104 | P81: 0.03
A82: 118 | B82: Halifax | C82: 613 | D82: 564 | E82: -49 | F82: 7849455.023 | G82: 7511760.556 | H82: -598.749055 | I82: 4340378 | J82: 4050476 | K82: -514.0106383 | L82: 3509077 | M82: 3567733 | N82: 58656 | O82: 104 | P82: 0.02
A83: 121 | B83: Hancock | C83: 86 | D83: 85 | E83: -1 | F83: 1216494.75 | G83: 1270682.74 | H83: 637.5057647 | I83: 780690 | J83: 820427 | K83: 467.4941176 | L83: 435805 | M83: 450256 | N83: 14451 | O83: 170.0117647 | P83: 0.03
A84: 122 | B84: Hanover | C84: 2481 | D84: 2497 | E84: 16 | F84: 30800181.27 | G84: 31861566.58 | H84: 425.0642003 | I84: 23372172 | J84: 24358612 | K84: 395.0500601 | L84: 7458443 | M84: 7718131 | N84: 259688 | O84: 104 | P84: 0.03
A85: 125 | B85: Harvard | C85: 875 | D85: 881 | E85: 6 | F85: 10576374.95 | G85: 10978851.09 | H85: 456.8401135 | I85: 8379508 | J85: 8697832 | K85: 361.3212259 | L85: 2196867 | M85: 2288491 | N85: 91624 | O85: 104 | P85: 0.04
A86: 127 | B86: Hatfield | C86: 317 | D86: 310 | E86: -7 | F86: 4215602.35 | G86: 4167872.81 | H86: -153.9662581 | I86: 3472030 | J86: 3438495 | K86: -108.1774194 | L86: 895156 | M86: 927396 | N86: 32240 | O86: 104 | P86: 0.04
A87: 128 | B87: Haverhill | C87: 8287 | D87: 8401 | E87: 114 | F87: 132551888.2 | G87: 140921702.3 | H87: 996.2878336 | I87: 49918077 | J87: 52953650 | K87: 361.3347221 | L87: 82633811 | M87: 87968052 | N87: 5334241 | O87: 634.9531008 | P87: 0.06
A88: 131 | B88: Hingham | C88: 3807 | D88: 3606 | E88: -201 | F88: 47057670.47 | G88: 45884665.99 | H88: -325.2924232 | I88: 38822578 | J88: 37854849 | K88: -268.3663339 | L88: 8535193 | M88: 8910217 | N88: 375024 | O88: 104 | P88: 0.04
A89: 133 | B89: Holbrook | C89: 1352 | D89: 1355 | E89: 3 | F89: 20493828.68 | G89: 21278519.47 | H89: 579.1075962 | I89: 9611922 | J89: 10008705 | K89: 292.8287823 | L89: 10881907 | M89: 11269814 | N89: 387907 | O89: 286.2782288 | P89: 0.04
A90: 135 | B90: Holland | C90: 175 | D90: 157 | E90: -18 | F90: 2529520.89 | G90: 2372741.1 | H90: -998.5973885 | I90: 1516165 | J90: 1515869 | K90: -1.885350318 | L90: 1013356 | M90: 1029684 | N90: 16328 | O90: 104 | P90: 0.02
A91: 136 | B91: Holliston | C91: 2686 | D91: 2652 | E91: -34 | F91: 32828254.54 | G91: 33400106.24 | H91: 215.6303557 | I91: 23937028 | J91: 25423217 | K91: 560.403092 | L91: 8912782 | M91: 9188590 | N91: 275808 | O91: 104 | P91: 0.03
A92: 137 | B92: Holyoke | C92: 5926 | D92: 5850 | E92: -76 | F92: 109412142.3 | G92: 114374878.1 | H92: 848.3309026 | I92: 12452771 | J92: 13183748 | K92: 124.9533333 | L92: 96959371 | M92: 101191130 | N92: 4231759 | O92: 723.3776068 | P92: 0.04
A93: 138 | B93: Hopedale | C93: 875 | D93: 865 | E93: -10 | F93: 11489500.85 | G93: 11657637.4 | H93: 194.3775145 | I93: 6489561 | J93: 6842443 | K93: 407.9560694 | L93: 6221250 | M93: 6311210 | N93: 89960 | O93: 104 | P93: 0.01
A94: 139 | B94: Hopkinton | C94: 4139 | D94: 4165 | E94: 26 | F94: 50873294.83 | G94: 52668757.26 | H94: 431.0834167 | I94: 41073636 | J94: 43451724 | K94: 570.9695078 | L94: 9799659 | M94: 10232819 | N94: 433160 | O94: 104 | P94: 0.04
A95: 141 | B95: Hudson | C95: 2417 | D95: 2407 | E95: -10 | F95: 34207457.53 | G95: 35386035.23 | H95: 489.6459092 | I95: 21209511 | J95: 22432839 | K95: 508.2376402 | L95: 12997947 | M95: 13248275 | N95: 250328 | O95: 104 | P95: 0.02
A96: 142 | B96: Hull | C96: 791 | D96: 757 | E96: -34 | F96: 10986735.57 | G96: 10813118.21 | H96: -229.3492198 | I96: 9052274 | J96: 8920823 | K96: -173.6472919 | L96: 3996296 | M96: 4075024 | N96: 78728 | O96: 104 | P96: 0.02
A97: 144 | B97: Ipswich | C97: 1557 | D97: 1551 | E97: -6 | F97: 20567036.16 | G97: 21036885.2 | H97: 302.9329778 | I97: 16419694 | J97: 17194551 | K97: 499.5854288 | L97: 4147342 | M97: 4308646 | N97: 161304 | O97: 104 | P97: 0.04
A98: 145 | B98: Kingston | C98: 1125 | D98: 1151 | E98: 26 | F98: 14371240.41 | G98: 14866128.2 | H98: 429.9633282 | I98: 8940323 | J98: 9396563 | K98: 396.3857515 | L98: 5430917 | M98: 5550621 | N98: 119704 | O98: 104 | P98: 0.02
A99: 149 | B99: Lawrence | C99: 14566 | D99: 14816 | E99: 250 | F99: 279873222.1 | G99: 301454148.4 | H99: 1456.595996 | I99: 13728391 | J99: 15203337 | K99: 99.55089093 | L99: 266144831 | M99: 286250811 | N99: 20105980 | O99: 1357.045086 | P99: 0.08
A100: 150 | B100: Lee | C100: 570 | D100: 549 | E100: -21 | F100: 8739704.66 | G100: 8566370.2 | H100: -315.7276138 | I100: 6760874 | J100: 7067255 | K100: 558.0710383 | L100: 2170239 | M100: 2227335 | N100: 57096 | O100: 104 | P100: 0.03
A101: 151 | B101: Leicester | C101: 1443 | D101: 1405 | E101: -38 | F101: 20759208.56 | G101: 21380842.22 | H101: 442.4438861 | I101: 9660962 | J101: 10610635 | K101: 675.9238434 | L101: 11098247 | M101: 11244367 | N101: 146120 | O101: 104 | P101: 0.01
A102: 152 | B102: Lenox | C102: 489 | D102: 482 | E102: -7 | F102: 6717817.41 | G102: 6823610.07 | H102: 219.4868465 | I102: 5422289 | J102: 5629478 | K102: 429.8526971 | L102: 1345245 | M102: 1395373 | N102: 50128 | O102: 104 | P102: 0.04
A103: 153 | B103: Leominster | C103: 6020 | D103: 6009 | E103: -11 | F103: 99599000.58 | G103: 103734761.7 | H103: 688.2611217 | I103: 35204065 | J103: 36964269 | K103: 292.9279414 | L103: 64394936 | M103: 66770493 | N103: 2375557 | O103: 395.3331669 | P103: 0.04
A104: 154 | B104: Leverett | C104: 101 | D104: 105 | E104: 4 | F104: 1255147.3 | G104: 1407132.92 | H104: 1447.482095 | I104: 954740 | J104: 1083930 | K104: 1230.380952 | L104: 396968 | M104: 407888 | N104: 10920 | O104: 104 | P104: 0.03
A105: 155 | B105: Lexington | C105: 6893 | D105: 6851 | E105: -42 | F105: 90646899.41 | G105: 91458917.92 | H105: 118.5255461 | I105: 73037768 | J105: 75453607 | K105: 352.6257481 | L105: 17609131 | M105: 18321635 | N105: 712504 | O105: 104 | P105: 0.04
A106: 157 | B106: Lincoln | C106: 586 | D106: 585 | E106: -1 | F106: 7355301.967 | G106: 7515362.228 | H106: 273.6072829 | I106: 6068124 | J106: 6200174 | K106: 225.7264957 | L106: 1287178 | M106: 1348018 | N106: 60840 | O106: 104 | P106: 0.05
A107: 158 | B107: Littleton | C107: 1665 | D107: 1636 | E107: -29 | F107: 20056951.58 | G107: 20185599.03 | H107: 78.63536064 | I107: 15207996 | J107: 15942774 | K107: 449.1308068 | L107: 4848956 | M107: 5019100 | N107: 170144 | O107: 104 | P107: 0.04
A108: 159 | B108: Longmeadow | C108: 2725 | D108: 2723 | E108: -2 | F108: 33192700.99 | G108: 34218165.74 | H108: 376.5937385 | I108: 26093332 | J108: 27327546 | K108: 453.2552332 | L108: 7099369 | M108: 7382561 | N108: 283192 | O108: 104 | P108: 0.04
A109: 160 | B109: Lowell | C109: 16323 | D109: 16506 | E109: 183 | F109: 288791629.5 | G109: 308040584.4 | H109: 1166.179263 | I109: 60097975 | J109: 64989538 | K109: 296.3505998 | L109: 229138873 | M109: 243051046 | N109: 13912173 | O109: 842.8555071 | P109: 0.06
A110: 161 | B110: Ludlow | C110: 2248 | D110: 2221 | E110: -27 | F110: 32627792.16 | G110: 33328396.51 | H110: 315.4454525 | I110: 18168773 | J110: 18877355 | K110: 319.0373706 | L110: 14459019 | M110: 14690003 | N110: 230984 | O110: 104 | P110: 0.02
A111: 162 | B111: Lunenburg | C111: 1615 | D111: 1633 | E111: 18 | F111: 20659694.91 | G111: 21553250.21 | H111: 547.1863442 | I111: 11910986 | J111: 12595979 | K111: 419.4690753 | L111: 8819128 | M111: 8988960 | N111: 169832 | O111: 104 | P111: 0.02
A112: 163 | B112: Lynn | C112: 17895 | D112: 18143 | E112: 248 | F112: 329943497.1 | G112: 351967448.9 | H112: 1213.909045 | I112: 60851330 | J112: 64398962 | K112: 195.537232 | L112: 269092167 | M112: 287568487 | N112: 18476320 | O112: 1018.371824 | P112: 0.07
A113: 164 | B113: Lynnfield | C113: 2207 | D113: 2195 | E113: -12 | F113: 27452371.78 | G113: 27975039.2 | H113: 238.1172746 | I113: 21507362 | J113: 22407746 | K113: 410.1977221 | L113: 5945010 | M113: 6173290 | N113: 228280 | O113: 104 | P113: 0.04
A114: 165 | B114: Malden | C114: 6940 | D114: 6863 | E114: -77 | F114: 117616659.1 | G114: 121527751.1 | H114: 569.8808074 | I114: 54419682 | J114: 57647090 | K114: 470.2619846 | L114: 63196977 | M114: 63910729 | N114: 713752 | O114: 104 | P114: 0.01
A115: 167 | B115: Mansfield | C115: 3485 | D115: 3412 | E115: -73 | F115: 46129087.01 | G115: 46131542.89 | H115: 0.7197772861 | I115: 32585038 | J115: 34993046 | K115: 705.7467761 | L115: 19491149 | M115: 19845997 | N115: 354848 | O115: 104 | P115: 0.02
A116: 168 | B116: Marblehead | C116: 2658 | D116: 2588 | E116: -70 | F116: 32681938.29 | G116: 32926181.66 | H116: 94.37533617 | I116: 26962599 | J116: 27164100 | K116: 77.85973725 | L116: 6354327 | M116: 6623479 | N116: 269152 | O116: 104 | P116: 0.04
A117: 169 | B117: Marion | C117: 401 | D117: 388 | E117: -13 | F117: 5068217.26 | G117: 5105842 | H117: 96.97097938 | I117: 3913467 | J117: 3952749 | K117: 101.242268 | L117: 1154750 | M117: 1195102 | N117: 40352 | O117: 104 | P117: 0.03
A118: 170 | B118: Marlborough | C118: 5370 | D118: 5345 | E118: -25 | F118: 87221685 | G118: 91366536.51 | H118: 775.4633326 | I118: 41360456 | J118: 43502723 | K118: 400.7983162 | L118: 45861229 | M118: 47863814 | N118: 2002585 | O118: 374.6651076 | P118: 0.04
A119: 171 | B119: Marshfield | C119: 3783 | D119: 3669 | E119: -114 | F119: 49950295.56 | G119: 49730334.69 | H119: -59.95117694 | I119: 39070159 | J119: 40410183 | K119: 365.2286727 | L119: 15233203 | M119: 15590973 | N119: 357770 | O119: 97.51158354 | P119: 0.02
A120: 172 | B120: Mashpee | C120: 1422 | D120: 1416 | E120: -6 | F120: 20496134.48 | G120: 21264618.64 | H120: 542.7148023 | I120: 16524355 | J120: 17203029 | K120: 479.289548 | L120: 4858266 | M120: 5005530 | N120: 147264 | O120: 104 | P120: 0.03
A121: 173 | B121: Mattapoisett | C121: 414 | D121: 383 | E121: -31 | F121: 5079932.73 | G121: 4865916.08 | H121: -558.7902089 | I121: 4120905 | J121: 4014381 | K121: -278.1305483 | L121: 1005221 | M121: 1045053 | N121: 39832 | O121: 104 | P121: 0.04
A122: 174 | B122: Maynard | C122: 1240 | D122: 1258 | E122: 18 | F122: 17768872.03 | G122: 17943402.25 | H122: 138.7362606 | I122: 12105654 | J122: 12813459 | K122: 562.6430843 | L122: 5663218 | M122: 5794050 | N122: 130832 | O122: 104 | P122: 0.02
A123: 175 | B123: Medfield | C123: 2427 | D123: 2371 | E123: -56 | F123: 29777089 | G123: 29971700.25 | H123: 82.07982113 | I123: 23849002 | J123: 24726652 | K123: 370.1602699 | L123: 6653094 | M123: 6899678 | N123: 246584 | O123: 104 | P123: 0.04
A124: 176 | B124: Medford | C124: 4559 | D124: 4524 | E124: -35 | F124: 71888258.34 | G124: 73681605.55 | H124: 396.4074281 | I124: 54480958 | J124: 57259487 | K124: 614.1752874 | L124: 17407300 | M124: 17877796 | N124: 470496 | O124: 104 | P124: 0.03
A125: 177 | B125: Medway | C125: 2120 | D125: 2157 | E125: 37 | F125: 26890897.84 | G125: 28282405.94 | H125: 645.1126999 | I125: 19298650 | J125: 20376839 | K125: 499.8558183 | L125: 10818549 | M125: 11042877 | N125: 224328 | O125: 104 | P125: 0.02
A126: 178 | B126: Melrose | C126: 4062 | D126: 4112 | E126: 50 | F126: 51330398.77 | G126: 53488054.66 | H126: 524.721764 | I126: 39070041 | J126: 41053058 | K126: 482.251216 | L126: 12260358 | M126: 12688006 | N126: 427648 | O126: 104 | P126: 0.03
A127: 181 | B127: Methuen | C127: 6775 | D127: 6860 | E127: 85 | F127: 109298849.8 | G127: 115622808.2 | H127: 921.8598251 | I127: 44617436 | J127: 47005987 | K127: 348.185277 | L127: 64681414 | M127: 68616821 | N127: 3935407 | O127: 573.6744898 | P127: 0.06
A128: 182 | B128: Middleborough | C128: 3137 | D128: 3086 | E128: -51 | F128: 44333813.13 | G128: 45255834.98 | H128: 298.7757129 | I128: 22002952 | J128: 23019131 | K128: 329.286779 | L128: 22330861 | M128: 22651805 | N128: 320944 | O128: 104 | P128: 0.01
A129: 184 | B129: Middleton | C129: 703 | D129: 702 | E129: -1 | F129: 8542770.197 | G129: 8701795.6 | H129: 226.5319137 | I129: 6914393 | J129: 7178981 | K129: 376.9059829 | L129: 1769171 | M129: 1842179 | N129: 73008 | O129: 104 | P129: 0.04
A130: 185 | B130: Milford | C130: 4704 | D130: 4680 | E130: -24 | F130: 75437511.28 | G130: 79260184.29 | H130: 816.810472 | I130: 28632172 | J130: 30457781 | K130: 390.0873932 | L130: 46805339 | M130: 48802403 | N130: 1997064 | O130: 426.7230769 | P130: 0.04
A131: 186 | B131: Millbury | C131: 1638 | D131: 1646 | E131: 8 | F131: 22434599.24 | G131: 23341579.9 | H131: 551.0210571 | I131: 13581840 | J131: 14332855 | K131: 456.2667072 | L131: 8852759 | M131: 9023943 | N131: 171184 | O131: 104 | P131: 0.02
A132: 187 | B132: Millis | C132: 1089 | D132: 1086 | E132: -3 | F132: 14054851.19 | G132: 14399304.71 | H132: 317.1763487 | I132: 11047181 | J132: 11879426 | K132: 766.339779 | L132: 4992022 | M132: 5104966 | N132: 112944 | O132: 104 | P132: 0.02
A133: 189 | B133: Milton | C133: 4294 | D133: 4303 | E133: 9 | F133: 53957475.52 | G133: 55677434.43 | H133: 399.7115761 | I133: 42281594 | J133: 44754901 | K133: 574.7866605 | L133: 11675882 | M133: 12123394 | N133: 447512 | O133: 104 | P133: 0.04
A134: 191 | B134: Monson | C134: 810 | D134: 811 | E134: 1 | F134: 11361547.17 | G134: 11739604.36 | H134: 466.1617633 | I134: 6395027 | J134: 6544648 | K134: 184.4895191 | L134: 7667285 | M134: 7751629 | N134: 84344 | O134: 104 | P134: 0.01
A135: 196 | B135: Nahant | C135: 248 | D135: 238 | E135: -10 | F135: 2954392.42 | G135: 2904538.07 | H135: -209.4720588 | I135: 2437374 | J135: 2396244 | K135: -172.8151261 | L135: 561403 | M135: 586155 | N135: 24752 | O135: 104 | P135: 0.04
A136: 197 | B136: Nantucket | C136: 1713 | D136: 1668 | E136: -45 | F136: 25201462.49 | G136: 25535123.51 | H136: 200.0365827 | I136: 20791207 | J136: 21066477 | K136: 165.029976 | L136: 4410255 | M136: 4583727 | N136: 173472 | O136: 104 | P136: 0.04
A137: 198 | B137: Natick | C137: 5309 | D137: 5293 | E137: -16 | F137: 65231071.03 | G137: 67714131.17 | H137: 469.1215076 | I137: 52065336 | J137: 54650974 | K137: 488.501417 | L137: 13165735 | M137: 13716207 | N137: 550472 | O137: 104 | P137: 0.04
A138: 199 | B138: Needham | C138: =VLOOKUP(A138,aidcalc,14,FALSE) -> 5558 | D138: =VLOOKUP(A138,aidcalc,15,FALSE) -> 5582 | E138: =D138-C138 -> 24 | F138: =VLOOKUP(A138,aidcalc,4,FALSE) -> 70773642.89 | G138: =VLOOKUP(A138,aidcalc,9,FALSE) -> 72809517.78 | H138: =(G138-F138)/$D138 -> 364.7214074 | I138: =VLOOKUP(A138,aidcalc,5,FALSE) -> 57461187 | J138: =VLOOKUP(A138,aidcalc,10,FALSE) -> 60067852 | K138: =(J138-I138)/$D138 -> 466.97689 | L138: =VLOOKUP(A138,aidcalc,6,FALSE) -> 13312456 | M138: =VLOOKUP(A138,aidcalc,25,FALSE) -> 13892984 | N138: =M138-L138 -> 580528 | O138: =(M138-L138)/$D138 -> 104 | P138: =ROUND(IF(F138>0,(M138-L138)/L138,100),2) -> 0.04
A139: 201 | B139: New Bedford | C139: 14148 | D139: 14110 | E139: -38 | F139: 259908138.3 | G139: 274431862.4 | H139: 1029.321342 | I139: 35809016 | J139: 38100672 | K139: 162.4136074 | L139: 224099122 | M139: 236331190 | N139: 12232068 | O139: 866.907725 | P139: 0.05
A140: 204 | B140: Newburyport | C140: 2232 | D140: 2185 | E140: -47 | F140: 27448207.99 | G140: 27513365.69 | H140: 29.82045767 | I140: 21788063 | J140: 22663896 | K140: 400.8389016 | L140: 5660145 | M140: 5887385 | N140: 227240 | O140: 104 | P140: 0.04
A141: 207 | B141: Newton | C141: 11885 | D141: 11757 | E141: -128 | F141: 156764603.6 | G141: 159609730.4 | H141: 241.9942804 | I141: 129330798 | J141: 131678028 | K141: 199.6453177 | L141: 27433806 | M141: 28656534 | N141: 1222728 | O141: 104 | P141: 0.04
A142: 208 | B142: Norfolk | C142: 1010 | D142: 1031 | E142: 21 | F142: 11993145.44 | G142: 12579945.42 | H142: 569.1561387 | I142: 9300692 | J142: 9800477 | K142: 484.757517 | L142: 3612405 | M142: 3719629 | N142: 107224 | O142: 104 | P142: 0.03
A143: 209 | B143: North Adams | C143: 1315 | D143: 1280 | E143: -35 | F143: 21755055.92 | G143: 22174984.27 | H143: 328.0690234 | I143: 5538974 | J143: 5756158 | K143: 169.675 | L143: 16216082 | M143: 16418826 | N143: 202744 | O143: 158.39375 | P143: 0.01
A144: 210 | B144: Northampton | C144: 2668 | D144: 2600 | E144: -68 | F144: 35618666.02 | G144: 35941837.47 | H144: 124.2967115 | I144: 28077001 | J144: 29043502 | K144: 371.7311538 | L144: 7958689 | M144: 8229089 | N144: 270400 | O144: 104 | P144: 0.03
A145: 211 | B145: North Andover | C145: 4505 | D145: 4460 | E145: -45 | F145: 57569717.3 | G145: 58940201.54 | H145: 307.2834619 | I145: 45627018 | J145: 47473051 | K145: 413.9087444 | L145: 11942699 | M145: 12406539 | N145: 463840 | O145: 104 | P145: 0.04
A146: 212 | B146: North Attleborough | C146: 4031 | D146: 3974 | E146: -57 | F146: 51608133.33 | G146: 52550990.75 | H146: 237.2565224 | I146: 32183541 | J146: 34400627 | K146: 557.8978359 | L146: 21293531 | M146: 21706827 | N146: 413296 | O146: 104 | P146: 0.02
A147: 213 | B147: Northborough | C147: 1618 | D147: 1667 | E147: 49 | F147: 19538316.1 | G147: 20846041.26 | H147: 784.4782004 | I147: 15713655 | J147: 16677517 | K147: 578.2015597 | L147: 4232990 | M147: 4406358 | N147: 173368 | O147: 104 | P147: 0.04
A148: 214 | B148: Northbridge | C148: 1997 | D148: 1918 | E148: -79 | F148: 28109617.77 | G148: 27773856.9 | H148: -175.057805 | I148: 14472856 | J148: 15208759 | K148: 383.6824818 | L148: 15905881 | M148: 16105353 | N148: 199472 | O148: 104 | P148: 0.01
A149: 215 | B149: North Brookfield | C149: 574 | D149: 565 | E149: -9 | F149: 8281136.67 | G149: 8161429.12 | H149: -211.8717699 | I149: 3375581 | J149: 3523318 | K149: 261.4814159 | L149: 4905556 | M149: 4964316 | N149: 58760 | O149: 104 | P149: 0.01
A150: 217 | B150: North Reading | C150: 2269 | D150: 2260 | E150: -9 | F150: 29062440.79 | G150: 29675954.01 | H150: 271.4660242 | I150: 23011257 | J150: 24047692 | K150: 458.5995575 | L150: 7492247 | M150: 7727287 | N150: 235040 | O150: 104 | P150: 0.03
A151: 218 | B151: Norton | C151: 2189 | D151: 2173 | E151: -16 | F151: 29128867.22 | G151: 29386897.03 | H151: 118.7435849 | I151: 20948264 | J151: 22278223 | K151: 612.038196 | L151: 13160540 | M151: 13386532 | N151: 225992 | O151: 104 | P151: 0.02
A152: 219 | B152: Norwell | C152: 2100 | D152: 2115 | E152: 15 | F152: 25956168.81 | G152: 26697645.46 | H152: 350.5799783 | I152: 20944041 | J152: 22025558 | K152: 511.3555556 | L152: 5012128 | M152: 5232088 | N152: 219960 | O152: 104 | P152: 0.04
A153: 220 | B153: Norwood | C153: 3547 | D153: 3596 | E153: 49 | F153: 53483623.87 | G153: 56535316.26 | H153: 848.635259 | I153: 37142187 | J153: 39118730 | K153: 549.6504449 | L153: 16341437 | M153: 17416586 | N153: 1075149 | O153: 298.9847052 | P153: 0.07
A154: 221 | B154: Oak Bluffs | C154: 435 | D154: 421 | E154: -14 | F154: 6470637.93 | G154: 6233849.85 | H154: -562.4419952 | I154: 4519073 | J154: 5142926 | K154: 1481.836105 | L154: 1951565 | M154: 1995349 | N154: 43784 | O154: 104 | P154: 0.02
A155: 223 | B155: Orange | C155: 583 | D155: 573 | E155: -10 | F155: 9212499.92 | G155: 9418168.63 | H155: 358.9331763 | I155: 2332598 | J155: 2446944 | K155: 199.556719 | L155: 6879902 | M155: 6971225 | N155: 91323 | O155: 159.3769634 | P155: 0.01
A156: 224 | B156: Orleans | C156: 149 | D156: 145 | E156: -4 | F156: 2114047.88 | G156: 2052611.25 | H156: -423.7008966 | I156: 1744090 | J156: 1693404 | K156: -349.5586207 | L156: 454554 | M156: 469634 | N156: 15080 | O156: 104 | P156: 0.03
A157: 226 | B157: Oxford | C157: 1526 | D157: 1569 | E157: 43 | F157: 21950126.81 | G157: 23877644.36 | H157: 1228.500669 | I157: 10995071 | J157: 11652431 | K157: 418.9674952 | L157: 10955056 | M157: 12225213 | N157: 1270157 | O157: 809.5328235 | P157: 0.12
A158: 227 | B158: Palmer | C158: 1244 | D158: 1196 | E158: -48 | F158: 19001379.49 | G158: 19106951.32 | H158: 88.27076087 | I158: 7280709 | J158: 7584489 | K158: 253.9966555 | L158: 11720670 | M158: 11845054 | N158: 124384 | O158: 104 | P158: 0.01
A159: 229 | B159: Peabody | C159: 5959 | D159: 5981 | E159: 22 | F159: 91177548.53 | G159: 95329652.76 | H159: 694.2157215 | I159: 55819170 | J159: 58256933 | K159: 407.5845176 | L159: 35358379 | M159: 37072720 | N159: 1714341 | O159: 286.6311654 | P159: 0.05
A160: 230 | B160: Pelham | C160: 63 | D160: 63 | E160: 0 | F160: 858482.56 | G160: 910076.45 | H160: 818.9506349 | I160: 631932 | J160: 661794 | K160: 474 | L160: 248263 | M160: 254815 | N160: 6552 | O160: 104 | P160: 0.03
A161: 231 | B161: Pembroke | C161: 2599 | D161: 2483 | E161: -116 | F161: 33926554.38 | G161: 33089290.71 | H161: -337.1984189 | I161: 23884371 | J161: 25260111 | K161: 554.0636327 | L161: 14008892 | M161: 14267124 | N161: 258232 | O161: 104 | P161: 0.02
A162: 234 | B162: Petersham | C162: 77 | D162: 83 | E162: 6 | F162: 1133842.72 | G162: 1204091.58 | H162: 846.3718072 | I162: 637636 | J162: 666342 | K162: 345.8554217 | L162: 496207 | M162: 537750 | N162: 41543 | O162: 500.5180723 | P162: 0.08
A163: 236 | B163: Pittsfield | C163: 5577 | D163: 5558 | E163: -19 | F163: 92916030.26 | G163: 97815674.27 | H163: 881.5480407 | I163: 32068500 | J163: 33854715 | K163: 321.377294 | L163: 60847530 | M163: 63960959 | N163: 3113429 | O163: 560.1707449 | P163: 0.05
A164: 238 | B164: Plainville | C164: 655 | D164: 633 | E164: -22 | F164: 8340185.27 | G164: 8367252.29 | H164: 42.75990521 | I164: 6122586 | J164: 6374798 | K164: 398.4391785 | L164: 3027041 | M164: 3092873 | N164: 65832 | O164: 104 | P164: 0.02
A165: 239 | B165: Plymouth | C165: 7691 | D165: 7591 | E165: -100 | F165: 111949866.6 | G165: 112170810.5 | H165: 29.10603452 | I165: 83683584 | J165: 88503759 | K165: 634.9855092 | L165: 28266283 | M165: 29055747 | N165: 789464 | O165: 104 | P165: 0.03
A166: 240 | B166: Plympton | C166: 251 | D166: 263 | E166: 12 | F166: 3146739.094 | G166: 3445673.115 | H166: 1136.631259 | I166: 2196202 | J166: 2338631 | K166: 541.5551331 | L166: 950537 | M166: 1107042 | N166: 156505 | O166: 595.0760456 | P166: 0.16
A167: 242 | B167: Provincetown | C167: 98 | D167: 87 | E167: -11 | F167: 1708796.98 | G167: 1580908.48 | H167: -1469.982759 | I167: 1409758 | J167: 1304249 | K167: -1212.747126 | L167: 305451 | M167: 314499 | N167: 9048 | O167: 104 | P167: 0.03
A168: 243 | B168: Quincy | C168: 9715 | D168: 9799 | E168: 84 | F168: 164068488.8 | G168: 167877095.9 | H168: 388.6730325 | I168: 118960682 | J168: 127478124 | K168: 869.2154301 | L168: 45107807 | M168: 46126903 | N168: 1019096 | O168: 104 | P168: 0.02
A169: 244 | B169: Randolph | C169: 3050 | D169: 3105 | E169: 55 | F169: 50608513.31 | G169: 53653467.41 | H169: 980.6615467 | I169: 26405867 | J169: 27738483 | K169: 429.1838969 | L169: 24202646 | M169: 25914984 | N169: 1712338 | O169: 551.4776167 | P169: 0.07
A170: 246 | B170: Reading | C170: 3708 | D170: 3676 | E170: -32 | F170: 46064559.3 | G170: 47040957.59 | H170: 265.6143342 | I170: 37284680 | J170: 38808790 | K170: 414.6109902 | L170: 11394279 | M170: 11776583 | N170: 382304 | O170: 104 | P170: 0.03
A171: 248 | B171: Revere | C171: 7955 | D171: 8010 | E171: 55 | F171: 142967579.1 | G171: 150716408.5 | H171: 967.394435 | I171: 44549397 | J171: 48522644 | K171: 496.0358302 | L171: 98418182 | M171: 102193765 | N171: 3775583 | O171: 471.3586767 | P171: 0.04
A172: 249 | B172: Richmond | C172: 120 | D172: 122 | E172: 2 | F172: 1653453.75 | G172: 1660447.39 | H172: 57.32491803 | I172: 1364099 | J172: 1369869 | K172: 47.29508197 | L172: 522455 | M172: 535143 | N172: 12688 | O172: 104 | P172: 0.02
A173: 250 | B173: Rochester | C173: 499 | D173: 500 | E173: 1 | F173: 6163095.86 | G173: 6292946.62 | H173: 259.70152 | I173: 3840072 | J173: 4161563 | K173: 642.982 | L173: 2414282 | M173: 2466282 | N173: 52000 | O173: 104 | P173: 0.02
A174: 251 | B174: Rockland | C174: 2213 | D174: 2186 | E174: -27 | F174: 34848972.48 | G174: 35665890.65 | H174: 373.7045615 | I174: 16311436 | J174: 17102717 | K174: 361.9766697 | L174: 18537536 | M174: 18764880 | N174: 227344 | O174: 104 | P174: 0.01
A175: 252 | B175: Rockport | C175: 587 | D175: 555 | E175: -32 | F175: 8129580.119 | G175: 7652804.318 | H175: -859.0554978 | I175: 6706904 | J175: 6313563 | K175: -708.7225225 | L175: 1590746 | M175: 1648466 | N175: 57720 | O175: 104 | P175: 0.04
A176: 253 | B176: Rowe | C176: 41 | D176: 45 | E176: 4 | F176: 751366.82 | G176: 784243.28 | H176: 730.588 | I176: 619878 | J176: 647001 | K176: 602.7333333 | L176: 146165 | M176: 150845 | N176: 4680 | O176: 104 | P176: 0.03
A177: 258 | B177: Salem | C177: 4202 | D177: 4290 | E177: 88 | F177: 69935642.15 | G177: 75190968.38 | H177: 1225.017769 | I177: 42479762 | J177: 45548652 | K177: 715.3589744 | L177: 27455880 | M177: 29642316 | N177: 2186436 | O177: 509.6587413 | P177: 0.08
A178: 261 | B178: Sandwich | C178: 2276 | D178: 2227 | E178: -49 | F178: 29251950.23 | G178: 29473433.75 | H178: 99.45375842 | I178: 24132859 | J178: 24315583 | K178: 82.0493938 | L178: 7508068 | M178: 7739676 | N178: 231608 | O178: 104 | P178: 0.03
A179: 262 | B179: Saugus | C179: 2830 | D179: 2977 | E179: 147 | F179: 42085454.03 | G179: 46319897.8 | H179: 1422.386218 | I179: 30096004 | J179: 32254007 | K179: 724.8918374 | L179: 11989450 | M179: 14065891 | N179: 2076441 | O179: 697.4944575 | P179: 0.17
A180: 263 | B180: Savoy | C180: 40 | D180: 35 | E180: -5 | F180: 576479.4 | G180: 622293.56 | H180: 1308.976 | I180: 429924 | J180: 425422 | K180: -128.6285714 | L180: 522299 | M180: 525939 | N180: 3640 | O180: 104 | P180: 0.01
A181: 264 | B181: Scituate | C181: 2763 | D181: 2752 | E181: -11 | F181: 34295600.02 | G181: 35051638.61 | H181: 274.7233254 | I181: 27754773 | J181: 28917602 | K181: 422.5396076 | L181: 6540827 | M181: 6827035 | N181: 286208 | O181: 104 | P181: 0.04
A182: 265 | B182: Seekonk | C182: 2067 | D182: 2076 | E182: 9 | F182: 25865534.95 | G182: 26822442.26 | H182: 460.9380106 | I182: 18110661 | J182: 19300371 | K182: 573.0780347 | L182: 7754874 | M182: 7970778 | N182: 215904 | O182: 104 | P182: 0.03
A183: 266 | B183: Sharon | C183: 3495 | D183: 3518 | E183: 23 | F183: 44179615.27 | G183: 45602230.37 | H183: 404.3817796 | I183: 33681121 | J183: 35374920 | K183: 481.4664582 | L183: 10498494 | M183: 10864366 | N183: 365872 | O183: 104 | P183: 0.03
A184: 269 | B184: Sherborn | C184: 401 | D184: 402 | E184: 1 | F184: 4685609.032 | G184: 4869362.174 | H184: 457.0973683 | I184: 3865627 | J184: 4017224 | K184: 377.1069652 | L184: 846957 | M184: 888765 | N184: 41808 | O184: 104 | P184: 0.05
A185: 271 | B185: Shrewsbury | C185: 5972 | D185: 5998 | E185: 26 | F185: 74633713.99 | G185: 77754351.17 | H185: 520.2796232 | I185: 57993834 | J185: 60858729 | K185: 477.6417139 | L185: 20971468 | M185: 21595260 | N185: 623792 | O185: 104 | P185: 0.03
A186: 272 | B186: Shutesbury | C186: 111 | D186: 99 | E186: -12 | F186: 1442294.22 | G186: 1330308.45 | H186: -1131.169394 | I186: 820401 | J186: 822355 | K186: 19.73737374 | L186: 645986 | M186: 656282 | N186: 10296 | O186: 104 | P186: 0.02
A187: 273 | B187: Somerset | C187: 1628 | D187: 1587 | E187: -41 | F187: 21144659.59 | G187: 20961593.84 | H187: -115.3533396 | I187: 10510731 | J187: 10906308 | K187: 249.2608696 | L187: 10633929 | M187: 10798977 | N187: 165048 | O187: 104 | P187: 0.02
A188: 274 | B188: Somerville | C188: 5100 | D188: 5146 | E188: 46 | F188: 88070540.98 | G188: 92273702.11 | H188: 816.7821876 | I188: 71896983 | J188: 76125804 | K188: 821.7685581 | L188: 21245048 | M188: 21780232 | N188: 535184 | O188: 104 | P188: 0.03
A189: 275 | B189: Southampton | C189: 492 | D189: 463 | E189: -29 | F189: 6284662 | G189: 6090235.14 | H189: -419.9284233 | I189: 4309371 | J189: 4421614 | K189: 242.425486 | L189: 2623246 | M189: 2671398 | N189: 48152 | O189: 104 | P189: 0.02
A190: 276 | B190: Southborough | C190: 1200 | D190: 1223 | E190: 23 | F190: 14230837.13 | G190: 14839839.36 | H190: 497.9576703 | I190: 11416440 | J190: 12011425 | K190: 486.4963205 | L190: 3163171 | M190: 3290363 | N190: 127192 | O190: 104 | P190: 0.04
A191: 277 | B191: Southbridge | C191: 2165 | D191: 2248 | E191: 83 | F191: 38095220.9 | G191: 41980389.5 | H191: 1728.277847 | I191: 9107735 | J191: 9707895 | K191: 266.975089 | L191: 28987486 | M191: 32272495 | N191: 3285009 | O191: 1461.302936 | P191: 0.11
A192: 278 | B192: South Hadley | C192: 1859 | D192: 1817 | E192: -42 | F192: 25928069.82 | G192: 26078106.46 | H192: 82.57382499 | I192: 15249839 | J192: 15934556 | K192: 376.8392955 | L192: 10678231 | M192: 10867199 | N192: 188968 | O192: 104 | P192: 0.02
A193: 281 | B193: Springfield | C193: 28326 | D193: 28394 | E193: 68 | F193: 525763852.9 | G193: 557622637.5 | H193: 1122.025239 | I193: 48026085 | J193: 51503174 | K193: 122.4585828 | L193: 477737768 | M193: 506119464 | N193: 28381696 | O193: 999.566669 | P193: 0.06
A194: 284 | B194: Stoneham | C194: 2425 | D194: 2456 | E194: 31 | F194: 32165599.71 | G194: 33190354.09 | H194: 417.2452687 | I194: 24905971 | J194: 26075035 | K194: 476.0032573 | L194: 7259629 | M194: 7515053 | N194: 255424 | O194: 104 | P194: 0.04
A195: 285 | B195: Stoughton | C195: 3693 | D195: 3781 | E195: 88 | F195: 56987020.3 | G195: 60534150.37 | H195: 938.1460131 | I195: 30547654 | J195: 31939620 | K195: 368.14758 | L195: 26439366 | M195: 28594530 | N195: 2155164 | O195: 569.9984131 | P195: 0.08
A196: 287 | B196: Sturbridge | C196: 883 | D196: 901 | E196: 18 | F196: 10737439.59 | G196: 11550189.47 | H196: 902.053141 | I196: 6009212 | J196: 6370085 | K196: 400.5249723 | L196: 4728228 | M196: 5180104 | N196: 451876 | O196: 501.527192 | P196: 0.1
A197: 288 | B197: Sudbury | C197: 2513 | D197: 2509 | E197: -4 | F197: 28628096.43 | G197: 29591077.41 | H197: 383.8106738 | I197: 23070588 | J197: 23968199 | K197: 357.7564767 | L197: 5557508 | M197: 5818444 | N197: 260936 | O197: 104 | P197: 0.05
A198: 289 | B198: Sunderland | C198: 146 | D198: 142 | E198: -4 | F198: 1946645.52 | G198: 2077119.52 | H198: 918.8309859 | I198: 1555821 | J198: 1678357 | K198: 862.9295775 | L198: 895488 | M198: 910256 | N198: 14768 | O198: 104 | P198: 0.02
A199: 290 | B199: Sutton | C199: 1294 | D199: 1314 | E199: 20 | F199: 16076441.03 | G199: 16892397.65 | H199: 620.9715525 | I199: 12750768 | J199: 13481611 | K199: 556.1971081 | L199: 5669325 | M199: 5805981 | N199: 136656 | O199: 104 | P199: 0.02
A200: 291 | B200: Swampscott | C200: 2024 | D200: 2040 | E200: 16 | F200: 26012947.4 | G200: 26943739.01 | H200: 456.2703971 | I200: 20898493 | J200: 21599799 | K200: 343.777451 | L200: 5114454 | M200: 5343940 | N200: 229486 | O200: 112.4931373 | P200: 0.04
A201: 292 | B201: Swansea | C201: 2033 | D201: 2081 | E201: 48 | F201: 26694462.58 | G201: 28125194.14 | H201: 687.5211725 | I201: 16252187 | J201: 17101306 | K201: 408.0341182 | L201: 10442276 | M201: 11023888 | N201: 581612 | O201: 279.4867852 | P201: 0.06
A202: 293 | B202: Taunton | C202: =VLOOKUP(A202,aidcalc,14,FALSE) -> 8075 | D202: =VLOOKUP(A202,aidcalc,15,FALSE) -> 8235 | E202: =D202-C202 -> 160 | F202: =VLOOKUP(A202,aidcalc,4,FALSE) -> 131396476.3 | G202: =VLOOKUP(A202,aidcalc,9,FALSE) -> 140024274.2 | H202: =(G202-F202)/$D202 -> 1047.698591 | I202: =VLOOKUP(A202,aidcalc,5,FALSE) -> 42467828 | J202: =VLOOKUP(A202,aidcalc,10,FALSE) -> 45058660 | K202: =(J202-I202)/$D202 -> 314.6122647 | L202: =VLOOKUP(A202,aidcalc,6,FALSE) -> 88928648 | M202: =VLOOKUP(A202,aidcalc,25,FALSE) -> 94965614 | N202: =M202-L202 -> 6036966 | O202: =(M202-L202)/$D202 -> 733.0863388 | P202: =ROUND(IF(F202>0,(M202-L202)/L202,100),2) -> 0.07
A203: 295 | B203: Tewksbury | C203: 3249 | D203: 3258 | E203: 9 | F203: 41191248.02 | G203: 42576904.1 | H203: 425.3088029 | I203: 32555022 | J203: 34163893 | K203: 493.8216697 | L203: 13812515 | M203: 14151347 | N203: 338832 | O203: 104 | P203: 0.02
... 129 more rows

Sheet Aid436
D1: c70fy24 | E1: c70fy24 | F1: c70fy24 | N1: c70fy24 | U1: chgd formula 1/3/24 to exclude nonops from mindaidadj $
D2: 47 | H2: 49
B3: 2 | C3: 3 | D3: 4 | E3: 5 | F3: 6 | G3: 7 | H3: 8 | I3: 9 | J3: 10 | K3: 11 | L3: 12 | M3: 13 | N3: 14 | O3: 15 | P3: 16 | Q3: 17 | R3: 18 | S3: 19 | T3: 20 | U3: 21 | V3: 22 | W3: 23 | X3: 24 | Y3: 25 | Z3: 26 | AA3: 27 | AB3: 28 | AC3: 29 | AD3: 30 | AE3: 31 | AF3: 32 | AG3: 33 | AH3: 34 | AI3: 35 | AJ3: 36 | AK3: 37 | AL3: 38 | AM3: 39 | AN3: 40 | AO3: 41 | AQ3: 42 | AR3: 43 | AS3: 44
A4: Return to Index | C4: nonop | H4: priorc70 | I4: found | J4: prelcont436 | K4: foundaid | L4: foundinc | O4: enro | R4: minaid | S4: 4/1/24 minaidadjustprelimhwm file col y aid436 | W4: rednonop | X4: holdharmlessaid | Y4: chapter70
A5: More about the data | H5: Base Aid | I5: Foundation Aid Calculation | Q5: Minimum Aid Calculation | S5: Minimum Aid Adjustment | AC5: Analysis | AM5: SUMMARY FOR EXPORT (reads from columns to the left)
Q6: 104
D7: foundation | E7: required | I7: foundation | J7: required | M7: district | N7: foundation | O7: foundation | P7: operating dist | V7: c70 prior | AB7: nss | AP7: =O7 -> foundation | AQ7: =I7 -> foundation | AR7: =J7 -> required
D8: budget | E8: contribution | F8: chapter 70 | I8: budget | J8: contribution | K8: foundation | L8: foundation | M8: target aid | N8: enrollment | O8: enrollment | P8: foundation | Q8: Min Aid | R8: Addl Aid | S8: Aid determination from | U8: Increment | V8: to non-op | W8: non-op | X8: Hold | Y8: Chapter 70 | Z8: c70 pct of | AA8: =CYr -> FY25 | AB8: percent of | AE8: Aid Comp'd | AF8: Distance from | AG8: Foundation | AI8: Base Aid | AK8: per pupil | AM8: =A9 -> LEA | AN8: =B9 -> District | AO8: =C9 -> Non-Op | AP8: =O8 -> enrollment | AQ8: budget | AR8: contribution | AS8: =Y8 -> Chapter 70
A9: LEA | B9: District | C9: Non-Op | D9: =PYr -> FY24 | E9: =PYr -> FY24 | F9: =PYr -> FY24 | H9: base aid | I9: =CYr -> FY25 | J9: =CYr -> FY25 | K9: aid | L9: aid increase | M9: percentage | N9: =PYr -> FY24 | O9: =CYr -> FY25 | P9: aid? | Q9: Per Pupil | R9: to Reach Min | S9: minimum aid adjustment formula | T9: plus additional $30/pupil | U9: above min aid | V9: reduction | W9: reduction | X9: harmless aid | Y9: =CYr -> FY25 | Z9: foundation | AA9: Required NSS | AB9: foundation | AC9: ∆ in Foundation Budget | AD9: ∆ in Aid | AE9: to Target | AF9: Aid Target | AG9: Budget PP | AH9: blank | AI9: Reduction | AJ9: blank | AK9: ∆ in Aid | AL9: blank | AM9: =CYr -> FY25 | AN9: =CYr -> FY25 | AO9: =CYr -> FY25 | AP9: FY25 | AQ9: FY25 | AR9: FY25 | AS9: FY25
A10: 1 | B10: Abington | C10: 1 | D10: 31287579.08 | E10: 17104459 | F10: 14183120 | H10: =F10 -> 14183120 | I10: =SUMIF(dist1755,A10,found1755) -> 32236384.53 | J10: =SUMIF(dist1755,A10,prelcont1755) -> 17754107 | K10: =ROUND(MAX(found-prelcont436,0),0) -> 14482278 | L10: =IF(foundaid>priorc70,foundaid-priorc70,0) -> 299158 | M10: =ROUND(100-'Townwide Contributions'!L10,2) -> 39.6 | N10: 2206 | O10: =SUMIF(dist1755,A10,enro1755) -> 2202 | P10: =IF(AND(C10=1,L10>0),1,0) -> 1 | Q10: =IF(nonop=1,enro*$Q$6,0) -> 229008 | R10: =IF((foundinc)<Q10,Q10-(foundinc),0) -> 0 | S10: 14183120 | T10: =S10+30*enro -> 14249180 | U10: =IF(AND(T10-priorc70-foundinc-minaid>0,nonop=1), T10-priorc70-foundinc-minaid,0) -> 0 | V10: =priorc70+ foundinc+minaidadjincrement+minaid -> 14482278 | W10: =IF(AND(C10=0,V10>found),V10-found,0) -> 0 | X10: 0 | Y10: =priorc70+foundinc+minaidadjincrement+minaid-rednonop+holdharmlessaid -> 14482278 | Z10: =IF(C10=1, Y10/I10*100, 0) -> 44.92525514 | AA10: =prelcont436+chapter70 -> 32236385 | AB10: =IF(found>0,AA10*100/found,0) -> 100.0000015 | AC10: =I10-D10 -> 948805.4531 | AD10: =Y10-F10 -> 299158 | AE10: =Y10-((M10/100)*I10) -> 1716669.725 | AF10: =IF(C10=1, (Y10/I10*100)-M10, "") -> 5.325255143 | AG10: =IFERROR(ROUND(I10/O10, 2), 0) -> 14639.59 | AI10: =VLOOKUP(A10, disthist, 37, FALSE)*$H$6 -> 0 | AK10: =IFERROR(AD10/O10, 0) -> 135.8574024 | AM10: =A10 -> 1 | AN10: =B10 -> Abington | AO10: =C10 -> 1 | AP10: =O10 -> 2202 | AQ10: =I10 -> 32236384.53 | AR10: =J10 -> 17754107 | AS10: =Y10 -> 14482278
A11: 2 | B11: Acton | C11: 0 | D11: 0 | E11: 0 | F11: 0 | H11: =F11 -> 0 | I11: 0 | J11: =SUMIF(dist1755,A11,prelcont1755) -> 0 | K11: =ROUND(MAX(found-prelcont436,0),0) -> 0 | L11: =IF(foundaid>priorc70,foundaid-priorc70,0) -> 0 | M11: =ROUND(100-'Townwide Contributions'!L11,2) -> 17.5 | N11: 0 | O11: 0 | P11: 0 | Q11: 0 | R11: =IF((foundinc)<Q11,Q11-(foundinc),0) -> 0 | S11: 0 | T11: 0 | U11: 0 | V11: 0 | W11: 0 | X11: 0 | Y11: =priorc70+foundinc+minaidadjincrement+minaid-rednonop+holdharmlessaid -> 0 | Z11: 0 | AA11: 0 | AB11: 0 | AC11: 0 | AD11: 0 | AE11: 0 | AG11: 0 | AI11: 0 | AK11: 0 | AM11: 2 | AN11: Acton | AO11: 0 | AP11: =O11 -> 0 | AQ11: 0 | AR11: 0 | AS11: 0
A12: 3 | B12: Acushnet | C12: 1 | D12: 15911255.39 | E12: 8740925 | F12: 7170330 | H12: 7170330 | I12: 15622821.81 | J12: 8852864 | K12: 6769958 | L12: 0 | M12: =ROUND(100-'Townwide Contributions'!L12,2) -> 36.82 | N12: 1221 | O12: 1173 | P12: 0 | Q12: 121992 | R12: 121992 | S12: 7170330 | T12: 7205520 | U12: 0 | V12: 7292322 | W12: 0 | X12: 0 | Y12: 7292322 | Z12: 46.67736782 | AA12: 16145186 | AB12: 103.3435969 | AC12: -288433.58 | AD12: 121992 | AE12: 1539999.01 | AF12: 9.857367819 | AG12: 13318.69 | AI12: 0 | AK12: 104 | AM12: 3 | AN12: Acushnet | AO12: 1 | AP12: 1173 | AQ12: 15622821.81 | AR12: 8852864 | AS12: 7292322
A13: 4 | B13: Adams | C13: 0 | D13: 0 | E13: 0 | F13: 0 | H13: 0 | I13: 0 | J13: 0 | K13: 0 | L13: 0 | M13: =ROUND(100-'Townwide Contributions'!L13,2) -> 67.77 | N13: 0 | O13: 0 | P13: 0 | Q13: 0 | R13: 0 | S13: 0 | T13: 0 | U13: 0 | V13: 0 | W13: 0 | X13: 0 | Y13: 0 | Z13: 0 | AA13: 0 | AB13: 0 | AC13: 0 | AD13: 0 | AE13: 0 | AG13: 0 | AI13: 0 | AK13: 0 | AM13: 4 | AN13: Adams | AO13: 0 | AP13: 0 | AQ13: 0 | AR13: 0 | AS13: 0
A14: 5 | B14: Agawam | C14: 1 | D14: 50397491.3 | E14: 25373043 | F14: 25024448 | H14: 25024448 | I14: 52988778.25 | J14: 26903037 | K14: 26085741 | L14: 1061293 | M14: =ROUND(100-'Townwide Contributions'!L14,2) -> 46.24 | N14: 3421 | O14: 3486 | P14: 1 | Q14: 362544 | R14: 0 | S14: 25024448 | T14: 25129028 | U14: 0 | V14: 26085741 | W14: 0 | X14: 0 | Y14: 26085741 | Z14: 49.22880252 | AA14: 52988778 | AB14: 99.99999953 | AC14: 2591286.95 | AD14: 1061293 | AE14: 1583729.937 | AF14: 2.988802515 | AG14: 15200.45 | AI14: 0 | AK14: 304.4443488 | AM14: 5 | AN14: Agawam | AO14: 1 | AP14: 3486 | AQ14: 52988778.25 | AR14: 26903037 | AS14: 26085741
A15: 6 | B15: Alford | C15: 0 | D15: 0 | E15: 0 | F15: 0 | H15: 0 | I15: 0 | J15: 0 | K15: 0 | L15: 0 | M15: =ROUND(100-'Townwide Contributions'!L15,2) -> 17.5 | N15: 0 | O15: 0 | P15: 0 | Q15: 0 | R15: 0 | S15: 0 | T15: 0 | U15: 0 | V15: 0 | W15: 0 | X15: 0 | Y15: 0 | Z15: 0 | AA15: 0 | AB15: 0 | AC15: 0 | AD15: 0 | AE15: 0 | AG15: 0 | AI15: 0 | AK15: 0 | AM15: 6 | AN15: Alford | AO15: 0 | AP15: 0 | AQ15: 0 | AR15: 0 | AS15: 0
A16: 7 | B16: Amesbury | C16: 1 | D16: 24965747.03 | E16: 18234602 | F16: 9472287 | H16: 9472287 | I16: 26495878.26 | J16: 19160041 | K16: 7335837 | L16: 0 | M16: =ROUND(100-'Townwide Contributions'!L16,2) -> 19.36 | N16: 1847 | O16: 1898 | P16: 0 | Q16: 197392 | R16: 197392 | S16: 9472287 | T16: 9529227 | U16: 0 | V16: 9669679 | W16: 0 | X16: 0 | Y16: 9669679 | Z16: 36.49503106 | AA16: 28829720 | AB16: 108.80832 | AC16: 1530131.23 | AD16: 197392 | AE16: 4540076.969 | AF16: 17.13503106 | AG16: 13959.89 | AI16: 0 | AK16: 104 | AM16: 7 | AN16: Amesbury | AO16: 1 | AP16: 1898 | AQ16: 26495878.26 | AR16: 19160041 | AS16: 9669679
A17: 8 | B17: Amherst | C17: 1 | D17: 14207190.94 | E17: 11168148 | F17: 6280773 | H17: 6280773 | I17: 13476149.79 | J17: 11117824 | K17: 2358326 | L17: 0 | M17: =ROUND(100-'Townwide Contributions'!L17,2) -> 17.5 | N17: 1055 | O17: 984 | P17: 0 | Q17: 102336 | R17: 102336 | S17: 6280773 | T17: 6310293 | U17: 0 | V17: 6383109 | W17: 0 | X17: 0 | Y17: 6383109 | Z17: 47.36596951 | AA17: 17500933 | AB17: 129.8659726 | AC17: -731041.15 | AD17: 102336 | AE17: 4024782.787 | AF17: 29.86596951 | AG17: 13695.27 | AI17: 0 | AK17: 104 | AM17: 8 | AN17: Amherst | AO17: 1 | AP17: 984 | AQ17: 13476149.79 | AR17: 11117824 | AS17: 6383109
A18: 9 | B18: Andover | C18: 1 | D18: 72244408.49 | E18: 58293608 | F18: 13950800 | H18: 13950800 | I18: 72595075.47 | J18: 59890937 | K18: 12704138 | L18: 0 | M18: =ROUND(100-'Townwide Contributions'!L18,2) -> 17.5 | N18: 5554 | O18: 5465 | P18: 0 | Q18: 568360 | R18: 568360 | S18: 13950800 | T18: 14114750 | U18: 0 | V18: 14519160 | W18: 0 | X18: 0 | Y18: 14519160 | Z18: 20.00019961 | AA18: 74410097 | AB18: 102.5001992 | AC18: 350666.9803 | AD18: 568360 | AE18: 1815021.792 | AF18: 2.500199607 | AG18: 13283.64 | AI18: 0 | AK18: 104 | AM18: 9 | AN18: Andover | AO18: 1 | AP18: 5465 | AQ18: 72595075.47 | AR18: 59890937 | AS18: 14519160
A19: 10 | B19: Arlington | C19: 1 | D19: 74896748.64 | E19: 56193340 | F19: 18703409 | H19: 18703409 | I19: 77449420.44 | J19: 58893679 | K19: 18555741 | L19: 0 | M19: =ROUND(100-'Townwide Contributions'!L19,2) -> 17.5 | N19: 6002 | O19: 6021 | P19: 0 | Q19: 626184 | R19: 626184 | S19: 18703409 | T19: 18884039 | U19: 0 | V19: 19329593 | W19: 0 | X19: 0 | Y19: 19329593 | Z19: 24.9576987 | AA19: =prelcont436+chapter70 -> 78223272 | AB19: 100.9991702 | AC19: 2552671.807 | AD19: 626184 | AE19: 5775944.423 | AF19: 7.457698701 | AG19: 12863.22 | AI19: 0 | AK19: 104 | AM19: 10 | AN19: Arlington | AO19: 1 | AP19: 6021 | AQ19: 77449420.44 | AR19: 58893679 | AS19: 19329593
A20: 11 | B20: Ashburnham | C20: 0 | D20: 0 | E20: 0 | F20: 0 | H20: 0 | I20: 0 | J20: 0 | K20: 0 | L20: 0 | M20: =ROUND(100-'Townwide Contributions'!L20,2) -> 51.52 | N20: 0 | O20: 0 | P20: 0 | Q20: 0 | R20: 0 | S20: 0 | T20: 0 | U20: 0 | V20: 0 | W20: 0 | X20: 0 | Y20: 0 | Z20: 0 | AA20: 0 | AB20: 0 | AC20: 0 | AD20: 0 | AE20: 0 | AG20: 0 | AI20: 0 | AK20: 0 | AM20: 11 | AN20: Ashburnham | AO20: 0 | AP20: 0 | AQ20: 0 | AR20: 0 | AS20: 0
A21: 12 | B21: Ashby | C21: 0 | D21: 0 | E21: 0 | F21: 0 | H21: 0 | I21: 0 | J21: 0 | K21: 0 | L21: 0 | M21: =ROUND(100-'Townwide Contributions'!L21,2) -> 44.71 | N21: 0 | O21: 0 | P21: 0 | Q21: 0 | R21: 0 | S21: 0 | T21: 0 | U21: 0 | V21: 0 | W21: 0 | X21: 0 | Y21: 0 | Z21: 0 | AA21: 0 | AB21: 0 | AC21: 0 | AD21: 0 | AE21: 0 | AG21: 0 | AI21: 0 | AK21: 0 | AM21: 12 | AN21: Ashby | AO21: 0 | AP21: 0 | AQ21: 0 | AR21: 0 | AS21: 0
A22: 13 | B22: Ashfield | C22: 0 | D22: 245151 | E22: 179015 | F22: 93683 | H22: 93683 | I22: 216797.25 | J22: 158626 | K22: 58171 | L22: 0 | M22: =ROUND(100-'Townwide Contributions'!L22,2) -> 17.5 | N22: 13 | O22: 11 | P22: 0 | Q22: 0 | R22: 0 | S22: 93683 | T22: 94013 | U22: 0 | V22: 93683 | W22: 0 | X22: 0 | Y22: 93683 | Z22: 0 | AA22: 252309 | AB22: 116.3801663 | AC22: -28353.75 | AD22: 0 | AE22: 55743.48125 | AG22: 19708.84 | AI22: 0 | AK22: 0 | AM22: 13 | AN22: Ashfield | AO22: 0 | AP22: 11 | AQ22: 216797.25 | AR22: 158626 | AS22: 93683
A23: 14 | B23: Ashland | C23: 1 | D23: 36758230.61 | E23: 25484731 | F23: 11273500 | H23: 11273500 | I23: 37765344.57 | J23: 26791174 | K23: 10974171 | L23: 0 | M23: =ROUND(100-'Townwide Contributions'!L23,2) -> 18.45 | N23: 2839 | O23: 2857 | P23: 0 | Q23: 297128 | R23: 297128 | S23: 11273500 | T23: 11359210 | U23: 0 | V23: 11570628 | W23: 0 | X23: 0 | Y23: 11570628 | Z23: 30.63821642 | AA23: 38361802 | AB23: 101.5793777 | AC23: 1007113.96 | AD23: 297128 | AE23: 4602921.927 | AF23: 12.18821642 | AG23: 13218.53 | AI23: 0 | AK23: 104 | AM23: 14 | AN23: Ashland | AO23: 1 | AP23: 2857 | AQ23: 37765344.57 | AR23: 26791174 | AS23: 11570628
A24: 15 | B24: Athol | C24: 0 | D24: 0 | E24: 0 | F24: 0 | H24: 0 | I24: 0 | J24: 0 | K24: 0 | L24: 0 | M24: =ROUND(100-'Townwide Contributions'!L24,2) -> 70.94 | N24: 0 | O24: 0 | P24: 0 | Q24: 0 | R24: 0 | S24: 0 | T24: 0 | U24: 0 | V24: 0 | W24: 0 | X24: 0 | Y24: 0 | Z24: 0 | AA24: 0 | AB24: 0 | AC24: 0 | AD24: 0 | AE24: 0 | AG24: 0 | AI24: 0 | AK24: 0 | AM24: 15 | AN24: Athol | AO24: 0 | AP24: 0 | AQ24: 0 | AR24: 0 | AS24: 0
A25: 16 | B25: Attleboro | C25: 1 | D25: 97105120.72 | E25: 43712969 | F25: 53392152 | H25: 53392152 | I25: 102004503.3 | J25: 46028760 | K25: 55975743 | L25: 2583591 | M25: =ROUND(100-'Townwide Contributions'!L25,2) -> 51.28 | N25: 6238 | O25: 6313 | P25: 1 | Q25: 656552 | R25: 0 | S25: 53392152 | T25: 53581542 | U25: 0 | V25: 55975743 | W25: 0 | X25: 0 | Y25: 55975743 | Z25: 54.87575663 | AA25: 102004503 | AB25: 99.99999968 | AC25: 4899382.61 | AD25: 2583591 | AE25: 3667833.692 | AF25: 3.595756631 | AG25: 16157.85 | AI25: 0 | AK25: 409.2493268 | AM25: 16 | AN25: Attleboro | AO25: 1 | AP25: 6313 | AQ25: 102004503.3 | AR25: 46028760 | AS25: 55975743
A26: 17 | B26: Auburn | C26: 1 | D26: 32176028.36 | E26: 17041707 | F26: 15134321 | H26: 15134321 | I26: 32470504.22 | J26: 17758731 | K26: 14711773 | L26: 0 | M26: =ROUND(100-'Townwide Contributions'!L26,2) -> 40.67 | N26: 2422 | O26: 2367 | P26: 0 | Q26: 246168 | R26: 246168 | S26: 15134321 | T26: 15205331 | U26: 0 | V26: 15380489 | W26: 0 | X26: 0 | Y26: 15380489 | Z26: 47.36757057 | AA26: 33139220 | AB26: 102.0594561 | AC26: 294475.86 | AD26: 246168 | AE26: 2174734.934 | AF26: 6.697570567 | AG26: 13718 | AI26: 0 | AK26: 104 | AM26: 17 | AN26: Auburn | AO26: 1 | AP26: 2367 | AQ26: 32470504.22 | AR26: 17758731 | AS26: 15380489
A27: 18 | B27: Avon | C27: 1 | D27: 9536788.92 | E27: 5390722 | F27: 4146067 | H27: 4146067 | I27: 9514711.52 | J27: 5674808 | K27: 3839904 | L27: 0 | M27: =ROUND(100-'Townwide Contributions'!L27,2) -> 31.2 | N27: 586 | O27: 572 | P27: 0 | Q27: 59488 | R27: 59488 | S27: 4146067 | T27: 4163227 | U27: 0 | V27: 4205555 | W27: 0 | X27: 0 | Y27: 4205555 | Z27: 44.20055186 | AA27: 9880363 | AB27: 103.8430117 | AC27: -22077.4 | AD27: 59488 | AE27: 1236965.006 | AF27: 13.00055186 | AG27: 16634.11 | AI27: 0 | AK27: 104 | AM27: 18 | AN27: Avon | AO27: 1 | AP27: 572 | AQ27: 9514711.52 | AR27: 5674808 | AS27: 4205555
A28: 19 | B28: Ayer | C28: 0 | D28: 0 | E28: 0 | F28: 0 | H28: 0 | I28: 0 | J28: 0 | K28: 0 | L28: 0 | M28: =ROUND(100-'Townwide Contributions'!L28,2) -> 24.2 | N28: 0 | O28: 0 | P28: 0 | Q28: 0 | R28: 0 | S28: 0 | T28: 0 | U28: 0 | V28: 0 | W28: 0 | X28: 0 | Y28: 0 | Z28: 0 | AA28: 0 | AB28: 0 | AC28: 0 | AD28: 0 | AE28: 0 | AG28: 0 | AI28: 0 | AK28: 0 | AM28: 19 | AN28: Ayer | AO28: 0 | AP28: 0 | AQ28: 0 | AR28: 0 | AS28: 0
A29: 20 | B29: Barnstable | C29: 1 | D29: 84542110.14 | E29: 59790057 | F29: 24752053 | H29: 24752053 | I29: 88879328.45 | J29: 63910403 | K29: 24968925 | L29: 216872 | M29: =ROUND(100-'Townwide Contributions'!L29,2) -> 17.5 | N29: 5302 | O29: 5306 | P29: 1 | Q29: 551824 | R29: 334952 | S29: 24752053 | T29: 24911233 | U29: 0 | V29: 25303877 | W29: 0 | X29: 0 | Y29: 25303877 | Z29: 28.46992371 | AA29: 89214280 | AB29: 100.376861 | AC29: 4337218.31 | AD29: 551824 | AE29: 9749994.521 | AF29: 10.96992371 | AG29: 16750.72 | AI29: 0 | AK29: 104 | AM29: 20 | AN29: Barnstable | AO29: 1 | AP29: 5306 | AQ29: 88879328.45 | AR29: 63910403 | AS29: 25303877
A30: 21 | B30: Barre | C30: 0 | D30: 0 | E30: 0 | F30: 0 | H30: 0 | I30: 0 | J30: 0 | K30: 0 | L30: 0 | M30: =ROUND(100-'Townwide Contributions'!L30,2) -> 56.91 | N30: 0 | O30: 0 | P30: 0 | Q30: 0 | R30: 0 | S30: 0 | T30: 0 | U30: 0 | V30: 0 | W30: 0 | X30: 0 | Y30: 0 | Z30: 0 | AA30: 0 | AB30: 0 | AC30: 0 | AD30: 0 | AE30: 0 | AG30: 0 | AI30: 0 | AK30: 0 | AM30: 21 | AN30: Barre | AO30: 0 | AP30: 0 | AQ30: 0 | AR30: 0 | AS30: 0
A31: 22 | B31: Becket | C31: 0 | D31: 261641.76 | E31: 189361 | F31: 76923 | H31: 76923 | I31: 250517.91 | J31: 198708 | K31: 51810 | L31: 0 | M31: =ROUND(100-'Townwide Contributions'!L31,2) -> 17.5 | N31: 14 | O31: 13 | P31: 0 | Q31: 0 | R31: 0 | S31: 76923 | T31: 77313 | U31: 0 | V31: 76923 | W31: 0 | X31: 0 | Y31: 76923 | Z31: 0 | AA31: 275631 | AB31: 110.0244689 | AC31: -11123.85 | AD31: 0 | AE31: 33082.36575 | AG31: 19270.61 | AI31: 0 | AK31: 0 | AM31: 22 | AN31: Becket | AO31: 0 | AP31: 13 | AQ31: 250517.91 | AR31: 198708 | AS31: 76923
A32: 23 | B32: Bedford | C32: 1 | D32: 33265363.04 | E32: 27443924 | F32: 6020493 | H32: 6020493 | I32: 34828204.55 | J32: 28733269 | K32: 6094936 | L32: 74443 | M32: =ROUND(100-'Townwide Contributions'!L32,2) -> 17.5 | N32: 2549 | O32: 2579 | P32: 1 | Q32: 268216 | R32: 193773 | S32: 6020493 | T32: 6097863 | U32: 0 | V32: 6288709 | W32: 0 | X32: 0 | Y32: 6288709 | Z32: 18.05636863 | AA32: 35021978 | AB32: 100.5563693 | AC32: 1562841.502 | AD32: 268216 | AE32: 193773.2045 | AF32: 0.5563686301 | AG32: 13504.54 | AI32: 0 | AK32: 104 | AM32: 23 | AN32: Bedford | AO32: 1 | AP32: 2579 | AQ32: 34828204.55 | AR32: 28733269 | AS32: 6288709
A33: 24 | B33: Belchertown | C33: 1 | D33: 27713334.38 | E33: 13763232 | F33: 14210006 | H33: 14210006 | I33: 27898291.62 | J33: 14251380 | K33: 13646912 | L33: 0 | M33: =ROUND(100-'Townwide Contributions'!L33,2) -> 45.49 | N33: 2152 | O33: 2106 | P33: 0 | Q33: 219024 | R33: 219024 | S33: 14210006 | T33: 14273186 | U33: 0 | V33: 14429030 | W33: 0 | X33: 0 | Y33: 14429030 | Z33: 51.72012034 | AA33: 28680410 | AB33: 102.8034633 | AC33: 184957.24 | AD33: 219024 | AE33: 1738097.142 | AF33: 6.230120345 | AG33: 13247.05 | AI33: 0 | AK33: 104 | AM33: 24 | AN33: Belchertown | AO33: 1 | AP33: 2106 | AQ33: 27898291.62 | AR33: 14251380 | AS33: 14429030
A34: 25 | B34: Bellingham | C34: 1 | D34: 29660512.23 | E34: 19686080 | F34: 9974432 | H34: 9974432 | I34: 30088447.59 | J34: 20822076 | K34: 9266372 | L34: 0 | M34: =ROUND(100-'Townwide Contributions'!L34,2) -> 25.84 | N34: 2175 | O34: 2175 | P34: 0 | Q34: 226200 | R34: 226200 | S34: 9974432 | T34: 10039682 | U34: 0 | V34: 10200632 | W34: 0 | X34: 0 | Y34: 10200632 | Z34: 33.90215454 | AA34: 31022708 | AB34: 103.1050469 | AC34: 427935.36 | AD34: 226200 | AE34: 2425777.143 | AF34: 8.062154538 | AG34: 13833.77 | AI34: 0 | AK34: 104 | AM34: 25 | AN34: Bellingham | AO34: 1 | AP34: 2175 | AQ34: 30088447.59 | AR34: 20822076 | AS34: 10200632
A35: 26 | B35: Belmont | C35: 1 | D35: 57423975.88 | E35: 45639441 | F35: 11784535 | H35: 11784535 | I35: 59533725.07 | J35: 47889465 | K35: 11644260 | L35: 0 | M35: =ROUND(100-'Townwide Contributions'!L35,2) -> 17.5 | N35: 4505 | O35: 4521 | P35: 0 | Q35: 470184 | R35: 470184 | S35: 11784535 | T35: 11920165 | U35: 0 | V35: 12254719 | W35: 0 | X35: 0 | Y35: 12254719 | Z35: 20.58449893 | AA35: 60144184 | AB35: 101.0254002 | AC35: 2109749.19 | AD35: 470184 | AE35: 1836317.112 | AF35: 3.084498929 | AG35: 13168.26 | AI35: 0 | AK35: 104 | AM35: 26 | AN35: Belmont | AO35: 1 | AP35: 4521 | AQ35: 59533725.07 | AR35: 47889465 | AS35: 12254719
A36: 27 | B36: Berkley | C36: 1 | D36: 8929788.14 | E36: 4777868 | F36: 4151920 | H36: 4151920 | I36: 8895289.57 | J36: 5017565 | K36: 3877725 | L36: 0 | M36: =ROUND(100-'Townwide Contributions'!L36,2) -> 40.35 | N36: 698 | O36: 682 | P36: 0 | Q36: 70928 | R36: 70928 | S36: 4151920 | T36: 4172380 | U36: 0 | V36: 4222848 | W36: 0 | X36: 0 | Y36: 4222848 | Z36: 47.47285591 | AA36: 9240413 | AB36: 103.8798448 | AC36: -34498.57 | AD36: 70928 | AE36: 633598.6585 | AF36: 7.122855906 | AG36: 13042.95 | AI36: 0 | AK36: 104 | AM36: 27 | AN36: Berkley | AO36: 1 | AP36: 682 | AQ36: 8895289.57 | AR36: 5017565 | AS36: 4222848
A37: 28 | B37: Berlin | C37: 0 | D37: 0 | E37: 0 | F37: 0 | H37: 0 | I37: 0 | J37: 0 | K37: 0 | L37: 0 | M37: =ROUND(100-'Townwide Contributions'!L37,2) -> 17.5 | N37: 0 | O37: 0 | P37: 0 | Q37: 0 | R37: 0 | S37: 0 | T37: 0 | U37: 0 | V37: 0 | W37: 0 | X37: 0 | Y37: 0 | Z37: 0 | AA37: 0 | AB37: 0 | AC37: 0 | AD37: 0 | AE37: 0 | AG37: 0 | AI37: 0 | AK37: 0 | AM37: 28 | AN37: Berlin | AO37: 0 | AP37: 0 | AQ37: 0 | AR37: 0 | AS37: 0
A38: 29 | B38: Bernardston | C38: 0 | D38: 0 | E38: 0 | F38: 0 | H38: 0 | I38: 0 | J38: 0 | K38: 0 | L38: 0 | M38: =ROUND(100-'Townwide Contributions'!L38,2) -> 39.45 | N38: 0 | O38: 0 | P38: 0 | Q38: 0 | R38: 0 | S38: 0 | T38: 0 | U38: 0 | V38: 0 | W38: 0 | X38: 0 | Y38: 0 | Z38: 0 | AA38: 0 | AB38: 0 | AC38: 0 | AD38: 0 | AE38: 0 | AG38: 0 | AI38: 0 | AK38: 0 | AM38: 29 | AN38: Bernardston | AO38: 0 | AP38: 0 | AQ38: 0 | AR38: 0 | AS38: 0
A39: 30 | B39: Beverly | C39: 1 | D39: 61798815.26 | E39: 47254334 | F39: 14544481 | H39: 14544481 | I39: 62707090.12 | J39: 49168020 | K39: 13539070 | L39: 0 | M39: =ROUND(100-'Townwide Contributions'!L39,2) -> 17.5 | N39: 4541 | O39: 4466 | P39: 0 | Q39: 464464 | R39: 464464 | S39: 14544481 | T39: 14678461 | U39: 0 | V39: 15008945 | W39: 0 | X39: 0 | Y39: 15008945 | Z39: 23.93500475 | AA39: 64176965 | AB39: 102.344033 | AC39: 908274.86 | AD39: 464464 | AE39: 4035204.229 | AF39: 6.435004752 | AG39: 14041 | AI39: 0 | AK39: 104 | AM39: 30 | AN39: Beverly | AO39: 1 | AP39: 4466 | AQ39: 62707090.12 | AR39: 49168020 | AS39: 15008945
A40: 31 | B40: Billerica | C40: 1 | D40: 63590856.68 | E40: 49635324 | F40: 20069934 | H40: 20069934 | I40: 65232366.11 | J40: 52490595 | K40: 12741771 | L40: 0 | M40: =ROUND(100-'Townwide Contributions'!L40,2) -> 17.5 | N40: 4879 | O40: 4925 | P40: 0 | Q40: 512200 | R40: 512200 | S40: 20069934 | T40: 20217684 | U40: 0 | V40: 20582134 | W40: 0 | X40: 0 | Y40: 20582134 | Z40: 31.55202736 | AA40: 73072729 | AB40: 112.01913 | AC40: 1641509.43 | AD40: 512200 | AE40: 9166469.931 | AF40: 14.05202736 | AG40: 13245.15 | AI40: 0 | AK40: 104 | AM40: 31 | AN40: Billerica | AO40: 1 | AP40: 4925 | AQ40: 65232366.11 | AR40: 52490595 | AS40: 20582134
A41: 32 | B41: Blackstone | C41: 0 | D41: 393567.84 | E41: 197879 | F41: 234189 | H41: 234189 | I41: 317959.23 | J41: 163461 | K41: 154498 | L41: 0 | M41: =ROUND(100-'Townwide Contributions'!L41,2) -> 45 | N41: 22 | O41: 17 | P41: 0 | Q41: 0 | R41: 0 | S41: 234189 | T41: 234699 | U41: 0 | V41: 234189 | W41: 0 | X41: 0 | Y41: 234189 | Z41: 0 | AA41: 397650 | AB41: 125.0632039 | AC41: -75608.61 | AD41: 0 | AE41: 91107.3465 | AG41: 18703.48 | AI41: 0 | AK41: 0 | AM41: 32 | AN41: Blackstone | AO41: 0 | AP41: 17 | AQ41: 317959.23 | AR41: 163461 | AS41: 234189
A42: 33 | B42: Blandford | C42: 0 | D42: 245151 | E42: 186549 | F42: 58602 | H42: 58602 | I42: 250517.91 | J42: 172932 | K42: 77586 | L42: 18984 | M42: =ROUND(100-'Townwide Contributions'!L42,2) -> 17.5 | N42: 13 | O42: 13 | P42: 0 | Q42: 0 | R42: 0 | S42: 58877 | T42: 59267 | U42: 0 | V42: 77586 | W42: 0 | X42: 0 | Y42: 77586 | Z42: 0 | AA42: 250518 | AB42: 100.0000359 | AC42: 5366.91 | AD42: 18984 | AE42: 33745.36575 | AG42: 19270.61 | AI42: 0 | AK42: 1460.307692 | AM42: 33 | AN42: Blandford | AO42: 0 | AP42: 13 | AQ42: 250517.91 | AR42: 172932 | AS42: 77586
A43: 34 | B43: Bolton | C43: 0 | D43: 0 | E43: 0 | F43: 0 | H43: 0 | I43: 0 | J43: 0 | K43: 0 | L43: 0 | M43: =ROUND(100-'Townwide Contributions'!L43,2) -> 17.5 | N43: 0 | O43: 0 | P43: 0 | Q43: 0 | R43: 0 | S43: 0 | T43: 0 | U43: 0 | V43: 0 | W43: 0 | X43: 0 | Y43: 0 | Z43: 0 | AA43: 0 | AB43: 0 | AC43: 0 | AD43: 0 | AE43: 0 | AG43: 0 | AI43: 0 | AK43: 0 | AM43: 34 | AN43: Bolton | AO43: 0 | AP43: 0 | AQ43: 0 | AR43: 0 | AS43: 0
A44: 35 | B44: Boston | C44: 1 | D44: 1095713386 | E44: 880485066 | F44: 230700785 | H44: 230700785 | I44: 1145949554 | J44: 945408382 | K44: 200541172 | L44: 0 | M44: =ROUND(100-'Townwide Contributions'!L44,2) -> 17.5 | N44: 57738 | O44: 57369 | P44: 0 | Q44: 5966376 | R44: 5966376 | S44: 230700785 | T44: 232421855 | U44: 0 | V44: 236667161 | W44: 0 | X44: 0 | Y44: 236667161 | Z44: 20.65249383 | AA44: 1182075543 | AB44: 103.1524938 | AC44: 50236168.06 | AD44: 5966376 | AE44: 36125989.03 | AF44: 3.152493833 | AG44: 19975.07 | AI44: 0 | AK44: 104 | AM44: 35 | AN44: Boston | AO44: 1 | AP44: 57369 | AQ44: 1145949554 | AR44: 945408382 | AS44: 236667161
A45: 36 | B45: Bourne | C45: 1 | D45: 22858350.51 | E45: 18409357 | F45: 5472583 | H45: 5472583 | I45: 24109451.63 | J45: 19319804 | K45: 4789648 | L45: 0 | M45: =ROUND(100-'Townwide Contributions'!L45,2) -> 17.5 | N45: 1678 | O45: 1698 | P45: 0 | Q45: 176592 | R45: 176592 | S45: 5472583 | T45: 5523523 | U45: 0 | V45: 5649175 | W45: 0 | X45: 0 | Y45: 5649175 | Z45: 23.43137076 | AA45: 24968979 | AB45: 103.5651054 | AC45: 1251101.12 | AD45: 176592 | AE45: 1430020.965 | AF45: 5.931370762 | AG45: 14198.73 | AI45: 0 | AK45: 104 | AM45: 36 | AN45: Bourne | AO45: 1 | AP45: 1698 | AQ45: 24109451.63 | AR45: 19319804 | AS45: 5649175
A46: 37 | B46: Boxborough | C46: 0 | D46: 107478.8431 | E46: 82107 | F46: 32909 | H46: 32909 | I46: 90908.90505 | J46: 69316 | K46: 21593 | L46: 0 | M46: =ROUND(100-'Townwide Contributions'!L46,2) -> 17.5 | N46: 6 | O46: 5 | P46: 0 | Q46: 0 | R46: 0 | S46: 32909 | T46: 33059 | U46: 0 | V46: 32909 | W46: 0 | X46: 0 | Y46: 32909 | Z46: 0 | AA46: 102225 | AB46: 112.4477299 | AC46: -16569.93807 | AD46: 0 | AE46: 16999.94162 | AG46: 18181.78 | AI46: 0 | AK46: 0 | AM46: 37 | AN46: Boxborough | AO46: 0 | AP46: 5 | AQ46: 90908.90505 | AR46: 69316 | AS46: 32909
A47: 38 | B47: Boxford | C47: 1 | D47: 8528050.268 | E47: 6718468 | F47: 1855093 | H47: 1855093 | I47: 9024222.11 | J47: 7139841 | K47: 1884381 | L47: 29288 | M47: =ROUND(100-'Townwide Contributions'!L47,2) -> 17.5 | N47: 721 | O47: 745 | P47: 1 | Q47: 77480 | R47: 48192 | S47: 1855093 | T47: 1877443 | U47: 0 | V47: 1932573 | W47: 0 | X47: 0 | Y47: 1932573 | Z47: 21.4153971 | AA47: 9072414 | AB47: 100.5340282 | AC47: 496171.8424 | AD47: 77480 | AE47: 353334.1307 | AF47: 3.915397099 | AG47: 12113.05 | AI47: 0 | AK47: 104 | AM47: 38 | AN47: Boxford | AO47: 1 | AP47: 745 | AQ47: 9024222.11 | AR47: 7139841 | AS47: 1932573
A48: 39 | B48: Boylston | C48: 0 | D48: 377077.08 | E48: 311089 | F48: 113472 | H48: 113472 | I48: 267378.24 | J48: 220587 | K48: 46791 | L48: 0 | M48: =ROUND(100-'Townwide Contributions'!L48,2) -> 17.5 | N48: 21 | O48: 14 | P48: 0 | Q48: 0 | R48: 0 | S48: 113472 | T48: 113892 | U48: 0 | V48: 113472 | W48: 0 | X48: 0 | Y48: 113472 | Z48: 0 | AA48: 334059 | AB48: 124.9387385 | AC48: -109698.84 | AD48: 0 | AE48: 66680.808 | AG48: 19098.45 | AI48: 0 | AK48: 0 | AM48: 39 | AN48: Boylston | AO48: 0 | AP48: 14 | AQ48: 267378.24 | AR48: 220587 | AS48: 113472
A49: 40 | B49: Braintree | C49: 1 | D49: 72501248.64 | E49: 51848673 | F49: 20652576 | H49: 20652576 | I49: 73532608.81 | J49: 55176708 | K49: 18355901 | L49: 0 | M49: =ROUND(100-'Townwide Contributions'!L49,2) -> 17.5 | N49: 5244 | O49: 5181 | P49: 0 | Q49: 538824 | R49: 538824 | S49: 20652576 | T49: 20808006 | U49: 0 | V49: 21191400 | W49: 0 | X49: 0 | Y49: 21191400 | Z49: 28.81905095 | AA49: 76368108 | AB49: 103.8561112 | AC49: 1031360.167 | AD49: 538824 | AE49: 8323193.459 | AF49: 11.31905095 | AG49: 14192.74 | AI49: 0 | AK49: 104 | AM49: 40 | AN49: Braintree | AO49: 1 | AP49: 5181 | AQ49: 73532608.81 | AR49: 55176708 | AS49: 21191400
A50: 41 | B50: Brewster | C50: 1 | D50: 5743102.11 | E50: 4394765 | F50: 1377451 | H50: 1377451 | I50: 5984373.99 | J50: 4937108 | K50: 1047266 | L50: 0 | M50: =ROUND(100-'Townwide Contributions'!L50,2) -> 17.5 | N50: 418 | O50: 421 | P50: 0 | Q50: 43784 | R50: 43784 | S50: 1377451 | T50: 1390081 | U50: 0 | V50: 1421235 | W50: 0 | X50: 0 | Y50: 1421235 | Z50: 23.74910061 | AA50: 6358343 | AB50: 106.2490916 | AC50: 241271.88 | AD50: 43784 | AE50: 373969.5518 | AF50: 6.249100614 | AG50: 14214.67 | AI50: 0 | AK50: 104 | AM50: 41 | AN50: Brewster | AO50: 1 | AP50: 421 | AQ50: 5984373.99 | AR50: 4937108 | AS50: 1421235
A51: 42 | B51: Bridgewater | C51: 0 | D51: 228660.24 | E51: 131975 | F51: 96685 | H51: 96685 | I51: 334819.56 | J51: 195386 | K51: 139434 | L51: 42749 | M51: =ROUND(100-'Townwide Contributions'!L51,2) -> 35.95 | N51: 12 | O51: 18 | P51: 0 | Q51: 0 | R51: 0 | S51: 132012 | T51: 132552 | U51: 0 | V51: 139434 | W51: 0 | X51: 0 | Y51: 139434 | Z51: 0 | AA51: 334820 | AB51: 100.0001314 | AC51: 106159.32 | AD51: 42749 | AE51: 19066.36818 | AG51: 18601.09 | AI51: 0 | AK51: 2374.944444 | AM51: 42 | AN51: Bridgewater | AO51: 0 | AP51: 18 | AQ51: 334819.56 | AR51: 195386 | AS51: 139434
A52: 43 | B52: Brimfield | C52: 1 | D52: 3511281.75 | E52: 1913482 | F52: 1597800 | H52: 1597800 | I52: 3675840.46 | J52: 1922423 | K52: 1753417 | L52: 155617 | M52: =ROUND(100-'Townwide Contributions'!L52,2) -> 42.94 | N52: 264 | O52: 270 | P52: 1 | Q52: 28080 | R52: 0 | S52: 1597800 | T52: 1605900 | U52: 0 | V52: 1753417 | W52: 0 | X52: 0 | Y52: 1753417 | Z52: 47.70111813 | AA52: 3675840 | AB52: 99.99998749 | AC52: 164558.71 | AD52: 155617 | AE52: 175011.1065 | AF52: 4.761118127 | AG52: 13614.22 | AI52: 0 | AK52: 576.3592593 | AM52: 43 | AN52: Brimfield | AO52: 1 | AP52: 270 | AQ52: 3675840.46 | AR52: 1922423 | AS52: 1753417
A53: 44 | B53: Brockton | C53: 1 | D53: 295646847.7 | E53: 54579267 | F53: 241067581 | H53: 241067581 | I53: 314919037.4 | J53: 58428285 | K53: 256490752 | L53: 15423171 | M53: =ROUND(100-'Townwide Contributions'!L53,2) -> 76.77 | N53: 16619 | O53: 16775 | P53: 1 | Q53: 1744600 | R53: 0 | S53: 241067581 | T53: 241570831 | U53: 0 | V53: 256490752 | W53: 0 | X53: 0 | Y53: 256490752 | Z53: 81.44656928 | AA53: 314919037 | AB53: 99.99999986 | AC53: 19272189.72 | AD53: 15423171 | AE53: 14727406.96 | AF53: 4.676569279 | AG53: 18773.12 | AI53: 0 | AK53: 919.4140686 | AM53: 44 | AN53: Brockton | AO53: 1 | AP53: 16775 | AQ53: 314919037.4 | AR53: 58428285 | AS53: 256490752
A54: 45 | B54: Brookfield | C54: 1 | D54: 3240938.55 | E54: 1329203 | F54: 1911736 | H54: 1911736 | I54: 3232462.2 | J54: 1406803 | K54: 1825659 | L54: 0 | M54: =ROUND(100-'Townwide Contributions'!L54,2) -> 51.43 | N54: 223 | O54: 225 | P54: 0 | Q54: 23400 | R54: 23400 | S54: 1911736 | T54: 1918486 | U54: 0 | V54: 1935136 | W54: 0 | X54: 0 | Y54: 1935136 | Z54: 59.86569619 | AA54: 3341939 | AB54: 103.3867929 | AC54: -8476.35 | AD54: 23400 | AE54: 272680.6905 | AF54: 8.435696187 | AG54: 14366.5 | AI54: 0 | AK54: 104 | AM54: 45 | AN54: Brookfield | AO54: 1 | AP54: 225 | AQ54: 3232462.2 | AR54: 1406803 | AS54: 1935136
A55: 46 | B55: Brookline | C55: 1 | D55: 89394640.06 | E55: 73750578 | F55: 16035247 | H55: 16035247 | I55: 91993751.56 | J55: 75894845 | K55: 16098907 | L55: 63660 | M55: =ROUND(100-'Townwide Contributions'!L55,2) -> 17.5 | N55: 6913 | O55: 6899 | P55: 1 | Q55: 717496 | R55: 653836 | S55: 16035247 | T55: 16242217 | U55: 0 | V55: 16752743 | W55: 0 | X55: 0 | Y55: 16752743 | Z55: 18.2107401 | AA55: 92647588 | AB55: 100.7107401 | AC55: 2599111.495 | AD55: 717496 | AE55: 653836.4774 | AF55: 0.7107400952 | AG55: 13334.36 | AI55: 0 | AK55: 104 | AM55: 46 | AN55: Brookline | AO55: 1 | AP55: 6899 | AQ55: 91993751.56 | AR55: 75894845 | AS55: 16752743
A56: 47 | B56: Buckland | C56: 0 | D56: 16490.76 | E56: 8510 | F56: 13134 | H56: 13134 | I56: 16860.33 | J56: 8952 | K56: 7908 | L56: 0 | M56: =ROUND(100-'Townwide Contributions'!L56,2) -> 42.56 | N56: 1 | O56: 1 | P56: 0 | Q56: 0 | R56: 0 | S56: 13134 | T56: 13164 | U56: 0 | V56: 13134 | W56: 0 | X56: 0 | Y56: 13134 | Z56: 0 | AA56: 22086 | AB56: 130.9938773 | AC56: 369.57 | AD56: 0 | AE56: 5958.243552 | AG56: 16860.33 | AI56: 0 | AK56: 0 | AM56: 47 | AN56: Buckland | AO56: 0 | AP56: 1 | AQ56: 16860.33 | AR56: 8952 | AS56: 13134
A57: 48 | B57: Burlington | C57: 1 | D57: 46103747.99 | E57: 36818680 | F57: 9355284 | H57: 9355284 | I57: 49033422.45 | J57: 39058316 | K57: 9975106 | L57: 619822 | M57: =ROUND(100-'Townwide Contributions'!L57,2) -> 17.5 | N57: 3424 | O57: 3523 | P57: 1 | Q57: 366392 | R57: 0 | S57: 9355284 | T57: 9460974 | U57: 0 | V57: 9975106 | W57: 0 | X57: 0 | Y57: 9975106 | Z57: 20.34348308 | AA57: 49033422 | AB57: 99.99999909 | AC57: 2929674.458 | AD57: 619822 | AE57: 1394257.072 | AF57: 2.843483082 | AG57: 13918.09 | AI57: 0 | AK57: 175.9358501 | AM57: 48 | AN57: Burlington | AO57: 1 | AP57: 3523 | AQ57: 49033422.45 | AR57: 39058316 | AS57: 9975106
A58: 49 | B58: Cambridge | C58: 1 | D58: 112732473.5 | E58: 93004291 | F58: 19728183 | H58: 19728183 | I58: 118963463.1 | J58: 98144857 | K58: 20818606 | L58: 1090423 | M58: =ROUND(100-'Townwide Contributions'!L58,2) -> 17.5 | N58: 7030 | O58: 7297 | P58: 1 | Q58: 758888 | R58: 0 | S58: 19728183 | T58: 19947093 | U58: 0 | V58: 20818606 | W58: 0 | X58: 0 | Y58: 20818606 | Z58: 17.49999996 | AA58: 118963463 | AB58: 99.99999988 | AC58: 6230989.636 | AD58: 1090423 | AE58: -0.05056400225 | AF58: -4.250381025e-08 | AG58: 16303.06 | AI58: 0 | AK58: 149.4344251 | AM58: 49 | AN58: Cambridge | AO58: 1 | AP58: 7297 | AQ58: 118963463.1 | AR58: 98144857 | AS58: 20818606
A59: 50 | B59: Canton | C59: 1 | D59: 43350134.77 | E59: 34684949 | F59: 8665186 | H59: 8665186 | I59: 44999693.3 | J59: 36588682 | K59: 8411011 | L59: 0 | M59: =ROUND(100-'Townwide Contributions'!L59,2) -> 17.5 | N59: 3260 | O59: 3291 | P59: 0 | Q59: 342264 | R59: 342264 | S59: 8665186 | T59: 8763916 | U59: 0 | V59: 9007450 | W59: 0 | X59: 0 | Y59: 9007450 | Z59: 20.01669198 | AA59: 45596132 | AB59: 101.3254284 | AC59: 1649558.533 | AD59: 342264 | AE59: 1132503.672 | AF59: 2.516691979 | AG59: 13673.56 | AI59: 0 | AK59: 104 | AM59: 50 | AN59: Canton | AO59: 1 | AP59: 3291 | AQ59: 44999693.3 | AR59: 36588682 | AS59: 9007450
A60: 51 | B60: Carlisle | C60: 1 | D60: 6639945.163 | E60: 5477955 | F60: 1387990 | H60: 1387990 | I60: 6853478.081 | J60: 5654120 | K60: 1199358 | L60: 0 | M60: =ROUND(100-'Townwide Contributions'!L60,2) -> 17.5 | N60: 567 | O60: 571 | P60: 0 | Q60: 59384 | R60: 59384 | S60: 1387990 | T60: 1405120 | U60: 0 | V60: 1447374 | W60: 0 | X60: 0 | Y60: 1447374 | Z60: 21.11882438 | AA60: 7101494 | AB60: 103.6188329 | AC60: 213532.918 | AD60: 59384 | AE60: 248015.3358 | AF60: 3.618824382 | AG60: 12002.59 | AI60: 0 | AK60: 104 | AM60: 51 | AN60: Carlisle | AO60: 1 | AP60: 571 | AQ60: 6853478.081 | AR60: 5654120 | AS60: 1447374
A61: 52 | B61: Carver | C61: 1 | D61: 21283331.5 | E61: 10820042 | F61: 10463289 | H61: 10463289 | I61: 20958681.78 | J61: 11414545 | K61: 9544137 | L61: 0 | M61: =ROUND(100-'Townwide Contributions'!L61,2) -> 41.6 | N61: 1535 | O61: 1501 | P61: 0 | Q61: 156104 | R61: 156104 | S61: 10463289 | T61: 10508319 | U61: 0 | V61: 10619393 | W61: 0 | X61: 0 | Y61: 10619393 | Z61: 50.66822958 | AA61: 22033938 | AB61: 105.1303619 | AC61: -324649.7228 | AD61: 156104 | AE61: 1900581.381 | AF61: 9.068229582 | AG61: 13963.15 | AI61: 0 | AK61: 104 | AM61: 52 | AN61: Carver | AO61: 1 | AP61: 1501 | AQ61: 20958681.78 | AR61: 11414545 | AS61: 10619393
A62: 53 | B62: Charlemont | C62: 0 | D62: 131926.08 | E62: 67011 | F62: 102815 | H62: 102815 | I62: 216797.25 | J62: 121733 | K62: 95064 | L62: 0 | M62: =ROUND(100-'Townwide Contributions'!L62,2) -> 40.3 | N62: 8 | O62: 11 | P62: 0 | Q62: 0 | R62: 0 | S62: 102815 | T62: 103145 | U62: 0 | V62: 102815 | W62: 0 | X62: 0 | Y62: 102815 | Z62: 0 | AA62: 224548 | AB62: 103.5751145 | AC62: 84871.17 | AD62: 0 | AE62: 15445.70825 | AG62: 19708.84 | AI62: 0 | AK62: 0 | AM62: 53 | AN62: Charlemont | AO62: 0 | AP62: 11 | AQ62: 216797.25 | AR62: 121733 | AS62: 102815
A63: 54 | B63: Charlton | C63: 0 | D63: 0 | E63: 0 | F63: 0 | H63: 0 | I63: 0 | J63: 0 | K63: 0 | L63: 0 | M63: =ROUND(100-'Townwide Contributions'!L63,2) -> 39 | N63: 0 | O63: 0 | P63: 0 | Q63: 0 | R63: 0 | S63: 0 | T63: 0 | U63: 0 | V63: 0 | W63: 0 | X63: 0 | Y63: 0 | Z63: 0 | AA63: 0 | AB63: 0 | AC63: 0 | AD63: 0 | AE63: 0 | AG63: 0 | AI63: 0 | AK63: 0 | AM63: 54 | AN63: Charlton | AO63: 0 | AP63: 0 | AQ63: 0 | AR63: 0 | AS63: 0
A64: 55 | B64: Chatham | C64: 0 | D64: 0 | E64: 0 | F64: 0 | H64: 0 | I64: 0 | J64: 0 | K64: 0 | L64: 0 | M64: =ROUND(100-'Townwide Contributions'!L64,2) -> 17.5 | N64: 0 | O64: 0 | P64: 0 | Q64: 0 | R64: 0 | S64: 0 | T64: 0 | U64: 0 | V64: 0 | W64: 0 | X64: 0 | Y64: 0 | Z64: 0 | AA64: 0 | AB64: 0 | AC64: 0 | AD64: 0 | AE64: 0 | AG64: 0 | AI64: 0 | AK64: 0 | AM64: 55 | AN64: Chatham | AO64: 0 | AP64: 0 | AQ64: 0 | AR64: 0 | AS64: 0
A65: 56 | B65: Chelmsford | C65: 1 | D65: 63812307.76 | E65: 49670508 | F65: 14141800 | H65: 14141800 | I65: 66887500.86 | J65: 52463272 | K65: 14424229 | L65: 282429 | M65: =ROUND(100-'Townwide Contributions'!L65,2) -> 17.5 | N65: 5108 | O65: 5181 | P65: 1 | Q65: 538824 | R65: 256395 | S65: 14141800 | T65: 14297230 | U65: 0 | V65: 14680624 | W65: 0 | X65: 0 | Y65: 14680624 | Z65: 21.9482322 | AA65: 67143896 | AB65: 100.3833229 | AC65: 3075193.1 | AD65: 538824 | AE65: 2975311.349 | AF65: 4.448232198 | AG65: 12910.15 | AI65: 0 | AK65: 104 | AM65: 56 | AN65: Chelmsford | AO65: 1 | AP65: 5181 | AQ65: 66887500.86 | AR65: 52463272 | AS65: 14680624
A66: 57 | B66: Chelsea | C66: 1 | D66: 138863180.5 | E66: 22081668 | F66: 116781512 | H66: 116781512 | I66: 146924932.9 | J66: 23727035 | K66: 123197898 | L66: 6416386 | M66: =ROUND(100-'Townwide Contributions'!L66,2) -> 77.95 | N66: 7110 | O66: 7095 | P66: 1 | Q66: 737880 | R66: 0 | S66: 116781512 | T66: 116994362 | U66: 0 | V66: 123197898 | W66: 0 | X66: 0 | Y66: 123197898 | Z66: 83.85091325 | AA66: 146924933 | AB66: 100.0000001 | AC66: 8061752.411 | AD66: 6416386 | AE66: 8669912.828 | AF66: 5.900913248 | AG66: 20708.24 | AI66: 0 | AK66: 904.3532065 | AM66: 57 | AN66: Chelsea | AO66: 1 | AP66: 7095 | AQ66: 146924932.9 | AR66: 23727035 | AS66: 123197898
A67: 58 | B67: Cheshire | C67: 0 | D67: 32981.52 | E67: 16631 | F67: 16351 | H67: 16351 | I67: 16860.33 | J67: 8468 | K67: 8392 | L67: 0 | M67: =ROUND(100-'Townwide Contributions'!L67,2) -> 44.78 | N67: 2 | O67: 1 | P67: 0 | Q67: 0 | R67: 0 | S67: 16351 | T67: 16381 | U67: 0 | V67: 16351 | W67: 0 | X67: 0 | Y67: 16351 | Z67: 0 | AA67: 24819 | AB67: 147.2035245 | AC67: -16121.19 | AD67: 0 | AE67: 8800.944226 | AG67: 16860.33 | AI67: 0 | AK67: 0 | AM67: 58 | AN67: Cheshire | AO67: 0 | AP67: 1 | AQ67: 16860.33 | AR67: 8468 | AS67: 16351
A68: 59 | B68: Chester | C68: 0 | D68: 98944.56 | E68: 48005 | F68: 72014 | H68: 72014 | I68: 118022.31 | J68: 59715 | K68: 58307 | L68: 0 | M68: =ROUND(100-'Townwide Contributions'!L68,2) -> 43.62 | N68: 6 | O68: 7 | P68: 0 | Q68: 0 | R68: 0 | S68: 72014 | T68: 72224 | U68: 0 | V68: 72014 | W68: 0 | X68: 0 | Y68: 72014 | Z68: 0 | AA68: 131729 | AB68: 111.6136432 | AC68: 19077.75 | AD68: 0 | AE68: 20532.66838 | AG68: 16860.33 | AI68: 0 | AK68: 0 | AM68: 59 | AN68: Chester | AO68: 0 | AP68: 7 | AQ68: 118022.31 | AR68: 59715 | AS68: 72014
A69: 60 | B69: Chesterfield | C69: 0 | D69: 294623.28 | E69: 216744 | F69: 133594 | H69: 133594 | I69: 267378.24 | J69: 204860 | K69: 62518 | L69: 0 | M69: =ROUND(100-'Townwide Contributions'!L69,2) -> 18.25 | N69: 16 | O69: 14 | P69: 0 | Q69: 0 | R69: 0 | S69: 133594 | T69: 134014 | U69: 0 | V69: 133594 | W69: 0 | X69: 0 | Y69: 133594 | Z69: 0 | AA69: 338454 | AB69: 126.5824773 | AC69: -27245.04 | AD69: 0 | AE69: 84797.4712 | AG69: 19098.45 | AI69: 0 | AK69: 0 | AM69: 60 | AN69: Chesterfield | AO69: 0 | AP69: 14 | AQ69: 267378.24 | AR69: 204860 | AS69: 133594
A70: 61 | B70: Chicopee | C70: 1 | D70: 122693363.2 | E70: 33865812 | F70: 88827551 | H70: 88827551 | I70: 129158251.1 | J70: 35132393 | K70: 94025858 | L70: 5198307 | M70: =ROUND(100-'Townwide Contributions'!L70,2) -> 70.94 | N70: 7166 | O70: 7202 | P70: 1 | Q70: 749008 | R70: 0 | S70: 88827551 | T70: 89043611 | U70: 0 | V70: 94025858 | W70: 0 | X70: 0 | Y70: 94025858 | Z70: 72.79895569 | AA70: 129158251 | AB70: 99.99999991 | AC70: 6464887.92 | AD70: 5198307 | AE70: 2400994.655 | AF70: 1.858955688 | AG70: 17933.66 | AI70: 0 | AK70: 721.7865871 | AM70: 61 | AN70: Chicopee | AO70: 1 | AP70: 7202 | AQ70: 129158251.1 | AR70: 35132393 | AS70: 94025858
A71: 62 | B71: Chilmark | C71: 0 | D71: 0 | E71: 0 | F71: 0 | H71: 0 | I71: 0 | J71: 0 | K71: 0 | L71: 0 | M71: =ROUND(100-'Townwide Contributions'!L71,2) -> 17.5 | N71: 0 | O71: 0 | P71: 0 | Q71: 0 | R71: 0 | S71: 0 | T71: 0 | U71: 0 | V71: 0 | W71: 0 | X71: 0 | Y71: 0 | Z71: 0 | AA71: 0 | AB71: 0 | AC71: 0 | AD71: 0 | AE71: 0 | AG71: 0 | AI71: 0 | AK71: 0 | AM71: 62 | AN71: Chilmark | AO71: 0 | AP71: 0 | AQ71: 0 | AR71: 0 | AS71: 0
A72: 63 | B72: Clarksburg | C72: 1 | D72: 2395286.75 | E72: 736864 | F72: 1827355 | H72: 1827355 | I72: 2889718.21 | J72: 806811 | K72: 2082907 | L72: 255552 | M72: =ROUND(100-'Townwide Contributions'!L72,2) -> 68.3 | N72: 171 | O72: 204 | P72: 1 | Q72: 21216 | R72: 0 | S72: 1860774 | T72: 1866894 | U72: 0 | V72: 2082907 | W72: 0 | X72: 0 | Y72: 2082907 | Z72: 72.07993474 | AA72: 2889718 | AB72: 99.99999273 | AC72: 494431.46 | AD72: 255552 | AE72: 109229.4626 | AF72: 3.779934742 | AG72: 14165.29 | AI72: 0 | AK72: 1252.705882 | AM72: 63 | AN72: Clarksburg | AO72: 1 | AP72: 204 | AQ72: 2889718.21 | AR72: 806811 | AS72: 2082907
A73: 64 | B73: Clinton | C73: 1 | D73: 32534279.41 | E73: 13217258 | F73: 19317021 | H73: 19317021 | I73: 34438020.57 | J73: 14024833 | K73: 20413188 | L73: 1096167 | M73: =ROUND(100-'Townwide Contributions'!L73,2) -> 56.47 | N73: 2062 | O73: 2095 | P73: 1 | Q73: 217880 | R73: 0 | S73: 19317021 | T73: 19379871 | U73: 0 | V73: 20413188 | W73: 0 | X73: 0 | Y73: 20413188 | Z73: 59.27514898 | AA73: 34438021 | AB73: 100.0000012 | AC73: 1903741.16 | AD73: 1096167 | AE73: 966037.7841 | AF73: 2.805148984 | AG73: 16438.2 | AI73: 0 | AK73: 523.2300716 | AM73: 64 | AN73: Clinton | AO73: 1 | AP73: 2095 | AQ73: 34438020.57 | AR73: 14024833 | AS73: 20413188
A74: 65 | B74: Cohasset | C74: 1 | D74: 16687439.72 | E74: 13767138 | F74: 2955742 | H74: 2955742 | I74: =SUMIF(dist1755,A74,found1755) -> 17839057.45 | J74: =SUMIF(dist1755,A74,prelcont1755) -> 14717222 | K74: =ROUND(MAX(found-prelcont436,0),0) -> 3121835 | L74: =IF(foundaid>priorc70,foundaid-priorc70,0) -> 166093 | M74: =ROUND(100-'Townwide Contributions'!L74,2) -> 17.5 | N74: 1367 | O74: =SUMIF(dist1755,A74,enro1755) -> 1433 | P74: =IF(AND(C74=1,L74>0),1,0) -> 1 | Q74: =IF(nonop=1,enro*$Q$6,0) -> 149032 | R74: =IF((foundinc)<Q74,Q74-(foundinc),0) -> 0 | S74: 2977384 | T74: =S74+30*enro -> 3020374 | U74: =IF(AND(T74-priorc70-foundinc-minaid>0,nonop=1), T74-priorc70-foundinc-minaid,0) -> 0 | V74: =priorc70+ foundinc+minaidadjincrement+minaid -> 3121835 | W74: =IF(AND(C74=0,V74>found),V74-found,0) -> 0 | X74: 0 | Y74: =priorc70+foundinc+minaidadjincrement+minaid-rednonop+holdharmlessaid -> 3121835 | Z74: =IF(C74=1, Y74/I74*100, 0) -> 17.4999997 | AA74: =prelcont436+chapter70 -> 17839057 | AB74: =IF(found>0,AA74*100/found,0) -> 99.99999747 | AC74: =I74-D74 -> 1151617.734 | AD74: =Y74-F74 -> 166093 | AE74: =Y74-((M74/100)*I74) -> -0.05402299948 | AF74: =IF(C74=1, (Y74/I74*100)-M74, "") -> -3.02835506e-07 | AG74: =IFERROR(ROUND(I74/O74, 2), 0) -> 12448.75 | AI74: =VLOOKUP(A74, disthist, 37, FALSE)*$H$6 -> 0 | AK74: =IFERROR(AD74/O74, 0) -> 115.905792 | AM74: =A74 -> 65 | AN74: =B74 -> Cohasset | AO74: =C74 -> 1 | AP74: 1433 | AQ74: =I74 -> 17839057.45 | AR74: =J74 -> 14717222 | AS74: =Y74 -> 3121835
A75: 66 | B75: Colrain | C75: 0 | D75: 0 | E75: 0 | F75: 0 | H75: =F75 -> 0 | I75: 0 | J75: 0 | K75: 0 | L75: 0 | M75: =ROUND(100-'Townwide Contributions'!L75,2) -> 39.78 | N75: 0 | O75: 0 | P75: 0 | Q75: 0 | R75: 0 | S75: 0 | T75: 0 | U75: 0 | V75: 0 | W75: 0 | X75: 0 | Y75: 0 | Z75: 0 | AA75: 0 | AB75: 0 | AC75: 0 | AD75: 0 | AE75: 0 | AG75: 0 | AI75: 0 | AK75: 0 | AM75: 66 | AN75: Colrain | AO75: 0 | AP75: =O75 -> 0 | AQ75: 0 | AR75: 0 | AS75: 0
A76: 67 | B76: Concord | C76: 1 | D76: 23075622.33 | E76: 19037389 | F76: 4038233 | H76: 4038233 | I76: 24161392.54 | J76: 19933149 | K76: 4228244 | L76: 190011 | M76: =ROUND(100-'Townwide Contributions'!L76,2) -> 17.5 | N76: 1925 | O76: 1943 | P76: 1 | Q76: 202072 | R76: 12061 | S76: 4038233 | T76: 4096523 | U76: 0 | V76: 4240305 | W76: 0 | X76: 0 | Y76: 4240305 | Z76: 17.54991974 | AA76: 24173454 | AB76: 100.0499204 | AC76: 1085770.208 | AD76: 202072 | AE76: 12061.30537 | AF76: 0.04991974429 | AG76: 12435.1 | AI76: 0 | AK76: 104 | AM76: 67 | AN76: Concord | AO76: 1 | AP76: 1943 | AQ76: 24161392.54 | AR76: 19933149 | AS76: 4240305
A77: 68 | B77: Conway | C77: 1 | D77: 941811.15 | E77: 776994 | F77: 637444 | H77: 637444 | I77: 969244.92 | J77: 799627 | K77: 169618 | L77: 0 | M77: =ROUND(100-'Townwide Contributions'!L77,2) -> 17.5 | N77: 66 | O77: 68 | P77: 0 | Q77: 7072 | R77: 7072 | S77: 637444 | T77: 639484 | U77: 0 | V77: 644516 | W77: 0 | X77: 0 | Y77: 644516 | Z77: 66.49671169 | AA77: 1444143 | AB77: 148.9967056 | AC77: 27433.77 | AD77: 7072 | AE77: 474898.139 | AF77: 48.99671169 | AG77: 14253.6 | AI77: 0 | AK77: 104 | AM77: 68 | AN77: Conway | AO77: 1 | AP77: 68 | AQ77: 969244.92 | AR77: 799627 | AS77: 644516
A78: 69 | B78: Cummington | C78: 0 | D78: 98944.56 | E78: 81629 | F78: 59811.12 | H78: 59811.12 | I78: 84301.65 | J78: 69549 | K78: 14753 | L78: 0 | M78: =ROUND(100-'Townwide Contributions'!L78,2) -> 17.5 | N78: 6 | O78: 5 | P78: 0 | Q78: 0 | R78: 0 | S78: 59811.12 | T78: 59961.12 | U78: 0 | V78: 59811.12 | W78: 0 | X78: 0 | Y78: 59811.12 | Z78: 0 | AA78: 129360.12 | AB78: 153.4490962 | AC78: -14642.91 | AD78: 0 | AE78: 45058.33125 | AG78: 16860.33 | AI78: 0 | AK78: 0 | AM78: 69 | AN78: Cummington | AO78: 0 | AP78: 5 | AQ78: 84301.65 | AR78: 69549 | AS78: 59811.12
A79: 70 | B79: Dalton | C79: 0 | D79: 212169.48 | E79: 97790 | F79: 212169.48 | H79: 212169.48 | I79: 267378.24 | J79: 121597 | K79: 145781 | L79: 0 | M79: =ROUND(100-'Townwide Contributions'!L79,2) -> 52.17 | N79: 11 | O79: 14 | P79: 0 | Q79: 0 | R79: 0 | S79: 212169.48 | T79: 212589.48 | U79: 0 | V79: 212169.48 | W79: 0 | X79: 0 | Y79: 212169.48 | Z79: 0 | AA79: 333766.48 | AB79: 124.8293354 | AC79: 55208.76 | AD79: 0 | AE79: 72678.25219 | AG79: 19098.45 | AI79: 0 | AK79: 0 | AM79: 70 | AN79: Dalton | AO79: 0 | AP79: 14 | AQ79: 267378.24 | AR79: 121597 | AS79: 212169.48
A80: 71 | B80: Danvers | C80: 1 | D80: 42331707.48 | E80: 33039603 | F80: 9292104 | H80: 9292104 | I80: 44328380.18 | J80: 34918958 | K80: 9409422 | L80: 117318 | M80: =ROUND(100-'Townwide Contributions'!L80,2) -> 17.5 | N80: 3315 | O80: 3349 | P80: 1 | Q80: 348296 | R80: 230978 | S80: 9292104 | T80: 9392574 | U80: 0 | V80: 9640400 | W80: 0 | X80: 0 | Y80: 9640400 | Z80: 21.74769292 | AA80: 44559358 | AB80: 100.5210608 | AC80: 1996672.7 | AD80: 348296 | AE80: 1882933.469 | AF80: 4.247692925 | AG80: 13236.3 | AI80: 0 | AK80: 104 | AM80: 71 | AN80: Danvers | AO80: 1 | AP80: 3349 | AQ80: 44328380.18 | AR80: 34918958 | AS80: 9640400
A81: 72 | B81: Dartmouth | C81: 1 | D81: 43916766.76 | E81: 34831363 | F81: 10449331 | H81: 10449331 | I81: 44678547.48 | J81: 36166183 | K81: 8512364 | L81: 0 | M81: =ROUND(100-'Townwide Contributions'!L81,2) -> 17.5 | N81: 3303 | O81: 3284 | P81: 0 | Q81: 341536 | R81: 341536 | S81: 10449331 | T81: 10547851 | U81: 0 | V81: 10790867 | W81: 0 | X81: 0 | Y81: 10790867 | Z81: 24.15223325 | AA81: 46957050 | AB81: 105.0997686 | AC81: 761780.72 | AD81: 341536 | AE81: 2972121.191 | AF81: 6.65223325 | AG81: 13604.92 | AI81: 0 | AK81: 104 | AM81: 72 | AN81: Dartmouth | AO81: 1 | AP81: 3284 | AQ81: 44678547.48 | AR81: 36166183 | AS81: 10790867
A82: 73 | B82: Dedham | C82: 1 | D82: 34648058.13 | E82: 27655361 | F82: 6992697 | H82: 6992697 | I82: 39060888.15 | J82: 29321375 | K82: 9739513 | L82: 2746816 | M82: =ROUND(100-'Townwide Contributions'!L82,2) -> 17.5 | N82: 2529 | O82: 2748 | P82: 1 | Q82: 285792 | R82: 0 | S82: 7530581 | T82: 7613021 | U82: 0 | V82: 9739513 | W82: 0 | X82: 0 | Y82: 9739513 | Z82: 24.93418215 | AA82: 39060888 | AB82: 99.99999962 | AC82: 4412830.019 | AD82: 2746816 | AE82: 2903857.574 | AF82: 7.434182149 | AG82: 14214.3 | AI82: 0 | AK82: 999.5691412 | AM82: 73 | AN82: Dedham | AO82: 1 | AP82: 2748 | AQ82: 39060888.15 | AR82: 29321375 | AS82: 9739513
A83: 74 | B83: Deerfield | C83: 1 | D83: 3505682.31 | E83: 2863682 | F83: 1157053 | H83: 1157053 | I83: 3547455.86 | J83: 2926651 | K83: 620805 | L83: 0 | M83: =ROUND(100-'Townwide Contributions'!L83,2) -> 17.5 | N83: 281 | O83: 279 | P83: 0 | Q83: 29016 | R83: 29016 | S83: 1157053 | T83: 1165423 | U83: 0 | V83: 1186069 | W83: 0 | X83: 0 | Y83: 1186069 | Z83: 33.4343554 | AA83: 4112720 | AB83: 115.934353 | AC83: 41773.55 | AD83: 29016 | AE83: 565264.2245 | AF83: 15.9343554 | AG83: 12714.9 | AI83: 0 | AK83: 104 | AM83: 74 | AN83: Deerfield | AO83: 1 | AP83: 279 | AQ83: 3547455.86 | AR83: 2926651 | AS83: 1186069
A84: 75 | B84: Dennis | C84: 0 | D84: 0 | E84: 0 | F84: 0 | H84: 0 | I84: 0 | J84: 0 | K84: 0 | L84: 0 | M84: =ROUND(100-'Townwide Contributions'!L84,2) -> 17.5 | N84: 0 | O84: 0 | P84: 0 | Q84: 0 | R84: 0 | S84: 0 | T84: 0 | U84: 0 | V84: 0 | W84: 0 | X84: 0 | Y84: 0 | Z84: 0 | AA84: 0 | AB84: 0 | AC84: 0 | AD84: 0 | AE84: 0 | AG84: 0 | AI84: 0 | AK84: 0 | AM84: 75 | AN84: Dennis | AO84: 0 | AP84: 0 | AQ84: 0 | AR84: 0 | AS84: 0
A85: 76 | B85: Dighton | C85: 0 | D85: 0 | E85: 0 | F85: 0 | H85: 0 | I85: 16860.33 | J85: 8607 | K85: 8253 | L85: 8253 | M85: =ROUND(100-'Townwide Contributions'!L85,2) -> 43.88 | N85: 0 | O85: 1 | P85: 0 | Q85: 0 | R85: 0 | S85: 7967 | T85: 7997 | U85: 0 | V85: 8253 | W85: 0 | X85: 0 | Y85: 8253 | Z85: 0 | AA85: 16860 | AB85: 99.99804274 | AC85: 16860.33 | AD85: 8253 | AE85: 854.687196 | AG85: 16860.33 | AI85: 0 | AK85: 8253 | AM85: 76 | AN85: Dighton | AO85: 0 | AP85: 1 | AQ85: 16860.33 | AR85: 8607 | AS85: 8253
A86: 77 | B86: Douglas | C86: 1 | D86: 14574247.94 | E86: 8454786 | F86: 8927525 | H86: 8927525 | I86: 14237865.39 | J86: 8850986 | K86: 5386879 | L86: 0 | M86: =ROUND(100-'Townwide Contributions'!L86,2) -> 31.85 | N86: 1132 | O86: 1072 | P86: 0 | Q86: 111488 | R86: 111488 | S86: 8927525 | T86: 8959685 | U86: 0 | V86: 9039013 | W86: 0 | X86: 0 | Y86: 9039013 | Z86: 63.48573155 | AA86: 17889999 | AB86: 125.6508508 | AC86: -336382.55 | AD86: 111488 | AE86: 4504252.873 | AF86: 31.63573155 | AG86: 13281.59 | AI86: 0 | AK86: 104 | AM86: 77 | AN86: Douglas | AO86: 1 | AP86: 1072 | AQ86: 14237865.39 | AR86: 8850986 | AS86: 9039013
A87: 78 | B87: Dover | C87: 1 | D87: 5901407.924 | E87: 4868661 | F87: 1032747 | H87: 1032747 | I87: 5959421.474 | J87: 4916523 | K87: 1042898 | L87: 10151 | M87: =ROUND(100-'Townwide Contributions'!L87,2) -> 17.5 | N87: 500 | O87: 491 | P87: 1 | Q87: 51064 | R87: 40913 | S87: 1032747 | T87: 1047477 | U87: 0 | V87: 1083811 | W87: 0 | X87: 0 | Y87: 1083811 | Z87: 18.18651365 | AA87: 6000334 | AB87: 100.6865184 | AC87: 58013.54952 | AD87: 51064 | AE87: 40912.2421 | AF87: 0.6865136537 | AG87: 12137.31 | AI87: 0 | AK87: 104 | AM87: 78 | AN87: Dover | AO87: 1 | AP87: 491 | AQ87: 5959421.474 | AR87: 4916523 | AS87: 1083811
A88: 79 | B88: Dracut | C88: 1 | D88: 54539267.46 | E88: 27369124 | F88: 27170143 | H88: 27170143 | I88: 54583406.89 | J88: 27974680 | K88: 26608727 | L88: 0 | M88: =ROUND(100-'Townwide Contributions'!L88,2) -> 41.98 | N88: 3900 | O88: 3837 | P88: 0 | Q88: 399048 | R88: 399048 | S88: 27170143 | T88: 27285253 | U88: 0 | V88: 27569191 | W88: 0 | X88: 1248 | Y88: 27570439 | Z88: 50.51065987 | AA88: 55545119 | AB88: 101.7619129 | AC88: 44139.43 | AD88: 400296 | AE88: 4656324.788 | AF88: 8.530659871 | AG88: 14225.54 | AI88: 0 | AK88: 104.3252541 | AM88: 79 | AN88: Dracut | AO88: 1 | AP88: 3837 | AQ88: 54583406.89 | AR88: 27974680 | AS88: 27570439
A89: 80 | B89: Dudley | C89: 0 | D89: 16490.76 | E89: 5890 | F89: 10601 | H89: 10601 | I89: 0 | J89: 0 | K89: 0 | L89: 0 | M89: =ROUND(100-'Townwide Contributions'!L89,2) -> 55.31 | N89: 1 | O89: 0 | P89: 0 | Q89: 0 | R89: 0 | S89: 0 | T89: 0 | U89: 0 | V89: 10601 | W89: 10601 | X89: 0 | Y89: 0 | Z89: 0 | AA89: 0 | AB89: 0 | AC89: -16490.76 | AD89: -10601 | AE89: 0 | AG89: 0 | AI89: 0 | AK89: 0 | AM89: 80 | AN89: Dudley | AO89: 0 | AP89: 0 | AQ89: 0 | AR89: 0 | AS89: 0
A90: 81 | B90: Dunstable | C90: 0 | D90: 0 | E90: 0 | F90: 0 | H90: 0 | I90: 0 | J90: 0 | K90: 0 | L90: 0 | M90: =ROUND(100-'Townwide Contributions'!L90,2) -> 17.5 | N90: 0 | O90: 0 | P90: 0 | Q90: 0 | R90: 0 | S90: 0 | T90: 0 | U90: 0 | V90: 0 | W90: 0 | X90: 0 | Y90: 0 | Z90: 0 | AA90: 0 | AB90: 0 | AC90: 0 | AD90: 0 | AE90: 0 | AG90: 0 | AI90: 0 | AK90: 0 | AM90: 81 | AN90: Dunstable | AO90: 0 | AP90: 0 | AQ90: 0 | AR90: 0 | AS90: 0
A91: 82 | B91: Duxbury | C91: 1 | D91: 33659011.2 | E91: 26987503 | F91: 6671508 | H91: 6671508 | I91: 33652713.46 | J91: 27763489 | K91: 5889224 | L91: 0 | M91: =ROUND(100-'Townwide Contributions'!L91,2) -> 17.5 | N91: 2729 | O91: 2658 | P91: 0 | Q91: 276432 | R91: 276432 | S91: 6671508 | T91: 6751248 | U91: 0 | V91: 6947940 | W91: 0 | X91: 0 | Y91: 6947940 | Z91: 20.64600232 | AA91: 34711429 | AB91: 103.1460035 | AC91: -6297.74266 | AD91: 276432 | AE91: 1058715.145 | AF91: 3.146002316 | AG91: 12660.92 | AI91: 0 | AK91: 104 | AM91: 82 | AN91: Duxbury | AO91: 1 | AP91: 2658 | AQ91: 33652713.46 | AR91: 27763489 | AS91: 6947940
A92: 83 | B92: East Bridgewater | C92: 1 | D92: 26867274.06 | E92: 13993957 | F92: 12873317 | H92: 12873317 | I92: 26713492.3 | J92: 14744525 | K92: 11968967 | L92: 0 | M92: =ROUND(100-'Townwide Contributions'!L92,2) -> 39.77 | N92: 2022 | O92: 1963 | P92: 0 | Q92: 204152 | R92: 204152 | S92: 12873317 | T92: 12932207 | U92: 0 | V92: 13077469 | W92: 0 | X92: 0 | Y92: 13077469 | Z92: 48.95454646 | AA92: 27821994 | AB92: 104.1495948 | AC92: -153781.76 | AD92: 204152 | AE92: 2453513.112 | AF92: 9.184546463 | AG92: 13608.5 | AI92: 0 | AK92: 104 | AM92: 83 | AN92: East Bridgewater | AO92: 1 | AP92: 1963 | AQ92: 26713492.3 | AR92: 14744525 | AS92: 13077469
A93: 84 | B93: East Brookfield | C93: 0 | D93: 278132.52 | E93: 144480 | F93: 186676 | H93: 186676 | I93: 267378.24 | J93: 141860 | K93: 125518 | L93: 0 | M93: =ROUND(100-'Townwide Contributions'!L93,2) -> 41.68 | N93: 15 | O93: 14 | P93: 0 | Q93: 0 | R93: 0 | S93: 186676 | T93: 187096 | U93: 0 | V93: 186676 | W93: 0 | X93: 0 | Y93: 186676 | Z93: 0 | AA93: 328536 | AB93: 122.8731254 | AC93: -10754.28 | AD93: 0 | AE93: 75232.74957 | AG93: 19098.45 | AI93: 0 | AK93: 0 | AM93: 84 | AN93: East Brookfield | AO93: 0 | AP93: 14 | AQ93: 267378.24 | AR93: 141860 | AS93: 186676
A94: 85 | B94: Eastham | C94: 1 | D94: 2896212.01 | E94: 2389375 | F94: 506837 | H94: 506837 | I94: 2893667.62 | J94: 2387276 | K94: 506392 | L94: 0 | M94: =ROUND(100-'Townwide Contributions'!L94,2) -> 17.5 | N94: 197 | O94: 198 | P94: 0 | Q94: 20592 | R94: 20592 | S94: 506837 | T94: 512777 | U94: 0 | V94: 527429 | W94: 0 | X94: 0 | Y94: 527429 | Z94: 18.22700701 | AA94: 2914705 | AB94: 100.7270144 | AC94: -2544.39 | AD94: 20592 | AE94: 21037.1665 | AF94: 0.727007012 | AG94: 14614.48 | AI94: 0 | AK94: 104 | AM94: 85 | AN94: Eastham | AO94: 1 | AP94: 198 | AQ94: 2893667.62 | AR94: 2387276 | AS94: 527429
A95: 86 | B95: Easthampton | C95: 1 | D95: 22559015.46 | E95: 13894543 | F95: 8664472 | H95: 8664472 | I95: 23097746.73 | J95: 14936633 | K95: 8161114 | L95: 0 | M95: =ROUND(100-'Townwide Contributions'!L95,2) -> 31.7 | N95: 1591 | O95: 1580 | P95: 0 | Q95: 164320 | R95: 164320 | S95: 8664472 | T95: 8711872 | U95: 0 | V95: 8828792 | W95: 0 | X95: 0 | Y95: 8828792 | Z95: 38.22360728 | AA95: 23765425 | AB95: 102.8906641 | AC95: 538731.27 | AD95: 164320 | AE95: 1506806.287 | AF95: 6.523607277 | AG95: 14618.83 | AI95: 0 | AK95: 104 | AM95: 86 | AN95: Easthampton | AO95: 1 | AP95: 1580 | AQ95: 23097746.73 | AR95: 14936633 | AS95: 8828792
A96: 87 | B96: East Longmeadow | C96: 1 | D96: 33881345.88 | E96: 18843898 | F96: 15037448 | H96: 15037448 | I96: 34416160.82 | J96: 19663608 | K96: 14752553 | L96: 0 | M96: =ROUND(100-'Townwide Contributions'!L96,2) -> 38.26 | N96: 2552 | O96: 2522 | P96: 0 | Q96: 262288 | R96: 262288 | S96: 15037448 | T96: 15113108 | U96: 0 | V96: 15299736 | W96: 0 | X96: 0 | Y96: 15299736 | Z96: 44.45509213 | AA96: 34963344 | AB96: 101.5899019 | AC96: 534814.94 | AD96: 262288 | AE96: 2132112.87 | AF96: 6.19509213 | AG96: 13646.38 | AI96: 0 | AK96: 104 | AM96: 87 | AN96: East Longmeadow | AO96: 1 | AP96: 2522 | AQ96: 34416160.82 | AR96: 19663608 | AS96: 15299736
A97: 88 | B97: Easton | C97: 1 | D97: 43192301.49 | E97: 33376275 | F97: 10655421 | H97: 10655421 | I97: 44308894.52 | J97: 34692019 | K97: 9616876 | L97: 0 | M97: =ROUND(100-'Townwide Contributions'!L97,2) -> 17.5 | N97: 3418 | O97: 3404 | P97: 0 | Q97: 354016 | R97: 354016 | S97: 10655421 | T97: 10757541 | U97: 0 | V97: 11009437 | W97: 0 | X97: 0 | Y97: 11009437 | Z97: 24.84701349 | AA97: 45701456 | AB97: 103.1428486 | AC97: 1116593.03 | AD97: 354016 | AE97: 3255380.459 | AF97: 7.347013493 | AG97: 13016.71 | AI97: 0 | AK97: 104 | AM97: 88 | AN97: Easton | AO97: 1 | AP97: 3404 | AQ97: 44308894.52 | AR97: 34692019 | AS97: 11009437
A98: 89 | B98: Edgartown | C98: 1 | D98: 6660865.34 | E98: 5495214 | F98: 1165651 | H98: 1165651 | I98: 6714943.73 | J98: 5539828 | K98: 1175116 | L98: 9465 | M98: =ROUND(100-'Townwide Contributions'!L98,2) -> 17.5 | N98: 438 | O98: 434 | P98: 1 | Q98: 45136 | R98: 35671 | S98: 1165651 | T98: 1178671 | U98: 0 | V98: 1210787 | W98: 0 | X98: 0 | Y98: 1210787 | Z98: 18.03123077 | AA98: 6750615 | AB98: 100.5312222 | AC98: 54078.39 | AD98: 45136 | AE98: 35671.84725 | AF98: 0.5312307695 | AG98: 15472.22 | AI98: 0 | AK98: 104 | AM98: 89 | AN98: Edgartown | AO98: 1 | AP98: 434 | AQ98: 6714943.73 | AR98: 5539828 | AS98: 1210787
A99: 90 | B99: Egremont | C99: 0 | D99: 0 | E99: 0 | F99: 0 | H99: 0 | I99: 0 | J99: 0 | K99: 0 | L99: 0 | M99: =ROUND(100-'Townwide Contributions'!L99,2) -> 17.5 | N99: 0 | O99: 0 | P99: 0 | Q99: 0 | R99: 0 | S99: 0 | T99: 0 | U99: 0 | V99: 0 | W99: 0 | X99: 0 | Y99: 0 | Z99: 0 | AA99: 0 | AB99: 0 | AC99: 0 | AD99: 0 | AE99: 0 | AG99: 0 | AI99: 0 | AK99: 0 | AM99: 90 | AN99: Egremont | AO99: 0 | AP99: 0 | AQ99: 0 | AR99: 0 | AS99: 0
A100: 91 | B100: Erving | C100: 1 | D100: 2671388.78 | E100: 2115389 | F100: 556000 | H100: 556000 | I100: 2756151.77 | J100: 2220663 | K100: 535489 | L100: 0 | M100: =ROUND(100-'Townwide Contributions'!L100,2) -> 17.5 | N100: 203 | O100: 204 | P100: 0 | Q100: 21216 | R100: 21216 | S100: 556000 | T100: 562120 | U100: 0 | V100: 577216 | W100: 0 | X100: 0 | Y100: 577216 | Z100: 20.94282348 | AA100: 2797879 | AB100: 101.5139671 | AC100: 84762.99 | AD100: 21216 | AE100: 94889.44025 | AF100: 3.442823479 | AG100: 13510.55 | AI100: 0 | AK100: 104 | AM100: 91 | AN100: Erving | AO100: 1 | AP100: 204 | AQ100: 2756151.77 | AR100: 2220663 | AS100: 577216
A101: 92 | B101: Essex | C101: 0 | D101: 0 | E101: 0 | F101: 0 | H101: 0 | I101: 0 | J101: 0 | K101: 0 | L101: 0 | M101: =ROUND(100-'Townwide Contributions'!L101,2) -> 17.5 | N101: 0 | O101: 0 | P101: 0 | Q101: 0 | R101: 0 | S101: 0 | T101: 0 | U101: 0 | V101: 0 | W101: 0 | X101: 0 | Y101: 0 | Z101: 0 | AA101: 0 | AB101: 0 | AC101: 0 | AD101: 0 | AE101: 0 | AG101: 0 | AI101: 0 | AK101: 0 | AM101: 92 | AN101: Essex | AO101: 0 | AP101: 0 | AQ101: 0 | AR101: 0 | AS101: 0
A102: 93 | B102: Everett | C102: 1 | D102: 152643280.5 | E102: 40961068 | F102: 111682212 | H102: 111682212 | I102: 161811104.9 | J102: 43738229 | K102: 118072876 | L102: 6390664 | M102: =ROUND(100-'Townwide Contributions'!L102,2) -> 65.92 | N102: 7937 | O102: 8020 | P102: 1 | Q102: 834080 | R102: 0 | S102: 111682212 | T102: 111922812 | U102: 0 | V102: 118072876 | W102: 0 | X102: 0 | Y102: 118072876 | Z102: 72.9695753 | AA102: 161811105 | AB102: 100.0000001 | AC102: 9167824.369 | AD102: 6390664 | AE102: 11406995.68 | AF102: 7.0495753 | AG102: 20175.95 | AI102: 0 | AK102: 796.8408978 | AM102: 93 | AN102: Everett | AO102: 1 | AP102: 8020 | AQ102: 161811104.9 | AR102: 43738229 | AS102: 118072876
A103: 94 | B103: Fairhaven | C103: 1 | D103: 23768492.65 | E103: 14136790 | F103: 9631703 | H103: 9631703 | I103: 23598054.43 | J103: 14889430 | K103: 8708624 | L103: 0 | M103: =ROUND(100-'Townwide Contributions'!L103,2) -> 26.52 | N103: 1659 | O103: 1595 | P103: 0 | Q103: 165880 | R103: 165880 | S103: 9631703 | T103: 9679553 | U103: 0 | V103: 9797583 | W103: 0 | X103: 0 | Y103: 9797583 | Z103: 41.51860497 | AA103: 24687013 | AB103: 104.6146117 | AC103: -170438.22 | AD103: 165880 | AE103: 3539378.965 | AF103: 14.99860497 | AG103: 14795.02 | AI103: 0 | AK103: 104 | AM103: 94 | AN103: Fairhaven | AO103: 1 | AP103: 1595 | AQ103: 23598054.43 | AR103: 14889430 | AS103: 9797583
A104: 95 | B104: Fall River | C104: 1 | D104: 226544925.6 | E104: 38520449 | F104: 188024477 | H104: 188024477 | I104: 243053149.8 | J104: 40721548 | K104: 202331602 | L104: 14307125 | M104: =ROUND(100-'Townwide Contributions'!L104,2) -> 77.72 | N104: 12238 | O104: 12433 | P104: 1 | Q104: 1293032 | R104: 0 | S104: 188024477 | T104: 188397467 | U104: 0 | V104: 202331602 | W104: 0 | X104: 0 | Y104: 202331602 | Z104: 83.24582594 | AA104: 243053150 | AB104: 100.0000001 | AC104: 16508224.16 | AD104: 14307125 | AE104: 13430694 | AF104: 5.52582594 | AG104: 19549.03 | AI104: 0 | AK104: 1150.737955 | AM104: 95 | AN104: Fall River | AO104: 1 | AP104: 12433 | AQ104: 243053149.8 | AR104: 40721548 | AS104: 202331602
A105: 96 | B105: Falmouth | C105: 1 | D105: 42847018.86 | E105: 33524110 | F105: 9322909 | H105: 9322909 | I105: 43218462.88 | J105: 35655232 | K105: 7563231 | L105: 0 | M105: =ROUND(100-'Townwide Contributions'!L105,2) -> 17.5 | N105: 2959 | O105: 2870 | P105: 0 | Q105: 298480 | R105: 298480 | S105: 9322909 | T105: 9409009 | U105: 0 | V105: 9621389 | W105: 0 | X105: 0 | Y105: 9621389 | Z105: 22.26221934 | AA105: 45276621 | AB105: 104.7622196 | AC105: 371444.02 | AD105: 298480 | AE105: 2058157.996 | AF105: 4.762219336 | AG105: 15058.7 | AI105: 0 | AK105: 104 | AM105: 96 | AN105: Falmouth | AO105: 1 | AP105: 2870 | AQ105: 43218462.88 | AR105: 35655232 | AS105: 9621389
A106: 97 | B106: Fitchburg | C106: 1 | D106: 96678430.43 | E106: 21950317 | F106: 74728113 | H106: 74728113 | I106: 101071841.4 | J106: 23118748 | K106: 77953093 | L106: 3224980 | M106: =ROUND(100-'Townwide Contributions'!L106,2) -> 72.91 | N106: 5661 | O106: 5623 | P106: 1 | Q106: 584792 | R106: 0 | S106: 74728113 | T106: 74896803 | U106: 0 | V106: 77953093 | W106: 0 | X106: 0 | Y106: 77953093 | Z106: 77.12642011 | AA106: 101071841 | AB106: 99.99999961 | AC106: 4393410.96 | AD106: 3224980 | AE106: 4261613.443 | AF106: 4.216420107 | AG106: 17974.72 | AI106: 0 | AK106: 573.5337009 | AM106: 97 | AN106: Fitchburg | AO106: 1 | AP106: 5623 | AQ106: 101071841.4 | AR106: 23118748 | AS106: 77953093
A107: 98 | B107: Florida | C107: 1 | D107: 917915.93 | E107: 425391 | F107: 559717 | H107: 559717 | I107: 865066.34 | J107: 439942 | K107: 425124 | L107: 0 | M107: =ROUND(100-'Townwide Contributions'!L107,2) -> 38.58 | N107: 57 | O107: 55 | P107: 0 | Q107: 5720 | R107: 5720 | S107: 559717 | T107: 561367 | U107: 0 | V107: 565437 | W107: 0 | X107: 0 | Y107: 565437 | Z107: 65.36342635 | AA107: 1005379 | AB107: 116.2198728 | AC107: -52849.59 | AD107: 5720 | AE107: 231694.406 | AF107: 26.78342635 | AG107: 15728.48 | AI107: 0 | AK107: 104 | AM107: 98 | AN107: Florida | AO107: 1 | AP107: 55 | AQ107: 865066.34 | AR107: 439942 | AS107: 565437
A108: 99 | B108: Foxborough | C108: 1 | D108: 34005786 | E108: 27296530 | F108: 9428040 | H108: 9428040 | I108: 35604499.84 | J108: 28583943 | K108: 7020557 | L108: 0 | M108: =ROUND(100-'Townwide Contributions'!L108,2) -> 17.5 | N108: 2537 | O108: 2573 | P108: 0 | Q108: 267592 | R108: 267592 | S108: 9428040 | T108: 9505230 | U108: 0 | V108: 9695632 | W108: 0 | X108: 0 | Y108: 9695632 | Z108: 27.23147929 | AA108: 38279575 | AB108: 107.5133064 | AC108: 1598713.835 | AD108: 267592 | AE108: 3464844.529 | AF108: 9.731479292 | AG108: 13837.74 | AI108: 0 | AK108: 104 | AM108: 99 | AN108: Foxborough | AO108: 1 | AP108: 2573 | AQ108: 35604499.84 | AR108: 28583943 | AS108: 9695632
A109: 100 | B109: Framingham | C109: 1 | D109: 159351946.8 | E109: 74355413 | F109: 84996534 | H109: 84996534 | I109: 164084535.7 | J109: 78033062 | K109: 86051474 | L109: 1054940 | M109: =ROUND(100-'Townwide Contributions'!L109,2) -> 45.4 | N109: 9759 | O109: 9521 | P109: 1 | Q109: 990184 | R109: 0 | S109: 84996534 | T109: 85282164 | U109: 0 | V109: 86051474 | W109: 0 | X109: -64756 | Y109: 85986718 | Z109: 52.40391342 | AA109: 164019780 | AB109: 99.96053519 | AC109: 4732588.869 | AD109: 990184 | AE109: 11492338.81 | AF109: 7.003913421 | AG109: 17233.96 | AI109: 0 | AK109: 104 | AM109: 100 | AN109: Framingham | AO109: 1 | AP109: 9521 | AQ109: 164084535.7 | AR109: 78033062 | AS109: 85986718
A110: 101 | B110: Franklin | C110: 1 | D110: 65275976.23 | E110: 47235495 | F110: 29191961 | H110: 29191961 | I110: 66584573.91 | J110: 49904466 | K110: 16680108 | L110: 0 | M110: =ROUND(100-'Townwide Contributions'!L110,2) -> 18.85 | N110: 5104 | O110: 5058 | P110: 0 | Q110: 526032 | R110: 526032 | S110: 29191961 | T110: 29343701 | U110: 0 | V110: 29717993 | W110: 0 | X110: 0 | Y110: 29717993 | Z110: 44.6319489 | AA110: 79622459 | AB110: 119.5809394 | AC110: 1308597.675 | AD110: 526032 | AE110: 17166800.82 | AF110: 25.7819489 | AG110: 13164.21 | AI110: 0 | AK110: 104 | AM110: 101 | AN110: Franklin | AO110: 1 | AP110: 5058 | AQ110: 66584573.91 | AR110: 49904466 | AS110: 29717993
A111: 102 | B111: Freetown | C111: 0 | D111: 966323.64 | E111: 674176 | F111: 461524 | H111: =F111-123910 -> 337614 | I111: 16860.33 | J111: 12290 | K111: 4570 | L111: 0 | M111: =ROUND(100-'Townwide Contributions'!L111,2) -> 21.32 | N111: 53 | O111: 1 | P111: 0 | Q111: 0 | R111: 0 | S111: 16451.54 | T111: 16481.54 | U111: 0 | V111: 337614 | W111: 320753.67 | X111: 0 | Y111: 16860.33 | Z111: 0 | AA111: 29150.33 | AB111: 172.8929979 | AC111: -949463.31 | AD111: -444663.67 | AE111: 13265.70764 | AG111: 16860.33 | AI111: 0 | AK111: -444663.67 | AM111: 102 | AN111: Freetown | AO111: 0 | AP111: 1 | AQ111: 16860.33 | AR111: 12290 | AS111: 16860.33
A112: 103 | B112: Gardner | C112: 1 | D112: 38690363.83 | E112: 11262118 | F112: 27428246 | H112: 27428246 | I112: 41586508.2 | J112: 11909298 | K112: 29677210 | L112: 2248964 | M112: =ROUND(100-'Townwide Contributions'!L112,2) -> 67.88 | N112: 2397 | O112: 2453 | P112: 1 | Q112: 255112 | R112: 0 | S112: 27428246 | T112: 27501836 | U112: 0 | V112: 29677210 | W112: 0 | X112: 0 | Y112: 29677210 | Z112: 71.36259158 | AA112: 41586508 | AB112: 99.99999952 | AC112: 2896144.37 | AD112: 2248964 | AE112: 1448288.234 | AF112: 3.482591582 | AG112: 16953.33 | AI112: 0 | AK112: 916.8218508 | AM112: 103 | AN112: Gardner | AO112: 1 | AP112: 2453 | AQ112: 41586508.2 | AR112: 11909298 | AS112: 29677210
A113: 104 | B113: Aquinnah | C113: 0 | D113: 0 | E113: 0 | F113: 0 | H113: 0 | I113: 0 | J113: 0 | K113: 0 | L113: 0 | M113: =ROUND(100-'Townwide Contributions'!L113,2) -> 17.5 | N113: 0 | O113: 0 | P113: 0 | Q113: 0 | R113: 0 | S113: 0 | T113: 0 | U113: 0 | V113: 0 | W113: 0 | X113: 0 | Y113: 0 | Z113: 0 | AA113: 0 | AB113: 0 | AC113: 0 | AD113: 0 | AE113: 0 | AG113: 0 | AI113: 0 | AK113: 0 | AM113: 104 | AN113: Aquinnah | AO113: 0 | AP113: 0 | AQ113: 0 | AR113: 0 | AS113: 0
A114: 105 | B114: Georgetown | C114: 1 | D114: 15011687.49 | E114: 11377637 | F114: 5713498 | H114: 5713498 | I114: 15097839.61 | J114: 11942079 | K114: 3155761 | L114: 0 | M114: =ROUND(100-'Townwide Contributions'!L114,2) -> 17.5 | N114: 1229 | O114: 1196 | P114: 0 | Q114: 124384 | R114: 124384 | S114: 5713498 | T114: 5749378 | U114: 0 | V114: 5837882 | W114: 0 | X114: 0 | Y114: 5837882 | Z114: 38.66700237 | AA114: 17779961 | AB114: 117.764935 | AC114: 86152.12 | AD114: 124384 | AE114: 3195760.068 | AF114: 21.16700237 | AG114: 12623.61 | AI114: 0 | AK114: 104 | AM114: 105 | AN114: Georgetown | AO114: 1 | AP114: 1196 | AQ114: 15097839.61 | AR114: 11942079 | AS114: 5837882
A115: 106 | B115: Gill | C115: 0 | D115: 0 | E115: 0 | F115: 0 | H115: 0 | I115: 0 | J115: 0 | K115: 0 | L115: 0 | M115: =ROUND(100-'Townwide Contributions'!L115,2) -> 29.16 | N115: 0 | O115: 0 | P115: 0 | Q115: 0 | R115: 0 | S115: 0 | T115: 0 | U115: 0 | V115: 0 | W115: 0 | X115: 0 | Y115: 0 | Z115: 0 | AA115: 0 | AB115: 0 | AC115: 0 | AD115: 0 | AE115: 0 | AG115: 0 | AI115: 0 | AK115: 0 | AM115: 106 | AN115: Gill | AO115: 0 | AP115: 0 | AQ115: 0 | AR115: 0 | AS115: 0
A116: 107 | B116: Gloucester | C116: 1 | D116: 47045109.89 | E116: 35714197 | F116: 11330913 | H116: 11330913 | I116: 49375946.82 | J116: 37665556 | K116: 11710391 | L116: 379478 | M116: =ROUND(100-'Townwide Contributions'!L116,2) -> 17.5 | N116: 3035 | O116: 3064 | P116: 1 | Q116: 318656 | R116: 0 | S116: 11330913 | T116: 11422833 | U116: 0 | V116: 11710391 | W116: 0 | X116: 0 | Y116: 11710391 | Z116: 23.7167928 | AA116: 49375947 | AB116: 100.0000004 | AC116: 2330836.932 | AD116: 379478 | AE116: 3069600.306 | AF116: 6.216792799 | AG116: 16114.87 | AI116: 0 | AK116: 123.8505222 | AM116: 107 | AN116: Gloucester | AO116: 1 | AP116: 3064 | AQ116: 49375946.82 | AR116: 37665556 | AS116: 11710391
A117: 108 | B117: Goshen | C117: 0 | D117: 148416.84 | E117: 89000 | F117: 96381 | H117: 96381 | I117: 151742.97 | J117: 99954 | K117: 51789 | L117: 0 | M117: =ROUND(100-'Townwide Contributions'!L117,2) -> 30.5 | N117: 9 | O117: 9 | P117: 0 | Q117: 0 | R117: 0 | S117: 96381 | T117: 96651 | U117: 0 | V117: 96381 | W117: 0 | X117: 0 | Y117: 96381 | Z117: 0 | AA117: 196335 | AB117: 129.3865541 | AC117: 3326.13 | AD117: 0 | AE117: 50099.39415 | AG117: 16860.33 | AI117: 0 | AK117: 0 | AM117: 108 | AN117: Goshen | AO117: 0 | AP117: 9 | AQ117: 151742.97 | AR117: 99954 | AS117: 96381
A118: 109 | B118: Gosnold | C118: 0 | D118: 0 | E118: 0 | F118: 0 | H118: 0 | I118: 0 | J118: 0 | K118: 0 | L118: 0 | M118: =ROUND(100-'Townwide Contributions'!L118,2) -> 100 | N118: 0 | O118: 0 | P118: 0 | Q118: 0 | R118: 0 | S118: 0 | T118: 0 | U118: 0 | V118: 0 | W118: 0 | X118: 0 | Y118: 0 | Z118: 0 | AA118: 0 | AB118: 0 | AC118: 0 | AD118: 0 | AE118: 0 | AG118: 0 | AI118: 0 | AK118: 0 | AM118: 109 | AN118: Gosnold | AO118: 0 | AP118: 0 | AQ118: 0 | AR118: 0 | AS118: 0
A119: 110 | B119: Grafton | C119: 1 | D119: 36858149.16 | E119: 24436656 | F119: 12794520 | H119: 12794520 | I119: 37107723.81 | J119: 25816666 | K119: 11291058 | L119: 0 | M119: =ROUND(100-'Townwide Contributions'!L119,2) -> 23.25 | N119: 2950 | O119: 2902 | P119: 0 | Q119: 301808 | R119: 301808 | S119: 12794520 | T119: 12881580 | U119: 0 | V119: 13096328 | W119: 0 | X119: 0 | Y119: 13096328 | Z119: 35.29272792 | AA119: 38912994 | AB119: 104.8649446 | AC119: 249574.65 | AD119: 301808 | AE119: 4468782.214 | AF119: 12.04272792 | AG119: 12786.95 | AI119: 0 | AK119: 104 | AM119: 110 | AN119: Grafton | AO119: 1 | AP119: 2902 | AQ119: 37107723.81 | AR119: 25816666 | AS119: 13096328
A120: 111 | B120: Granby | C120: 1 | D120: 9588488.89 | E120: 5667319 | F120: 4765430 | H120: 4765430 | I120: 9658208.78 | J120: 5916543 | K120: 3741666 | L120: 0 | M120: =ROUND(100-'Townwide Contributions'!L120,2) -> 34.82 | N120: 672 | O120: 655 | P120: 0 | Q120: 68120 | R120: 68120 | S120: 4765430 | T120: 4785080 | U120: 0 | V120: 4833550 | W120: 0 | X120: 0 | Y120: 4833550 | Z120: 50.04602934 | AA120: 10750093 | AB120: 111.3052456 | AC120: 69719.89 | AD120: 68120 | AE120: 1470561.703 | AF120: 15.22602934 | AG120: 14745.36 | AI120: 0 | AK120: 104 | AM120: 111 | AN120: Granby | AO120: 1 | AP120: 655 | AQ120: 9658208.78 | AR120: 5916543 | AS120: 4833550
A121: 112 | B121: Granville | C121: 0 | D121: 0 | E121: 0 | F121: 0 | H121: 0 | I121: 0 | J121: 0 | K121: 0 | L121: 0 | M121: =ROUND(100-'Townwide Contributions'!L121,2) -> 21.86 | N121: 0 | O121: 0 | P121: 0 | Q121: 0 | R121: 0 | S121: 0 | T121: 0 | U121: 0 | V121: 0 | W121: 0 | X121: 0 | Y121: 0 | Z121: 0 | AA121: 0 | AB121: 0 | AC121: 0 | AD121: 0 | AE121: 0 | AG121: 0 | AI121: 0 | AK121: 0 | AM121: 112 | AN121: Granville | AO121: 0 | AP121: 0 | AQ121: 0 | AR121: 0 | AS121: 0
A122: 113 | B122: Great Barrington | C122: 0 | D122: 0 | E122: 0 | F122: 0 | H122: 0 | I122: 0 | J122: 0 | K122: 0 | L122: 0 | M122: =ROUND(100-'Townwide Contributions'!L122,2) -> 17.5 | N122: 0 | O122: 0 | P122: 0 | Q122: 0 | R122: 0 | S122: 0 | T122: 0 | U122: 0 | V122: 0 | W122: 0 | X122: 0 | Y122: 0 | Z122: 0 | AA122: 0 | AB122: 0 | AC122: 0 | AD122: 0 | AE122: 0 | AG122: 0 | AI122: 0 | AK122: 0 | AM122: 113 | AN122: Great Barrington | AO122: 0 | AP122: 0 | AQ122: 0 | AR122: 0 | AS122: 0
A123: 114 | B123: Greenfield | C123: 1 | D123: 27294290.69 | E123: 11091044 | F123: 16203247 | H123: 16203247 | I123: 27960950.6 | J123: 11465787 | K123: 16495164 | L123: 291917 | M123: =ROUND(100-'Townwide Contributions'!L123,2) -> 55.59 | N123: 1791 | O123: 1759 | P123: 1 | Q123: 182936 | R123: 0 | S123: 16203247 | T123: 16256017 | U123: 0 | V123: 16495164 | W123: 0 | X123: 0 | Y123: 16495164 | Z123: 58.9935737 | AA123: 27960951 | AB123: 100.0000014 | AC123: 666659.91 | AD123: 291917 | AE123: 951671.5615 | AF123: 3.403573702 | AG123: 15895.94 | AI123: 0 | AK123: 165.9562251 | AM123: 114 | AN123: Greenfield | AO123: 1 | AP123: 1759 | AQ123: 27960950.6 | AR123: 11465787 | AS123: 16495164
A124: 115 | B124: Groton | C124: 0 | D124: 0 | E124: 0 | F124: 0 | H124: 0 | I124: 0 | J124: 0 | K124: 0 | L124: 0 | M124: =ROUND(100-'Townwide Contributions'!L124,2) -> 17.5 | N124: 0 | O124: 0 | P124: 0 | Q124: 0 | R124: 0 | S124: 0 | T124: 0 | U124: 0 | V124: 0 | W124: 0 | X124: 0 | Y124: 0 | Z124: 0 | AA124: 0 | AB124: 0 | AC124: 0 | AD124: 0 | AE124: 0 | AG124: 0 | AI124: 0 | AK124: 0 | AM124: 115 | AN124: Groton | AO124: 0 | AP124: 0 | AQ124: 0 | AR124: 0 | AS124: 0
A125: 116 | B125: Groveland | C125: 0 | D125: 148416.84 | E125: 106462 | F125: 65470 | H125: 65470 | I125: 168603.3 | J125: 122594 | K125: 46009 | L125: 0 | M125: =ROUND(100-'Townwide Contributions'!L125,2) -> 18.81 | N125: 9 | O125: 10 | P125: 0 | Q125: 0 | R125: 0 | S125: 65470 | T125: 65770 | U125: 0 | V125: 65470 | W125: 0 | X125: 0 | Y125: 65470 | Z125: 0 | AA125: 188064 | AB125: 111.5423008 | AC125: 20186.46 | AD125: 0 | AE125: 33755.71927 | AG125: 16860.33 | AI125: 0 | AK125: 0 | AM125: 116 | AN125: Groveland | AO125: 0 | AP125: 10 | AQ125: 168603.3 | AR125: 122594 | AS125: 65470
A126: 117 | B126: Hadley | C126: 1 | D126: 6277106.59 | E126: 5178613 | F126: 1350100 | H126: 1350100 | I126: 6210751.32 | J126: 5123870 | K126: 1086881 | L126: 0 | M126: =ROUND(100-'Townwide Contributions'!L126,2) -> 17.5 | N126: 456 | O126: 449 | P126: 0 | Q126: 46696 | R126: 46696 | S126: 1350100 | T126: 1363570 | U126: 0 | V126: 1396796 | W126: 0 | X126: 0 | Y126: 1396796 | Z126: 22.48996825 | AA126: 6520666 | AB126: 104.9899708 | AC126: -66355.27 | AD126: 46696 | AE126: 309914.519 | AF126: 4.989968251 | AG126: 13832.41 | AI126: 0 | AK126: 104 | AM126: 117 | AN126: Hadley | AO126: 1 | AP126: 449 | AQ126: 6210751.32 | AR126: 5123870 | AS126: 1396796
A127: 118 | B127: Halifax | C127: 1 | D127: 7849455.023 | E127: 4340378 | F127: 3509077 | H127: 3509077 | I127: 7511760.556 | J127: 4050476 | K127: 3461285 | L127: 0 | M127: =ROUND(100-'Townwide Contributions'!L127,2) -> 41.85 | N127: 613 | O127: 564 | P127: 0 | Q127: 58656 | R127: 58656 | S127: 3509077 | T127: 3525997 | U127: 0 | V127: 3567733 | W127: 0 | X127: 0 | Y127: 3567733 | Z127: 47.49529718 | AA127: 7618209 | AB127: 101.4170905 | AC127: -337694.467 | AD127: 58656 | AE127: 424061.2071 | AF127: 5.645297184 | AG127: 13318.72 | AI127: 0 | AK127: 104 | AM127: 118 | AN127: Halifax | AO127: 1 | AP127: 564 | AQ127: 7511760.556 | AR127: 4050476 | AS127: 3567733
A128: 119 | B128: Hamilton | C128: 0 | D128: 0 | E128: 0 | F128: 0 | H128: 0 | I128: 0 | J128: 0 | K128: 0 | L128: 0 | M128: =ROUND(100-'Townwide Contributions'!L128,2) -> 17.5 | N128: 0 | O128: 0 | P128: 0 | Q128: 0 | R128: 0 | S128: 0 | T128: 0 | U128: 0 | V128: 0 | W128: 0 | X128: 0 | Y128: 0 | Z128: 0 | AA128: 0 | AB128: 0 | AC128: 0 | AD128: 0 | AE128: 0 | AG128: 0 | AI128: 0 | AK128: 0 | AM128: 119 | AN128: Hamilton | AO128: 0 | AP128: 0 | AQ128: 0 | AR128: 0 | AS128: 0
A129: 120 | B129: Hampden | C129: 0 | D129: 0 | E129: 0 | F129: 0 | H129: 0 | I129: 0 | J129: 0 | K129: 0 | L129: 0 | M129: =ROUND(100-'Townwide Contributions'!L129,2) -> 17.5 | N129: 0 | O129: 0 | P129: 0 | Q129: 0 | R129: 0 | S129: 0 | T129: 0 | U129: 0 | V129: 0 | W129: 0 | X129: 0 | Y129: 0 | Z129: 0 | AA129: 0 | AB129: 0 | AC129: 0 | AD129: 0 | AE129: 0 | AG129: 0 | AI129: 0 | AK129: 0 | AM129: 120 | AN129: Hampden | AO129: 0 | AP129: 0 | AQ129: 0 | AR129: 0 | AS129: 0
A130: 121 | B130: Hancock | C130: 1 | D130: 1216494.75 | E130: 780690 | F130: 435805 | H130: 435805 | I130: 1270682.74 | J130: 820427 | K130: 450256 | L130: 14451 | M130: =ROUND(100-'Townwide Contributions'!L130,2) -> 17.5 | N130: 86 | O130: 85 | P130: 1 | Q130: 8840 | R130: 0 | S130: 435805 | T130: 438355 | U130: 0 | V130: 450256 | W130: 0 | X130: 0 | Y130: 450256 | Z130: 35.43417927 | AA130: 1270683 | AB130: 100.0000205 | AC130: 54187.99 | AD130: 14451 | AE130: 227886.5205 | AF130: 17.93417927 | AG130: 14949.21 | AI130: 0 | AK130: 170.0117647 | AM130: 121 | AN130: Hancock | AO130: 1 | AP130: 85 | AQ130: 1270682.74 | AR130: 820427 | AS130: 450256
A131: 122 | B131: Hanover | C131: 1 | D131: 30800181.27 | E131: 23372172 | F131: 7458443 | H131: 7458443 | I131: 31861566.58 | J131: 24358612 | K131: 7502955 | L131: 44512 | M131: =ROUND(100-'Townwide Contributions'!L131,2) -> 17.5 | N131: 2481 | O131: 2497 | P131: 1 | Q131: 259688 | R131: 215176 | S131: 7458443 | T131: 7533353 | U131: 0 | V131: 7718131 | W131: 0 | X131: 0 | Y131: 7718131 | Z131: 24.22395327 | AA131: 32076743 | AB131: 100.6753479 | AC131: 1061385.308 | AD131: 259688 | AE131: 2142356.848 | AF131: 6.723953271 | AG131: 12759.94 | AI131: 0 | AK131: 104 | AM131: 122 | AN131: Hanover | AO131: 1 | AP131: 2497 | AQ131: 31861566.58 | AR131: 24358612 | AS131: 7718131
A132: 123 | B132: Hanson | C132: 0 | D132: 82453.8 | E132: 47057 | F132: 35397 | H132: 35397 | I132: 101161.98 | J132: 61192 | K132: 39970 | L132: 4573 | M132: =ROUND(100-'Townwide Contributions'!L132,2) -> 33.14 | N132: 5 | O132: 6 | P132: 0 | Q132: 0 | R132: 0 | S132: 37618 | T132: 37798 | U132: 0 | V132: 39970 | W132: 0 | X132: 549 | Y132: 40519 | Z132: 0 | AA132: 101711 | AB132: 100.5427138 | AC132: 18708.18 | AD132: 5122 | AE132: 6993.919828 | AG132: 16860.33 | AI132: 0 | AK132: 853.6666667 | AM132: 123 | AN132: Hanson | AO132: 0 | AP132: 6 | AQ132: 101161.98 | AR132: 61192 | AS132: 40519
A133: 124 | B133: Hardwick | C133: 0 | D133: 0 | E133: 0 | F133: 0 | H133: 0 | I133: 0 | J133: 0 | K133: 0 | L133: 0 | M133: =ROUND(100-'Townwide Contributions'!L133,2) -> 55.79 | N133: 0 | O133: 0 | P133: 0 | Q133: 0 | R133: 0 | S133: 0 | T133: 0 | U133: 0 | V133: 0 | W133: 0 | X133: 0 | Y133: 0 | Z133: 0 | AA133: 0 | AB133: 0 | AC133: 0 | AD133: 0 | AE133: 0 | AG133: 0 | AI133: 0 | AK133: 0 | AM133: 124 | AN133: Hardwick | AO133: 0 | AP133: 0 | AQ133: 0 | AR133: 0 | AS133: 0
A134: 125 | B134: Harvard | C134: 1 | D134: 10576374.95 | E134: 8379508 | F134: 2196867 | H134: 2196867 | I134: 10978851.09 | J134: 8697832 | K134: 2281019 | L134: 84152 | M134: =ROUND(100-'Townwide Contributions'!L134,2) -> 17.5 | N134: 875 | O134: 881 | P134: 1 | Q134: 91624 | R134: 7472 | S134: 2196867 | T134: 2223297 | U134: 0 | V134: 2288491 | W134: 0 | X134: 0 | Y134: 2288491 | Z134: 20.84453994 | AA134: 10986323 | AB134: 100.0680573 | AC134: 402476.14 | AD134: 91624 | AE134: 367192.0593 | AF134: 3.344539936 | AG134: 12461.81 | AI134: 0 | AK134: 104 | AM134: 125 | AN134: Harvard | AO134: 1 | AP134: 881 | AQ134: 10978851.09 | AR134: 8697832 | AS134: 2288491
A135: 126 | B135: Harwich | C135: 0 | D135: 0 | E135: 0 | F135: 0 | H135: 0 | I135: 0 | J135: 0 | K135: 0 | L135: 0 | M135: =ROUND(100-'Townwide Contributions'!L135,2) -> 17.5 | N135: 0 | O135: 0 | P135: 0 | Q135: 0 | R135: 0 | S135: 0 | T135: 0 | U135: 0 | V135: 0 | W135: 0 | X135: 0 | Y135: 0 | Z135: 0 | AA135: 0 | AB135: 0 | AC135: 0 | AD135: 0 | AE135: 0 | AG135: 0 | AI135: 0 | AK135: 0 | AM135: 126 | AN135: Harwich | AO135: 0 | AP135: 0 | AQ135: 0 | AR135: 0 | AS135: 0
A136: 127 | B136: Hatfield | C136: 1 | D136: 4215602.35 | E136: 3472030 | F136: 895156 | H136: 895156 | I136: 4167872.81 | J136: 3438495 | K136: 729378 | L136: 0 | M136: =ROUND(100-'Townwide Contributions'!L136,2) -> 17.5 | N136: 317 | O136: 310 | P136: 0 | Q136: 32240 | R136: 32240 | S136: 895156 | T136: 904456 | U136: 0 | V136: 927396 | W136: 0 | X136: 0 | Y136: 927396 | Z136: 22.25106289 | AA136: 4365891 | AB136: 104.7510612 | AC136: -47729.54 | AD136: 32240 | AE136: 198018.2583 | AF136: 4.751062887 | AG136: 13444.75 | AI136: 0 | AK136: 104 | AM136: 127 | AN136: Hatfield | AO136: 1 | AP136: 310 | AQ136: 4167872.81 | AR136: 3438495 | AS136: 927396
A137: 128 | B137: Haverhill | C137: 1 | D137: 132551888.2 | E137: 49918077 | F137: 82633811 | H137: 82633811 | I137: 140921702.3 | J137: 52953650 | K137: 87968052 | L137: 5334241 | M137: =ROUND(100-'Townwide Contributions'!L137,2) -> 57.32 | N137: 8287 | O137: 8401 | P137: 1 | Q137: 873704 | R137: 0 | S137: 82633811 | T137: 82885841 | U137: 0 | V137: 87968052 | W137: 0 | X137: 0 | Y137: 87968052 | Z137: 62.42335321 | AA137: 140921702 | AB137: 99.99999976 | AC137: 8369814.09 | AD137: 5334241 | AE137: 7191732.219 | AF137: 5.103353209 | AG137: 16774.4 | AI137: 0 | AK137: 634.9531008 | AM137: 128 | AN137: Haverhill | AO137: 1 | AP137: 8401 | AQ137: 140921702.3 | AR137: 52953650 | AS137: 87968052
A138: 129 | B138: Hawley | C138: 0 | D138: 65963.04 | E138: 54419 | F138: 13300 | H138: 13300 | I138: =SUMIF(dist1755,A138,found1755) -> 67441.32 | J138: =SUMIF(dist1755,A138,prelcont1755) -> 55639 | K138: =ROUND(MAX(found-prelcont436,0),0) -> 11802 | L138: =IF(foundaid>priorc70,foundaid-priorc70,0) -> 0 | M138: =ROUND(100-'Townwide Contributions'!L138,2) -> 17.5 | N138: 4 | O138: =SUMIF(dist1755,A138,enro1755) -> 4 | P138: =IF(AND(C138=1,L138>0),1,0) -> 0 | Q138: =IF(nonop=1,enro*$Q$6,0) -> 0 | R138: =IF((foundinc)<Q138,Q138-(foundinc),0) -> 0 | S138: 13300 | T138: =S138+30*enro -> 13420 | U138: =IF(AND(T138-priorc70-foundinc-minaid>0,nonop=1), T138-priorc70-foundinc-minaid,0) -> 0 | V138: =priorc70+ foundinc+minaidadjincrement+minaid -> 13300 | W138: =IF(AND(C138=0,V138>found),V138-found,0) -> 0 | X138: 0 | Y138: =priorc70+foundinc+minaidadjincrement+minaid-rednonop+holdharmlessaid -> 13300 | Z138: =IF(C138=1, Y138/I138*100, 0) -> 0 | AA138: =prelcont436+chapter70 -> 68939 | AB138: =IF(found>0,AA138*100/found,0) -> 102.2207157 | AC138: =I138-D138 -> 1478.28 | AD138: =Y138-F138 -> 0 | AE138: =Y138-((M138/100)*I138) -> 1497.769 | AF138: =IF(C138=1, (Y138/I138*100)-M138, "") ->  | AG138: =IFERROR(ROUND(I138/O138, 2), 0) -> 16860.33 | AI138: =VLOOKUP(A138, disthist, 37, FALSE)*$H$6 -> 0 | AK138: =IFERROR(AD138/O138, 0) -> 0 | AM138: =A138 -> 129 | AN138: =B138 -> Hawley | AO138: =C138 -> 0 | AP138: 4 | AQ138: =I138 -> 67441.32 | AR138: =J138 -> 55639 | AS138: =Y138 -> 13300
A139: 130 | B139: Heath | C139: 0 | D139: 0 | E139: 0 | F139: 0 | H139: =F139 -> 0 | I139: 0 | J139: 0 | K139: 0 | L139: 0 | M139: =ROUND(100-'Townwide Contributions'!L139,2) -> 57.79 | N139: 0 | O139: 0 | P139: 0 | Q139: 0 | R139: 0 | S139: 0 | T139: 0 | U139: 0 | V139: 0 | W139: 0 | X139: 0 | Y139: 0 | Z139: 0 | AA139: 0 | AB139: 0 | AC139: 0 | AD139: 0 | AE139: 0 | AG139: 0 | AI139: 0 | AK139: 0 | AM139: 130 | AN139: Heath | AO139: 0 | AP139: =O139 -> 0 | AQ139: 0 | AR139: 0 | AS139: 0
A140: 131 | B140: Hingham | C140: 1 | D140: 47057670.47 | E140: 38822578 | F140: 8535193 | H140: 8535193 | I140: 45884665.99 | J140: 37854849 | K140: 8029817 | L140: 0 | M140: =ROUND(100-'Townwide Contributions'!L140,2) -> 17.5 | N140: 3807 | O140: 3606 | P140: 0 | Q140: 375024 | R140: 375024 | S140: 8535193 | T140: 8643373 | U140: 0 | V140: 8910217 | W140: 0 | X140: 0 | Y140: 8910217 | Z140: 19.41872477 | AA140: 46765066 | AB140: 101.9187238 | AC140: -1173004.478 | AD140: 375024 | AE140: 880400.4519 | AF140: 1.91872477 | AG140: 12724.53 | AI140: 0 | AK140: 104 | AM140: 131 | AN140: Hingham | AO140: 1 | AP140: 3606 | AQ140: 45884665.99 | AR140: 37854849 | AS140: 8910217
A141: 132 | B141: Hinsdale | C141: 0 | D141: 131926.08 | E141: 99112 | F141: 104923 | H141: 104923 | I141: 168603.3 | J141: 122029 | K141: 46574 | L141: 0 | M141: =ROUND(100-'Townwide Contributions'!L141,2) -> 17.5 | N141: 8 | O141: 10 | P141: 0 | Q141: 0 | R141: 0 | S141: 104923 | T141: 105223 | U141: 0 | V141: 104923 | W141: 0 | X141: 0 | Y141: 104923 | Z141: 0 | AA141: 226952 | AB141: 134.6070925 | AC141: 36677.22 | AD141: 0 | AE141: 75417.4225 | AG141: 16860.33 | AI141: 0 | AK141: 0 | AM141: 132 | AN141: Hinsdale | AO141: 0 | AP141: 10 | AQ141: 168603.3 | AR141: 122029 | AS141: 104923
A142: 133 | B142: Holbrook | C142: 1 | D142: 20493828.68 | E142: 9611922 | F142: 10881907 | H142: 10881907 | I142: 21278519.47 | J142: 10008705 | K142: 11269814 | L142: 387907 | M142: =ROUND(100-'Townwide Contributions'!L142,2) -> 47.5 | N142: 1352 | O142: 1355 | P142: 1 | Q142: 140920 | R142: 0 | S142: 10881907 | T142: 10922557 | U142: 0 | V142: 11269814 | W142: 0 | X142: 0 | Y142: 11269814 | Z142: 52.96333711 | AA142: 21278519 | AB142: 99.99999778 | AC142: 784690.7928 | AD142: 387907 | AE142: 1162517.251 | AF142: 5.463337109 | AG142: 15703.7 | AI142: 0 | AK142: 286.2782288 | AM142: 133 | AN142: Holbrook | AO142: 1 | AP142: 1355 | AQ142: 21278519.47 | AR142: 10008705 | AS142: 11269814
A143: 134 | B143: Holden | C143: 0 | D143: 16490.76 | E143: 9127 | F143: 7364 | H143: 7364 | I143: 33720.66 | J143: 19200 | K143: 14521 | L143: 7157 | M143: =ROUND(100-'Townwide Contributions'!L143,2) -> 36.71 | N143: 1 | O143: 2 | P143: 0 | Q143: 0 | R143: 0 | S143: 13757 | T143: 13817 | U143: 0 | V143: 14521 | W143: 0 | X143: 0 | Y143: 14521 | Z143: 0 | AA143: 33721 | AB143: 100.0010083 | AC143: 17229.9 | AD143: 7157 | AE143: 2142.145714 | AG143: 16860.33 | AI143: 0 | AK143: 3578.5 | AM143: 134 | AN143: Holden | AO143: 0 | AP143: 2 | AQ143: 33720.66 | AR143: 19200 | AS143: 14521
A144: 135 | B144: Holland | C144: 1 | D144: 2529520.89 | E144: 1516165 | F144: 1013356 | H144: 1013356 | I144: 2372741.1 | J144: 1515869 | K144: 856872 | L144: 0 | M144: =ROUND(100-'Townwide Contributions'!L144,2) -> 32.09 | N144: 175 | O144: 157 | P144: 0 | Q144: 16328 | R144: 16328 | S144: 1013356 | T144: 1018066 | U144: 0 | V144: 1029684 | W144: 0 | X144: 0 | Y144: 1029684 | Z144: 43.39639078 | AA144: 2545553 | AB144: 107.2832177 | AC144: -156779.79 | AD144: 16328 | AE144: 268271.381 | AF144: 11.30639078 | AG144: 15113 | AI144: 0 | AK144: 104 | AM144: 135 | AN144: Holland | AO144: 1 | AP144: 157 | AQ144: 2372741.1 | AR144: 1515869 | AS144: 1029684
A145: 136 | B145: Holliston | C145: 1 | D145: 32828254.54 | E145: 23937028 | F145: 8912782 | H145: 8912782 | I145: 33400106.24 | J145: 25423217 | K145: 7976889 | L145: 0 | M145: =ROUND(100-'Townwide Contributions'!L145,2) -> 17.5 | N145: 2686 | O145: 2652 | P145: 0 | Q145: 275808 | R145: 275808 | S145: 8912782 | T145: 8992342 | U145: 0 | V145: 9188590 | W145: 0 | X145: 0 | Y145: 9188590 | Z145: 27.510661 | AA145: 34611807 | AB145: 103.627835 | AC145: 571851.7034 | AD145: 275808 | AE145: 3343571.408 | AF145: 10.010661 | AG145: 12594.31 | AI145: 0 | AK145: 104 | AM145: 136 | AN145: Holliston | AO145: 1 | AP145: 2652 | AQ145: 33400106.24 | AR145: 25423217 | AS145: 9188590
A146: 137 | B146: Holyoke | C146: 1 | D146: 109412142.3 | E146: 12452771 | F146: 96959371 | H146: 96959371 | I146: 114374878.1 | J146: 13183748 | K146: 101191130 | L146: 4231759 | M146: =ROUND(100-'Townwide Contributions'!L146,2) -> 80.66 | N146: 5926 | O146: 5850 | P146: 1 | Q146: 608400 | R146: 0 | S146: 96959371 | T146: 97134871 | U146: 0 | V146: 101191130 | W146: 0 | X146: 0 | Y146: 101191130 | Z146: 88.47321344 | AA146: 114374878 | AB146: 99.99999994 | AC146: 4962735.78 | AD146: 4231759 | AE146: 8936353.349 | AF146: 7.813213443 | AG146: 19551.26 | AI146: 0 | AK146: 723.3776068 | AM146: 137 | AN146: Holyoke | AO146: 1 | AP146: 5850 | AQ146: 114374878.1 | AR146: 13183748 | AS146: 101191130
A147: 138 | B147: Hopedale | C147: 1 | D147: 11489500.85 | E147: 6489561 | F147: 6221250 | H147: 6221250 | I147: 11657637.4 | J147: 6842443 | K147: 4815194 | L147: 0 | M147: =ROUND(100-'Townwide Contributions'!L147,2) -> 39.75 | N147: 875 | O147: 865 | P147: 0 | Q147: 89960 | R147: 89960 | S147: 6221250 | T147: 6247200 | U147: 0 | V147: 6311210 | W147: 0 | X147: 0 | Y147: 6311210 | Z147: 54.13798511 | AA147: 13153653 | AB147: 112.8329227 | AC147: 168136.55 | AD147: 89960 | AE147: 1677299.133 | AF147: 14.38798511 | AG147: 13477.04 | AI147: 0 | AK147: 104 | AM147: 138 | AN147: Hopedale | AO147: 1 | AP147: 865 | AQ147: 11657637.4 | AR147: 6842443 | AS147: 6311210
A148: 139 | B148: Hopkinton | C148: 1 | D148: 50873294.83 | E148: 41073636 | F148: 9799659 | H148: 9799659 | I148: 52668757.26 | J148: 43451724 | K148: 9217033 | L148: 0 | M148: =ROUND(100-'Townwide Contributions'!L148,2) -> 17.5 | N148: 4139 | O148: 4165 | P148: 0 | Q148: 433160 | R148: 433160 | S148: 9799659 | T148: 9924609 | U148: 0 | V148: 10232819 | W148: 0 | X148: 0 | Y148: 10232819 | Z148: 19.42863195 | AA148: 53684543 | AB148: 101.9286305 | AC148: 1795462.43 | AD148: 433160 | AE148: 1015786.48 | AF148: 1.92863195 | AG148: 12645.56 | AI148: 0 | AK148: 104 | AM148: 139 | AN148: Hopkinton | AO148: 1 | AP148: 4165 | AQ148: 52668757.26 | AR148: 43451724 | AS148: 10232819
A149: 140 | B149: Hubbardston | C149: 0 | D149: 0 | E149: 0 | F149: 0 | H149: 0 | I149: 0 | J149: 0 | K149: 0 | L149: 0 | M149: =ROUND(100-'Townwide Contributions'!L149,2) -> 41.58 | N149: 0 | O149: 0 | P149: 0 | Q149: 0 | R149: 0 | S149: 0 | T149: 0 | U149: 0 | V149: 0 | W149: 0 | X149: 0 | Y149: 0 | Z149: 0 | AA149: 0 | AB149: 0 | AC149: 0 | AD149: 0 | AE149: 0 | AG149: 0 | AI149: 0 | AK149: 0 | AM149: 140 | AN149: Hubbardston | AO149: 0 | AP149: 0 | AQ149: 0 | AR149: 0 | AS149: 0
A150: 141 | B150: Hudson | C150: 1 | D150: 34207457.53 | E150: 21209511 | F150: 12997947 | H150: 12997947 | I150: 35386035.23 | J150: 22432839 | K150: 12953196 | L150: 0 | M150: =ROUND(100-'Townwide Contributions'!L150,2) -> 30.18 | N150: 2417 | O150: 2407 | P150: 0 | Q150: 250328 | R150: 250328 | S150: 12997947 | T150: 13070157 | U150: 0 | V150: 13248275 | W150: 0 | X150: 0 | Y150: 13248275 | Z150: 37.43927488 | AA150: 35681114 | AB150: 100.8338848 | AC150: 1178577.703 | AD150: 250328 | AE150: 2568769.567 | AF150: 7.259274879 | AG150: 14701.3 | AI150: 0 | AK150: 104 | AM150: 141 | AN150: Hudson | AO150: 1 | AP150: 2407 | AQ150: 35386035.23 | AR150: 22432839 | AS150: 13248275
A151: 142 | B151: Hull | C151: 1 | D151: 10986735.57 | E151: 9052274 | F151: 3996296 | H151: 3996296 | I151: 10813118.21 | J151: 8920823 | K151: 1892295 | L151: 0 | M151: =ROUND(100-'Townwide Contributions'!L151,2) -> 17.5 | N151: 791 | O151: 757 | P151: 0 | Q151: 78728 | R151: 78728 | S151: 3996296 | T151: 4019006 | U151: 0 | V151: 4075024 | W151: 0 | X151: 0 | Y151: 4075024 | Z151: 37.68592852 | AA151: 12995847 | AB151: 120.1859329 | AC151: -173617.3594 | AD151: 78728 | AE151: 2182728.313 | AF151: 20.18592852 | AG151: 14284.17 | AI151: 0 | AK151: 104 | AM151: 142 | AN151: Hull | AO151: 1 | AP151: 757 | AQ151: 10813118.21 | AR151: 8920823 | AS151: 4075024
